Workbook

Sheet INDICE
F1: ÁFRICA
F2: Trocas comerciais com Portugal (PT) 2018-2022 Setores agrícola e agroalimentar, do mar e das florestas
C3: Fonte
D4: Estatísticas do Comércio Internacional | F4: África - Síntese
D5: dados: 2022 definitivos | F5: 1. Evolução da balança comercial
F6: 2. Ranking dos parceiros comerciais de Portugal por país
C7: Data | D7: 2023-12-28 | F7: 3. Principais produtos transacionados (NC a 2 e 4 dígitos)
F8: 3A Principais produtos transacionados (sem mar nem florestas)
F9: 3B Principais origens e destinos
F10: 3C Principais origens e destinos (sem mar nem florestas)
F11: 4. Evolução da balança comercial por país x produto
F12: 4A Evolução da balança comercial por produto
F13: 5.1. Trocas comerciais por país
F14: 5.1A Trocas comerciais por país (sem mar nem florestas)
F15: 5.2. Trocas comerciais por produto (NC 2 dígitos)
C22: Lista de países
D23: África do Sul; Angola; Argélia; Benim; Botswana; Burquina Faso; Burundi; Cabo Verde; Camarões; Centro-Africana, República; Chade; Comores; Congo; República Democrática do Congo; Costa do Marfim; Egipto; Etiópia; Gabão; Gâmbia; Gana; Guiné; Guiné Equatorial; Guiné-Bissau; Djibuti; Lesoto, Libéria; Jamahira Árabe da Líbia; Madagáscar; Malavi; Mali; Marrocos; Maurícias; Mauritânia; Moçambique; Namíbia; Níger; Nigéria; Quénia; Ruanda; São Tomé e Príncipe; Senegal; Serra Leoa; Seychelles; Somália; Suazilândia; Sudão; Sudão do Sul; República Unida da Tanzânia; Togo; Tunísia; Uganda; Zâmbia; Zimbabwe

Sheet Sintese
A1: África - Síntese (2018-2022)
A3: • As trocas comerciais de bens transacionáveis (excluindo serviços) entre Portugal e África representam um total de 3,7 mil milhões de € em exportações e 3,8 mil milhões de € em importações, na média do período 2018-2022, correspondendo a um saldo negativo da balança comercial de cerca de -0,1 mil milhões.
A4: • No que respeita aos produtos dos setores agrícola e agroalimentar, mar e florestas, Portugal exportou para África 0,98 mil milhões de € em média anual, no mesmo período, enquanto as importações ascenderam a 0,49 mil milhões de €, resultando num saldo positivo de 0,5 mil M€. Estes setores representam perto de 26,2% do total de exportações de bens transacionáveis e 12,7% das correspondentes importações. Se nos referirmos apenas ao setor agrícola e agroalimentar, as exportações representam, em média, 0,6 mil milhões de € e as importações 0,3 mil milhões, ou seja, um saldo positivo de 0,3 mil M€.
A5: • As principais exportações agrícolas e agroalimentares (NC 4 dígitos) neste período são Óleo de soja e suas frações (14%), Vinhos de uvas frescas (10%) e Enchidos e etc., de carne, miudezas ou sangue (5%). As importações agrícolas e agroalimentares mais relevantes referem-se a Citrinos, frescos ou secos (37%), Açúcares (cana/beterraba); sacarose pura (11%) e Café (10%). Se considerarmos também os produtos do mar e da floresta, merecem particular destaque, em termos de exportações, Papel e cartão p/ escrita, etc. (20%), Óleo de soja e suas frações (8%) e Vinhos de uvas frescas (6%). Nas importações destes setores, destacam-se Citrinos, frescos ou secos (19%), Peixes congelados (9%) e Moluscos (9%).
A6: • Os principais destinos das exportações do setor agrícola e agroalimentar no mesmo período são Angola (46%), Cabo Verde (15%) e Marrocos (7%), sendo as principais origens das importações África do Sul (44%), Costa do Marfim (9%) e Uganda (7%). Incluindo os setores do mar e das florestas, os principais destinos são Angola (34%), Marrocos (11%) e Cabo Verde (10%), enquanto as principais origens das importações são África do Sul (30%), Marrocos (9%) e Moçambique (8%).
A8: Trocas PT-África (milhões de euros) produtos agrícolas e agroalimentares, do mar e da floresta | J8: Trocas PT-África (milhões de euros) produtos agrícolas e agroalimentares
B10: 2018 | C10: 2019 | D10: 2020 | E10: 2021 | F10: 2022 | G10: média 2018-2022 | H10: TVMA* 2018-2022 | I10: TVT* 2018-2022 | K10: 2018 | L10: 2019 | M10: 2020 | N10: 2021 | O10: 2022 | P10: média 2018-2022 | Q10: TVMA* 2018-2022 | R10: TVT* 2018-2022
A11: Exportações | B11: 1014.217372 | C11: 930.171589 | D11: 756.089564 | E11: 964.716057 | F11: 1222.307487 | G11: 977.5004138 | H11: 0.04776130812 | I11: 0.2051730928 | J11: Exportações | K11: 618.279106 | L11: 562.608129 | M11: 475.658873 | N11: 568.650324 | O11: 707.938184 | P11: 586.6269232 | Q11: 0.03443377421 | R11: 0.1450139219
A12: Importações | B12: 518.225891 | C12: 472.047244 | D12: 440.606056 | E12: 411.082181 | F12: 585.246452 | G12: 485.4415648 | H12: 0.03087242 | I12: 0.1293269251 | J12: Importações | K12: 248.961605 | L12: 221.011462 | M12: 255.634414 | N12: 210.627719 | O12: 330.924257 | P12: 253.4318914 | Q12: 0.07373981374 | R12: 0.3292180415
A13: Saldo | B13: 495.991481 | C13: 458.124345 | D13: 315.483508 | E13: 553.633876 | F13: 637.061035 | G13: 492.058849 | J13: Saldo | K13: 369.317501 | L13: 341.596667 | M13: 220.024459 | N13: 358.022605 | O13: 377.013927 | P13: 333.1950318
A14: *TVMA - Taxa de variação média anual; TVT - Taxa de variação total
E15: Saldo da Balança Comercial PT-África (milhões de euros)
G16: 2018 | H16: 2019 | I16: 2020 | J16: 2021 | K16: 2022 | L16: média 2018-2022
F17: Total de Bens Transacionáveis* | G17: 718.003827 | H17: -250.693369 | I17: 129.217798 | J17: 719.760467 | K17: -1764.38625 | L17: -89.6195054
D18: Agrícola e Agroalimentar (AA) | G18: 369.317501 | H18: 341.596667 | I18: 220.024459 | J18: 358.022605 | K18: 377.013927 | L18: 333.1950318
F19: Mar (M) | G19: -176.16048 | H19: -164.829506 | I19: -121.724139 | J19: -127.132873 | K19: -146.509147 | L19: -147.271229 | M19: 0
F20: Florestas (F) | G20: 302.83446 | H20: 281.357184 | I20: 217.183188 | J20: 322.744144 | K20: 406.556255 | L20: 306.1350462 | M20: 0
F21: AA + M + F | G21: 495.991481 | H21: 458.124345 | I21: 315.483508 | J21: 553.633876 | K21: 637.061035 | L21: 492.058849
G22: *exclui serviços
A23: Evolução das trocas comerciais PT-África (em milhões de euros 2018-2022)
H32: Exportações | J32: Importações | L32: Saldo
A33: Principais produtos agrícolas e agroalimentares (NC 4 dígitos)
A51: Principais origens e destinos em África dos produtos agrícolas e agroalimentares (média 2018-2022)
A65: Principais produtos agrícolas e agroalimentares transacionados (NC 4 dígitos - média 2018-2022)
A87: Fonte: GPP a partir de dados INE/Comércio Internacional (2022 definitivos) | P87: 2023-12-28

Sheet 1
A1: Evolução da balança comercial Portugal-África 2018-2022 em milhões de euros
A3: Total de Bens Transacionáveis (BT)(1) | B3: 2018 | C3: 2019 | D3: 2020 | E3: 2021 | F3: 2022 | G3: média quinquénio | H3: var. 18/19 | I3: var. 19/20 | J3: var. 20/21 | K3: var. 21/22 | L3: TVMA* 2018-2022 | M3: TVT* 2018-2022
A4: Exportações | B4: 3999.873169 | C4: 3699.731577 | D4: 3078.17891 | E4: 3604.759862 | F4: 4245.337313 | G4: 3725.576166 | H4: -0.07503777728 | I4: -0.1679993951 | J4: 0.1710689883 | K4: 0.1777032245 | L4: 0.01500105941 | M4: 0.06136798184
A5: Importações | B5: 3281.869342 | C5: 3950.424946 | D5: 2948.961112 | E5: 2884.999395 | F5: 6009.723563 | G5: 3815.195672 | H5: 0.2037118283 | I5: -0.2535078751 | J5: -0.02168957628 | K5: 1.083093526 | L5: 0.1632774306 | M5: 0.8311891598
A6: Saldo (exp-imp) | B6: 718.003827 | C6: -250.693369 | D6: 129.217798 | E6: 719.760467 | F6: -1764.38625 | G6: -89.6195054
A7: Cobertura (exp/imp) | B7: 1.218778919 | C7: 0.9365401514 | D7: 1.043818075 | E7: 1.24948375 | F7: 0.7064114129 | G7: 0.9765098535
A8: Exp BT África / Exp BT Mundo | B8: 0.06914215641 | C8: 0.06176223754 | D8: 0.05726056944 | E8: 0.05666210975 | F8: 0.05419246677 | G8: 0.05942535864 | L8: Exportações
A9: Imp BT África / Imp BT Mundo | B9: 0.04350347469 | C9: 0.04939443348 | D9: 0.04327443735 | E9: 0.03469811284 | F9: 0.0548904377 | G9: 0.04583440213 | L9: Importações
A10: Exp BT África / Exp TE Mundo | B10: 0.04486993878 | C10: 0.03966646677 | D10: 0.04143699327 | E10: 0.04031957446 | F10: 0.03545114311 | G10: 0.03998626486
A11: Imp BT África / Imp TE Mundo | B11: 0.0372117749 | C11: 0.04279901616 | D11: 0.03752585901 | E11: 0.03019971368 | F11: 0.04781084031 | G11: 0.03971601005
A12: (1) Todos os produtos transacionados entre PT e África (exclui serviços) | D12: TE - Total da Economia (bens e serviços) Fonte: INE/Contas Nacionais | H12: *TVMA - Taxa de variação média anual; TVT - Taxa de variação total
A24: Agro(1) + Mar + Florestas (AMF) | B24: 2018 | C24: 2019 | D24: 2020 | E24: 2021 | F24: 2022 | G24: média quinquénio | H24: var. 18/19 | I24: var. 19/20 | J24: var. 20/21 | K24: var. 21/22 | L24: TVMA* 2018-2022 | M24: TVT* 2018-2022
A25: Exportações | B25: 1014.217372 | C25: 930.171589 | D25: 756.089564 | E25: 964.716057 | F25: 1222.307487 | G25: 977.5004138 | H25: -0.08286762317 | I25: -0.1871504431 | J25: 0.2759282801 | K25: 0.2670126906 | L25: 0.04776130812 | M25: 0.2051730928
A26: Importações | B26: 518.225891 | C26: 472.047244 | D26: 440.606056 | E26: 411.082181 | F26: 585.246452 | G26: 485.4415648 | H26: -0.08910910821 | I26: -0.06660601963 | J26: -0.06700741989 | K26: 0.4236726354 | L26: 0.03087242 | M26: 0.1293269251
A27: Saldo (exp-imp) | B27: 495.991481 | C27: 458.124345 | D27: 315.483508 | E27: 553.633876 | F27: 637.061035 | G27: 492.058849
A28: Cobertura (exp/imp) | B28: 1.957095139 | C28: 1.970505285 | D28: 1.716021724 | E28: 2.346771769 | F28: 2.088534638 | G28: 2.013631474
A29: Exp AMF / Exp BT | B29: 0.2535623829 | C29: 0.2514159662 | D29: 0.2456288559 | E29: 0.2676228359 | F29: 0.2879176369 | G29: 0.2623756354 | L29: Exportações
A30: Imp AMF / Imp BT | B30: 0.1579057046 | C30: 0.1194927762 | D30: 0.1494106023 | E30: 0.1424895207 | F30: 0.09738325663 | G30: 0.1272389693 | L30: Importações
A31: Exp AMF África / Exp AMF Mundo | B31: 0.08705198288 | C31: 0.07864265474 | D31: 0.06554493166 | E31: 0.07201217096 | F31: 0.07458385856 | G31: 0.07542568518
A32: Imp AMF África / Imp AMF Mundo | B32: 0.03801931045 | C32: 0.03412381767 | D32: 0.033774853 | E32: 0.02750705108 | F32: 0.03030272345 | G32: 0.03246349884
A33: (1) Produtos agrícolas e agroalimentares | B33: BT - Total de Bens Transacionáveis (exclui serviços) | H33: *TVMA - Taxa de variação média anual; TVT - Taxa de variação total
A45: Agroalimentar (AA)(1) | B45: 2018 | C45: 2019 | D45: 2020 | E45: 2021 | F45: 2022 | G45: média quinquénio | H45: var. 18/19 | I45: var. 19/20 | J45: var. 20/21 | K45: var. 21/22 | L45: TVMA* 2018-2022 | M45: TVT* 2018-2022
A46: Exportações | B46: 618.279106 | C46: 562.608129 | D46: 475.658873 | E46: 568.650324 | F46: 707.938184 | G46: 586.6269232 | H46: -0.09004182166 | I46: -0.1545467467 | J46: 0.1955002971 | K46: 0.2449446595 | L46: 0.03443377421 | M46: 0.1450139219
A47: Importações | B47: 248.961605 | C47: 221.011462 | D47: 255.634414 | E47: 210.627719 | F47: 330.924257 | G47: 253.4318914 | H47: -0.1122668815 | I47: 0.1566568163 | J47: -0.1760588267 | K47: 0.5711334604 | L47: 0.07373981374 | M47: 0.3292180415
A48: Saldo (exp-imp) | B48: 369.317501 | C48: 341.596667 | D48: 220.024459 | E48: 358.022605 | F48: 377.013927 | G48: 333.1950318
A49: Cobertura (exp/imp) | B49: 2.483431556 | C49: 2.545606114 | D49: 1.860699683 | E49: 2.699788645 | F49: 2.139275587 | G49: 2.314732057
A50: Exp AA / Exp AMF | B50: 0.6096120251 | C50: 0.6048433812 | D50: 0.6291038729 | E50: 0.5894483873 | F50: 0.5791817456 | G50: 0.6001295907 | L50: Exportações
A51: Imp AA / Imp AMF | B51: 0.4804113598 | C51: 0.4681977595 | D51: 0.5801881534 | E51: 0.5123737509 | F51: 0.5654442771 | G51: 0.5220646722 | L51: Importações
A52: Exp AA / Exp BT | B52: 0.1545746777 | C52: 0.1520672831 | D52: 0.1545260646 | E52: 0.157749849 | F52: 0.1667566395 | G52: 0.1574593827
A53: Imp AA / Imp BT | B53: 0.07585969429 | C53: 0.05594625009 | D53: 0.08668626146 | E53: 0.07300789018 | F53: 0.05506480515 | G53: 0.06642697078
A54: Exp AA África / Exp AA Mundo | B54: 0.1012430945 | C54: 0.08942126234 | D54: 0.07188348268 | E54: 0.07631043639 | F54: 0.07974615508 | G54: 0.08298627368
A55: Imp AA África / Imp AA Mundo | B55: 0.0273708205 | C55: 0.02372112556 | D55: 0.02813977519 | E55: 0.02050734382 | F55: 0.02499956458 | G55: 0.02484361133
A56: (1) Produtos agrícolas e agroalimentares | B56: AMF - Agroalimentar, Mar e Florestas; BT - Total de Bens Transacionáveis (exclui serviços) | H56: *TVMA - Taxa de variação média anual; TVT - Taxa de variação total
A67: Mar (M) | B67: 2018 | C67: 2019 | D67: 2020 | E67: 2021 | F67: 2022 | G67: média quinquénio | H67: var. 18/19 | I67: var. 19/20 | J67: var. 20/21 | K67: var. 21/22 | L67: TVMA* 2018-2022 | M67: TVT* 2018-2022
A68: Exportações | B68: 36.579556 | C68: 26.407879 | D68: 21.414833 | E68: 24.174266 | F68: 33.976312 | G68: 28.5105692 | H68: -0.2780699963 | I68: -0.1890741017 | J68: 0.1288561531 | K68: 0.4054743999 | L68: -0.01828720445 | M68: -0.07116663745
A69: Importações | B69: 212.740036 | C69: 191.237385 | D69: 143.138972 | E69: 151.307139 | F69: 180.485459 | G69: 175.7817982 | H69: -0.1010747737 | I69: -0.2515115598 | J69: 0.05706459175 | K69: 0.192841661 | L69: -0.04027181887
A70: Saldo (exp-imp) | B70: -176.16048 | C70: -164.829506 | D70: -121.724139 | E70: -127.132873 | F70: -146.509147 | G70: -147.271229
A71: Cobertura (exp/imp) | B71: 0.1719448614 | C71: 0.1380895216 | D71: 0.1496086824 | E71: 0.1597695004 | F71: 0.1882495808 | G71: 0.1621929545
A72: Exp M / Exp AMF | B72: 0.03606678116 | C72: 0.02839033068 | D72: 0.02832314321 | E72: 0.02505842608 | F72: 0.02779686156 | G72: 0.02916681036 | L72: Exportações
A73: Imp M / Imp AMF | B73: 0.4105160311 | C73: 0.4051234012 | D73: 0.3248683718 | E73: 0.3680702935 | F73: 0.308392231 | G73: 0.3621070196 | L73: Importações
A74: Exp M / Exp BT | B74: 0.009145178973 | C74: 0.007137782418 | D74: 0.006956981263 | E74: 0.00670620705 | F74: 0.008003206694 | G74: 0.007652660402
A75: Imp M / Imp BT | B75: 0.06482282316 | C75: 0.04840931991 | D75: 0.0485387791 | E75: 0.0524461597 | F75: 0.03003223977 | G75: 0.04607412393
A76: Exp M África / Exp M Mundo | B76: 0.03353439525 | C76: 0.02471752331 | D76: 0.02380299483 | E76: 0.0220683684 | F76: 0.02656221927 | G76: 0.0262363426
A77: Imp M África / Imp M Mundo | B77: 0.09651423256 | C77: 0.08775004738 | D77: 0.07436304905 | E77: 0.07232466082 | F77: 0.06940594926 | G77: 0.07989405752
A78: AMF - Agroalimentar, Mar e Florestas; BT - Total de Bens Transacionáveis (exclui serviços) | H78: *TVMA - Taxa de variação média anual; TVT - Taxa de variação total
A90: Florestas (F) | B90: 2018 | C90: 2019 | D90: 2020 | E90: 2021 | F90: 2022 | G90: média quinquénio | H90: var. 18/19 | I90: var. 19/20 | J90: var. 20/21 | K90: var. 21/22 | L90: TVMA* 2018-2022 | M90: TVT* 2018-2022
A91: Exportações | B91: 359.35871 | C91: 341.155581 | D91: 259.015858 | E91: 371.891467 | F91: 480.392991 | G91: 362.3629214 | H91: -0.05065448115 | I91: -0.2407691024 | J91: 0.4357864799 | K91: 0.2917558848 | L91: 0.07526899113 | M91: 0.3368063098
A92: Importações | B92: 56.52425 | C92: 59.798397 | D92: 41.83267 | E92: 49.147323 | F92: 73.836736 | G92: 56.2278752 | H92: 0.05792464296 | I92: -0.3004382709 | J92: 0.1748550355 | K92: 0.5023551944 | L92: 0.06907806865 | M92: 0.3062842231
A93: Saldo (exp-imp) | B93: 302.83446 | C93: 281.357184 | D93: 217.183188 | E93: 322.744144 | F93: 406.556255 | G93: 306.1350462
A94: Cobertura (exp/imp) | B94: 6.357602445 | C94: 5.705095757 | D94: 6.191712315 | E94: 7.566871282 | F94: 6.506151504 | G94: 6.444542322
A95: Exp F / Exp AMF | B95: 0.3543211938 | C95: 0.3667662881 | D95: 0.3425729839 | E95: 0.3854931866 | F95: 0.3930213928 | G95: 0.370703599 | L95: Exportações
A96: Imp F / Imp AMF | B96: 0.109072609 | C96: 0.1266788394 | D96: 0.09494347486 | E96: 0.1195559556 | F96: 0.1261634919 | G96: 0.1158283082 | L96: Importações
A97: Exp F / Exp BT | B97: 0.0898425262 | C97: 0.09221090068 | D97: 0.0841458101 | E97: 0.1031667798 | F97: 0.1131577907 | G97: 0.09726359232
A98: Imp F / Imp BT | B98: 0.01722318719 | C98: 0.0151372062 | D98: 0.01418556177 | E98: 0.01703547082 | F98: 0.01228621171 | G98: 0.01473787455
A99: Exp F África / Exp F Mundo | B99: 0.08069989593 | C99: 0.07635909903 | D99: 0.06445284529 | E99: 0.07668907826 | F99: 0.07708677179 | G99: 0.07542728078
A100: Imp F África / Imp F Mundo | B100: 0.0242542824 | C100: 0.02558822085 | D100: 0.02054579433 | E100: 0.01903671045 | F100: 0.02124372951 | G100: 0.02203128868
A101: AMF - Agroalimentar, Mar e Florestas; BT - Total de Bens Transacionáveis (exclui serviços) | H101: *TVMA - Taxa de variação média anual; TVT - Taxa de variação total
A111: Fonte: GPP a partir de dados INE/Comércio Internacional (2022 definitivos) | H111: 2023-12-28

Sheet 2
A1: Ranking dos parceiros comerciais de Portugal por país (média 2018-2022 em milhares de euros) produtos agrícolas e agroalimentares, do mar e da floresta
A2: Exportações | F2: Importações | K2: Trocas comerciais (total e saldo)
A3: P | B3: País | C3: média quinquénio | D3: % do Total | F3: P | G3: País | H3: média quinquénio | I3: % do Total | K3: P | L3: País | M3: Total (exp+imp) | N3: % do Total | O3: Saldo (exp-imp)
A4: 1 | B4: Espanha | C4: 4148750.739 | D4: 0.3201250482 | F4: 1 | G4: Espanha | H4: 6893783.417 | I4: 0.4610160031 | K4: 1 | L4: Espanha | M4: 11042534.16 | N4: 0.395602026 | O4: -2745032.678
A5: 2 | B5: França | C5: 1358886.663 | D5: 0.1048541322 | F5: 2 | G5: França | H5: 986144.9388 | I5: 0.06594761841 | K5: 2 | L5: França | M5: 2345031.602 | N5: 0.08401144518 | O5: 372741.7244
A6: 3 | B6: Itália | C6: 876413.3826 | D6: 0.06762562854 | F6: 3 | G6: Alemanha | H6: 882996.1958 | I6: 0.05904963245 | K6: 3 | L6: Alemanha | M6: 1518197.709 | N6: 0.05438987836 | O6: -247794.6828
A7: 4 | B7: Alemanha | C7: 635201.513 | D7: 0.04901328804 | F7: 4 | G7: Países Baixos | H7: 837622.6294 | I7: 0.05601531312 | K7: 4 | L7: Países Baixos | M7: 1425039.699 | N7: 0.05105246534 | O7: -250205.5596
A8: 5 | B8: Países Baixos | C8: 587417.0698 | D8: 0.0453261547 | F8: 5 | G8: Brasil | H8: 705232.1134 | I8: 0.04716180804 | K8: 5 | L8: Itália | M8: 1326247.626 | N8: 0.04751321033 | O8: 426579.139
A9: 6 | B9: Estados Unidos | C9: 554009.1122 | D9: 0.04274833677 | F9: 6 | G9: Itália | H9: 449834.2436 | I9: 0.030082289 | K9: 6 | L9: Brasil | M9: 1157937.372 | N9: 0.04148344611 | O9: -252526.8544 | P9: Nota: Nesta listagem, o Reino Unido passa a ser constituído por três componentes: Reino Unido [até 2020] ; Reino Unido (sem Irlanda do Norte) pós-2020 e Reino Unido (Irlanda do Norte) pós-2020. Estas componentes são calculadas igualmente como média do quinquénio, embora a primeira corresponda apenas a 2018-2020 e as duas últimas a 2021-2022.
A10: 7 | B10: Brasil | C10: 452705.259 | D10: 0.03493154976 | F10: 7 | G10: Suécia | H10: 342054.8722 | I10: 0.02287463364 | K10: 7 | L10: Estados Unidos | M10: 835402.1152 | N10: 0.02992852589 | O10: 272616.1092
A11: 8 | B11: Reino Unido | C11: 382822.421 | D11: 0.02953926464 | F11: 8 | G11: Bélgica | H11: 286674.3358 | I11: 0.01917110656 | K11: 8 | L11: Reino Unido | M11: 527725.3878 | N11: 0.01890591685 | O11: 237919.4542
A12: 9 | B12: Angola | C12: 331091.7324 | D12: 0.02554763192 | F12: 9 | G12: Estados Unidos | H12: 281393.003 | I12: 0.01881792184 | K12: 9 | L12: Bélgica | M12: 526747.6872 | N12: 0.01887089044 | O12: -46600.9844
A13: 10 | B13: Reino Unido (sem Irlanda do Norte) pós 2020 | C13: 297693.4518 | D13: 0.02297056069 | F13: 10 | G13: Polónia | H13: 206886.255 | I13: 0.01383534536 | K13: 10 | L13: Polónia | M13: 458140.6776 | N13: 0.0164130242 | O13: 44368.1676
A14: 11 | B14: Polónia | C14: 251254.4226 | D14: 0.0193872419 | F14: 11 | G14: Ucrânia | H14: 195333.6414 | I14: 0.01306277398 | K14: 11 | L14: Suécia | M14: 435988.145 | N14: 0.01561940322 | O14: -248121.5994
A15: 12 | B15: Bélgica | C15: 240073.3514 | D15: 0.01852449039 | F15: 12 | G15: China, República Popular da | H15: 173665.6746 | I15: 0.01161374681 | K15: 12 | L15: China, República Popular da | M15: 367334.7522 | N15: 0.01315987528 | O15: 20003.403
A16: 13 | B16: Israel | C16: 214331.8496 | D16: 0.01653822994 | F16: 13 | G16: África do Sul | H16: 145344.1816 | I16: 0.009719770643 | K16: 13 | L16: Reino Unido (sem Irlanda do Norte) pós 2020 | M16: 358748.5572 | N16: 0.01285227232 | O16: 236638.3464
A17: 14 | B17: China, República Popular da | C17: 193669.0776 | D17: 0.01494385339 | F17: 14 | G17: Reino Unido | H17: 144902.9668 | I17: 0.009690264772 | K17: 14 | L17: Angola | M17: 346515.8172 | N17: 0.01241403082 | O17: 315667.6476
A18: 15 | B18: Turquia | C18: 167223.9134 | D18: 0.01290329709 | F18: 15 | G18: Dinamarca | H18: 144508.7452 | I18: 0.009663901532 | K18: 15 | L18: Dinamarca | M18: 229058.3694 | N18: 0.00820608329 | O18: -59959.121
A19: 16 | B19: Suíça | C19: 143369.888 | D19: 0.01106267771 | F19: 16 | G19: Roménia | H19: 138998.2312 | I19: 0.009295390515 | K19: 16 | L19: Turquia | M19: 223211.8948 | N19: 0.007996631622 | O19: 111235.932
A20: 17 | B20: Marrocos | C20: 109026.8306 | D20: 0.0084127058 | F20: 17 | G20: Irlanda | H20: 115719.6518 | I20: 0.007738654977 | K20: 17 | L20: Israel | M20: 222680.6996 | N20: 0.007977601399 | O20: 205982.9996
A21: 18 | B21: Cabo Verde | C21: 100863.1066 | D21: 0.007782778214 | F21: 18 | G21: Canadá | H21: 108524.1664 | I21: 0.007257462906 | K21: 18 | L21: Ucrânia | M21: 209671.7124 | N21: 0.007511550615 | O21: -180995.5704
A22: 19 | B22: Canadá | C22: 96453.797 | D22: 0.007442547977 | F22: 19 | G22: Rússia, Federação da | H22: 105950.8246 | I22: 0.007085372825 | K22: 19 | L22: Canadá | M22: 204977.9634 | N22: 0.00734339568 | O22: -12070.3694
A23: 20 | B23: Suécia | C23: 93933.2728 | D23: 0.007248059809 | F23: 20 | G23: Uruguai | H23: 102112.0792 | I23: 0.006828659935 | K23: 20 | L23: Rússia, Federação da | M23: 185978.7022 | N23: 0.006662741573 | O23: -25922.947
A24: 21 | B24: Dinamarca | C24: 84549.6242 | D24: 0.006524000652 | F24: 21 | G24: Argentina | H24: 97727.8454 | I24: 0.006535467965 | K24: 21 | L24: África do Sul | M24: 182499.4124 | N24: 0.006538094995 | O24: -108188.9508
A25: 22 | B25: Egito | C25: 83372.4854 | D25: 0.006433170511 | F25: 22 | G25: Índia | H25: 75558.034 | I25: 0.00505288036 | K25: 22 | L25: Irlanda | M25: 179693.3864 | N25: 0.006437568291 | O25: -51745.9172
A26: 23 | B26: Rússia, Federação da | C26: 80027.8776 | D26: 0.006175094574 | F26: 23 | G26: Finlândia | H26: 73941.3526 | I26: 0.004944766143 | K26: 23 | L26: Roménia | M26: 164861.988 | N26: 0.005906229091 | O26: -113134.4744
A27: 24 | B27: Argélia | C27: 78380.8918 | D27: 0.006048010196 | F27: 24 | G27: Vietname | H27: 70011.1556 | I27: 0.004681937504 | K27: 24 | L27: Marrocos | M27: 151643.736 | N27: 0.005432681335 | O27: 66409.9252
A28: 25 | B28: México | C28: 73493.3644 | D28: 0.005670879815 | F28: 25 | G28: Costa Rica | H28: 69969.0578 | I28: 0.004679122249 | K28: 25 | L28: Suíça | M28: 147880.9734 | N28: 0.005297879261 | O28: 138858.8026
A29: 26 | B29: Japão | C29: 66606.0156 | D29: 0.005139439629 | F29: 26 | G29: Áustria | H29: 63908.1406 | I29: 0.004273803478 | K29: 26 | L29: Grécia | M29: 116697.7842 | N29: 0.004180732359 | O29: -11083.3998
A30: 27 | B30: Irlanda | C30: 63973.7346 | D30: 0.004936328105 | F30: 27 | G30: Grécia | H30: 63890.592 | I30: 0.00427262993 | K30: 27 | L30: Argentina | M30: 113763.425 | N30: 0.004075608079 | O30: -81692.2658
A31: 28 | B31: Luxemburgo | C31: 54794.7774 | D31: 0.004228063304 | F31: 28 | G31: Reino Unido (sem Irlanda do Norte) pós 2020 | H31: 61055.1054 | I31: 0.004083009134 | K31: 28 | L31: Uruguai | M31: 105101.1588 | N31: 0.003765279851 | O31: -99122.9996
A32: 29 | B32: Grécia | C32: 52807.1922 | D32: 0.004074697665 | F32: 29 | G32: Turquia | H32: 55987.9814 | I32: 0.003744149453 | K32: 29 | L32: Finlândia | M32: 103158.5318 | N32: 0.003695684669 | O32: -44724.1734
A33: 30 | B33: Áustria | C33: 39217.279 | D33: 0.003026075588 | F33: 30 | G33: Equador | H33: 48767.8678 | I33: 0.003261310391 | K33: 30 | L33: Áustria | M33: 103125.4196 | N33: 0.003694498415 | O33: -24690.8616
A34: 31 | B34: Moçambique | C34: 37446.547 | D34: 0.002889442731 | F34: 31 | G34: Chile | H34: 47784.2222 | I34: 0.003195529914 | K34: 31 | L34: Cabo Verde | M34: 101700.8832 | N34: 0.00364346398 | O34: 100025.33
A35: 32 | B35: África do Sul | C35: 37155.2308 | D35: 0.00286696425 | F35: 32 | G35: Bulgária | H35: 46240.758 | I35: 0.003092312036 | K35: 32 | L35: Índia | M35: 100022.4076 | N35: 0.003583332099 | O35: -51093.6604
A36: 33 | B36: Chile | C36: 36026.5554 | D36: 0.002779873632 | F36: 33 | G36: Cuba | H36: 43073.1354 | I36: 0.002880479923 | K36: 33 | L36: Egito | M36: 93738.5794 | N36: 0.00335821211 | O36: 73006.3914
A37: 34 | B37: Austrália | C37: 34889.2592 | D37: 0.002692117817 | F37: 34 | G37: Marrocos | H37: 42616.9054 | I37: 0.002849969923 | K37: 34 | L37: México | M37: 93580.153 | N37: 0.003352536438 | O37: 53406.5758
A38: 35 | B38: Arábia Saudita | C38: 32818.8452 | D38: 0.00253236096 | F38: 35 | G38: Moçambique | H38: 40008.831 | I38: 0.002675557127 | K38: 35 | L38: Chile | M38: 83810.7776 | N38: 0.003002545698 | O38: -11757.6668
A39: 36 | B39: Guiné-Bissau | C39: 32182.3082 | D39: 0.002483244623 | F39: 36 | G39: Checa, República | H39: 35780.8524 | I39: 0.002392814593 | K39: 36 | L39: Argélia | M39: 83294.638 | N39: 0.002984054845 | O39: 73467.1456
A40: 37 | B40: Finlândia | C40: 29217.1792 | D40: 0.002254449951 | F40: 37 | G40: Colômbia | H40: 29157.4358 | I40: 0.001949879145 | K40: 37 | L40: Japão | M40: 82993.326 | N40: 0.002973260255 | O40: 50218.7052
A41: 38 | B41: Checa, República | C41: 29096.25 | D41: 0.002245118837 | F41: 38 | G41: Indonésia | H41: 28526.3034 | I41: 0.001907672693 | K41: 38 | L41: Moçambique | M41: 77455.378 | N41: 0.002774861643 | O41: -2562.284
A42: 39 | B42: Emirados Árabes Unidos | C42: 29052.9664 | D42: 0.002241778997 | F42: 39 | G42: Guiana | H42: 28025.2924 | I42: 0.001874168001 | K42: 39 | L42: Vietname | M42: 75958.0768 | N42: 0.002721220388 | O42: -64064.2344
A43: 40 | B43: São Tomé e Príncipe | C43: 26792.4812 | D43: 0.002067355905 | F43: 40 | G43: Hungria | H43: 24242.0034 | I43: 0.001621163712 | K43: 40 | L43: Costa Rica | M43: 73986.347 | N43: 0.002650582589 | O43: -65951.7686
A44: 41 | B44: Jordânia | C44: 26642.1032 | D44: 0.002055752468 | F44: 41 | G44: Namíbia | H44: 22831.866 | I44: 0.001526861952 | K44: 41 | L44: Checa, República | M44: 64877.1024 | N44: 0.002324241229 | O44: -6684.6024
A45: 42 | B45: Roménia | C45: 25863.7568 | D45: 0.001995693864 | F45: 42 | G45: Costa do Marfim | H45: 22796.209 | I45: 0.00152447742 | K45: 42 | L45: Luxemburgo | M45: 63347.0378 | N45: 0.002269426215 | O45: 46242.517
A46: 43 | B46: Tunísia | C46: 24967.3514 | D46: 0.001926525616 | F46: 43 | G46: Uganda | H46: 22685.1228 | I46: 0.001517048623 | K46: 43 | L46: Bulgária | M46: 59231.1196 | N46: 0.002121972238 | O46: -33250.3964
A47: 44 | B47: Índia | C47: 24464.3736 | D47: 0.001887714946 | F47: 44 | G47: México | H47: 20086.7886 | I47: 0.001343287196 | K47: 44 | L47: Equador | M47: 51817.4262 | N47: 0.001856374497 | O47: -45718.3094
A48: 45 | B48: Noruega | C48: 22053.074 | D48: 0.001701654744 | F48: 45 | G48: Peru | H48: 19493.8856 | I48: 0.001303637303 | K48: 45 | L48: Austrália | M48: 48712.5526 | N48: 0.001745141489 | O48: 21065.9658
A49: 46 | B49: Coreia, República da | C49: 18924.4824 | D49: 0.001460247005 | F49: 46 | G49: Paraguai | H49: 18840.7592 | I49: 0.001259960021 | K49: 46 | L49: Cuba | M49: 48369.362 | N49: 0.001732846585 | O49: -37776.9088
A50: 47 | B50: Hungria | C50: 18306.327 | D50: 0.001412549026 | F50: 47 | G50: Senegal | H50: 17576.5504 | I50: 0.001175417115 | K50: 47 | L50: Hungria | M50: 42548.3304 | N50: 0.00152430642 | O50: -5935.6764
A51: 48 | B51: Nigéria | C51: 16216.7282 | D51: 0.001251311834 | F51: 48 | G51: Nova Zelânda | H51: 17377.015 | I51: 0.001162073352 | K51: 48 | L51: Colômbia | M51: 37490.321 | N51: 0.00134310175 | O51: -20824.5506
A52: 49 | B52: Argentina | C52: 16035.5796 | D52: 0.001237334083 | F52: 49 | G52: Japão | H52: 16387.3104 | I52: 0.001095887684 | K52: 49 | L52: Tunísia | M52: 35510.5226 | N52: 0.001272174891 | O52: 14424.1802
A53: 50 | B53: Lituânia | C53: 14426.2296 | D53: 0.001113153751 | F53: 50 | G53: Lituânia | H53: 15822.4366 | I53: 0.001058112221 | K53: 50 | L53: Noruega | M53: 34932.4536 | N53: 0.0012514654 | O53: 9173.6944
A54: 51 | B54: Ucrânia | C54: 14338.071 | D54: 0.001106351275 | F54: 51 | G54: Angola | H54: 15424.0848 | I54: 0.001031472777 | K54: 51 | L54: Costa do Marfim | M54: 32973.8046 | N54: 0.001181296224 | O54: -12618.6134
A55: 52 | B55: Macau | C55: 14162.3328 | D55: 0.001092791001 | F55: 52 | G55: Mauritânia | H55: 14124.4552 | I55: 0.0009445611341 | K55: 52 | L55: Arábia Saudita | M55: 32855.5924 | N55: 0.001177061238 | O55: 32782.098
A56: 53 | B56: Síria, República Árabe da | C56: 13309.7072 | D56: 0.00102700088 | F56: 53 | G56: Austrália | H56: 13823.2934 | I56: 0.0009244211904 | K56: 53 | L56: Guiné-Bissau | M56: 32561.5128 | N56: 0.00116652575 | O56: 31803.1036
A57: 54 | B57: Iraque | C57: 13216.9518 | D57: 0.001019843707 | F57: 54 | G57: Tanzânia, República Unida da | H57: 13711.0264 | I57: 0.0009169134287 | K57: 54 | L57: Indonésia | M57: 32128.1024 | N57: 0.001150998695 | O57: -24924.5044
A58: 55 | B58: Bulgária | C58: 12990.3616 | D58: 0.001002359601 | F58: 55 | G58: Eslovénia | H58: 13709.4752 | I58: 0.0009168096935 | K58: 55 | L58: Coreia, República da | M58: 31301.2172 | N58: 0.00112137529 | O58: 6547.7476
A59: 56 | B59: HongKong | C59: 12801.5844 | D59: 0.0009877932133 | F59: 56 | G59: Suazilândia | H59: 13238.7086 | I59: 0.0008853275706 | K59: 56 | L59: Lituânia | M59: 30248.6662 | N59: 0.001083667342 | O59: -1396.207
A60: 57 | B60: Eslováquia | C60: 12740.7416 | D60: 0.0009830984737 | F60: 57 | G60: Noruega | H60: 12879.3796 | I60: 0.0008612977441 | K60: 57 | L60: Emirados Árabes Unidos | M60: 29704.259 | N60: 0.001064163794 | O60: 28401.6738
A61: 58 | B61: Letónia | C61: 11849.96 | D61: 0.0009143641678 | F61: 58 | G61: Tailândia | H61: 12766.4348 | I61: 0.0008537446551 | K61: 58 | L61: Senegal | M61: 28854.894 | N61: 0.001033735044 | O61: -6298.2068
A62: 59 | B62: Croácia | C62: 11388.7032 | D62: 0.0008787727658 | F62: 59 | G62: Camarões | H62: 12420.4028 | I62: 0.0008306040543 | K62: 59 | L62: Guiana | M62: 28164.8726 | N62: 0.001009014825 | O62: -27885.7122
A63: 60 | B63: Senegal | C63: 11278.3436 | D63: 0.0008702572211 | F63: 60 | G63: Coreia, República da | H63: 12376.7348 | I63: 0.0008276837933 | K63: 60 | L63: São Tomé e Príncipe | M63: 27846.3486 | N63: 0.0009976036088 | O63: 25738.6138
A64: 61 | B64: Dominicana, República | C64: 11211.5302 | D64: 0.0008651017793 | F64: 61 | G64: Estónia | H64: 12113.6096 | I64: 0.0008100875155 | K64: 61 | L64: Jordânia | M64: 26699.1202 | N64: 0.0009565038148 | O64: 26585.0862
A65: 62 | B65: Líbia, Jamahira Árabe da | C65: 11110.2892 | D65: 0.0008572898422 | F65: 62 | G65: Moldava, República de | H65: 11911.9324 | I65: 0.0007966005214 | K65: 62 | L65: Peru | M65: 25631.4274 | N65: 0.000918253407 | O65: -13356.3438
A66: 63 | B66: Costa do Marfim | C66: 10177.5956 | D66: 0.0007853215311 | F66: 63 | G66: Sérvia | H66: 11557.857 | I66: 0.000772922025 | K66: 63 | L66: Uganda | M66: 23651.4418 | N66: 0.0008473198419 | O66: -21718.8038
A67: 64 | B67: Malta | C67: 10082.9972 | D67: 0.0007780221489 | F67: 64 | G67: Tunísia | H67: 10543.1712 | I67: 0.0007050657604 | K67: 64 | L67: Namíbia | M67: 23571.3778 | N67: 0.0008444515256 | O67: -22092.3542
A68: 65 | B68: Território Palestiniano Ocupado | C68: 9895.7186 | D68: 0.0007635713962 | F68: 65 | G68: Paquistão | H68: 10440.9988 | I68: 0.0006982330665 | K68: 65 | L68: Tailândia | M68: 22048.0496 | N68: 0.0007898778459 | O68: -3484.82
A69: 66 | B69: Líbano | C69: 9880.5148 | D69: 0.0007623982437 | F69: 66 | G69: Egito | H69: 10366.094 | I69: 0.0006932238706 | K69: 66 | L69: Eslovénia | M69: 22027.284 | N69: 0.0007891339122 | O69: -5391.6664
A70: 67 | B70: Chipre | C70: 9763.9754 | D70: 0.0007534058546 | F70: 67 | G70: Islândia | H70: 10004.441 | I70: 0.0006690386286 | K70: 67 | L70: Nigéria | M70: 21603.5138 | N70: 0.0007739522204 | O70: 10829.9426
A71: 68 | B71: Tailândia | C71: 9281.6148 | D71: 0.0007161860455 | F71: 68 | G71: Maurícias | H71: 9636.4388 | I71: 0.0006444287891 | K71: 68 | L71: Nova Zelânda | M71: 21601.671 | N71: 0.0007738862016 | O71: -13152.359
A72: 69 | B72: Kuwait | C72: 9121.1468 | D72: 0.0007038040468 | F72: 69 | G72: Letónia | H72: 9340.8474 | I72: 0.0006246613613 | K72: 69 | L72: Camarões | M72: 21512.3584 | N72: 0.0007706865515 | O72: -3328.4472
A73: 70 | B73: Camarões | C73: 9091.9556 | D73: 0.0007015516015 | F73: 70 | G73: Luxemburgo | H73: 8552.2604 | I73: 0.0005719252649 | K73: 70 | L73: Letónia | M73: 21190.8074 | N73: 0.0007591668926 | O73: 2509.1126
A74: 71 | B74: Colômbia | C74: 8332.8852 | D74: 0.000642980368 | F74: 71 | G74: Israel | H74: 8348.85 | I74: 0.0005583223645 | K74: 71 | L74: Estónia | M74: 20382.3 | N74: 0.0007302018777 | O74: -3844.9192
A75: 72 | B75: Eslovénia | C75: 8317.8088 | D75: 0.0006418170459 | F75: 72 | G75: Filipinas | H75: 8338.4466 | I75: 0.0005576266458 | K75: 72 | L75: Paraguai | M75: 20050.052 | N75: 0.0007182989957 | O75: -17631.4664
A76: 73 | B76: Estónia | C76: 8268.6904 | D76: 0.000638026982 | F76: 73 | G76: Belize | H76: 8129.6594 | I76: 0.0005436641763 | K76: 73 | L76: Croácia | M76: 18469.8002 | N76: 0.0006616860113 | O76: 4307.6062
A77: 74 | B77: Geórgia | C77: 8048.6886 | D77: 0.0006210512486 | F77: 74 | G77: Malásia | H77: 8113.8152 | I77: 0.0005426046087 | K77: 74 | L77: Eslováquia | M77: 18139.0792 | N77: 0.0006498378344 | O77: 7342.404
A78: 75 | B78: Gibraltar | C78: 7970.9208 | D78: 0.0006150505456 | F78: 75 | G78: Bangladesh | H78: 7929.0306 | I78: 0.000530247293 | K78: 75 | L78: Sérvia | M78: 17502.4848 | N78: 0.0006270316533 | O78: -5613.2292
A79: 76 | B79: Gana | C79: 7307.4466 | D79: 0.0005638556863 | F79: 76 | G79: Croácia | H79: 7081.097 | I79: 0.0004735424424 | K79: 76 | L79: Mauritânia | M79: 16931.2984 | N79: 0.0006065687329 | O79: -11317.612
A80: 77 | B80: Taiwan | C80: 6603.7526 | D80: 0.0005095573952 | F80: 77 | G80: Quénia | H80: 6721.3334 | I80: 0.0004494835524 | K80: 77 | L80: HongKong | M80: 15600.7076 | N80: 0.0005588999271 | O80: 10002.4612
A81: 78 | B81: Belarus | C81: 6189.2796 | D81: 0.0004775759151 | F81: 78 | G81: Gana | H81: 6621.1502 | I81: 0.0004427838846 | K81: 78 | L81: Maurícias | M81: 15492.987 | N81: 0.000555040805 | O81: -3779.8906
A82: 79 | B82: Guatemala | C82: 6179.6032 | D82: 0.0004768292667 | F82: 79 | G82: Panamá | H82: 6513.4974 | I82: 0.0004355846936 | K82: 79 | L82: Suazilândia | M82: 15229.8654 | N82: 0.0005456143965 | O82: -11247.5518
A83: 80 | B83: Peru | C83: 6137.5418 | D83: 0.0004735837336 | F83: 80 | G83: Honduras | H83: 6221.5346 | I83: 0.0004160599254 | K83: 80 | L83: Moldava, República de | M83: 14881.0396 | N83: 0.0005331176098 | O83: -8942.8252
A84: 81 | B84: Vietname | C84: 5946.9212 | D84: 0.0004588751062 | F84: 81 | G84: Suriname | H84: 5829.6302 | I84: 0.0003898516463 | K84: 81 | L84: Síria, República Árabe da | M84: 14259.5412 | N84: 0.0005108522473 | O84: 12359.8732
A85: 82 | B85: Sérvia | C85: 5944.6278 | D85: 0.0004586981434 | F85: 82 | G85: Eslováquia | H85: 5398.3376 | I85: 0.0003610093142 | K85: 82 | L85: Tanzânia, República Unida da | M85: 14227.4986 | N85: 0.0005097043117 | O85: -13194.5542
A86: 83 | B86: Maurícias | C86: 5856.5482 | D86: 0.0004519017635 | F86: 83 | G86: Nigéria | H86: 5386.7856 | I86: 0.0003602367839 | K86: 83 | L86: Macau | M86: 14182.009 | N86: 0.0005080746335 | O86: 14142.6566
A87: 84 | B87: Andorra | C87: 5401.2632 | D87: 0.0004167711563 | F87: 84 | G87: Etiópia | H87: 5332.9722 | I87: 0.0003566380577 | K87: 84 | L87: Gana | M87: 13928.5968 | N87: 0.0004989960671 | O87: 686.2964
A88: 85 | B88: Cuba | C88: 5296.2266 | D88: 0.0004086663438 | F88: 85 | G88: Congo | H88: 5207.279 | I88: 0.0003482324301 | K88: 85 | L88: Paquistão | M88: 13696.3036 | N88: 0.000490674095 | O88: -7185.694
A89: 86 | B89: Singapura | C89: 4670.5802 | D89: 0.0003603903454 | F89: 86 | G89: Guatemala | H89: 5139.0112 | I89: 0.000343667078 | K89: 86 | L89: Dominicana, República | M89: 13463.2218 | N89: 0.0004823238711 | O89: 8959.8386
A90: 87 | B90: Omã | C90: 4393.4536 | D90: 0.0003390067599 | F90: 87 | G90: Camboja | H90: 4965.3018 | I90: 0.0003320504071 | K90: 87 | L90: Iraque | M90: 13230.1254 | N90: 0.0004739731242 | O90: 13203.7782
A91: 88 | B91: Nova Zelânda | C91: 4224.656 | D91: 0.0003259820343 | F91: 88 | G91: Argélia | H91: 4913.7462 | I91: 0.0003286026694 | K91: 88 | L91: Chipre | M91: 13179.1368 | N91: 0.0004721464427 | O91: 6348.814
A92: 89 | B92: Panamá | C92: 4203.97 | D92: 0.0003243858655 | F92: 89 | G92: Reino Unido (Irlanda do Norte) pós-2020 | H92: 4864.879 | I92: 0.0003253347163 | K92: 89 | L92: Filipinas | M92: 11817.2578 | N92: 0.0004233567279 | O92: -4859.6354
A93: 90 | B93: Costa Rica | C93: 4017.2892 | D93: 0.0003099812401 | F93: 90 | G93: Macedónia, Antiga República jugoslava da | H93: 4838.7308 | I93: 0.0003235860773 | K93: 90 | L93: Islândia | M93: 11807.9024 | N93: 0.000423021568 | O93: -8200.9796
A94: 91 | B94: Catar | C94: 3814.9902 | D94: 0.0002943714864 | F94: 91 | G94: Zimbabwe | H94: 4709.246 | I94: 0.0003149268895 | K94: 91 | L94: Malta | M94: 11740.4076 | N94: 0.000420603547 | O94: 8425.5868
A95: 92 | B95: Burquina Faso | C95: 3646.8948 | D95: 0.0002814009439 | F95: 92 | G95: Suíça | H95: 4511.0854 | I95: 0.0003016750651 | K95: 92 | L95: Malásia | M95: 11542.323 | N95: 0.000413507108 | O95: -4685.3074
A96: 93 | B96: Indonésia | C96: 3601.799 | D96: 0.0002779212711 | F96: 93 | G96: Sri Lanca | H96: 4405.8098 | I96: 0.0002946348473 | K96: 93 | L96: Guatemala | M96: 11318.6144 | N96: 0.0004054926818 | O96: 1040.592
A97: 94 | B97: Sudão | C97: 3570.9408 | D97: 0.000275540197 | F97: 94 | G97: Madagáscar | H97: 3797.7566 | I97: 0.0002539717979 | K97: 94 | L97: Líbia, Jamahira Árabe da | M97: 11116.3092 | N97: 0.0003982450387 | O97: 11104.2692
A98: 95 | B98: Filipinas | C98: 3478.8112 | D98: 0.0002684313118 | F98: 95 | G98: Mali | H98: 3762.6334 | I98: 0.0002516229632 | K98: 95 | L98: Panamá | M98: 10717.4674 | N98: 0.0003839564142 | O98: -2309.5274
A99: 96 | B99: Mali | C99: 3441.82 | D99: 0.0002655770045 | F99: 96 | G99: Myanmar | H99: 3487.5672 | I99: 0.000233228141 | K99: 96 | L99: Líbano | M99: 10422.5976 | N99: 0.0003733926171 | O99: 9338.432
A100: 97 | B100: Malásia | C100: 3428.5078 | D100: 0.0002645498112 | F100: 97 | G100: Nicarágua | H100: 3458.6704 | I100: 0.0002312956917 | K100: 97 | L100: Kuwait | M100: 10304.9986 | N100: 0.0003691795984 | O100: 7937.295
A101: 98 | B101: Venezuela | C101: 3292.1542 | D101: 0.0002540285229 | F101: 98 | G101: Taiwan | H101: 3425.7168 | I101: 0.0002290919472 | K101: 98 | L101: Taiwan | M101: 10029.4694 | N101: 0.0003593086839 | O101: 3178.0358
A102: 99 | B102: Paquistão | C102: 3255.3048 | D102: 0.0002511851571 | F102: 99 | G102: Chipre | H102: 3415.1614 | I102: 0.0002283860637 | K102: 99 | L102: Território Palestiniano Ocupado | M102: 9896.2038 | N102: 0.0003545344047 | O102: 9895.2334
A103: 100 | B103: Irão, República Islâmica do | C103: 3151.3458 | D103: 0.0002431634942 | F103: 100 | G103: Congo, República Democrática do | H103: 3287.5926 | I103: 0.0002198550068 | K103: 100 | L103: Bangladesh | M103: 9893.849 | N103: 0.0003544500433 | O103: -5964.2122
A104: 101 | B104: Equador | C104: 3049.5584 | D104: 0.0002353093959 | F104: 101 | G104: Malavi | H104: 3258.3272 | I104: 0.0002178979077 | K104: 101 | L104: Quénia | M104: 9768.3614 | N104: 0.0003499544132 | O104: -3674.3054
A105: 102 | B105: Quénia | C105: 3047.028 | D105: 0.0002351141457 | F105: 102 | G105: Papuásia-Nova Guiné | H105: 3105.1676 | I105: 0.0002076554875 | K105: 102 | L105: Geórgia | M105: 8359.5618 | N105: 0.0002994837542 | O105: 7737.8154
A106: 103 | B106: Uruguai | C106: 2989.0796 | D106: 0.0002306427432 | F106: 103 | G106: HongKong | H106: 2799.1232 | I106: 0.0001871890241 | K106: 103 | L106: Belize | M106: 8131.84 | N106: 0.0002913255539 | O106: -8127.4788
A107: 104 | B107: Moldava, República de | C107: 2969.1072 | D107: 0.000229101637 | F107: 104 | G107: Gabão | H107: 2643.292 | I107: 0.0001767679428 | K107: 104 | L107: Gibraltar | M107: 8002.9498 | N107: 0.0002867080247 | O107: 7938.8918
A108: 105 | B108: Mauritânia | C108: 2806.8432 | D108: 0.0002165810557 | F108: 105 | G108: Centro-Africana, República | H108: 2579.2684 | I108: 0.0001724864181 | K108: 105 | L108: Congo | M108: 7636.6094 | N108: 0.0002735837724 | O108: -2777.9486
A109: 106 | B109: Timor-Leste | C109: 2726.394 | D109: 0.0002103734511 | F109: 106 | G109: Gâmbia | H109: 2389.373 | I109: 0.000159787322 | K109: 106 | L109: Honduras | M109: 7591.1752 | N109: 0.0002719560788 | O109: -4851.894
A110: 107 | B110: Guiné | C110: 2700.6706 | D110: 0.0002083885874 | F110: 107 | G110: Dominicana, República | H110: 2251.6916 | I110: 0.0001505799934 | K110: 107 | L110: Etiópia | M110: 7365.0862 | N110: 0.0002638563741 | O110: -3300.8582
A111: 108 | B111: Arménia | C111: 2588.4812 | D111: 0.0001997318521 | F111: 108 | G111: Serra Leoa | H111: 1997.9044 | I111: 0.0001336081866 | K111: 108 | L111: Reino Unido (Irlanda do Norte) pós-2020 | M111: 7284.542 | N111: 0.0002609708545 | O111: -2445.216
A112: 109 | B112: Gabão | C112: 2550.5466 | D112: 0.0001968047503 | F112: 109 | G112: Benim | H112: 1832.1494 | I112: 0.0001225234595 | K112: 109 | L112: Mali | M112: 7204.4534 | N112: 0.0002581016569 | O112: -320.8134
A113: 110 | B113: Congo | C113: 2429.3304 | D113: 0.0001874514909 | F113: 110 | G113: El Salvador | H113: 1779.7304 | I113: 0.0001190179827 | K113: 110 | L113: Belarus | M113: 7048.5194 | N113: 0.0002525152756 | O113: 5330.0398
A114: 111 | B114: Reino Unido (Irlanda do Norte) pós-2020 | C114: 2419.663 | D114: 0.000186705537 | F114: 111 | G114: Burquina Faso | H114: 1725.7576 | I114: 0.0001154085968 | K114: 111 | L114: Suriname | M114: 6411.9606 | N114: 0.0002297103698 | O114: -5247.2998
A115: 112 | B115: Albânia | C115: 2229.7502 | D115: 0.0001720515247 | F115: 112 | G115: Malta | H115: 1657.4104 | I115: 0.000110837935 | K115: 112 | L115: Singapura | M115: 5982.0136 | N115: 0.0002143073924 | O115: 3359.1468
A116: 113 | B116: Seychelles | C116: 2209.8298 | D116: 0.0001705144309 | F116: 113 | G116: Laos, República Democrática Popular do | H116: 1570.485 | I116: 0.0001050248715 | K116: 113 | L116: Camboja | M116: 5868.6792 | N116: 0.0002102471542 | O116: -4061.9244
A117: 114 | B117: Guiné Equatorial | C117: 2176.263 | D117: 0.0001679243564 | F117: 114 | G117: Singapura | H117: 1311.4334 | I117: 8.770101232e-05 | K117: 114 | L117: Sri Lanca | M117: 5846.5976 | N117: 0.0002094560744 | O117: -2965.022
A118: 115 | B118: Etiópia | C118: 2032.114 | D118: 0.0001568015611 | F118: 115 | G118: Seychelles | H118: 1264.2444 | I118: 8.45452874e-05 | K118: 115 | L118: Macedónia, Antiga República jugoslava da | M118: 5789.6166 | N118: 0.0002074147134 | O118: -3887.845
A119: 116 | B119: Suazilândia | C119: 1991.1568 | D119: 0.00015364123 | F119: 116 | G119: Kuwait | H119: 1183.8518 | I119: 7.916909948e-05 | K119: 116 | L119: Andorra | M119: 5443.4826 | N119: 0.0001950143613 | O119: 5359.0438
A120: 117 | B120: Bangladesh | C120: 1964.8184 | D120: 0.0001516089119 | F120: 117 | G120: Bolívia | H120: 1171.3558 | I120: 7.833343992e-05 | K120: 117 | L120: Burquina Faso | M120: 5372.6524 | N120: 0.0001924768486 | O120: 1921.1372
A121: 118 | B121: Islândia | C121: 1803.4614 | D121: 0.0001391583163 | F121: 118 | G121: Togo | H121: 1123.3282 | I121: 7.512163432e-05 | K121: 118 | L121: Gabão | M121: 5193.8386 | N121: 0.0001860707917 | O121: -92.7454
A122: 119 | B122: Benim | C122: 1771.8166 | D122: 0.0001367165468 | F122: 119 | G122: São Tomé e Príncipe | H122: 1053.8674 | I122: 7.047650139e-05 | K122: 119 | L122: Nicarágua | M122: 5085.114 | N122: 0.000182175701 | O122: -1832.2268
A123: 120 | B123: Congo, República Democrática do | C123: 1727.181 | D123: 0.0001332723838 | F123: 120 | G123: Venezuela | H123: 1042.655 | I123: 6.972668151e-05 | K123: 120 | L123: Congo, República Democrática do | M123: 5014.7736 | N123: 0.0001796557356 | O123: -1560.4116
A124: 121 | B124: Jamaica | C124: 1687.498 | D124: 0.0001302103724 | F124: 121 | G124: Iémen | H124: 1024.4982 | I124: 6.851246069e-05 | K124: 121 | L124: Omã | M124: 4885.6232 | N124: 0.0001750288846 | O124: 3901.284
A125: 122 | B125: Nicarágua | C125: 1626.4436 | D125: 0.0001254993054 | F125: 122 | G125: Síria, República Árabe da | H125: 949.834 | I125: 6.351935473e-05 | K125: 122 | L125: Zimbabwe | M125: 4774.2052 | N125: 0.0001710373021 | O125: -4644.2868
A126: 123 | B126: Togo | C126: 1570.864 | D126: 0.0001212106838 | F126: 123 | G126: Belarus | H126: 859.2398 | I126: 5.746094334e-05 | K126: 123 | L126: Venezuela | M126: 4334.8092 | N126: 0.0001552958114 | O126: 2249.4992
A127: 124 | B127: El Salvador | C127: 1565.6294 | D127: 0.0001208067726 | F127: 124 | G127: Cabo Verde | H127: 837.7766 | I127: 5.602560978e-05 | K127: 124 | L127: Madagáscar | M127: 4107.7518 | N127: 0.0001471614135 | O127: -3487.7614
A128: 125 | B128: Cazaquistão | C128: 1534.519 | D128: 0.0001184062384 | F128: 125 | G128: Bósnia-Herzegovina | H128: 758.2198 | I128: 5.070531529e-05 | K128: 125 | L128: Myanmar | M128: 3979.95 | N128: 0.0001425828765 | O128: -2995.1844
A129: 126 | B129: Sri Lanca | C129: 1440.7878 | D129: 0.0001111737709 | F129: 126 | G129: Turquemenistão | H129: 720.6558 | I129: 4.819325419e-05 | K129: 126 | L129: Catar | M129: 3836.467 | N129: 0.0001374425559 | O129: 3793.5134
A130: 127 | B130: Azerbaijão | C130: 1435.1898 | D130: 0.0001107418191 | F130: 127 | G130: Chade | H130: 675.9004 | I130: 4.520027423e-05 | K130: 127 | L130: Benim | M130: 3603.966 | N130: 0.0001291131394 | O130: -60.3328
A131: 128 | B131: Bolívia | C131: 1412.2374 | D131: 0.0001089707708 | F131: 128 | G131: Emirados Árabes Unidos | H131: 651.2926 | I131: 4.355464817e-05 | K131: 128 | L131: Sudão | M131: 3591.4234 | N131: 0.000128663797 | O131: 3550.4582
A132: 129 | B132: Honduras | C132: 1369.6406 | D132: 0.0001056839253 | F132: 129 | G132: Timor-Leste | H132: 614.587 | I132: 4.109999186e-05 | K132: 129 | L132: Seychelles | M132: 3474.0742 | N132: 0.0001244597275 | O132: 945.5854
A133: 130 | B133: São Bartolomeu | C133: 1280.9726 | D133: 9.884214338e-05 | F133: 130 | G133: Faroé, Ilhas | H133: 597.6172 | I133: 3.996515067e-05 | K133: 130 | L133: Irão, República Islâmica do | M133: 3375.8844 | N133: 0.0001209420491 | O133: 2926.8072
A134: 131 | B134: Ruanda | C134: 1241.1874 | D134: 9.577224599e-05 | F134: 131 | G134: Líbano | H134: 542.0828 | I134: 3.625133409e-05 | K134: 131 | L134: El Salvador | M134: 3345.3598 | N134: 0.0001198484964 | O134: -214.101
A135: 132 | B135: Paraguai | C135: 1209.2928 | D135: 9.331120144e-05 | F135: 132 | G135: Omã | H135: 492.1696 | I135: 3.291343057e-05 | K135: 132 | L135: Timor-Leste | M135: 3340.981 | N135: 0.0001196916246 | O135: 2111.807
A136: 133 | B136: Iémen | C136: 1145.3826 | D136: 8.837977578e-05 | F136: 133 | G136: Gronelândia | H136: 481.3548 | I136: 3.219019986e-05 | K136: 133 | L136: Malavi | M136: 3267.4564 | N136: 0.0001170575842 | O136: -3249.198
A137: 134 | B137: Montenegro | C137: 1046.3476 | D137: 8.073805755e-05 | F137: 134 | G137: Guiné-Bissau | H137: 379.2046 | I137: 2.535899063e-05 | K137: 134 | L137: Papuásia-Nova Guiné | M137: 3108.0532 | N137: 0.0001113469178 | O137: -3102.282
A138: 135 | B138: Uganda | C138: 966.319 | D138: 7.456290724e-05 | F138: 135 | G138: Geórgia | H138: 310.8732 | I138: 2.078938537e-05 | K138: 135 | L138: Guiné | M138: 3003.4878 | N138: 0.0001076008317 | O138: 2397.8534
A139: 136 | B139: Macedónia, Antiga República jugoslava da | C139: 950.8858 | D139: 7.337205384e-05 | F139: 136 | G139: Usbequistão | H139: 308.419 | I139: 2.06252628e-05 | K139: 136 | L139: Gâmbia | M139: 2880.9438 | N139: 0.0001032106569 | O139: -1897.8022
A140: 137 | B140: Bermudas | C140: 907.5284 | D140: 7.002651909e-05 | F140: 137 | G140: Guiné | H140: 302.8172 | I140: 2.025064711e-05 | K140: 137 | L140: Togo | M140: 2694.1922 | N140: 9.652022605e-05 | O140: 447.5358
A141: 138 | B141: Camboja | C141: 903.3774 | D141: 6.970622049e-05 | F141: 138 | G141: Irão, República Islâmica do | H141: 224.5386 | I141: 1.501583117e-05 | K141: 138 | L141: Centro-Africana, República | M141: 2675.6308 | N141: 9.585525845e-05 | O141: -2482.906
A142: 139 | B142: Barbados | C142: 889.1274 | D142: 6.860666493e-05 | F142: 139 | G142: Zâmbia | H142: 199.3992 | I142: 1.333465481e-05 | K142: 139 | L142: Arménia | M142: 2615.5848 | N142: 9.370409288e-05 | O142: 2561.3776
A143: 140 | B143: Trindade e Tobago | C143: 876.5142 | D143: 6.763340779e-05 | F143: 140 | G143: Azerbaijão | H143: 125.9264 | I143: 8.421222731e-06 | K143: 140 | L143: Bolívia | M143: 2583.5932 | N143: 9.255798443e-05 | O143: 240.8816
A144: 141 | B144: Namíbia | C144: 739.5118 | D144: 5.706205688e-05 | F144: 141 | G144: Fiji, Ilhas | H144: 123.8396 | I144: 8.281669725e-06 | K144: 141 | L144: Serra Leoa | M144: 2504.721 | N144: 8.973236472e-05 | O144: -1491.0878
A145: 142 | B145: Turquemenistão | C145: 730.8192 | D145: 5.639132027e-05 | F145: 142 | G145: Maldivas | H145: 106.2128 | I145: 7.102892211e-06 | K145: 142 | L145: Albânia | M145: 2335.6576 | N145: 8.367561881e-05 | O145: 2123.8428
A146: 143 | B146: Barém | C146: 714.5288 | D146: 5.513432379e-05 | F146: 143 | G146: Albânia | H146: 105.9074 | I146: 7.082468841e-06 | K146: 143 | L146: Guiné Equatorial | M146: 2182.2494 | N146: 7.817972504e-05 | O146: 2170.2766
A147: 144 | B147: Burundi | C147: 677.1012 | D147: 5.224634305e-05 | F147: 144 | G147: Tajiquistão | H147: 59.4122 | I147: 3.973141209e-06 | K147: 144 | L147: Iémen | M147: 2169.8808 | N147: 7.773661631e-05 | O147: 120.8844
A148: 145 | B148: Aruba | C148: 656.9934 | D148: 5.069478913e-05 | F148: 145 | G148: Jordânia | H148: 57.017 | I148: 3.812964211e-06 | K148: 145 | L148: Jamaica | M148: 1698.661 | N148: 6.085502872e-05 | O148: 1676.335
A149: 146 | B149: Niger | C149: 652.165 | D149: 5.032222113e-05 | F149: 146 | G149: Andorra | H149: 42.2194 | I149: 2.823387081e-06 | K149: 146 | L149: Laos, República Democrática Popular do | M149: 1586.3348 | N149: 5.683090965e-05 | O149: -1554.6352
A150: 147 | B150: São Martinho (parte holandesa) | C150: 597.7744 | D150: 4.612534488e-05 | F150: 147 | G150: Libéria | H150: 38.8276 | I150: 2.596563292e-06 | K150: 147 | L150: Azerbaijão | M150: 1561.1162 | N150: 5.59274459e-05 | O150: 1309.2634
A151: 148 | B151: Suriname | C151: 582.3304 | D151: 4.493365814e-05 | F151: 148 | G151: Falkland Ilhas (Malvinas) | H151: 38.0622 | I151: 2.545377807e-06 | K151: 148 | L151: Cazaquistão | M151: 1551.583 | N151: 5.558591622e-05 | O151: 1517.455
A152: 149 | B152: Bósnia-Herzegovina | C152: 535.6404 | D152: 4.133097399e-05 | F152: 149 | G152: Aruba | H152: 38.0518 | I152: 2.544682315e-06 | K152: 149 | L152: Turquemenistão | M152: 1451.475 | N152: 5.199951774e-05 | O152: 10.1634
A153: 150 | B153: Tanzânia, República Unida da | C153: 516.4722 | D153: 3.98519213e-05 | F153: 150 | G153: Arábia Saudita | H153: 36.7472 | I153: 2.457438281e-06 | K153: 150 | L153: Bósnia-Herzegovina | M153: 1293.8602 | N153: 4.635292129e-05 | O153: -222.5794
A154: 151 | B154: Ceuta e Melilha | C154: 507.8786 | D154: 3.918882371e-05 | F154: 151 | G154: São Marino | H154: 32.7702 | I154: 2.191479731e-06 | K154: 151 | L154: São Bartolomeu | M154: 1281.3282 | N154: 4.590395871e-05 | O154: 1280.617
A155: 152 | B155: Serra Leoa | C155: 506.8166 | D155: 3.910687789e-05 | F155: 152 | G155: Gibraltar | H155: 32.029 | I155: 2.1419126e-06 | K155: 152 | L155: Ruanda | M155: 1241.8574 | N155: 4.448990572e-05 | O155: 1240.5174
A156: 153 | B156: Myanmar | C156: 492.3828 | D156: 3.799313999e-05 | F156: 153 | G156: Botswana | H156: 30.0284 | I156: 2.008124148e-06 | K156: 153 | L156: Montenegro | M156: 1046.7 | N156: 3.749833461e-05 | O156: 1045.9952
A157: 154 | B157: Gâmbia | C157: 491.5708 | D157: 3.793048461e-05 | F157: 154 | G157: São Pedro e Miquelon | H157: 28.9156 | I157: 1.933706578e-06 | K157: 154 | L157: Bermudas | M157: 908.3498 | N157: 3.25418981e-05 | O157: 906.707
A158: 155 | B158: Curaçau | C158: 479.6396 | D158: 3.700985182e-05 | F158: 155 | G158: Arménia | H158: 27.1036 | I158: 1.812530593e-06 | K158: 155 | L158: Barbados | M158: 899.4474 | N158: 3.222296701e-05 | O158: 878.8074
A159: 156 | B159: Kosovo | C159: 471.1818 | D159: 3.63572328e-05 | F159: 156 | G159: Catar | H159: 21.4768 | I159: 1.436243046e-06 | K159: 156 | L159: Trindade e Tobago | M159: 876.838 | N159: 3.141297862e-05 | O159: 876.1904
A160: 157 | B160: Polinésia Francesa | C160: 366.6458 | D160: 2.829104755e-05 | F160: 157 | G160: Sudão | H160: 20.4826 | I160: 1.369756752e-06 | K160: 157 | L160: Barém | M160: 719.1302 | N160: 2.576305041e-05 | O160: 709.9274
A161: 158 | B161: Antígua e Barbuda | C161: 363.7054 | D161: 2.806416101e-05 | F161: 158 | G161: Macau | H161: 19.6762 | I161: 1.315829427e-06 | K161: 158 | L161: Aruba | M161: 695.0452 | N161: 2.490019822e-05 | O161: 618.9416
A162: 159 | B162: Haiti | C162: 328.5232 | D162: 2.534943935e-05 | F162: 159 | G162: Quirguizistão | H162: 17.4758 | I162: 1.168679516e-06 | K162: 159 | L162: Burundi | M162: 677.2152 | N162: 2.426143324e-05 | O162: 676.9872
A163: 160 | B163: Comores | C163: 311.607 | D163: 2.404415502e-05 | F163: 160 | G163: Cazaquistão | H163: 17.064 | I163: 1.141140735e-06 | K163: 160 | L163: Chade | M163: 676.014 | N163: 2.42183999e-05 | O163: -675.7868
A164: 161 | B164: Madagáscar | C164: 309.9952 | D164: 2.391978564e-05 | F164: 161 | G164: Salomão, Ilhas | H164: 16.0532 | I164: 1.07354433e-06 | K164: 161 | L164: Niger | M164: 655.4318 | N164: 2.348103654e-05 | O164: 648.8982
A165: 162 | B165: Nova Caledónia | C165: 302.6442 | D165: 2.33525693e-05 | F165: 162 | G165: Santa Helena | H165: 15.7338 | I165: 1.052184722e-06 | K165: 162 | L165: Faroé, Ilhas | M165: 598.4668 | N165: 2.14402487e-05 | O165: -596.7676
A166: 163 | B166: Libéria | C166: 295.8354 | D166: 2.282719008e-05 | F166: 163 | G166: Marshall, Ilhas | H166: 13.4098 | I166: 8.96769165e-07 | K166: 163 | L166: São Martinho (parte holandesa) | M166: 597.7772 | N166: 2.141554358e-05 | O166: 597.7716
A167: 164 | B167: Somália | C167: 292.9902 | D167: 2.260764934e-05 | F167: 164 | G167: Iraque | H167: 13.1736 | I167: 8.809734874e-07 | K167: 164 | L167: Usbequistão | M167: 531.501 | N167: 1.904117927e-05 | O167: -85.337
A168: 165 | B168: Bahamas | C168: 280.4744 | D168: 2.164190776e-05 | F168: 165 | G168: Curaçau | H168: 12.9632 | I168: 8.669031633e-07 | K168: 165 | L168: Ceuta e Melilha | M168: 507.8786 | N168: 1.819489986e-05 | O168: 507.8786
A169: 166 | B169: Usbequistão | C169: 223.082 | D169: 1.721340724e-05 | F169: 166 | G169: Jamaica | H169: 11.163 | I169: 7.465162932e-07 | K169: 166 | L169: Curaçau | M169: 492.6028 | N169: 1.764763984e-05 | O169: 466.6764
A170: 167 | B170: São Marino | C170: 219.9688 | D170: 1.697318715e-05 | F170: 167 | G170: Nepal | H170: 11.0964 | I170: 7.420624739e-07 | K170: 167 | L170: Gronelândia | M170: 481.9304 | N170: 1.726529798e-05 | O170: -480.7792
A171: 168 | B171: Bonaire, Santo Eustáquio e Saba | C171: 206.5448 | D171: 1.593736723e-05 | F171: 168 | G171: Barbados | H171: 10.32 | I171: 6.901413729e-07 | K171: 168 | L171: Kosovo | M171: 479.738 | N171: 1.718675461e-05 | O171: 462.6256
A172: 169 | B172: Guiana | C172: 139.5802 | D172: 1.077025858e-05 | F172: 169 | G172: Antígua e Barbuda | H172: 9.2324 | I172: 6.174090321e-07 | K172: 169 | L172: Antígua e Barbuda | M172: 372.9378 | N172: 1.336060611e-05 | O172: 354.473
A173: 170 | B173: Zâmbia | C173: 138.1944 | D173: 1.066332777e-05 | F173: 170 | G173: Kosovo | H173: 8.5562 | I173: 5.721887224e-07 | K173: 170 | L173: Polinésia Francesa | M173: 367.1436 | N173: 1.315302719e-05 | O173: 366.148
A174: 171 | B174: Maldivas | C174: 129.0678 | D174: 9.959102945e-06 | F174: 171 | G174: Jibuti | H174: 7.3022 | I174: 4.883285207e-07 | K174: 171 | L174: Zâmbia | M174: 337.5936 | N174: 1.209438977e-05 | O174: -61.2048
A175: 172 | B175: Santa Lúcia | C175: 120.252 | D175: 9.278860005e-06 | F175: 172 | G175: Líbia, Jamahira Árabe da | H175: 6.02 | I175: 4.025824675e-07 | K175: 172 | L175: Libéria | M175: 334.663 | N175: 1.198940017e-05 | O175: 257.0078
A176: 173 | B176: Liechtenstein | C176: 119.4194 | D176: 9.214615095e-06 | F176: 173 | G176: Guiné Equatorial | H176: 5.9864 | I176: 4.003354956e-07 | K176: 173 | L176: Haiti | M176: 328.8052 | N176: 1.177954276e-05 | O176: 328.2412
A177: 174 | B177: Afeganistão | C177: 109.4574 | D177: 8.445929308e-06 | F177: 174 | G177: Barém | H177: 4.6014 | I177: 3.077147784e-07 | K177: 174 | L177: Comores | M177: 311.607 | N177: 1.11634122e-05 | O177: 311.607
A178: 175 | B178: Quirguizistão | C178: 109.2342 | D178: 8.428706795e-06 | F178: 175 | G178: São Cristovão e Nevis | H178: 4.4456 | I178: 2.972957837e-07 | K178: 175 | L178: Nova Caledónia | M178: 303.3516 | N178: 1.086766007e-05 | O178: 301.9368
A179: 176 | B179: Virgens Britânicas, Ilhas | C179: 102.589 | D179: 7.915951244e-06 | F179: 176 | G179: Afeganistão | H179: 4.3746 | I179: 2.92547718e-07 | K179: 176 | L179: Somália | M179: 292.9902 | N179: 1.049645988e-05 | O179: 292.9902
A180: 177 | B180: Botswana | C180: 98.1832 | D180: 7.575991814e-06 | F180: 177 | G180: Niger | H180: 3.2668 | I180: 2.184645191e-07 | K180: 177 | L180: Bahamas | M180: 280.4744 | N180: 1.004807767e-05 | O180: 280.4744
A181: 178 | B181: Jibuti | C181: 96.957 | D181: 7.481376023e-06 | F181: 178 | G181: Liechtenstein | H181: 1.8556 | I181: 1.240916988e-07 | K181: 178 | L181: São Marino | M181: 252.739 | N181: 9.05444883e-06 | O181: 187.1986
A182: 179 | B182: Centro-Africana, República | C182: 96.3624 | D182: 7.43549562e-06 | F182: 179 | G182: Lesoto | H182: 1.7136 | I182: 1.145955675e-07 | K182: 179 | L182: Maldivas | M182: 235.2806 | N182: 8.428996527e-06 | O182: 22.855
A183: 180 | B183: Nepal | C183: 77.231 | D183: 5.959282482e-06 | F183: 180 | G183: Butão | H183: 1.2178 | I183: 8.143935697e-08 | K183: 180 | L183: Bonaire, Santo Eustáquio e Saba | M183: 206.5448 | N183: 7.399528061e-06 | O183: 206.5448
A184: 181 | B184: Zimbabwe | C184: 64.9592 | D184: 5.012368383e-06 | F184: 181 | G184: Bermudas | H184: 0.8214 | I184: 5.493043835e-08 | K184: 181 | L184: Fiji, Ilhas | M184: 135.9458 | N184: 4.870298172e-06 | O184: -111.7334
A185: 182 | B185: Caimão, Ilhas | C185: 51.6906 | D185: 3.988539409e-06 | F185: 182 | G185: Nova Caledónia | H185: 0.7074 | I185: 4.730678364e-08 | K185: 182 | L185: Botswana | M185: 128.2116 | N185: 4.593218188e-06 | O185: 68.1548
A186: 183 | B186: Mongólia | C186: 37.8358 | D186: 2.919478191e-06 | F186: 183 | G186: Ruanda | H186: 0.67 | I186: 4.480568991e-08 | K186: 183 | L186: Quirguizistão | M186: 126.71 | N186: 4.539422927e-06 | O186: 91.7584
A187: 184 | B187: Turcas e Caicos, Ilhas | C187: 19.071 | D187: 1.471552566e-06 | F187: 184 | G187: Polinésia Francesa | H187: 0.4978 | I187: 3.328995886e-08 | K187: 184 | L187: Liechtenstein | M187: 121.275 | N187: 4.344712458e-06 | O187: 117.5638
A188: 185 | B188: Laos, República Democrática Popular do | C188: 15.8498 | D188: 1.222998996e-06 | F188: 185 | G188: Território Palestiniano Ocupado | H188: 0.4852 | I188: 3.244734439e-08 | K188: 185 | L188: Santa Lúcia | M188: 120.2746 | N188: 4.308872834e-06 | O188: 120.2294
A189: 186 | B189: Fiji, Ilhas | C189: 12.1062 | D189: 9.341361058e-07 | F189: 186 | G189: São Bartolomeu | H189: 0.3556 | I189: 2.378045273e-08 | K189: 186 | L189: Afeganistão | M189: 113.832 | N189: 4.078064799e-06 | O189: 105.0828
A190: 187 | B190: Anguila | C190: 10.0614 | D190: 7.763556702e-07 | F190: 187 | G190: Montenegro | H190: 0.3524 | I190: 2.356645541e-08 | K190: 187 | L190: Jibuti | M190: 104.2592 | N190: 3.73511643e-06 | O190: 89.6548
A191: 188 | B191: Malavi | C191: 9.1292 | D191: 7.044254462e-07 | F191: 188 | G191: Micronésia, Estados Federados da | H191: 0.3438 | I191: 2.29913376e-08 | K191: 188 | L191: Virgens Britânicas, Ilhas | M191: 102.596 | N191: 3.675531802e-06 | O191: 102.582
A192: 189 | B192: Brunei Darussalam | C192: 7.7238 | D192: 5.959822615e-07 | F192: 189 | G192: Trindade e Tobago | H192: 0.3238 | I192: 2.165385432e-08 | K192: 189 | L192: Nepal | M192: 88.3274 | N192: 3.164355021e-06 | O192: 66.1346
A193: 190 | B193: São Vicente e Granadinas | C193: 7.6034 | D193: 5.866919815e-07 | F193: 190 | G193: Haiti | H193: 0.282 | I193: 1.885851426e-08 | K193: 190 | L193: Tajiquistão | M193: 59.4122 | N193: 2.128459497e-06 | O193: -59.4122
A194: 191 | B194: Guam | C194: 6.6636 | D194: 5.141753279e-07 | F194: 191 | G194: Oceano Indico, Território Britânico do | H194: 0.128 | I194: 8.559892998e-09 | K194: 191 | L194: Caimão, Ilhas | M194: 51.6906 | N194: 1.851830911e-06 | O194: 51.6906
A195: 192 | B195: Territórios Franceses do Sul | C195: 6.3102 | D195: 4.8690635e-07 | F195: 192 | G195: Burundi | H195: 0.114 | I195: 7.623654701e-09 | K195: 192 | L195: Falkland Ilhas (Malvinas) | M195: 38.0622 | N195: 1.363589483e-06 | O195: -38.0622
A196: 193 | B196: Menores distantes dos Estados Unidos, lhas | C196: 4.5544 | D196: 3.514256728e-07 | F196: 193 | G196: Nauru | H196: 0.0694 | I196: 4.641066985e-09 | K196: 193 | L196: Mongólia | M196: 37.85 | N196: 1.355987355e-06 | O196: 37.8216
A197: 194 | B197: Sudão do Sul | C197: 3.771 | D197: 2.909771237e-07 | F197: 194 | G197: Vanuatu | H197: 0.065 | I197: 4.346820663e-09 | K197: 194 | L197: São Pedro e Miquelon | M197: 29.2314 | N197: 1.047223482e-06 | O197: -28.5998
A198: 195 | B198: Melilha | C198: 3.6164 | D198: 2.790479104e-07 | F198: 195 | G198: Santa Lúcia | H198: 0.0226 | I198: 1.511356107e-09 | K198: 195 | L198: Turcas e Caicos, Ilhas | M198: 19.071 | N198: 6.832241705e-07 | O198: 19.071
A199: 196 | B199: Marianas do Norte, Ilhas | C199: 2.9244 | D199: 2.256519492e-07 | F199: 196 | G199: São Vicente e Granadinas | H199: 0.0144 | I199: 9.629879622e-10 | K199: 196 | L199: Salomão, Ilhas | M199: 16.0532 | N199: 5.751106001e-07 | O199: -16.0532
A200: 197 | B200: Papuásia-Nova Guiné | C200: 2.8856 | D200: 2.226580716e-07 | F200: 197 | G200: Mongólia | H200: 0.0142 | I200: 9.496131294e-10 | K200: 197 | L200: Santa Helena | M200: 15.7338 | N200: 5.636680014e-07 | O200: -15.7338
... 58 more rows

Sheet 2AA
A1: Ranking dos parceiros comerciais de Portugal por país (média 2018-2022 em milhares de euros) produtos agrícolas e agroalimentares
A2: Exportações | F2: Importações | K2: Trocas comerciais (total e saldo)
A3: P | B3: País | C3: média quinquénio | D3: % do Total | F3: P | G3: País | H3: média quinquénio | I3: % do Total | K3: P | L3: País | M3: Total (exp+imp) | N3: % do Total | O3: Saldo (exp-imp)
A4: 1 | B4: Espanha | C4: 2415706.759 | D4: 0.3417342339 | F4: 1 | G4: Espanha | H4: 4700233.367 | I4: 0.4607579981 | K4: 1 | L4: Espanha | M4: 7115940.126 | N4: 0.4120392909 | O4: -2284526.609
A5: 2 | B5: França | C5: 675806.7388 | D5: 0.09560195886 | F5: 2 | G5: França | H5: 803086.6822 | I5: 0.07872558298 | K5: 2 | L5: França | M5: 1478893.421 | N5: 0.08563340693 | O5: -127279.9434
A6: 3 | B6: Itália | C6: 450048.5236 | D6: 0.06366542085 | F6: 3 | G6: Alemanha | H6: 693242.9014 | I6: 0.06795773454 | K6: 3 | L6: Alemanha | M6: 953060.8432 | N6: 0.05518575298 | O6: -433424.9596
A7: 4 | B7: Brasil | C7: 371201.5514 | D7: 0.05251145543 | F7: 4 | G7: Países Baixos | H7: 600479.2596 | I7: 0.05886423076 | K7: 4 | L7: Países Baixos | M7: 932127.81 | N7: 0.05397365282 | O7: -268830.7092
A8: 5 | B8: Países Baixos | C8: 331648.5504 | D8: 0.0469161511 | F8: 5 | G8: Brasil | H8: 551829.2644 | I8: 0.05409513258 | K8: 5 | L8: Brasil | M8: 923030.8158 | N8: 0.05344690316 | O8: -180627.713
A9: 6 | B9: Angola | C9: 270788.7526 | D9: 0.03830671359 | F9: 6 | G9: Itália | H9: 327446.3636 | I9: 0.03209915746 | K9: 6 | L9: Itália | M9: 777494.8872 | N9: 0.04501983383 | O9: 122602.16 | P9: Nota: Nesta listagem, o Reino Unido passa a ser constituído por três componentes: Reino Unido [até 2020] ; Reino Unido (sem Irlanda do Norte) pós-2020 e Reino Unido (Irlanda do Norte) pós-2020. Estas componentes são calculadas igualmente como média do quinquénio, embora a primeira corresponda apenas a 2018-2020 e as duas últimas a 2021-2022.
A10: 7 | B10: Alemanha | C10: 259817.9418 | D10: 0.03675474475 | F10: 7 | G10: Bélgica | H10: 257333.6916 | I10: 0.02522609992 | K10: 7 | L10: Bélgica | M10: 424096.2578 | N10: 0.02455674419 | O10: -90571.1254
A11: 8 | B11: Reino Unido | C11: 202835.6198 | D11: 0.02869382838 | F11: 8 | G11: Estados Unidos | H11: 216724.4778 | I11: 0.02124522949 | K11: 8 | L11: Estados Unidos | M11: 400307.8654 | N11: 0.02317930816 | O11: -33141.0902
A12: 9 | B12: Estados Unidos | C12: 183583.3876 | D12: 0.02597034102 | F12: 9 | G12: Ucrânia | H12: 191922.8274 | I12: 0.01881395472 | K12: 9 | L12: Polónia | M12: 317334.5188 | N12: 0.01837484405 | O12: -48783.4444
A13: 10 | B13: Israel | C13: 169488.4306 | D13: 0.02397641965 | F13: 10 | G13: Polónia | H13: 183058.9816 | I13: 0.017945043 | K13: 10 | L13: Reino Unido | M13: 313115.4092 | N13: 0.01813054198 | O13: 92555.8304
A14: 11 | B14: Bélgica | C14: 166762.5662 | D14: 0.02359080944 | F14: 11 | G14: Roménia | H14: 135395.1758 | I14: 0.01327261974 | K14: 11 | L14: Angola | M14: 277910.725 | N14: 0.01609206036 | O14: 263666.7802
A15: 12 | B15: Reino Unido (sem Irlanda do Norte) pós 2020 | C15: 153037.8236 | D15: 0.02164925988 | F15: 12 | G15: África do Sul | H15: 112521.5396 | I15: 0.01103034579 | K15: 12 | L15: Reino Unido (sem Irlanda do Norte) pós 2020 | M15: 202616.3834 | N15: 0.01173223909 | O15: 103459.2638
A16: 13 | B16: Polónia | C16: 134275.5372 | D16: 0.01899508195 | F16: 13 | G16: Reino Unido | H16: 110279.7894 | I16: 0.01081058982 | K16: 13 | L16: Ucrânia | M16: 198678.0056 | N16: 0.01150419243 | O16: -185167.6492
A17: 14 | B17: Suíça | C17: 91992.068 | D17: 0.01301351614 | F17: 14 | G17: Irlanda | H17: 108062.8466 | I17: 0.01059326569 | K17: 14 | L17: Canadá | M17: 175329.8698 | N17: 0.01015224889 | O17: -30892.3678
A18: 15 | B18: Cabo Verde | C18: 85414.0192 | D18: 0.0120829626 | F18: 15 | G18: Canadá | H18: 103111.1188 | I18: 0.01010785401 | K18: 15 | L18: Israel | M18: 174655.5912 | N18: 0.01011320566 | O18: 164321.27
A19: 16 | B19: Canadá | C19: 72218.751 | D19: 0.01021631432 | F19: 16 | G19: Argentina | H19: 72787.4116 | I19: 0.007135258919 | K19: 16 | L19: Roménia | M19: 151197.393 | N19: 0.008754889093 | O19: -119592.9586
A20: 17 | B20: China, República Popular da | C20: 72213.4462 | D20: 0.01021556388 | F20: 17 | G20: Dinamarca | H20: 70233.1534 | I20: 0.006884868183 | K20: 17 | L20: Irlanda | M20: 134807.959 | N20: 0.007805880158 | O20: -81317.7342
A21: 18 | B21: Japão | C21: 54923.0146 | D21: 0.007769599622 | F21: 18 | G21: Costa Rica | H21: 69966.4334 | I21: 0.006858721955 | K21: 18 | L21: África do Sul | M21: 134356.7194 | N21: 0.007779751714 | O21: -90686.3598
A22: 19 | B22: Suécia | C22: 50793.0088 | D22: 0.007185354716 | F22: 19 | G22: Reino Unido (sem Irlanda do Norte) pós 2020 | H22: 49578.5598 | I22: 0.004860124206 | K22: 19 | L22: Dinamarca | M22: 117665.3674 | N22: 0.006813260608 | O22: -22800.9394
A23: 20 | B23: Rússia, Federação da | C23: 48391.7838 | D23: 0.006845669122 | F23: 20 | G23: China, República Popular da | H23: 45047.8158 | I23: 0.004415981039 | K23: 20 | L23: China, República Popular da | M23: 117261.262 | N23: 0.006789861408 | O23: 27165.6304
A24: 21 | B24: Dinamarca | C24: 47432.214 | D24: 0.006709925059 | F24: 21 | G24: Bulgária | H24: 43907.4694 | I24: 0.004304194307 | K24: 21 | L24: Suíça | M24: 94990.5356 | N24: 0.005500303858 | O24: 88993.6004
A25: 22 | B25: Luxemburgo | C25: 45125.6972 | D25: 0.006383637214 | F25: 22 | G25: Cuba | H25: 35799.7426 | I25: 0.00350940399 | K25: 22 | L25: Cabo Verde | M25: 85541.4296 | N25: 0.004953165621 | O25: 85286.6088
A26: 23 | B26: Marrocos | C26: 40786.9258 | D26: 0.005769859604 | F26: 23 | G26: Grécia | H26: 30645.8102 | I26: 0.003004170443 | K26: 23 | L26: Argentina | M26: 73024.74 | N26: 0.004228402931 | O26: -72550.0832
A27: 24 | B27: Guiné-Bissau | C27: 30105.237 | D27: 0.004258790959 | F27: 24 | G27: Vietname | H27: 28845.3448 | I27: 0.002827673072 | K27: 24 | L27: Costa Rica | M27: 71166.1566 | N27: 0.004120784068 | O27: -68766.7102
A28: 25 | B28: Irlanda | C28: 26745.1124 | D28: 0.00378345611 | F28: 25 | G28: Colômbia | H28: 28227.4602 | I28: 0.002767102617 | K28: 25 | L28: Japão | M28: 68496.2538 | N28: 0.003966186807 | O28: 41349.7754
A29: 26 | B29: São Tomé e Príncipe | C29: 25259.196 | D29: 0.003573253237 | F29: 26 | G29: Guiana | H29: 28025.2924 | I29: 0.002747284361 | K29: 26 | L29: Suécia | M29: 64449.5152 | N29: 0.003731865653 | O29: 37136.5024
A30: 27 | B30: Arábia Saudita | C30: 25195.0996 | D30: 0.003564185938 | F30: 27 | G30: Chile | H30: 24583.4362 | I30: 0.002409883503 | K30: 27 | L30: Rússia, Federação da | M30: 60550.976 | N30: 0.003506125793 | O30: 36232.5916
A31: 28 | B31: Moçambique | C31: 25036.1622 | D31: 0.003541702104 | F31: 28 | G31: Áustria | H31: 23718.0114 | I31: 0.002325046992 | K31: 28 | L31: Luxemburgo | M31: 53191.4828 | N31: 0.003079983877 | O31: 37059.9116
A32: 29 | B32: Grécia | C32: 22444.1484 | D32: 0.003175026866 | F32: 29 | G32: Uruguai | H32: 22544.1794 | I32: 0.002209977709 | K32: 29 | L32: Grécia | M32: 53089.9586 | N32: 0.003074105249 | O32: -8201.6618
A33: 30 | B33: África do Sul | C33: 21835.1798 | D33: 0.003088880062 | F33: 30 | G33: Checa, República | H33: 21986.3926 | I33: 0.002155298567 | K33: 30 | L33: Bulgária | M33: 52078.8802 | N33: 0.003015560065 | O33: -35736.0586
A34: 31 | B34: Finlândia | C34: 19871.7108 | D34: 0.002811120945 | F34: 31 | G34: Costa do Marfim | H34: 21706.691 | I34: 0.002127879769 | K34: 31 | L34: Marrocos | M34: 50674.6404 | N34: 0.002934249379 | O34: 30899.2112
A35: 32 | B35: Checa, República | C35: 18184.9724 | D35: 0.002572509097 | F35: 32 | G35: Índia | H35: 20830.7032 | I35: 0.00204200778 | K35: 32 | L35: Checa, República | M35: 40171.365 | N35: 0.002326070829 | O35: -3801.4202
A36: 33 | B36: Jordânia | C36: 17519.4376 | D36: 0.002478360242 | F36: 33 | G36: Paraguai | H36: 18542.9402 | I36: 0.001817741235 | K36: 33 | L36: Cuba | M36: 38669.2808 | N36: 0.00223909459 | O36: -32930.2044
A37: 34 | B37: Noruega | C37: 16995.9884 | D37: 0.002404311308 | F37: 34 | G37: Turquia | H37: 17991.0046 | I37: 0.001763635678 | K37: 34 | L37: Áustria | M37: 38078.486 | N37: 0.002204885383 | O37: -9357.5368
A38: 35 | B38: Roménia | C38: 15802.2172 | D38: 0.002235436304 | F38: 35 | G38: Hungria | H38: 16792.9934 | I38: 0.001646196139 | K38: 35 | L38: Moçambique | M38: 35149.7218 | N38: 0.002035299088 | O38: 14922.6026
A39: 36 | B39: Austrália | C39: 14444.222 | D39: 0.002043329606 | F39: 36 | G39: Uganda | H39: 16711.9036 | I39: 0.001638247007 | K39: 36 | L39: Colômbia | M39: 34588.8908 | N39: 0.002002824895 | O39: -21866.0296
A40: 37 | B40: Áustria | C40: 14360.4746 | D40: 0.002031482409 | F40: 37 | G40: Suécia | H40: 13656.5064 | I40: 0.001338730241 | K40: 37 | L40: Vietname | M40: 30879.9888 | N40: 0.001788065732 | O40: -26810.7008
A41: 38 | B41: Coreia, República da | C41: 13720.4568 | D41: 0.001940943277 | F41: 38 | G41: Japão | H41: 13573.2392 | I41: 0.001330567662 | K41: 38 | L41: Guiné-Bissau | M41: 30466.6832 | N41: 0.001764133807 | O41: 29743.7908
A42: 39 | B42: Iraque | C42: 12397.914 | D42: 0.001753851798 | F42: 39 | G42: Suazilândia | H42: 13238.5804 | I42: 0.001297761478 | K42: 39 | L42: Chile | M42: 30213.2108 | N42: 0.001749456816 | O42: -18953.6616
A43: 40 | B43: Emirados Árabes Unidos | C43: 11828.644 | D43: 0.001673320895 | F43: 40 | G43: Indonésia | H43: 13212.7406 | I43: 0.001295228435 | K43: 40 | L43: Guiana | M43: 28043.5358 | N43: 0.001623824597 | O43: -28007.049
A44: 41 | B44: Argélia | C44: 11256.5744 | D44: 0.001592393951 | F44: 41 | G44: México | H44: 13063.7214 | I44: 0.001280620269 | K44: 41 | L44: Hungria | M44: 28003.0576 | N44: 0.001621480759 | O44: -5582.9292
A45: 42 | B45: Macau | C45: 11226.3746 | D45: 0.001588121783 | F45: 42 | G45: Austrália | H45: 12930.0706 | I45: 0.001267518648 | K45: 42 | L45: Turquia | M45: 27957.3216 | N45: 0.001618832475 | O45: -8024.6876
A46: 43 | B46: Hungria | C46: 11210.0642 | D46: 0.001585814457 | F46: 43 | G46: Rússia, Federação da | H46: 12159.1922 | I46: 0.001191950403 | K46: 43 | L46: Finlândia | M46: 27396.6714 | N46: 0.001586368752 | O46: 12346.7502
A47: 44 | B47: Nigéria | C47: 10936.4444 | D47: 0.001547107254 | F47: 44 | G47: Moldava, República de | H47: 11903.439 | I47: 0.001166879237 | K47: 44 | L47: Austrália | M47: 27374.2926 | N47: 0.001585072937 | O47: 1514.1514
A48: 45 | B48: Turquia | C48: 9966.317 | D48: 0.001409869676 | F48: 45 | G48: Lituânia | H48: 11893.779 | I48: 0.001165932279 | K48: 45 | L48: Costa do Marfim | M48: 27312.2412 | N48: 0.001581479931 | O48: -16101.1408
A49: 46 | B49: Território Palestiniano Ocupado | C49: 9369.3582 | D49: 0.001325421819 | F49: 46 | G49: Peru | H49: 11310.0138 | I49: 0.001108706507 | K49: 46 | L49: São Tomé e Príncipe | M49: 26312.808 | N49: 0.001523609046 | O49: 24205.584
A50: 47 | B50: Eslováquia | C50: 9079.0046 | D50: 0.001284347395 | F50: 47 | G50: Paquistão | H50: 10304.445 | I50: 0.001010131855 | K50: 47 | L50: Arábia Saudita | M50: 25220.0634 | N50: 0.001460335087 | O50: 25170.1358
A51: 48 | B51: Senegal | C51: 8493.732 | D51: 0.001201552708 | F51: 48 | G51: Tailândia | H51: 10200.8142 | I51: 0.0009999730572 | K51: 48 | L51: Uruguai | M51: 24295.8202 | N51: 0.001406817982 | O51: -20792.5386
A52: 49 | B52: Bulgária | C52: 8171.4108 | D52: 0.001155956036 | F52: 49 | G52: Moçambique | H52: 10113.5596 | I52: 0.0009914195979 | K52: 49 | L52: Índia | M52: 23845.568 | N52: 0.001380746712 | O52: -17815.8384
A53: 50 | B53: Líbia, Jamahira Árabe da | C53: 7994.4952 | D53: 0.001130928944 | F53: 50 | G53: Marrocos | H53: 9887.7146 | I53: 0.000969280295 | K53: 50 | L53: Paraguai | M53: 19187.5668 | N53: 0.001111031189 | O53: -17898.3136
A54: 51 | B54: Gibraltar | C54: 7555.2434 | D54: 0.001068790865 | F54: 51 | G54: Egito | H54: 9790.5476 | I54: 0.0009597551355 | K54: 51 | L54: México | M54: 18719.3066 | N54: 0.001083917189 | O54: -7408.1362
A55: 52 | B55: Kuwait | C55: 7350.4748 | D55: 0.00103982359 | F55: 52 | G55: Sérvia | H55: 8809.786 | I55: 0.0008636123026 | K55: 52 | L55: Noruega | M55: 18007.7536 | N55: 0.001042715635 | O55: 15984.2232
A56: 53 | B56: Ucrânia | C56: 6755.1782 | D56: 0.0009556108741 | F56: 53 | G56: Equador | H56: 8208.356 | I56: 0.0008046548719 | K56: 53 | L56: Jordânia | M56: 17549.35 | N56: 0.001016172368 | O56: 17489.5252
A57: 54 | B57: Colômbia | C57: 6361.4306 | D57: 0.0008999099766 | F57: 54 | G57: Luxemburgo | H57: 8065.7856 | I57: 0.000790678874 | K57: 54 | L57: Uganda | M57: 17196.9522 | N57: 0.0009957672303 | O57: -16226.855
A58: 55 | B58: Letónia | C58: 5847.3278 | D58: 0.0008271832163 | F58: 55 | G58: Nova Zelânda | H58: 7880.7508 | I58: 0.0007725401439 | K58: 55 | L58: Lituânia | M58: 16927.7228 | N58: 0.0009801778508 | O58: -6859.8352
A59: 56 | B59: HongKong | C59: 5831.0346 | D59: 0.0008248783238 | F59: 56 | G59: Finlândia | H59: 7524.9606 | I59: 0.0007376624757 | K59: 56 | L59: Suazilândia | M59: 15229.1586 | N59: 0.0008818246921 | O59: -11248.0022
A60: 57 | B60: Maurícias | C60: 5663.2906 | D60: 0.0008011486774 | F60: 57 | G60: Letónia | H60: 7523.6884 | I60: 0.0007375377635 | K60: 57 | L60: Coreia, República da | M60: 14661.023 | N60: 0.0008489275365 | O60: 12779.8906
A61: 58 | B61: México | C61: 5655.5852 | D61: 0.0008000586448 | F61: 58 | G61: Malásia | H61: 7403.8212 | I61: 0.0007257873318 | K61: 58 | L61: Indonésia | M61: 14350.1382 | N61: 0.000830926155 | O61: -12075.343
A62: 59 | B62: Chile | C62: 5629.7746 | D62: 0.0007964073881 | F62: 59 | G62: Angola | H62: 7121.9724 | I62: 0.0006981580464 | K62: 59 | L62: Letónia | M62: 13371.0162 | N62: 0.0007742313645 | O62: -1676.3606
A63: 60 | B63: Costa do Marfim | C63: 5605.5502 | D63: 0.0007929805207 | F63: 60 | G63: Camarões | H63: 6330.963 | I63: 0.0006206163843 | K63: 60 | L63: Tailândia | M63: 13287.6996 | N63: 0.0007694070248 | O63: -7113.9288
A64: 61 | B64: Andorra | C64: 5268.3636 | D64: 0.0007452809379 | F64: 61 | G64: Honduras | H64: 6193.8364 | I64: 0.0006071740352 | K64: 61 | L64: Peru | M64: 13096.7276 | N64: 0.0007583490386 | O64: -9523.3
A65: 62 | B65: Lituânia | C65: 5033.9438 | D65: 0.0007121191022 | F65: 62 | G65: Etiópia | H65: 5332.904 | I65: 0.0005227779089 | K65: 62 | L65: Eslováquia | M65: 12639.492 | N65: 0.0007318734038 | O65: 5518.5172
A66: 63 | B66: Malta | C66: 4911.2352 | D66: 0.0006947603192 | F66: 63 | G66: Israel | H66: 5167.1606 | I66: 0.0005065302907 | K66: 63 | L66: Iraque | M66: 12410.178 | N66: 0.0007185952738 | O66: 12385.65
A67: 64 | B67: Estónia | C67: 4891.9612 | D67: 0.0006920337525 | F67: 64 | G67: Belize | H67: 5153.7922 | I67: 0.0005052198032 | K67: 64 | L67: Emirados Árabes Unidos | M67: 12284.869 | N67: 0.0007113394185 | O67: 11372.419
A68: 65 | B68: Síria, República Árabe da | C68: 4399.3294 | D68: 0.000622344354 | F68: 65 | G68: Camboja | H68: 4964.3942 | I68: 0.0004866533541 | K68: 65 | L68: Moldava, República de | M68: 12104.827 | N68: 0.0007009143198 | O68: -11702.051
A69: 66 | B69: Chipre | C69: 4051.8682 | D69: 0.0005731912908 | F69: 66 | G69: Zimbabwe | H69: 4709.0808 | I69: 0.0004616253009 | K69: 66 | L69: Argélia | M69: 11803.9212 | N69: 0.0006834907595 | O69: 10709.2276
A70: 67 | B70: Omã | C70: 3805.6814 | D70: 0.0005383648545 | F70: 67 | G70: Guatemala | H70: 4635.2426 | I70: 0.0004543870345 | K70: 67 | L70: Sérvia | M70: 11344.2962 | N70: 0.0006568767695 | O70: -6275.2758
A71: 68 | B71: Eslovénia | C71: 3315.0192 | D71: 0.0004689540826 | F71: 68 | G71: Suriname | H71: 4613.819 | I71: 0.0004522869058 | K71: 68 | L71: Egito | M71: 11329.12 | N71: 0.0006559980113 | O71: -8251.9752
A72: 69 | B72: Mali | C72: 3288.1148 | D72: 0.0004651480931 | F72: 69 | G72: Macedónia, Antiga República jugoslava da | H72: 4601.7574 | I72: 0.0004511045222 | K72: 69 | L72: Macau | M72: 11244.0184 | N72: 0.0006510703135 | O72: 11208.7308
A73: 70 | B73: Tailândia | C73: 3086.8854 | D73: 0.0004366814861 | F73: 70 | G73: Tanzânia, República Unida da | H73: 4539.7292 | I73: 0.0004450239753 | K73: 70 | L73: Nigéria | M73: 11134.6158 | N73: 0.0006447354977 | O73: 10738.273
A74: 71 | B74: Índia | C74: 3014.8648 | D74: 0.0004264932029 | F74: 71 | G74: Eslovénia | H74: 4539.0796 | I74: 0.0004449602959 | K74: 71 | L74: Paquistão | M74: 10571.2956 | N74: 0.0006121171716 | O74: -10037.5944
A75: 72 | B75: Singapura | C75: 2938.7244 | D75: 0.0004157221186 | F75: 72 | G75: Filipinas | H75: 4493.8362 | I75: 0.0004405251419 | K75: 72 | L75: Nova Zelânda | M75: 10270.7832 | N75: 0.0005947163905 | O75: -5490.7184
A76: 73 | B76: Cuba | C76: 2869.5382 | D76: 0.0004059347994 | F76: 73 | G76: Tunísia | H76: 4123.8374 | I76: 0.0004042546224 | K76: 73 | L76: Território Palestiniano Ocupado | M76: 9369.8434 | N76: 0.000542548639 | O76: 9368.873
A77: 74 | B77: Gana | C77: 2746.7854 | D77: 0.0003885697637 | F77: 74 | G77: Estónia | H77: 4040.7446 | I77: 0.0003961091391 | K77: 74 | L77: Senegal | M77: 9057.1362 | N77: 0.0005244417338 | O77: 7930.3278
A78: 75 | B78: Taiwan | C78: 2744.6238 | D78: 0.0003882639763 | F78: 75 | G78: Mali | H78: 3761.0172 | I78: 0.000368687812 | K78: 75 | L78: Equador | M78: 9035.7916 | N78: 0.0005232058024 | O78: -7380.9204
A79: 76 | B79: Sérvia | C79: 2534.5102 | D79: 0.0003585405797 | F79: 76 | G79: Eslováquia | H79: 3560.4874 | I79: 0.0003490301265 | K79: 76 | L79: Estónia | M79: 8932.7058 | N79: 0.0005172367528 | O79: 851.2166
A80: 77 | B80: Líbano | C80: 2490.8708 | D80: 0.0003523671992 | F80: 77 | G80: Myanmar | H80: 3336.3804 | I80: 0.0003270611976 | K80: 77 | L80: Malásia | M80: 8922.5932 | N80: 0.0005166511958 | O80: -5885.0492
A81: 78 | B81: Timor-Leste | C81: 2471.9198 | D81: 0.0003496863252 | F81: 78 | G81: Quénia | H81: 3256.788 | I81: 0.0003192588542 | K81: 78 | L81: Camarões | M81: 8612.0928 | N81: 0.0004986720725 | O81: -4049.8332
A82: 79 | B82: Belarus | C82: 2455.9286 | D82: 0.0003474241547 | F82: 79 | G82: Malavi | H82: 3254.1854 | I82: 0.0003190037245 | K82: 79 | L82: Kuwait | M82: 8534.0068 | N82: 0.0004941506039 | O82: 6166.9428
A83: 80 | B83: Nova Zelânda | C83: 2390.0324 | D83: 0.0003381022503 | F83: 80 | G83: Nicarágua | H83: 3164.5168 | I83: 0.0003102136238 | K83: 80 | L83: Líbia, Jamahira Árabe da | M83: 8000.447 | N83: 0.0004632555151 | O83: 7988.5434
A84: 81 | B84: Filipinas | C84: 2342.9576 | D84: 0.0003314428863 | F84: 81 | G84: Chipre | H84: 3103.6452 | I84: 0.000304246457 | K84: 81 | L84: Eslovénia | M84: 7854.0988 | N84: 0.0004547814123 | O84: -1224.0604
A85: 82 | B85: Guiné | C85: 2294.4076 | D85: 0.0003245748354 | F85: 82 | G85: Sri Lanca | H85: 3086.3876 | I85: 0.0003025547161 | K85: 82 | L85: Gibraltar | M85: 7555.2434 | N85: 0.0004374765776 | O85: 7555.2434
A86: 83 | B86: Camarões | C86: 2281.1298 | D86: 0.0003226965118 | F86: 83 | G86: Suíça | H86: 2998.4676 | I86: 0.0002939360284 | K86: 83 | L86: Maurícias | M86: 7215.0914 | N86: 0.0004177805169 | O86: 4111.4898
A87: 84 | B87: Irão, República Islâmica do | C87: 2234.7082 | D87: 0.0003161295517 | F87: 84 | G87: Taiwan | H87: 2719.0514 | I87: 0.0002665452078 | K87: 84 | L87: Chipre | M87: 7155.5134 | N87: 0.00041433073 | O87: 948.223
A88: 85 | B88: Congo | C88: 2180.7492 | D88: 0.000308496325 | F88: 85 | G88: Reino Unido (Irlanda do Norte) pós-2020 | H88: 2486.6052 | I88: 0.0002437587976 | K88: 85 | L88: Mali | M88: 7049.132 | N88: 0.0004081708529 | O88: -472.9024
A89: 86 | B89: Seychelles | C89: 2103.9052 | D89: 0.0002976257069 | F89: 86 | G89: Dominicana, República | H89: 2224.7388 | I89: 0.0002180883619 | K89: 86 | L89: HongKong | M89: 7034.0506 | N89: 0.000407297584 | O89: 4628.0186
A90: 87 | B90: Gabão | C90: 2079.6516 | D90: 0.0002941947088 | F90: 87 | G90: Serra Leoa | H90: 1997.841 | I90: 0.0001958458544 | K90: 87 | L90: Honduras | M90: 7007.5386 | N90: 0.000405762441 | O90: -5380.1342
A91: 88 | B91: Venezuela | C91: 2058.4802 | D91: 0.0002911997293 | F91: 88 | G91: Benim | H91: 1817.5436 | I91: 0.0001781715258 | K91: 88 | L91: Filipinas | M91: 6836.7938 | N91: 0.0003958756847 | O91: -2150.8786
A92: 89 | B92: Vietname | C92: 2034.644 | D92: 0.000287827778 | F92: 89 | G92: Croácia | H92: 1794.8456 | I92: 0.0001759464692 | K92: 89 | L92: Etiópia | M92: 6077.3128 | N92: 0.0003518989216 | O92: -4588.4952
A93: 90 | B93: Suazilândia | C93: 1990.5782 | D93: 0.0002815940775 | F93: 90 | G93: Burquina Faso | H93: 1725.7566 | I93: 0.000169173761 | K93: 90 | L93: Taiwan | M93: 5463.6752 | N93: 0.0003163670317 | O93: 25.5724
A94: 91 | B94: Sudão | C94: 1865.0268 | D94: 0.0002638331422 | F94: 91 | G94: Gana | H94: 1658.8832 | I94: 0.0001626182452 | K94: 91 | L94: Malta | M94: 5451.155 | N94: 0.0003156420657 | O94: 4371.3154
A95: 92 | B95: Burquina Faso | C95: 1848.8938 | D95: 0.0002615509122 | F95: 92 | G95: Laos, República Democrática Popular do | H95: 1570.3752 | I95: 0.0001539419167 | K95: 92 | L95: Camboja | M95: 5365.826 | N95: 0.0003107012005 | O95: -4562.9624
A96: 93 | B96: Guiné Equatorial | C96: 1818.0792 | D96: 0.0002571917723 | F96: 93 | G96: Maurícias | H96: 1551.8008 | I96: 0.0001521210915 | K96: 93 | L96: Síria, República Árabe da | M96: 5349.1634 | N96: 0.0003097363743 | O96: 3449.4954
A97: 94 | B97: Peru | C97: 1786.7138 | D97: 0.0002527547143 | F97: 94 | G97: Madagáscar | H97: 1535.4408 | I97: 0.0001505173411 | K97: 94 | L97: Andorra | M97: 5273.09 | N97: 0.0003053314426 | O97: 5263.6372
A98: 95 | B98: Croácia | C98: 1762.667 | D98: 0.0002493529708 | F98: 95 | G98: Panamá | H98: 1513.6732 | I98: 0.0001483834905 | K98: 95 | L98: Belize | M98: 5155.9728 | N98: 0.000298549923 | O98: -5151.6116
A99: 96 | B99: Uruguai | C99: 1751.6408 | D99: 0.0002477931664 | F99: 96 | G99: Congo, República Democrática do | H99: 1226.6954 | I99: 0.0001202514158 | K99: 96 | L99: Guatemala | M99: 5127.1054 | N99: 0.0002968783936 | O99: -4143.3798
A100: 97 | B100: Dominicana, República | C100: 1708.9932 | D100: 0.0002417600894 | F100: 97 | G100: HongKong | H100: 1203.016 | I100: 0.0001179301538 | K100: 97 | L100: Tanzânia, República Unida da | M100: 4910.617 | N100: 0.0002843429133 | O100: -4168.8414
A101: 98 | B101: Benim | C101: 1572.4166 | D101: 0.0002224394912 | F101: 98 | G101: Kuwait | H101: 1183.532 | I101: 0.0001160201616 | K101: 98 | L101: Macedónia, Antiga República jugoslava da | M101: 4874.4688 | N101: 0.0002822497987 | O101: -4329.046
A102: 99 | B102: Bangladesh | C102: 1558.9346 | D102: 0.0002205322808 | F102: 99 | G102: Togo | H102: 1123.3282 | I102: 0.0001101184584 | K102: 99 | L102: Tunísia | M102: 4849.4484 | N102: 0.0002808010248 | O102: -3398.2264
A103: 100 | B103: Egito | C103: 1538.5724 | D103: 0.0002176517736 | F103: 100 | G103: Singapura | H103: 1066.466 | I103: 0.0001045443281 | K103: 100 | L103: Zimbabwe | M103: 4772.3634 | N103: 0.0002763375178 | O103: -4645.7982
A104: 101 | B104: Malásia | C104: 1518.772 | D104: 0.0002148507405 | F104: 101 | G104: São Tomé e Príncipe | H104: 1053.612 | I104: 0.0001032842665 | K104: 101 | L104: Suriname | M104: 4769.9158 | N104: 0.0002761957927 | O104: -4457.7222
A105: 102 | B105: Catar | C105: 1515.1716 | D105: 0.0002143414155 | F105: 102 | G105: Noruega | H105: 1011.7652 | I105: 9.918207707e-05 | K105: 102 | L105: Gana | M105: 4405.6686 | N105: 0.0002551045306 | O105: 1087.9022
A106: 103 | B106: Geórgia | C106: 1344.215 | D106: 0.0001901573035 | F106: 103 | G106: Síria, República Árabe da | H106: 949.834 | I106: 9.3111039e-05 | K106: 103 | L106: Omã | M106: 4283.851 | N106: 0.0002480508404 | O106: 3327.5118
A107: 104 | B107: Albânia | C107: 1266.1722 | D107: 0.0001791170991 | F107: 104 | G107: Coreia, República da | H107: 940.5662 | I107: 9.220252816e-05 | K107: 104 | L107: Singapura | M107: 4005.1904 | N107: 0.0002319153595 | O107: 1872.2584
A108: 105 | B108: Reino Unido (Irlanda do Norte) pós-2020 | C108: 1227.8066 | D108: 0.0001736897686 | F108: 105 | G108: El Salvador | H108: 728.093 | I108: 7.137404612e-05 | K108: 105 | L108: Dominicana, República | M108: 3933.732 | N108: 0.0002277776534 | O108: -515.7456
A109: 106 | B109: Costa Rica | C109: 1199.7232 | D109: 0.0001697169937 | F109: 106 | G109: Turquemenistão | H109: 720.6558 | I109: 7.06449867e-05 | K109: 106 | L109: Myanmar | M109: 3786.5898 | N109: 0.000219257575 | O109: -2886.171
A110: 107 | B110: Indonésia | C110: 1137.3976 | D110: 0.0001609001987 | F110: 107 | G110: Chade | H110: 675.9004 | I110: 6.625767082e-05 | K110: 107 | L110: Reino Unido (Irlanda do Norte) pós-2020 | M110: 3714.4118 | N110: 0.0002150782015 | O110: -1258.7986
A111: 108 | B111: Islândia | C111: 1133.5366 | D111: 0.0001603540083 | F111: 108 | G111: Timor-Leste | H111: 614.309 | I111: 6.021994291e-05 | K111: 108 | L111: Quénia | M111: 3707.2604 | N111: 0.0002146641089 | O111: -2806.3156
A112: 109 | B112: Congo, República Democrática do | C112: 1102.9278 | D112: 0.0001560239816 | F112: 109 | G112: Senegal | H112: 563.4042 | I112: 5.522980904e-05 | K112: 109 | L112: Nicarágua | M112: 3581.5684 | N112: 0.0002073860766 | O112: -2747.4652
A113: 110 | B113: Togo | C113: 886.836 | D113: 0.0001254548881 | F113: 110 | G113: Argélia | H113: 547.3468 | I113: 5.36557222e-05 | K113: 110 | L113: Burquina Faso | M113: 3574.6504 | N113: 0.0002069854987 | O113: 123.1372
A114: 111 | B114: Panamá | C114: 853.2114 | D114: 0.0001206982359 | F114: 111 | G114: Malta | H114: 539.9198 | I114: 5.292766268e-05 | K114: 111 | L114: Croácia | M114: 3557.5126 | N114: 0.0002059931566 | O114: -32.1786
A115: 112 | B115: Equador | C115: 827.4356 | D115: 0.000117051902 | F115: 112 | G115: Líbano | H115: 532.182 | I115: 5.216913582e-05 | K115: 112 | L115: Sri Lanca | M115: 3479.4264 | N115: 0.0002014716764 | O115: -2693.3488
A116: 113 | B116: Ruanda | C116: 825.8566 | D116: 0.0001168285312 | F116: 113 | G116: Omã | H116: 478.1696 | I116: 4.687436781e-05 | K116: 113 | L116: Benim | M116: 3389.9602 | N116: 0.0001962912521 | O116: -245.127
A117: 114 | B117: Honduras | C117: 813.7022 | D117: 0.0001151091278 | F117: 114 | G117: Emirados Árabes Unidos | H117: 456.225 | I117: 4.472316612e-05 | K117: 114 | L117: Malavi | M117: 3260.7888 | N117: 0.0001888117496 | O117: -3247.582
A118: 115 | B118: Bermudas | C118: 793.1712 | D118: 0.0001122047415 | F118: 115 | G118: Belarus | H118: 370.985 | I118: 3.636719553e-05 | K118: 115 | L118: Timor-Leste | M118: 3086.2288 | N118: 0.000178704079 | O118: 1857.6108
A119: 116 | B119: Etiópia | C119: 744.4088 | D119: 0.0001053066437 | F119: 116 | G119: Guiné-Bissau | H119: 361.4462 | I119: 3.54321189e-05 | K119: 116 | L119: Líbano | M119: 3023.0528 | N119: 0.0001750459546 | O119: 1958.6888
A120: 117 | B120: Tunísia | C120: 725.611 | D120: 0.0001026474419 | F120: 117 | G120: Usbequistão | H120: 308.3676 | I120: 3.022889013e-05 | K120: 117 | L120: Belarus | M120: 2826.9136 | N120: 0.0001636887684 | O120: 2084.9436
A121: 118 | B121: Burundi | C121: 677.0954 | D121: 9.578425733e-05 | F121: 118 | G121: Guiné | H121: 302.1342 | I121: 2.961783773e-05 | K121: 118 | L121: Guiné | M121: 2596.5418 | N121: 0.0001503493879 | O121: 1992.2734
A122: 119 | B122: Iémen | C122: 670.7886 | D122: 9.489207559e-05 | F122: 119 | G122: Geórgia | H122: 294.6596 | I122: 2.888511204e-05 | K122: 119 | L122: Serra Leoa | M122: 2499.2974 | N122: 0.0001447185769 | O122: -1496.3846
A123: 120 | B123: Paraguai | C123: 644.6266 | D123: 9.119110857e-05 | F123: 120 | G123: Bolívia | H123: 281.7088 | I123: 2.761556131e-05 | K123: 120 | L123: Irão, República Islâmica do | M123: 2440.2744 | N123: 0.0001413009266 | O123: 2029.142
A124: 121 | B124: Namíbia | C124: 633.7298 | D124: 8.964960955e-05 | F124: 121 | G124: Bangladesh | H124: 280.8088 | I124: 2.752733544e-05 | K124: 121 | L124: Congo | M124: 2380.0768 | N124: 0.0001378152626 | O124: 1981.4216
A125: 122 | B125: Azerbaijão | C125: 594.9756 | D125: 8.416730637e-05 | F125: 122 | G125: Irão, República Islâmica do | H125: 205.5662 | I125: 2.015139747e-05 | K125: 122 | L125: Panamá | M125: 2366.8846 | N125: 0.0001370513853 | O125: -660.4618
A126: 123 | B126: Arménia | C126: 559.6906 | D126: 7.917576822e-05 | F126: 123 | G126: Congo | H126: 199.3276 | I126: 1.953983532e-05 | K126: 123 | L126: Congo, República Democrática do | M126: 2329.6232 | N126: 0.0001348938123 | O126: -123.7676
A127: 124 | B127: Cazaquistão | C127: 531.8816 | D127: 7.524181089e-05 | F127: 124 | G127: Zâmbia | H127: 199.294 | I127: 1.953654155e-05 | K127: 124 | L127: Venezuela | M127: 2213.4414 | N127: 0.0001281664557 | O127: 1903.519
A128: 125 | B128: Aruba | C128: 522.985 | D128: 7.398326708e-05 | F128: 125 | G128: Nigéria | H128: 198.1714 | I128: 1.942649448e-05 | K128: 125 | L128: Seychelles | M128: 2103.9052 | N128: 0.000121823904 | O128: 2103.9052
A129: 126 | B129: Serra Leoa | C129: 501.4564 | D129: 7.093775686e-05 | F129: 126 | G129: Islândia | H129: 193.9226 | I129: 1.900998993e-05 | K129: 126 | L129: Gabão | M129: 2079.9016 | N129: 0.0001204340066 | O129: 2079.4016
A130: 127 | B130: Guatemala | C130: 491.8628 | D130: 6.958061302e-05 | F130: 127 | G130: Venezuela | H130: 154.9612 | I130: 1.519065262e-05 | K130: 127 | L130: Togo | M130: 2010.1642 | N130: 0.0001163959529 | O130: -236.4922
A131: 128 | B131: Uganda | C131: 485.0486 | D131: 6.861665272e-05 | F131: 128 | G131: Cabo Verde | H131: 127.4104 | I131: 1.248988215e-05 | K131: 128 | L131: Sudão | M131: 1881.5594 | N131: 0.0001089492586 | O131: 1848.4942
A132: 129 | B132: São Bartolomeu | C132: 472.0258 | D132: 6.677440239e-05 | F132: 129 | G132: Azerbaijão | H132: 124.836 | I132: 1.223751694e-05 | K132: 129 | L132: Bangladesh | M132: 1839.7434 | N132: 0.0001065279573 | O132: 1278.1258
A133: 130 | B133: Mauritânia | C133: 470.2498 | D133: 6.652316328e-05 | F133: 130 | G133: Albânia | H133: 104.1554 | I133: 1.021022359e-05 | K133: 130 | L133: Guiné Equatorial | M133: 1818.0792 | N133: 0.0001052735199 | O133: 1818.0792
A134: 131 | B134: Barém | C134: 469.46 | D134: 6.641143544e-05 | F134: 131 | G134: Namíbia | H134: 70.1862 | I134: 6.880265399e-06 | K134: 131 | L134: Madagáscar | M134: 1665.0982 | N134: 9.641535334e-05 | O134: -1405.7834
A135: 132 | B135: Gâmbia | C135: 455.249 | D135: 6.440109823e-05 | F135: 132 | G135: Tajiquistão | H135: 59.4122 | I135: 5.824103655e-06 | K135: 132 | L135: Geórgia | M135: 1638.8746 | N135: 9.489690977e-05 | O135: 1049.5554
A136: 133 | B136: Quénia | C136: 450.4724 | D136: 6.372538387e-05 | F136: 133 | G136: Iémen | H136: 45.76 | I136: 4.485795565e-06 | K136: 133 | L136: Laos, República Democrática Popular do | M136: 1584.7624 | N136: 9.176361296e-05 | O136: -1555.988
A137: 134 | B137: Myanmar | C137: 450.2094 | D137: 6.368817898e-05 | F137: 134 | G137: Libéria | H137: 38.8276 | I137: 3.806221064e-06 | K137: 134 | L137: Catar | M137: 1531.2412 | N137: 8.866453723e-05 | O137: 1499.102
A138: 135 | B138: Kosovo | C138: 418.4652 | D138: 5.919753465e-05 | F138: 135 | G138: Aruba | H138: 38.0318 | I138: 3.728209785e-06 | K138: 135 | L138: Albânia | M138: 1370.3276 | N138: 7.934704376e-05 | O138: 1162.0168
A139: 136 | B139: Nicarágua | C139: 417.0516 | D139: 5.89975619e-05 | F139: 136 | G139: São Marino | H139: 32.7702 | I139: 3.212421718e-06 | K139: 136 | L139: Islândia | M139: 1327.4592 | N139: 7.686480462e-05 | O139: 939.614
A140: 137 | B140: Camboja | C140: 401.4318 | D140: 5.678793097e-05 | F140: 137 | G140: Botswana | H140: 30.0284 | I140: 2.943646493e-06 | K140: 137 | L140: El Salvador | M140: 1020.6408 | N140: 5.90988828e-05 | O140: -435.5452
A141: 138 | B141: Sri Lanca | C141: 393.0388 | D141: 5.560062815e-05 | F141: 138 | G141: Jordânia | H141: 29.9124 | I141: 2.932275159e-06 | K141: 138 | L141: Ruanda | M141: 826.094 | N141: 4.783390247e-05 | O141: 825.6192
A142: 139 | B142: Bolívia | C142: 391.1324 | D142: 5.533094222e-05 | F142: 139 | G142: Bósnia-Herzegovina | H142: 27.8982 | I142: 2.734825652e-06 | K142: 139 | L142: Bermudas | M142: 793.8626 | N142: 4.596758502e-05 | O142: 792.4798
A143: 140 | B143: Tanzânia, República Unida da | C143: 370.8878 | D143: 5.246707107e-05 | F143: 140 | G143: Papuásia-Nova Guiné | H143: 25.837 | I143: 2.532768794e-06 | K143: 140 | L143: Turquemenistão | M143: 732.4956 | N143: 4.241420842e-05 | O143: -708.816
A144: 141 | B144: São Martinho (parte holandesa) | C144: 349.244 | D144: 4.940526426e-05 | F144: 141 | G144: Arábia Saudita | H144: 24.9638 | I144: 2.44717009e-06 | K144: 141 | L144: Azerbaijão | M144: 719.8116 | N144: 4.167975784e-05 | O144: 470.1396
A145: 142 | B145: Comores | C145: 311.607 | D145: 4.408100406e-05 | F145: 142 | G145: Macau | H145: 17.6438 | I145: 1.729599646e-06 | K145: 142 | L145: Iémen | M145: 716.5486 | N145: 4.149081805e-05 | O145: 625.0286
A146: 143 | B146: Libéria | C146: 294.774 | D146: 4.169974965e-05 | F146: 143 | G146: Quirguizistão | H146: 17.4758 | I146: 1.713130816e-06 | K146: 143 | L146: Namíbia | M146: 703.916 | N146: 4.075934372e-05 | O146: 563.5436
A147: 144 | B147: Somália | C147: 292.8146 | D147: 4.142256615e-05 | F147: 144 | G147: Sudão | H147: 16.5326 | I147: 1.6206701e-06 | K147: 144 | L147: Burundi | M147: 677.2094 | N147: 3.921293266e-05 | O147: 676.9814
A148: 145 | B148: El Salvador | C148: 292.5478 | D148: 4.13848237e-05 | F148: 145 | G148: Catar | H148: 16.0696 | I148: 1.575282789e-06 | K148: 145 | L148: Chade | M148: 675.9044 | N148: 3.913736832e-05 | O148: -675.8964
A149: 146 | B149: Jamaica | C149: 276.7996 | D149: 3.915702886e-05 | F149: 146 | G149: Arménia | H149: 15.3428 | I149: 1.504035494e-06 | K149: 146 | L149: Bolívia | M149: 672.8412 | N149: 3.89599977e-05 | O149: 109.4236
A150: 147 | B150: Macedónia, Antiga República jugoslava da | C150: 272.7114 | D150: 3.857869794e-05 | F150: 147 | G150: Curaçau | H150: 12.9632 | I150: 1.270766282e-06 | K150: 147 | L150: Arménia | M150: 575.0334 | N150: 3.32965638e-05 | O150: 544.3478
A151: 148 | B151: Paquistão | C151: 266.8506 | D151: 3.77496089e-05 | F151: 148 | G151: Iraque | H151: 12.264 | I151: 1.202224581e-06 | K151: 148 | L151: Aruba | M151: 561.0168 | N151: 3.248495074e-05 | O151: 484.9532
A152: 149 | B152: Antígua e Barbuda | C152: 264.4064 | D152: 3.740384392e-05 | F152: 149 | G152: Jamaica | H152: 11.1274 | I152: 1.090805104e-06 | K152: 149 | L152: Cazaquistão | M152: 538.873 | N152: 3.12027427e-05 | O152: 524.8902
A153: 150 | B153: Argentina | C153: 237.3284 | D153: 3.357329637e-05 | F153: 150 | G153: Kosovo | H153: 8.3722 | I153: 8.207162943e-07 | K153: 150 | L153: Barém | M153: 473.8092 | N153: 2.743530768e-05 | O153: 465.1108
A154: 151 | B154: Curaçau | C154: 224.0074 | D154: 3.168886164e-05 | F154: 151 | G154: Cazaquistão | H154: 6.9914 | I154: 6.853581974e-07 | K154: 151 | L154: São Bartolomeu | M154: 472.3088 | N154: 2.734842896e-05 | O154: 471.7428
A155: 152 | B155: Moldava, República de | C155: 201.388 | D155: 2.848904307e-05 | F155: 152 | G155: Líbia, Jamahira Árabe da | H155: 5.9518 | I155: 5.834475097e-07 | K155: 152 | L155: Mauritânia | M155: 471.8238 | N155: 2.732034567e-05 | O155: 468.6758
A156: 153 | B156: Haiti | C156: 195.7344 | D156: 2.768926526e-05 | F156: 153 | G156: Andorra | H156: 4.7264 | I156: 4.633230804e-07 | K156: 153 | L156: Gâmbia | M156: 455.249 | N156: 2.636060335e-05 | O156: 455.249
A157: 154 | B157: Ceuta e Melilha | C157: 191.5534 | D157: 2.709780654e-05 | F157: 154 | G157: São Cristovão e Nevis | H157: 4.4456 | I157: 4.357966076e-07 | K157: 154 | L157: Kosovo | M157: 426.8374 | N157: 2.471546648e-05 | O157: 410.093
A158: 155 | B158: Suriname | C158: 156.0968 | D158: 2.208199326e-05 | F158: 155 | G158: Afeganistão | H158: 4.3746 | I158: 4.288365664e-07 | K158: 155 | L158: São Martinho (parte holandesa) | M158: 349.244 | N158: 2.022252121e-05 | O158: 349.244
A159: 156 | B159: Nova Caledónia | C159: 140.1192 | D159: 1.98217467e-05 | F159: 156 | G159: Barém | H159: 4.3492 | I159: 4.263466362e-07 | K159: 156 | L159: Usbequistão | M159: 348.7024 | N159: 2.019116056e-05 | O159: -268.0328
A160: 157 | B160: Trindade e Tobago | C160: 140.025 | D160: 1.980842084e-05 | F160: 157 | G160: Nepal | H160: 2.446 | I160: 2.397783206e-07 | K160: 157 | L160: Zâmbia | M160: 336.52 | N160: 1.948575448e-05 | O160: -62.068
A161: 158 | B161: Zâmbia | C161: 137.226 | D161: 1.941246462e-05 | F161: 158 | G161: Liechtenstein | H161: 1.7982 | I161: 1.762752969e-07 | K161: 158 | L161: Libéria | M161: 333.6016 | N161: 1.931676831e-05 | O161: 255.9464
A162: 159 | B162: Polinésia Francesa | C162: 133.1554 | D162: 1.883662346e-05 | F162: 159 | G162: Lesoto | H162: 1.7136 | I162: 1.679820647e-07 | K162: 159 | L162: Comores | M162: 311.607 | N162: 1.80431995e-05 | O162: 311.607
A163: 160 | B163: Madagáscar | C163: 129.6574 | D163: 1.834178428e-05 | F163: 160 | G163: Mauritânia | H163: 1.574 | I163: 1.542972513e-07 | K163: 160 | L163: Somália | M163: 292.8146 | N163: 1.695504993e-05 | O163: 292.8146
A164: 161 | B164: Maldivas | C164: 127.1794 | D164: 1.799123783e-05 | F164: 161 | G164: Fiji, Ilhas | H164: 1.3818 | I164: 1.354561257e-07 | K164: 161 | L164: Jamaica | M164: 287.927 | N164: 1.667203979e-05 | O164: 265.6722
A165: 162 | B165: Niger | C165: 113.05 | D165: 1.599244404e-05 | F165: 162 | G165: Bermudas | H165: 0.6914 | I165: 6.777707722e-08 | K165: 162 | L165: Antígua e Barbuda | M165: 264.426 | N165: 1.531124484e-05 | O165: 264.3868
A166: 163 | B166: Liechtenstein | C166: 106.2456 | D166: 1.502987008e-05 | F166: 163 | G166: Território Palestiniano Ocupado | H166: 0.4852 | I166: 4.756354913e-08 | K166: 163 | L166: Curaçau | M166: 236.9706 | N166: 1.372147548e-05 | O166: 211.0442
A167: 164 | B167: Centro-Africana, República | C167: 83.0308 | D167: 1.174582417e-05 | F167: 164 | G167: Montenegro | H167: 0.3086 | I167: 3.025167201e-08 | K167: 164 | L167: Haiti | M167: 195.7358 | N167: 1.133382783e-05 | O167: 195.733
A168: 165 | B168: Jibuti | C168: 77.3086 | D168: 1.093634196e-05 | F168: 165 | G168: São Bartolomeu | H168: 0.283 | I168: 2.774213603e-08 | K168: 165 | L168: Ceuta e Melilha | M168: 191.5534 | N168: 1.109165138e-05 | O168: 191.5534
A169: 166 | B169: Nepal | C169: 76.6542 | D169: 1.084376828e-05 | F169: 166 | G169: Gabão | H169: 0.25 | I169: 2.450718731e-08 | K169: 166 | L169: Nova Caledónia | M169: 140.1192 | N169: 8.113420685e-06 | O169: 140.1192
A170: 167 | B170: Zimbabwe | C170: 63.2826 | D170: 8.952175488e-06 | F170: 167 | G170: Ruanda | H170: 0.2374 | I170: 2.327202507e-08 | K170: 167 | L170: Trindade e Tobago | M170: 140.0354 | N170: 8.108568354e-06 | O170: 140.0146
A171: 168 | B171: Caimão, Ilhas | C171: 51.4562 | D171: 7.279172037e-06 | F171: 168 | G171: Barbados | H171: 0.1378 | I171: 1.350836164e-08 | K171: 168 | L171: Polinésia Francesa | M171: 133.1554 | N171: 7.710190871e-06 | O171: 133.1554
A172: 169 | B172: Bósnia-Herzegovina | C172: 50.6168 | D172: 7.16042761e-06 | F172: 169 | G172: Oceano Indico, Território Britânico do | H172: 0.128 | I172: 1.25476799e-08 | K172: 169 | L172: Maldivas | M172: 127.183 | N172: 7.364366789e-06 | O172: 127.1758
A173: 170 | B173: Montenegro | C173: 46.101 | D173: 6.521606922e-06 | F173: 170 | G173: Niger | H173: 0.1252 | I173: 1.22731994e-08 | K173: 170 | L173: Niger | M173: 113.1752 | N173: 6.553263283e-06 | O173: 112.9248
A174: 171 | B174: Bahamas | C174: 42.9652 | D174: 6.078005807e-06 | F174: 171 | G174: Burundi | H174: 0.114 | I174: 1.117527741e-08 | K174: 171 | L174: Liechtenstein | M174: 108.0438 | N174: 6.256136217e-06 | O174: 104.4474
A175: 172 | B175: Usbequistão | C175: 40.3348 | D175: 5.705900325e-06 | F175: 172 | G175: Antígua e Barbuda | H175: 0.0196 | I175: 1.921363485e-09 | K175: 172 | L175: Centro-Africana, República | M175: 83.0308 | N175: 4.807790868e-06 | O175: 83.0308
A176: 173 | B176: Mongólia | C176: 30.8452 | D176: 4.363468684e-06 | F176: 173 | G176: São Vicente e Granadinas | H176: 0.0144 | I176: 1.411613989e-09 | K176: 173 | L176: Nepal | M176: 79.1002 | N176: 4.580194569e-06 | O176: 74.2082
A177: 174 | B177: Afeganistão | C177: 18.9718 | D177: 2.683816451e-06 | F177: 174 | G177: Mongólia | H177: 0.0112 | I177: 1.097921991e-09 | K177: 174 | L177: Bósnia-Herzegovina | M177: 78.515 | N177: 4.546309321e-06 | O177: 22.7186
A178: 175 | B178: Guiana | C178: 18.2434 | D178: 2.580774467e-06 | F178: 175 | G178: Trindade e Tobago | H178: 0.0104 | I178: 1.019498992e-09 | K178: 175 | L178: Jibuti | M178: 77.3086 | N178: 4.476454293e-06 | O178: 77.3086
A179: 176 | B179: Turcas e Caicos, Ilhas | C179: 18.0666 | D179: 2.555763728e-06 | F179: 176 | G179: Virgens Britânicas, Ilhas | H179: 0.007 | I179: 6.862012446e-10 | K179: 176 | L179: Tajiquistão | M179: 59.4122 | N179: 3.440186444e-06 | O179: -59.4122
A180: 177 | B180: Laos, República Democrática Popular do | C180: 14.3872 | D180: 2.035263077e-06 | F180: 177 | G180: Santa Lúcia | H180: 0.004 | I180: 3.921149969e-10 | K180: 177 | L180: Caimão, Ilhas | M180: 51.4562 | N180: 2.979504575e-06 | O180: 51.4562
A181: 178 | B181: Barbados | C181: 14.032 | D181: 1.985015256e-06 | F181: 178 | G181: Maldivas | H181: 0.0036 | I181: 3.529034972e-10 | K181: 178 | L181: Montenegro | M181: 46.4096 | N181: 2.687287742e-06 | O181: 45.7924
A182: 179 | B182: Turquemenistão | C182: 11.8398 | D182: 1.674899061e-06 | F182: 179 | G182: Haiti | H182: 0.0014 | I182: 1.372402489e-10 | K182: 179 | L182: Bahamas | M182: 42.9652 | N182: 2.487844224e-06 | O182: 42.9652
A183: 180 | B183: Virgens Britânicas, Ilhas | C183: 9.9272 | D183: 1.40433605e-06 | F183: 180 | G183: Anguila | H183: 0 | I183: 0 | K183: 180 | L183: São Marino | M183: 32.7902 | N183: 1.898674036e-06 | O183: -32.7502
A184: 181 | B184: Fiji, Ilhas | C184: 8.1268 | D184: 1.149645238e-06 | F184: 181 | G184: Antárctica | H184: 0 | I184: 0 | K184: 181 | L184: Mongólia | M184: 30.8564 | N184: 1.786699853e-06 | O184: 30.834
A185: 182 | B185: Santa Lúcia | C185: 7.138 | D185: 1.00976617e-06 | F185: 182 | G185: Antilhas Holandesas | H185: 0 | I185: 0 | K185: 182 | L185: Botswana | M185: 30.1228 | N185: 1.744221696e-06 | O185: -29.934
A186: 183 | B186: Brunei Darussalam | C186: 6.98 | D186: 9.874149436e-07 | F186: 183 | G186: Bahamas | H186: 0 | I186: 0 | K186: 183 | L186: Papuásia-Nova Guiné | M186: 28.7226 | N186: 1.663144929e-06 | O186: -22.9514
A187: 184 | B187: Malavi | C187: 6.6034 | D187: 9.341398049e-07 | F187: 184 | G187: Bonaire, Santo Eustáquio e Saba | H187: 0 | I187: 0 | K187: 184 | L187: Afeganistão | M187: 23.3464 | N187: 1.351843036e-06 | O187: 14.5972
A188: 185 | B188: Guam | C188: 6.5774 | D188: 9.30461755e-07 | F188: 185 | G188: Bouvet, Ilha | H188: 0 | I188: 0 | K188: 185 | L188: Quirguizistão | M188: 22.1324 | N188: 1.281547939e-06 | O188: -12.8192
A189: 186 | B189: São Vicente e Granadinas | C189: 5.6654 | D189: 8.014470804e-07 | F189: 186 | G189: Brunei Darussalam | H189: 0 | I189: 0 | K189: 186 | L189: Turcas e Caicos, Ilhas | M189: 18.0666 | N189: 1.046123059e-06 | O189: 18.0666
A190: 187 | B190: Quirguizistão | C190: 4.6566 | D190: 6.58738743e-07 | F190: 187 | G190: Butão | H190: 0 | I190: 0 | K190: 187 | L190: Barbados | M190: 14.1698 | N190: 8.204839053e-07 | O190: 13.8942
A191: 188 | B191: Menores distantes dos Estados Unidos, lhas | C191: 4.5542 | D191: 6.442528848e-07 | F191: 188 | G191: Caimão, Ilhas | H191: 0 | I191: 0 | K191: 188 | L191: Virgens Britânicas, Ilhas | M191: 9.9342 | N191: 5.752269765e-07 | O191: 9.9202
A192: 189 | B192: Sudão do Sul | C192: 3.771 | D192: 5.334587037e-07 | F192: 189 | G192: Centro-Africana, República | H192: 0 | I192: 0 | K192: 189 | L192: Fiji, Ilhas | M192: 9.5086 | N192: 5.505831601e-07 | O192: 6.745
A193: 190 | B193: Bonaire, Santo Eustáquio e Saba | C193: 3.1276 | D193: 4.424411142e-07 | F193: 190 | G193: Ceuta | H193: 0 | I193: 0 | K193: 190 | L193: Santa Lúcia | M193: 7.142 | N193: 4.135482541e-07 | O193: 7.134
A194: 191 | B194: Marianas do Norte, Ilhas | C194: 2.9244 | D194: 4.136957394e-07 | F194: 191 | G194: Ceuta e Melilha | H194: 0 | I194: 0 | K194: 191 | L194: Brunei Darussalam | M194: 6.98 | N194: 4.041678541e-07 | O194: 6.98
A195: 192 | B195: Papuásia-Nova Guiné | C195: 2.8856 | D195: 4.082069572e-07 | F195: 192 | G195: Christmas, Ilha | H195: 0 | I195: 0 | K195: 192 | L195: Guam | M195: 6.5774 | N195: 3.808558228e-07 | O195: 6.5774
A196: 193 | B196: Belize | C196: 2.1806 | D196: 3.084752186e-07 | F196: 193 | G196: Cocos (Keeling), Ilhas | H196: 0 | I196: 0 | K196: 193 | L196: São Vicente e Granadinas | M196: 5.6798 | N196: 3.288814581e-07 | O196: 5.651
A197: 194 | B197: Melilha | C197: 1.3464 | D197: 1.904664011e-07 | F197: 194 | G197: Comores | H197: 0 | I197: 0 | K197: 194 | L197: Menores distantes dos Estados Unidos, lhas | M197: 4.5542 | N197: 2.637050489e-07 | O197: 4.5542
A198: 195 | B198: Granada | C198: 0.6866 | D198: 9.712881092e-08 | F198: 195 | G198: Cook, Ilhas | H198: 0 | I198: 0 | K198: 195 | L198: São Cristovão e Nevis | M198: 4.4456 | N198: 2.574167066e-07 | O198: -4.4456
A199: 196 | B199: Virgens dos Estados Unidos, Ilhas | C199: 0.295 | D199: 4.173172039e-08 | F199: 196 | G199: Coreia, República Popular Democrática da | H199: 0 | I199: 0 | K199: 196 | L199: Sudão do Sul | M199: 3.771 | N199: 2.183548679e-07 | O199: 3.771
A200: 197 | B200: Botswana | C200: 0.0944 | D200: 1.335415053e-08 | F200: 197 | G200: Domínica | H200: 0 | I200: 0 | K200: 197 | L200: Bonaire, Santo Eustáquio e Saba | M200: 3.1276 | N200: 1.810996247e-07 | O200: 3.1276
... 58 more rows

Sheet 3
A1: Principais produtos agrícolas e agroalimentares, do mar e da floresta transacionados entre Portugal e África em 2018-2022 (NC a 2 e 4 dígitos) em milhões de euros
AC4: P | AE4: Cód.NC | AF4: Descritivo | AG4: Média export quinquénio | AH4: % do total | AI4: % acumulada | AN4: P | AO4: NC | AP4: Exportações | AQ4: 2018 | AR4: 2019 | AS4: 2020 | AT4: 2021 | AU4: 2022 | AV4: média quinquénio
AC5: 1 | AD5: º | AE5: 48 | AF5: Papel e cartão | AG5: 261.1470202 | AH5: 0.2671579638 | AN5: 1º | AO5: 48 | AP5: Papel e cartão | AQ5: 265.00556 | AR5: 249.960477 | AS5: 181.008017 | AT5: 251.407964 | AU5: 358.353083 | AV5: 261.1470202
AC6: 2 | AD6: º | AE6: 15 | AF6: Gorduras e óleos animais ou vegetais | AG6: 117.7340184 | AH6: 0.1204439576 | AN6: 2º | AO6: 15 | AP6: Gorduras e óleos animais ou vegetais | AQ6: 115.217632 | AR6: 109.297928 | AS6: 95.788018 | AT6: 126.53508 | AU6: 141.831434 | AV6: 117.7340184
AC7: 3 | AD7: º | AE7: 22 | AF7: Bebidas, líquidos alcoólicos e vinagres | AG7: 107.6715798 | AH7: 0.1101499071 | AI7: 0.4977518286 | AN7: 3º | AO7: 22 | AP7: Bebidas, líquidos alcoólicos e vinagres | AQ7: 93.63506 | AR7: 95.645778 | AS7: 79.756239 | AT7: 102.452507 | AU7: 166.868315 | AV7: 107.6715798
AC8: 4 | AD8: º | AE8: 04 | AF8: Leite e laticínios; ovos; mel, etc. | AG8: 67.076533 | AH8: 0.06862046507 | AO8: - | AP8: Outros | AQ8: 540.35912 | AR8: 475.267406 | AS8: 399.53729 | AT8: 484.320506 | AU8: 555.254655 | AV8: 490.9477954
AC9: 5 | AD9: º | AE9: 44 | AF9: Madeira e suas obras | AG9: 54.9658448 | AH9: 0.05623101947 | AP9: Total | AQ9: 1014.217372 | AR9: 930.171589 | AS9: 756.089564 | AT9: 964.716057 | AU9: 1222.307487 | AV9: 977.5004138
AC10: 6 | AD10: º | AE10: 19a | AF10: Preparações à base de cereais (exc. NC 19022010) (a) | AG10: 47.7716496 | AH10: 0.0488712321
AC11: 7 | AD11: º | AE11: 47 | AF11: Pastas de madeira | AG11: 33.1210972 | AH11: 0.03388346105
AC12: 8 | AD12: º | AE12: 16a | AF12: Preparações de carnes (exc. NC 1604-05) (a) | AG12: 32.9595446 | AH12: 0.03371818992
AC13: 9 | AD13: º | AE13: 02 | AF13: Carnes e miudezas | AG13: 29.8702212 | AH13: 0.03055775811
AC14: 10 | AD14: º | AE14: 20 | AF14: Preparações de produtos vegetais | AG14: 27.325537 | AH14: 0.02795450172 | AI14: 0.797588456
AE15: - | AF15: Outros | AG15: 197.857368 | AH15: 0.202411544
AE16: Total | AG16: 977.5004138 | AH16: 1
AC38: P | AE38: Cód.NC | AF38: Descritivo | AG38: Média import quinquénio | AH38: % do total | AI38: % acumulada | AN38: P | AO38: NC | AP38: Importações | AQ38: 2018 | AR38: 2019 | AS38: 2020 | AT38: 2021 | AU38: 2022 | AV38: média quinquénio
AC39: 1 | AD39: º | AE39: 03 | AF39: Peixes e crustáceos | AG39: 161.3583294 | AH39: 0.3323949598 | AN39: 1º | AO39: 03 | AP39: Peixes e crustáceos | AQ39: 195.085164 | AR39: 175.73862 | AS39: 131.474519 | AT39: 137.337873 | AU39: 167.155471 | AV39: 161.3583294
AC40: 2 | AD40: º | AE40: 08 | AF40: Frutas | AG40: 112.1281442 | AH40: 0.2309817542 | AN40: 2º | AO40: 08 | AP40: Frutas | AQ40: 105.727736 | AR40: 85.876452 | AS40: 137.730019 | AT40: 104.062657 | AU40: 127.243857 | AV40: 112.1281442
AC41: 3 | AD41: º | AE41: 17 | AF41: Açúcares e produtos de confeitaria | AG41: 34.3024922 | AH41: 0.07066245391 | AI41: 0.6340391679 | AN41: 3º | AO41: 17 | AP41: Açúcares e produtos de confeitaria | AQ41: 38.723805 | AR41: 45.727438 | AS41: 33.943784 | AT41: 10.284447 | AU41: 42.832987 | AV41: 34.3024922
AC42: 4 | AD42: º | AE42: 44 | AF42: Madeira e suas obras | AG42: 31.6274708 | AH42: 0.06515196286 | AO42: - | AP42: Outros | AQ42: 178.689186 | AR42: 164.704734 | AS42: 137.457734 | AT42: 159.397204 | AU42: 248.014137 | AV42: 177.652599
AC43: 5 | AD43: º | AE43: 09 | AF43: Café, chá, mate e especiarias | AG43: 24.301161 | AH43: 0.05005990991 | AP43: Total | AQ43: 518.225891 | AR43: 472.047244 | AS43: 440.606056 | AT43: 411.082181 | AU43: 585.246452 | AV43: 485.4415648
AC44: 6 | AD44: º | AE44: 52 | AF44: Algodão (NC 5201-5203) | AG44: 23.8242058 | AH44: 0.04907739165
AC45: 7 | AD45: º | AE45: 45 | AF45: Cortiça e suas obras | AG45: 23.2915458 | AH45: 0.04798012261
AC46: 8 | AD46: º | AE46: 16p | AF46: Preparações e conservas de peixes ou crustáceos (NC 1604-05) (p) | AG46: 12.2827812 | AH46: 0.02530228578
AC47: 9 | AD47: º | AE47: 23a | AF47: Resíduos indústrias alimentares; alimentos p/ animais (exc. NC 230120) (a) | AG47: 12.2029294 | AH47: 0.02513779265
AC48: 10 | AD48: º | AE48: 15 | AF48: Gorduras e óleos animais ou vegetais | AG48: 10.2772004 | AH48: 0.02117082909 | AI48: 0.9179194624
AE49: - | AF49: Outros | AG49: 39.8453046 | AH49: 0.08208053757
AE50: Total | AG50: 485.4415648 | AH50: 1
AC62: DESAGREGAÇÃO A 4 DÍGITOS | AN62: DESAGREGAÇÃO A 4 DÍGITOS
AC64: P | AE64: Cód.NC | AF64: Descritivo | AG64: Média export quinquénio | AH64: % do total | AI64: % acumulada | AN64: P | AO64: NC | AP64: Exportações | AQ64: 2018 | AR64: 2019 | AS64: 2020 | AT64: 2021 | AU64: 2022 | AV64: média quinquénio
AC65: 1 | AD65: º | AE65: 4802 | AF65: Papel e cartão p/ escrita, etc. | AG65: 194.9068642 | AH65: 0.199393127 | AN65: 1º | AO65: 4802 | AP65: Papel e cartão p/ escrita, etc. | AQ65: 187.256846 | AR65: 181.2843 | AS65: 134.245124 | AT65: 196.04565 | AU65: 275.702401 | AV65: 194.9068642
AC66: 2 | AD66: º | AE66: 1507 | AF66: Óleo de soja e suas frações | AG66: 80.236625 | AH66: 0.08208346909 | AN66: 2º | AO66: 1507 | AP66: Óleo de soja e suas frações | AQ66: 73.270518 | AR66: 71.183232 | AS66: 62.971953 | AT66: 95.940239 | AU66: 97.817183 | AV66: 80.236625
AC67: 3 | AD67: º | AE67: 2204 | AF67: Vinhos de uvas frescas | AG67: 58.0090736 | AH67: 0.0593442957 | AI67: 0.3408208918 | AN67: 3º | AO67: 2204 | AP67: Vinhos de uvas frescas | AQ67: 59.429264 | AR67: 58.404458 | AS67: 46.2479 | AT67: 48.526187 | AU67: 77.437559 | AV67: 58.0090736
AC68: 4 | AD68: º | AE68: 4703 | AF68: Pastas químicas de madeira, à soda ou ao sulfato | AG68: 33.0802154 | AH68: 0.03384163826 | AN68: - | AO68: - | AP68: Outros | AQ68: 694.260744 | AR68: 619.299599 | AS68: 512.624587 | AT68: 624.203981 | AU68: 771.350344 | AV68: 644.347851
AC69: 5 | AD69: º | AE69: 1601 | AF69: Enchidos e etc., de carne, miudezas ou sangue | AG69: 27.0760132 | AH69: 0.02769923451 | AP69: Total | AQ69: 1014.217372 | AR69: 930.171589 | AS69: 756.089564 | AT69: 964.716057 | AU69: 1222.307487 | AV69: 977.5004138
AC70: 6 | AD70: º | AE70: 2202 | AF70: Águas com açúcar ou outros produtos; outras bebidas | AG70: 21.95412 | AH70: 0.02245944829
AC71: 7 | AD71: º | AE71: 2309 | AF71: Preparações p/ alimentação animal | AG71: 20.2837648 | AH71: 0.02075064574
AC72: 8 | AD72: º | AE72: 4819 | AF72: Embalagens de papel, cartão etc. | AG72: 19.8881602 | AH72: 0.02034593533
AC73: 9 | AD73: º | AE73: 2203 | AF73: Cervejas de malte | AG73: 19.7476276 | AH73: 0.02020216802
AC74: 10 | AD74: º | AE74: 0401 | AF74: Leite e nata, não concentrados | AG74: 19.4499364 | AH74: 0.01989762472 | AI74: 0.5060175867
AE75: - | AF75: Outros | AG75: 482.8680134 | AH75: 0.4939824133
AE76: Total | AG76: 977.5004138 | AH76: 1
AC89: DESAGREGAÇÃO A 4 DÍGITOS | AN89: DESAGREGAÇÃO A 4 DÍGITOS
G91: média 2018-2022 em milhões de euros | I91: Cód. NC | J91: Descritivo | K91: Export | L91: Import | M91: Saldo | AC91: P | AE91: Cód.NC | AF91: Descritivo | AG91: Média import quinquénio | AH91: % do total | AI91: % acumulada | AN91: P | AO91: NC | AP91: Importações | AQ91: 2018 | AR91: 2019 | AS91: 2020 | AT91: 2021 | AU91: 2022 | AV91: média quinquénio
I92: 4802 | J92: Papel e cartão p/ escrita, etc. | K92: 194.9068642 | L92: 0.0191902 | M92: 194.887674 | AC92: 1 | AD92: º | AE92: 0805 | AF92: Citrinos, frescos ou secos | AG92: 93.6224648 | AH92: 0.1928604215 | AN92: 1º | AO92: 0805 | AP92: Citrinos, frescos ou secos | AQ92: 89.283056 | AR92: 71.458994 | AS92: 120.735469 | AT92: 85.625847 | AU92: 101.008958 | AV92: 93.6224648
I93: 1507 | J93: Óleo de soja e suas frações | K93: 80.236625 | L93: 8.28e-05 | M93: 80.2365422 | AC93: 2 | AD93: º | AE93: 0303 | AF93: Peixes congelados | AG93: 45.8662866 | AH93: 0.09448364113 | AN93: 2º | AO93: 0303 | AP93: Peixes congelados | AQ93: 54.768586 | AR93: 59.013196 | AS93: 41.60895 | AT93: 35.111349 | AU93: 38.829352 | AV93: 45.8662866
I94: 2204 | J94: Vinhos de uvas frescas | K94: 58.0090736 | L94: 0.0386992 | M94: 57.9703744 | AC94: 3 | AD94: º | AE94: 0307 | AF94: Moluscos | AG94: 44.1556586 | AH94: 0.09095978137 | AI94: 0.378303844 | AN94: 3º | AO94: 0307 | AP94: Moluscos | AQ94: 61.81653 | AR94: 41.850521 | AS94: 31.251432 | AT94: 35.28825 | AU94: 50.57156 | AV94: 44.1556586
I95: 4703 | J95: Pastas químicas de madeira, à soda ou ao sulfato | K95: 33.0802154 | L95: 0 | M95: 33.0802154 | AC95: 4 | AD95: º | AE95: 0306 | AF95: Crustáceos | AG95: 38.0004916 | AH95: 0.07828025937 | AN95: - | AO95: - | AP95: Outros | AQ95: 312.357719 | AR95: 299.724533 | AS95: 247.010205 | AT95: 255.056735 | AU95: 394.836582 | AV95: 301.7971548
I96: 1601 | J96: Enchidos e etc., de carne, miudezas ou sangue | K96: 27.0760132 | L96: 0 | M96: 27.0760132 | AC96: 5 | AD96: º | AE96: 1701 | AF96: Açúcares (cana/beterraba); sacarose pura | AG96: 26.9072334 | AH96: 0.05542836739 | AP96: Total | AQ96: 518.225891 | AR96: 472.047244 | AS96: 440.606056 | AT96: 411.082181 | AU96: 585.246452 | AV96: 485.4415648
I97: 2202 | J97: Águas com açúcar ou outros produtos; outras bebidas | K97: 21.95412 | L97: 0.0277036 | M97: 21.9264164 | AC97: 6 | AD97: º | AE97: 0304 | AF97: Filetes de peixes | AG97: 26.7556378 | AH97: 0.05511608346
I98: 2309 | J98: Preparações p/ alimentação animal | K98: 20.2837648 | L98: 0.0023396 | M98: 20.2814252 | AC98: 7 | AD98: º | AE98: 0901 | AF98: Café | AG98: 24.1953604 | AH98: 0.04984196277
I99: 4819 | J99: Embalagens de papel, cartão etc. | K99: 19.8881602 | L99: 0.0563378 | M99: 19.8318224 | AC99: 8 | AD99: º | AE99: 5201 | AF99: Algodão não cardado nem penteado | AG99: 23.3817176 | AH99: 0.04816587473
I100: 2203 | J100: Cervejas de malte | K100: 19.7476276 | L100: 0.1263106 | M100: 19.621317 | AC100: 9 | AD100: º | AE100: 1604 | AF100: Preparações e conservas de peixes, etc. | AG100: 12.2707842 | AH100: 0.02527757219
I101: 0401 | J101: Leite e nata, não concentrados | K101: 19.4499364 | L101: 0 | M101: 19.4499364 | AC101: 10 | AD101: º | AE101: 4403 | AF101: Madeira em bruto | AG101: 11.8095906 | AH101: 0.02432752252 | AI101: 0.7147414864
I102: - | J102: Outros | K102: 461.6806612 | L102: 138.9450318 | M102: 322.7356294 | AE102: - | AF102: Outros | AG102: 138.4763392 | AH102: 0.2852585136
I103: 4403 | J103: Madeira em bruto | K103: 1.6938092 | L103: 11.8095906 | M103: -10.1157814 | AE103: Total | AG103: 485.4415648 | AH103: 1
I104: 4501 | J104: Cortiça natural em bruto | K104: 0.0393806 | L104: 11.5314278 | M104: -11.4920472
I105: 0901 | J105: Café | K105: 6.261429 | L105: 24.1953604 | M105: -17.9339314
I106: 5201 | J106: Algodão não cardado nem penteado | K106: 0.0753788 | L106: 23.3817176 | M106: -23.3063388
I107: 1701 | J107: Açúcares (cana/beterraba); sacarose pura | K107: 2.4157338 | L107: 26.9072334 | M107: -24.4914996
I108: 0304 | J108: Filetes de peixes | K108: 1.3065066 | L108: 26.7556378 | M108: -25.4491312
I109: 0306 | J109: Crustáceos | K109: 1.0171364 | L109: 38.0004916 | M109: -36.9833552
I110: 0303 | J110: Peixes congelados | K110: 4.5497704 | L110: 45.8662866 | M110: -41.3165162
I111: 0307 | J111: Moluscos | K111: 0.7005692 | L111: 44.1556586 | M111: -43.4550894
I112: 0805 | J112: Citrinos, frescos ou secos | K112: 3.1276382 | L112: 93.6224648 | M112: -90.4948266
I113: Total | K113: 977.5004138 | L113: 485.4415648 | M113: 492.058849
A116: Fonte: GPP a partir de dados INE/Comércio Internacional (2022 definitivos) | Y116: 2023-12-28

Sheet 3A
A1: Principais produtos agrícolas e agroalimentares transacionados entre Portugal e África em 2018-2022 (NC a 2 e 4 dígitos) em milhões de euros
AC4: P | AE4: Cód.NC | AF4: Descritivo | AG4: Média export quinquénio | AH4: % do total | AI4: % acumulada | AN4: P | AO4: NC | AP4: Exportações | AQ4: 2018 | AR4: 2019 | AS4: 2020 | AT4: 2021 | AU4: 2022 | AV4: média quinquénio
AC5: 1 | AD5: º | AE5: 15 | AF5: Gorduras e óleos animais ou vegetais | AG5: 117.7340184 | AH5: 0.200696582 | AN5: 1º | AO5: 15 | AP5: Gorduras e óleos animais ou vegetais | AQ5: 115.217632 | AR5: 109.297928 | AS5: 95.788018 | AT5: 126.53508 | AU5: 141.831434 | AV5: 117.7340184
AC6: 2 | AD6: º | AE6: 22 | AF6: Bebidas, líquidos alcoólicos e vinagres | AG6: 107.6715798 | AH6: 0.183543536 | AN6: 2º | AO6: 22 | AP6: Bebidas, líquidos alcoólicos e vinagres | AQ6: 93.63506 | AR6: 95.645778 | AS6: 79.756239 | AT6: 102.452507 | AU6: 166.868315 | AV6: 107.6715798
AC7: 3 | AD7: º | AE7: 04 | AF7: Leite e laticínios; ovos; mel, etc. | AG7: 67.076533 | AH7: 0.1143427455 | AI7: 0.4985828635 | AN7: 3º | AO7: 04 | AP7: Leite e laticínios; ovos; mel, etc. | AQ7: 73.904472 | AR7: 68.150152 | AS7: 51.887595 | AT7: 66.365397 | AU7: 75.075049 | AV7: 67.076533
AC8: 4 | AD8: º | AE8: 19a | AF8: Preparações à base de cereais (exc. NC 19022010) (a) | AG8: 47.7716496 | AH8: 0.08143446492 | AO8: - | AP8: Outros | AQ8: 335.521942 | AR8: 289.514271 | AS8: 248.227021 | AT8: 273.29734 | AU8: 324.163386 | AV8: 294.144792
AC9: 5 | AD9: º | AE9: 16a | AF9: Preparações de carnes (exc. NC 1604-05) (a) | AG9: 32.9595446 | AH9: 0.05618484815 | AP9: Total | AQ9: 618.279106 | AR9: 562.608129 | AS9: 475.658873 | AT9: 568.650324 | AU9: 707.938184 | AV9: 586.6269232
AC10: 6 | AD10: º | AE10: 02 | AF10: Carnes e miudezas | AG10: 29.8702212 | AH10: 0.05091859923
AC11: 7 | AD11: º | AE11: 20 | AF11: Preparações de produtos vegetais | AG11: 27.325537 | AH11: 0.04658077548
AC12: 8 | AD12: º | AE12: 23a | AF12: Resíduos indústrias alimentares; alimentos p/ animais (exc. NC 230120) (a) | AG12: 26.8766384 | AH12: 0.04581555557
AC13: 9 | AD13: º | AE13: 11 | AF13: Produtos da indústria de moagem e outros | AG13: 25.422368 | AH13: 0.04333651763
AC14: 10 | AD14: º | AE14: 21 | AF14: Preparações alimentícias diversas | AG14: 22.82718 | AH14: 0.03891260203 | AI14: 0.8617662266
AE15: - | AF15: Outros | AG15: 81.0916532 | AH15: 0.1382337734
AE16: Total | AG16: 586.6269232 | AH16: 1
AC38: P | AE38: Cód.NC | AF38: Descritivo | AG38: Média import quinquénio | AH38: % do total | AI38: % acumulada | AN38: P | AO38: NC | AP38: Importações | AQ38: 2018 | AR38: 2019 | AS38: 2020 | AT38: 2021 | AU38: 2022 | AV38: média quinquénio
AC39: 1 | AD39: º | AE39: 08 | AF39: Frutas | AG39: 112.1281442 | AH39: 0.4424389669 | AN39: 1º | AO39: 08 | AP39: Frutas | AQ39: 105.727736 | AR39: 85.876452 | AS39: 137.730019 | AT39: 104.062657 | AU39: 127.243857 | AV39: 112.1281442
AC40: 2 | AD40: º | AE40: 17 | AF40: Açúcares e produtos de confeitaria | AG40: 34.3024922 | AH40: 0.1353519165 | AN40: 2º | AO40: 17 | AP40: Açúcares e produtos de confeitaria | AQ40: 38.723805 | AR40: 45.727438 | AS40: 33.943784 | AT40: 10.284447 | AU40: 42.832987 | AV40: 34.3024922
AC41: 3 | AD41: º | AE41: 09 | AF41: Café, chá, mate e especiarias | AG41: 24.301161 | AH41: 0.09588833065 | AI41: 0.673679214 | AN41: 3º | AO41: 09 | AP41: Café, chá, mate e especiarias | AQ41: 24.930831 | AR41: 24.483464 | AS41: 19.699032 | AT41: 19.924948 | AU41: 32.46753 | AV41: 24.301161
AC42: 4 | AD42: º | AE42: 52 | AF42: Algodão (NC 5201-5203) | AG42: 23.8242058 | AH42: 0.09400634493 | AO42: - | AP42: Outros | AQ42: 79.579233 | AR42: 64.924108 | AS42: 64.261579 | AT42: 76.355667 | AU42: 128.379883 | AV42: 82.700094
AC43: 5 | AD43: º | AE43: 23a | AF43: Resíduos indústrias alimentares; alimentos p/ animais (exc. NC 230120) (a) | AG43: 12.2029294 | AH43: 0.04815072536 | AP43: Total | AQ43: 248.961605 | AR43: 221.011462 | AS43: 255.634414 | AT43: 210.627719 | AU43: 330.924257 | AV43: 253.4318914
AC44: 6 | AD44: º | AE44: 15 | AF44: Gorduras e óleos animais ou vegetais | AG44: 10.2772004 | AH44: 0.04055211972
AC45: 7 | AD45: º | AE45: 07 | AF45: Produtos hortícolas | AG45: 7.8003334 | AH45: 0.03077881539
AC46: 8 | AD46: º | AE46: 24 | AF46: Tabaco | AG46: 7.3970216 | AH46: 0.02918741426
AC47: 9 | AD47: º | AE47: 18 | AF47: Cacau e suas preparações | AG47: 7.169782 | AH47: 0.02829076467
AC48: 10 | AD48: º | AE48: 20 | AF48: Preparações de produtos vegetais | AG48: 5.1402014 | AH48: 0.02028237793 | AI48: 0.9649277763
AE49: - | AF49: Outros | AG49: 8.88842 | AH49: 0.03507222375
AE50: Total | AG50: 253.4318914 | AH50: 1
AC62: DESAGREGAÇÃO A 4 DÍGITOS | AN62: DESAGREGAÇÃO A 4 DÍGITOS
AC64: P | AE64: Cód.NC | AF64: Descritivo | AG64: Média export quinquénio | AH64: % do total | AI64: % acumulada | AN64: P | AO64: NC | AP64: Exportações | AQ64: 2018 | AR64: 2019 | AS64: 2020 | AT64: 2021 | AU64: 2022 | AV64: média quinquénio
AC65: 1 | AD65: º | AE65: 1507 | AF65: Óleo de soja e suas frações | AG65: 80.236625 | AH65: 0.1367762403 | AN65: 1º | AO65: 1507 | AP65: Óleo de soja e suas frações | AQ65: 73.270518 | AR65: 71.183232 | AS65: 62.971953 | AT65: 95.940239 | AU65: 97.817183 | AV65: 80.236625
AC66: 2 | AD66: º | AE66: 2204 | AF66: Vinhos de uvas frescas | AG66: 58.0090736 | AH66: 0.0988858017 | AN66: 2º | AO66: 2204 | AP66: Vinhos de uvas frescas | AQ66: 59.429264 | AR66: 58.404458 | AS66: 46.2479 | AT66: 48.526187 | AU66: 77.437559 | AV66: 58.0090736
AC67: 3 | AD67: º | AE67: 1601 | AF67: Enchidos e etc., de carne, miudezas ou sangue | AG67: 27.0760132 | AH67: 0.04615542201 | AI67: 0.281817464 | AN67: 3º | AO67: 1601 | AP67: Enchidos e etc., de carne, miudezas ou sangue | AQ67: 29.934422 | AR67: 29.062731 | AS67: 24.748253 | AT67: 21.902917 | AU67: 29.731743 | AV67: 27.0760132
AC68: 4 | AD68: º | AE68: 2202 | AF68: Águas com açúcar ou outros produtos; outras bebidas | AG68: 21.95412 | AH68: 0.03742433075 | AN68: - | AO68: - | AP68: Outros | AQ68: 455.644902 | AR68: 403.957708 | AS68: 341.690767 | AT68: 402.280981 | AU68: 502.951699 | AV68: 421.3052114
AC69: 5 | AD69: º | AE69: 2309 | AF69: Preparações p/ alimentação animal | AG69: 20.2837648 | AH69: 0.03457694149 | AP69: Total | AQ69: 618.279106 | AR69: 562.608129 | AS69: 475.658873 | AT69: 568.650324 | AU69: 707.938184 | AV69: 586.6269232
AC70: 6 | AD70: º | AE70: 2203 | AF70: Cervejas de malte | AG70: 19.7476276 | AH70: 0.03366300935
AC71: 7 | AD71: º | AE71: 0401 | AF71: Leite e nata, não concentrados | AG71: 19.4499364 | AH71: 0.03315554679
AC72: 8 | AD72: º | AE72: 1901 | AF72: Extratos de malte; preparações de farinhas, etc., sem cacau | AG72: 18.8004712 | AH72: 0.03204842883
AC73: 9 | AD73: º | AE73: 1905 | AF73: Produtos de padaria, pastelaria, etc. | AG73: 16.1106312 | AH73: 0.02746316366
AC74: 10 | AD74: º | AE74: 1509 | AF74: Azeite (processos mecânicos ou físicos) | AG74: 14.3906382 | AH74: 0.02453115878 | AI74: 0.5046800436
AE75: - | AF75: Outros | AG75: 290.568022 | AH75: 0.4953199564
AE76: Total | AG76: 586.6269232 | AH76: 1
AC89: DESAGREGAÇÃO A 4 DÍGITOS | AN89: DESAGREGAÇÃO A 4 DÍGITOS
G91: média 2018-2022 em milhões de euros | I91: Cód. NC | J91: Descritivo | K91: Export | L91: Import | M91: Saldo | AC91: P | AE91: Cód.NC | AF91: Descritivo | AG91: Média import quinquénio | AH91: % do total | AI91: % acumulada | AN91: P | AO91: NC | AP91: Importações | AQ91: 2018 | AR91: 2019 | AS91: 2020 | AT91: 2021 | AU91: 2022 | AV91: média quinquénio
I92: 1507 | J92: Óleo de soja e suas frações | K92: 80.236625 | L92: 8.28e-05 | M92: 80.2365422 | AC92: 1 | AD92: º | AE92: 0805 | AF92: Citrinos, frescos ou secos | AG92: 93.6224648 | AH92: 0.3694186406 | AN92: 1º | AO92: 0805 | AP92: Citrinos, frescos ou secos | AQ92: 89.283056 | AR92: 71.458994 | AS92: 120.735469 | AT92: 85.625847 | AU92: 101.008958 | AV92: 93.6224648
I93: 2204 | J93: Vinhos de uvas frescas | K93: 58.0090736 | L93: 0.0386992 | M93: 57.9703744 | AC93: 2 | AD93: º | AE93: 1701 | AF93: Açúcares (cana/beterraba); sacarose pura | AG93: 26.9072334 | AH93: 0.1061714579 | AN93: 2º | AO93: 1701 | AP93: Açúcares (cana/beterraba); sacarose pura | AQ93: 31.561627 | AR93: 38.039414 | AS93: 28.019339 | AT93: 1.569897 | AU93: 35.34589 | AV93: 26.9072334
I94: 1601 | J94: Enchidos e etc., de carne, miudezas ou sangue | K94: 27.0760132 | L94: 0 | M94: 27.0760132 | AC94: 3 | AD94: º | AE94: 0901 | AF94: Café | AG94: 24.1953604 | AH94: 0.09547085912 | AI94: 0.5710609576 | AN94: 3º | AO94: 0901 | AP94: Café | AQ94: 24.859942 | AR94: 24.432443 | AS94: 19.619273 | AT94: 19.785693 | AU94: 32.279451 | AV94: 24.1953604
I95: 2202 | J95: Águas com açúcar ou outros produtos; outras bebidas | K95: 21.95412 | L95: 0.0277036 | M95: 21.9264164 | AC95: 4 | AD95: º | AE95: 5201 | AF95: Algodão não cardado nem penteado | AG95: 23.3817176 | AH95: 0.09226036025 | AN95: - | AO95: - | AP95: Outros | AQ95: 103.25698 | AR95: 87.080611 | AS95: 87.260333 | AT95: 103.646282 | AU95: 162.289958 | AV95: 108.7068328
I96: 2309 | J96: Preparações p/ alimentação animal | K96: 20.2837648 | L96: 0.0023396 | M96: 20.2814252 | AC96: 5 | AD96: º | AE96: 2302 | AF96: Resíduos de tratamentos de cereais ou leguminosas | AG96: 7.9356128 | AH96: 0.03131260536 | AP96: Total | AQ96: 248.961605 | AR96: 221.011462 | AS96: 255.634414 | AT96: 210.627719 | AU96: 330.924257 | AV96: 253.4318914
I97: 2203 | J97: Cervejas de malte | K97: 19.7476276 | L97: 0.1263106 | M97: 19.621317 | AC97: 6 | AD97: º | AE97: 2401 | AF97: Tabaco não manufaturado | AG97: 7.3962592 | AH97: 0.02918440595
I98: 0401 | J98: Leite e nata, não concentrados | K98: 19.4499364 | L98: 0 | M98: 19.4499364 | AC98: 7 | AD98: º | AE98: 1703 | AF98: Melaços resultantes da extração ou refinação do açúcar | AG98: 7.3783524 | AH98: 0.0291137487
I99: 1901 | J99: Extratos de malte; preparações de farinhas, etc., sem cacau | K99: 18.8004712 | L99: 5.68e-05 | M99: 18.8004144 | AC99: 8 | AD99: º | AE99: 0713 | AF99: Legumes de vagem, secos, em grão | AG99: 5.940665 | AH99: 0.02344087387
I100: 1905 | J100: Produtos de padaria, pastelaria, etc. | K100: 16.1106312 | L100: 0.0578838 | M100: 16.0527474 | AC100: 9 | AD100: º | AE100: 1803 | AF100: Pastas de cacau | AG100: 5.2516838 | AH100: 0.02072226889
I101: 0207 | J101: Carnes e miudezas de aves de capoeira | K101: 13.3084174 | L101: 0.00578 | M101: 13.3026374 | AC101: 10 | AD101: º | AE101: 0808 | AF101: Maçãs, peras e marmelos, frescos | AG101: 5.1505186 | AH101: 0.02032308788 | AI101: 0.8174183085
I102: - | J102: Outros | K102: 277.273113 | L102: 50.4456102 | M102: 226.8275028 | AE102: - | AF102: Outros | AG102: 46.2720234 | AH102: 0.1825816915
I103: 1005 | J103: Milho | K103: 0.627962 | L103: 3.5097514 | M103: -2.8817894 | AE103: Total | AG103: 253.4318914 | AH103: 1
I104: 0803 | J104: Bananas, frescas ou secas | K104: 0.0344394 | L104: 3.148989 | M104: -3.1145496
I105: 1803 | J105: Pastas de cacau | K105: 0.0184004 | L105: 5.2516838 | M105: -5.2332834
I106: 2401 | J106: Tabaco não manufaturado | K106: 1.3105384 | L106: 7.3962592 | M106: -6.0857208
I107: 1703 | J107: Melaços resultantes da extração ou refinação do açúcar | K107: 0.0158076 | L107: 7.3783524 | M107: -7.3625448
I108: 2302 | J108: Resíduos de tratamentos de cereais ou leguminosas | K108: 0.4898022 | L108: 7.9356128 | M108: -7.4458106
I109: 0901 | J109: Café | K109: 6.261429 | L109: 24.1953604 | M109: -17.9339314
I110: 5201 | J110: Algodão não cardado nem penteado | K110: 0.0753788 | L110: 23.3817176 | M110: -23.3063388
I111: 1701 | J111: Açúcares (cana/beterraba); sacarose pura | K111: 2.4157338 | L111: 26.9072334 | M111: -24.4914996
I112: 0805 | J112: Citrinos, frescos ou secos | K112: 3.1276382 | L112: 93.6224648 | M112: -90.4948266
I113: Total | K113: 586.6269232 | L113: 253.4318914 | M113: 333.1950318
A116: Fonte: GPP a partir de dados INE/Comércio Internacional (2022 definitivos) | Y116: 2023-12-28

Sheet 3B
A1: Principais origens e destinos em África para os produtos agrícolas, agroalimentares, do mar e da floresta (2018-2022) em milhões de euros
AC4: P | AE4: País | AF4: Média export quinquénio | AG4: % do total | AH4: % acumulada | AM4: P | AN4: Exportações | AO4: 2018 | AP4: 2019 | AQ4: 2020 | AR4: 2021 | AS4: 2022 | AT4: média quinquénio
AC5: 1 | AD5: º | AE5: Angola | AF5: 331.0917324 | AG5: 0.3387126263 | AM5: 1º | AN5: Angola | AO5: 456.113723 | AP5: 355.161704 | AQ5: 239.847484 | AR5: 240.275672 | AS5: 364.060079 | AT5: 331.0917324
AC6: 2 | AD6: º | AE6: Marrocos | AF6: 109.0268306 | AG6: 0.1115363524 | AM6: 2º | AN6: Marrocos | AO6: 92.404788 | AP6: 92.175553 | AQ6: 79.677792 | AR6: 135.589878 | AS6: 145.286142 | AT6: 109.0268306
AC7: 3 | AD7: º | AE7: Cabo Verde | AF7: 100.8631066 | AG7: 0.1031847201 | AH7: 0.5534336988 | AM7: 3º | AN7: Cabo Verde | AO7: 87.033133 | AP7: 94.949115 | AQ7: 91.426216 | AR7: 103.626034 | AS7: 127.281035 | AT7: 100.8631066
AC8: 4 | AD8: º | AE8: Egito | AF8: 83.3724854 | AG8: 0.08529150906 | AN8: Outros | AO8: 378.665728 | AP8: 387.885217 | AQ8: 345.138072 | AR8: 485.224473 | AS8: 585.680231 | AT8: 436.5187442
AC9: 5 | AD9: º | AE9: Argélia | AF9: 78.3808918 | AG9: 0.08018502161 | AN9: Total | AO9: 1014.217372 | AP9: 930.171589 | AQ9: 756.089564 | AR9: 964.716057 | AS9: 1222.307487 | AT9: 977.5004138
AC10: 6 | AD10: º | AE10: Moçambique | AF10: 37.446547 | AG10: 0.03830847176
AC11: 7 | AD11: º | AE11: África do Sul | AF11: 37.1552308 | AG11: 0.0380104502
AC12: 8 | AD12: º | AE12: Guiné-Bissau | AF12: 32.1823082 | AG12: 0.03292306351
AC13: 9 | AD13: º | AE13: São Tomé e Príncipe | AF13: 26.7924812 | AG13: 0.02740917633
AC14: 10 | AD14: º | AE14: Tunísia | AF14: 24.9673514 | AG14: 0.02554203666 | AH14: 0.8811034279
AE15: Outros | AF15: 116.2214484 | AG15: 0.1188965721
AE16: Total | AF16: 977.5004138 | AG16: 1
AC38: P | AE38: País | AF38: Média import quinquénio | AG38: % do total | AH38: % acumulada | AM38: P | AN38: Importações | AO38: 2018 | AP38: 2019 | AQ38: 2020 | AR38: 2021 | AS38: 2022 | AT38: média quinquénio
AC39: 1 | AD39: º | AE39: África do Sul | AF39: 145.3441816 | AG39: 0.2994061328 | AM39: 1º | AN39: África do Sul | AO39: 154.525966 | AP39: 117.45012 | AQ39: 159.234889 | AR39: 123.68826 | AS39: 171.821673 | AT39: 145.3441816
AC40: 2 | AD40: º | AE40: Marrocos | AF40: 42.6169054 | AG40: 0.08778998028 | AM40: 2º | AN40: Marrocos | AO40: 58.056205 | AP40: 38.16776 | AQ40: 39.419702 | AR40: 33.596175 | AS40: 43.844685 | AT40: 42.6169054
AC41: 3 | AD41: º | AE41: Moçambique | AF41: 40.008831 | AG41: 0.08241739872 | AH41: 0.4696135118 | AM41: 3º | AN41: Moçambique | AO41: 37.766394 | AP41: 38.473791 | AQ41: 32.949023 | AR41: 38.152298 | AS41: 52.702649 | AT41: 40.008831
AC42: 4 | AD42: º | AE42: Namíbia | AF42: 22.831866 | AG42: 0.04703319134 | AN42: Outros | AO42: 267.877326 | AP42: 277.955573 | AQ42: 209.002442 | AR42: 215.645448 | AS42: 316.877445 | AT42: 257.4716468
AC43: 5 | AD43: º | AE43: Costa do Marfim | AF43: 22.796209 | AG43: 0.04695973862 | AN43: Total | AO43: 518.225891 | AP43: 472.047244 | AQ43: 440.606056 | AR43: 411.082181 | AS43: 585.246452 | AT43: 485.4415648
AC44: 6 | AD44: º | AE44: Uganda | AF44: 22.6851228 | AG44: 0.04673090325
AC45: 7 | AD45: º | AE45: Senegal | AF45: 17.5765504 | AG45: 0.03620734538
AC46: 8 | AD46: º | AE46: Angola | AF46: 15.4240848 | AG46: 0.03177330892
AC47: 9 | AD47: º | AE47: Mauritânia | AF47: 14.1244552 | AG47: 0.02909609771
AC48: 10 | AD48: º | AE48: Tanzânia, República Unida da | AF48: 13.7110264 | AG48: 0.02824444257 | AH48: 0.7356585396
AE49: Outros | AF49: 128.3223322 | AG49: 0.2643414604
AE50: Total | AF50: 485.4415648 | AG50: 1
A57: Fonte: GPP a partir de dados INE/Comércio Internacional (2022 definitivos) | Y57: 2023-12-28

Sheet 3C
A1: Principais origens e destinos em África para os produtos agrícolas e agroalimentares (2018-2022) em milhões de euros
AC4: P | AE4: País | AF4: Média export quinquénio | AG4: % do total | AH4: % acumulada | AM4: P | AN4: Exportações | AO4: 2018 | AP4: 2019 | AQ4: 2020 | AR4: 2021 | AS4: 2022 | AT4: média quinquénio
AC5: 1 | AD5: º | AE5: Angola | AF5: 270.7887526 | AG5: 0.4616030085 | AM5: 1º | AN5: Angola | AO5: 372.008146 | AP5: 293.451069 | AQ5: 203.104681 | AR5: 194.451632 | AS5: 290.928235 | AT5: 270.7887526
AC6: 2 | AD6: º | AE6: Cabo Verde | AF6: 85.4140192 | AG6: 0.1456019419 | AM6: 2º | AN6: Cabo Verde | AO6: 73.020172 | AP6: 77.618992 | AQ6: 78.36773 | AR6: 88.687079 | AS6: 109.376123 | AT6: 85.4140192
AC7: 3 | AD7: º | AE7: Marrocos | AF7: 40.7869258 | AG7: 0.06952787911 | AH7: 0.6767328295 | AM7: 3º | AN7: Marrocos | AO7: 25.857411 | AP7: 23.742473 | AQ7: 32.372332 | AR7: 68.098324 | AS7: 53.864089 | AT7: 40.7869258
AC8: 4 | AD8: º | AE8: Guiné-Bissau | AF8: 30.105237 | AG8: 0.05131922148 | AN8: Outros | AO8: 147.393377 | AP8: 167.795595 | AQ8: 161.81413 | AR8: 217.413289 | AS8: 253.769737 | AT8: 189.6372256
AC9: 5 | AD9: º | AE9: São Tomé e Príncipe | AF9: 25.259196 | AG9: 0.0430583647 | AN9: Total | AO9: 618.279106 | AP9: 562.608129 | AQ9: 475.658873 | AR9: 568.650324 | AS9: 707.938184 | AT9: 586.6269232
AC10: 6 | AD10: º | AE10: Moçambique | AF10: 25.0361622 | AG10: 0.04267816769
AC11: 7 | AD11: º | AE11: África do Sul | AF11: 21.8351798 | AG11: 0.03722157804
AC12: 8 | AD12: º | AE12: Argélia | AF12: 11.2565744 | AG12: 0.01918864265
AC13: 9 | AD13: º | AE13: Nigéria | AF13: 10.9364444 | AG13: 0.01864292955
AC14: 10 | AD14: º | AE14: Senegal | AF14: 8.493732 | AG14: 0.01447893314 | AH14: 0.9033206668
AE15: Outros | AF15: 56.7146998 | AG15: 0.09667933325
AE16: Total | AF16: 586.6269232 | AG16: 1
AC38: P | AE38: País | AF38: Média import quinquénio | AG38: % do total | AH38: % acumulada | AM38: P | AN38: Importações | AO38: 2018 | AP38: 2019 | AQ38: 2020 | AR38: 2021 | AS38: 2022 | AT38: média quinquénio
AC39: 1 | AD39: º | AE39: África do Sul | AF39: 112.5215396 | AG39: 0.4439912395 | AM39: 1º | AN39: África do Sul | AO39: 115.213585 | AP39: 79.798773 | AQ39: 127.039171 | AR39: 94.846652 | AS39: 145.709517 | AT39: 112.5215396
AC40: 2 | AD40: º | AE40: Costa do Marfim | AF40: 21.706691 | AG40: 0.08565098449 | AM40: 2º | AN40: Costa do Marfim | AO40: 18.361489 | AP40: 20.997926 | AQ40: 16.339468 | AR40: 20.358891 | AS40: 32.475681 | AT40: 21.706691
AC41: 3 | AD41: º | AE41: Uganda | AF41: 16.7119036 | AG41: 0.06594238597 | AH41: 0.59558461 | AM41: 3º | AN41: Uganda | AO41: 18.546031 | AP41: 14.841108 | AQ41: 15.975031 | AR41: 9.582072 | AS41: 24.615276 | AT41: 16.7119036
AC42: 4 | AD42: º | AE42: Suazilândia | AF42: 13.2385804 | AG42: 0.05223723158 | AN42: Outros | AO42: 96.8405 | AP42: 105.373655 | AQ42: 96.280744 | AR42: 85.840104 | AS42: 128.123783 | AT42: 102.4917572
AC43: 5 | AD43: º | AE43: Moçambique | AF43: 10.1135596 | AG43: 0.0399064204 | AN43: Total | AO43: 248.961605 | AP43: 221.011462 | AQ43: 255.634414 | AR43: 210.627719 | AS43: 330.924257 | AT43: 253.4318914
AC44: 6 | AD44: º | AE44: Marrocos | AF44: 9.8877146 | AG44: 0.03901527367
AC45: 7 | AD45: º | AE45: Egito | AF45: 9.7905476 | AG45: 0.03863186889
AC46: 8 | AD46: º | AE46: Angola | AF46: 7.1219724 | AG46: 0.02810211596
AC47: 9 | AD47: º | AE47: Camarões | AF47: 6.330963 | AG47: 0.02498092472
AC48: 10 | AD48: º | AE48: Etiópia | AF48: 5.332904 | AG48: 0.02104275027 | AH48: 0.8395011955
AE49: Outros | AF49: 40.6755156 | AG49: 0.1604988045
AE50: Total | AF50: 253.4318914 | AG50: 1
A57: Fonte: GPP a partir de dados INE/Comércio Internacional (2022 definitivos) | Y57: 2023-12-28

Sheet 4
A1: Evolução da balança comercial Portugal-África por país e por produto 2018-2022 em euros (NC 2 dígitos) produtos agrícolas, agroalimentares, do mar e da floresta
A2: =+aux!A55 -> Evolução da balança comercial Portugal-Angola
A4: Selecione o país:
A19: =+aux!A56 -> Evolução da balança comercial Portugal-Angola para Gorduras e óleos animais ou vegetais
I21: Selecione o produto:
A38: Fonte: GPP a partir de dados INE/Comércio Internacional (2022 definitivos) | N38: 2023-12-28

Sheet 4A
A1: Evolução da balança comercial Portugal-África 2018-2022 por produto em euros (NC 2 dígitos)
A3: =+aux!A31 -> Evolução da balança comercial Portugal-África para Gorduras e óleos animais ou vegetais
A5: Selecione o produto:
Q7: Para obter uma maior desagregação deste produto, clique no botão respetivo:
A20: =+aux!A43 -> Evolução da balança comercial Portugal-África para Frutas
A22: Selecione o produto:
A38: Fonte: GPP a partir de dados INE/Comércio Internacional (2022 definitivos) | N38: 2023-12-28

Sheet 5.1
A1: ="Trocas comerciais Portugal-"& aux!B54 &" ("& aux!B53 &") por país em milhares de euros" -> Trocas comerciais Portugal-África (2018-2022) por país em milhares de euros | C1: Produtos agrícolas, agroalimentares, do mar e da floresta
A2: Cód. País | B2: País | C2: Importações | J2: Exportações | Q2: Saldo quinquénio (exp-imp) | R2: Evolução das importações | S2: =+"Variação das Importações " & INDEX(J3:N3,1,aux!$AL$1) & "-"& '5.2'!O3 &"" -> Variação das Importações 2018-2022 | W2: Evolução das exportações | X2: ="Variação das Exportações " & INDEX(J3:M3,1,aux!$AL$1) & "-"& '5.2'!O3 &"" -> Variação das Exportações 2018-2022
C3: ='5.2'!C3 -> 2018 | D3: ='5.2'!D3 -> 2019 | E3: ='5.2'!E3 -> 2020 | F3: ='5.2'!F3 -> 2021 | G3: ='5.2'!G3 -> 2022 | H3: média quinquénio | I3: % Total | J3: ='5.2'!K3 -> 2018 | K3: ='5.2'!L3 -> 2019 | L3: ='5.2'!M3 -> 2020 | M3: ='5.2'!N3 -> 2021 | N3: ='5.2'!O3 -> 2022 | O3: média quinquénio | P3: % Total | S3: variação total em valor | T3: % no total de variação | U3: taxa de variação média anual | V3: taxa de variação total | X3: variação total em valor | Y3: % no total de variação | Z3: taxa de variação média anual | AA3: taxa de variação total | BS3: filtro
A4: 0660 | B4: Afeganistão | C4: =+SUMIF(AUX_2d_pais!$A$2:$A$27000,'5.1'!$A4&'5.1'!C$3&1,AUX_2d_pais!$J$2:$J$27000)/1000 -> 0 | D4: =+SUMIF(AUX_2d_pais!$A$2:$A$27000,'5.1'!$A4&'5.1'!D$3&1,AUX_2d_pais!$J$2:$J$27000)/1000 -> 0 | E4: =+SUMIF(AUX_2d_pais!$A$2:$A$27000,'5.1'!$A4&'5.1'!E$3&1,AUX_2d_pais!$J$2:$J$27000)/1000 -> 0 | F4: =+SUMIF(AUX_2d_pais!$A$2:$A$27000,'5.1'!$A4&'5.1'!F$3&1,AUX_2d_pais!$J$2:$J$27000)/1000 -> 0 | G4: =+SUMIF(AUX_2d_pais!$A$2:$A$27000,'5.1'!$A4&'5.1'!G$3&1,AUX_2d_pais!$J$2:$J$27000)/1000 -> 0 | H4: =SUM(C4:G4)/5 -> 0 | I4: =H4/$H$254 -> 0 | J4: =+SUMIF(AUX_2d_pais!$A$2:$A$27000,'5.1'!$A4&'5.1'!J$3&2,AUX_2d_pais!$J$2:$J$27000)/1000 -> 0 | K4: =+SUMIF(AUX_2d_pais!$A$2:$A$27000,'5.1'!$A4&'5.1'!K$3&2,AUX_2d_pais!$J$2:$J$27000)/1000 -> 0 | L4: =+SUMIF(AUX_2d_pais!$A$2:$A$27000,'5.1'!$A4&'5.1'!L$3&2,AUX_2d_pais!$J$2:$J$27000)/1000 -> 0 | M4: =+SUMIF(AUX_2d_pais!$A$2:$A$27000,'5.1'!$A4&'5.1'!M$3&2,AUX_2d_pais!$J$2:$J$27000)/1000 -> 0 | N4: =+SUMIF(AUX_2d_pais!$A$2:$A$27000,'5.1'!$A4&'5.1'!N$3&2,AUX_2d_pais!$J$2:$J$27000)/1000 -> 0 | O4: =SUM(J4:N4)/5 -> 0 | P4: =O4/$O$254 -> 0 | Q4: =O4-H4 -> 0 | S4: =G4-INDEX($C4:$G4,1,aux!$AL$1) -> 0 | T4: =S4/$S$254 -> 0 | U4: =+IF(INDEX($C4:$G4,1,aux!$AL$1)>0,(G4/INDEX($C4:$G4,1,aux!$AL$1))^(1/($G$3-INDEX($C$3:$G$3,1,aux!$AL$1)))-1,"n.d.") -> n.d. | V4: =IF(INDEX($C4:$G4,1,aux!$AL$1)>0,(G4-INDEX($C4:$G4,1,aux!$AL$1))/INDEX($C4:$G4,1,aux!$AL$1),"n.d.") -> n.d. | X4: =N4-INDEX($J4:$N4,1,aux!$AL$1) -> 0 | Y4: =X4/$X$254 -> 0 | Z4: =+IF(INDEX($J4:$N4,1,aux!$AL$1)>0,(N4/INDEX($J4:$N4,1,aux!$AL$1))^(1/($N$3-INDEX($J$3:$N$3,1,aux!$AL$1)))-1,"n.d.") -> n.d. | AA4: =IF(INDEX($J4:$N4,1,aux!$AL$1)>0,(N4-INDEX($J4:$N4,1,aux!$AL$1))/INDEX($J4:$N4,1,aux!$AL$1),"n.d.") -> n.d. | AC4: =SUM(A4:Q4) -> 0 | BS4: =+MATCH('5.1'!A4,AUX_2d_pais!$G$2:$G$20001,0) -> 
A5: 0388 | B5: África do Sul | C5: =+SUMIF(AUX_2d_pais!$A$2:$A$27000,'5.1'!$A5&'5.1'!C$3&1,AUX_2d_pais!$J$2:$J$27000)/1000 -> 154525.966 | D5: =+SUMIF(AUX_2d_pais!$A$2:$A$27000,'5.1'!$A5&'5.1'!D$3&1,AUX_2d_pais!$J$2:$J$27000)/1000 -> 117450.12 | E5: =+SUMIF(AUX_2d_pais!$A$2:$A$27000,'5.1'!$A5&'5.1'!E$3&1,AUX_2d_pais!$J$2:$J$27000)/1000 -> 159234.889 | F5: =+SUMIF(AUX_2d_pais!$A$2:$A$27000,'5.1'!$A5&'5.1'!F$3&1,AUX_2d_pais!$J$2:$J$27000)/1000 -> 123688.26 | G5: =+SUMIF(AUX_2d_pais!$A$2:$A$27000,'5.1'!$A5&'5.1'!G$3&1,AUX_2d_pais!$J$2:$J$27000)/1000 -> 171821.673 | H5: 145344.1816 | I5: 0.2994061328 | J5: =+SUMIF(AUX_2d_pais!$A$2:$A$27000,'5.1'!$A5&'5.1'!J$3&2,AUX_2d_pais!$J$2:$J$27000)/1000 -> 32336.984 | K5: =+SUMIF(AUX_2d_pais!$A$2:$A$27000,'5.1'!$A5&'5.1'!K$3&2,AUX_2d_pais!$J$2:$J$27000)/1000 -> 38334.248 | L5: =+SUMIF(AUX_2d_pais!$A$2:$A$27000,'5.1'!$A5&'5.1'!L$3&2,AUX_2d_pais!$J$2:$J$27000)/1000 -> 28913.932 | M5: =+SUMIF(AUX_2d_pais!$A$2:$A$27000,'5.1'!$A5&'5.1'!M$3&2,AUX_2d_pais!$J$2:$J$27000)/1000 -> 37587.692 | N5: =+SUMIF(AUX_2d_pais!$A$2:$A$27000,'5.1'!$A5&'5.1'!N$3&2,AUX_2d_pais!$J$2:$J$27000)/1000 -> 48603.298 | O5: 37155.2308 | P5: 0.0380104502 | Q5: =O5-H5 -> -108188.9508 | S5: =G5-INDEX($C5:$G5,1,aux!$AL$1) -> 17295.707 | T5: 0.2580656852 | U5: =+IF(INDEX($C5:$G5,1,aux!$AL$1)>0,(G5/INDEX($C5:$G5,1,aux!$AL$1))^(1/($G$3-INDEX($C$3:$G$3,1,aux!$AL$1)))-1,"n.d.") -> 0.02687863718 | V5: =IF(INDEX($C5:$G5,1,aux!$AL$1)>0,(G5-INDEX($C5:$G5,1,aux!$AL$1))/INDEX($C5:$G5,1,aux!$AL$1),"n.d.") -> 0.1119275126 | X5: =N5-INDEX($J5:$N5,1,aux!$AL$1) -> 16266.314 | Y5: 0.0781695661 | Z5: =+IF(INDEX($J5:$N5,1,aux!$AL$1)>0,(N5/INDEX($J5:$N5,1,aux!$AL$1))^(1/($N$3-INDEX($J$3:$N$3,1,aux!$AL$1)))-1,"n.d.") -> 0.1072394653 | AA5: =IF(INDEX($J5:$N5,1,aux!$AL$1)>0,(N5-INDEX($J5:$N5,1,aux!$AL$1))/INDEX($J5:$N5,1,aux!$AL$1),"n.d.") -> 0.5030250811 | BS5: =+MATCH('5.1'!A5,AUX_2d_pais!$G$2:$G$20001,0) -> 68
A6: 0070 | B6: Albânia | C6: =+SUMIF(AUX_2d_pais!$A$2:$A$27000,'5.1'!$A6&'5.1'!C$3&1,AUX_2d_pais!$J$2:$J$27000)/1000 -> 0 | D6: =+SUMIF(AUX_2d_pais!$A$2:$A$27000,'5.1'!$A6&'5.1'!D$3&1,AUX_2d_pais!$J$2:$J$27000)/1000 -> 0 | E6: =+SUMIF(AUX_2d_pais!$A$2:$A$27000,'5.1'!$A6&'5.1'!E$3&1,AUX_2d_pais!$J$2:$J$27000)/1000 -> 0 | F6: =+SUMIF(AUX_2d_pais!$A$2:$A$27000,'5.1'!$A6&'5.1'!F$3&1,AUX_2d_pais!$J$2:$J$27000)/1000 -> 0 | G6: =+SUMIF(AUX_2d_pais!$A$2:$A$27000,'5.1'!$A6&'5.1'!G$3&1,AUX_2d_pais!$J$2:$J$27000)/1000 -> 0 | H6: 0 | I6: 0 | J6: =+SUMIF(AUX_2d_pais!$A$2:$A$27000,'5.1'!$A6&'5.1'!J$3&2,AUX_2d_pais!$J$2:$J$27000)/1000 -> 0 | K6: =+SUMIF(AUX_2d_pais!$A$2:$A$27000,'5.1'!$A6&'5.1'!K$3&2,AUX_2d_pais!$J$2:$J$27000)/1000 -> 0 | L6: =+SUMIF(AUX_2d_pais!$A$2:$A$27000,'5.1'!$A6&'5.1'!L$3&2,AUX_2d_pais!$J$2:$J$27000)/1000 -> 0 | M6: =+SUMIF(AUX_2d_pais!$A$2:$A$27000,'5.1'!$A6&'5.1'!M$3&2,AUX_2d_pais!$J$2:$J$27000)/1000 -> 0 | N6: =+SUMIF(AUX_2d_pais!$A$2:$A$27000,'5.1'!$A6&'5.1'!N$3&2,AUX_2d_pais!$J$2:$J$27000)/1000 -> 0 | O6: 0 | P6: 0 | Q6: 0 | S6: =G6-INDEX($C6:$G6,1,aux!$AL$1) -> 0 | T6: 0 | U6: =+IF(INDEX($C6:$G6,1,aux!$AL$1)>0,(G6/INDEX($C6:$G6,1,aux!$AL$1))^(1/($G$3-INDEX($C$3:$G$3,1,aux!$AL$1)))-1,"n.d.") -> n.d. | V6: =IF(INDEX($C6:$G6,1,aux!$AL$1)>0,(G6-INDEX($C6:$G6,1,aux!$AL$1))/INDEX($C6:$G6,1,aux!$AL$1),"n.d.") -> n.d. | X6: =N6-INDEX($J6:$N6,1,aux!$AL$1) -> 0 | Y6: 0 | Z6: =+IF(INDEX($J6:$N6,1,aux!$AL$1)>0,(N6/INDEX($J6:$N6,1,aux!$AL$1))^(1/($N$3-INDEX($J$3:$N$3,1,aux!$AL$1)))-1,"n.d.") -> n.d. | AA6: =IF(INDEX($J6:$N6,1,aux!$AL$1)>0,(N6-INDEX($J6:$N6,1,aux!$AL$1))/INDEX($J6:$N6,1,aux!$AL$1),"n.d.") -> n.d. | AC6: 0 | BS6: =+MATCH('5.1'!A6,AUX_2d_pais!$G$2:$G$20001,0) -> 
A7: 0004 | B7: Alemanha | C7: =+SUMIF(AUX_2d_pais!$A$2:$A$27000,'5.1'!$A7&'5.1'!C$3&1,AUX_2d_pais!$J$2:$J$27000)/1000 -> 0 | D7: =+SUMIF(AUX_2d_pais!$A$2:$A$27000,'5.1'!$A7&'5.1'!D$3&1,AUX_2d_pais!$J$2:$J$27000)/1000 -> 0 | E7: =+SUMIF(AUX_2d_pais!$A$2:$A$27000,'5.1'!$A7&'5.1'!E$3&1,AUX_2d_pais!$J$2:$J$27000)/1000 -> 0 | F7: =+SUMIF(AUX_2d_pais!$A$2:$A$27000,'5.1'!$A7&'5.1'!F$3&1,AUX_2d_pais!$J$2:$J$27000)/1000 -> 0 | G7: =+SUMIF(AUX_2d_pais!$A$2:$A$27000,'5.1'!$A7&'5.1'!G$3&1,AUX_2d_pais!$J$2:$J$27000)/1000 -> 0 | H7: 0 | I7: 0 | J7: =+SUMIF(AUX_2d_pais!$A$2:$A$27000,'5.1'!$A7&'5.1'!J$3&2,AUX_2d_pais!$J$2:$J$27000)/1000 -> 0 | K7: =+SUMIF(AUX_2d_pais!$A$2:$A$27000,'5.1'!$A7&'5.1'!K$3&2,AUX_2d_pais!$J$2:$J$27000)/1000 -> 0 | L7: =+SUMIF(AUX_2d_pais!$A$2:$A$27000,'5.1'!$A7&'5.1'!L$3&2,AUX_2d_pais!$J$2:$J$27000)/1000 -> 0 | M7: =+SUMIF(AUX_2d_pais!$A$2:$A$27000,'5.1'!$A7&'5.1'!M$3&2,AUX_2d_pais!$J$2:$J$27000)/1000 -> 0 | N7: =+SUMIF(AUX_2d_pais!$A$2:$A$27000,'5.1'!$A7&'5.1'!N$3&2,AUX_2d_pais!$J$2:$J$27000)/1000 -> 0 | O7: 0 | P7: 0 | Q7: 0 | S7: =G7-INDEX($C7:$G7,1,aux!$AL$1) -> 0 | T7: 0 | U7: =+IF(INDEX($C7:$G7,1,aux!$AL$1)>0,(G7/INDEX($C7:$G7,1,aux!$AL$1))^(1/($G$3-INDEX($C$3:$G$3,1,aux!$AL$1)))-1,"n.d.") -> n.d. | V7: =IF(INDEX($C7:$G7,1,aux!$AL$1)>0,(G7-INDEX($C7:$G7,1,aux!$AL$1))/INDEX($C7:$G7,1,aux!$AL$1),"n.d.") -> n.d. | X7: =N7-INDEX($J7:$N7,1,aux!$AL$1) -> 0 | Y7: 0 | Z7: =+IF(INDEX($J7:$N7,1,aux!$AL$1)>0,(N7/INDEX($J7:$N7,1,aux!$AL$1))^(1/($N$3-INDEX($J$3:$N$3,1,aux!$AL$1)))-1,"n.d.") -> n.d. | AA7: =IF(INDEX($J7:$N7,1,aux!$AL$1)>0,(N7-INDEX($J7:$N7,1,aux!$AL$1))/INDEX($J7:$N7,1,aux!$AL$1),"n.d.") -> n.d. | AC7: 0 | BS7: =+MATCH('5.1'!A7,AUX_2d_pais!$G$2:$G$20001,0) -> 
A8: 0043 | B8: Andorra | C8: =+SUMIF(AUX_2d_pais!$A$2:$A$27000,'5.1'!$A8&'5.1'!C$3&1,AUX_2d_pais!$J$2:$J$27000)/1000 -> 0 | D8: =+SUMIF(AUX_2d_pais!$A$2:$A$27000,'5.1'!$A8&'5.1'!D$3&1,AUX_2d_pais!$J$2:$J$27000)/1000 -> 0 | E8: =+SUMIF(AUX_2d_pais!$A$2:$A$27000,'5.1'!$A8&'5.1'!E$3&1,AUX_2d_pais!$J$2:$J$27000)/1000 -> 0 | F8: =+SUMIF(AUX_2d_pais!$A$2:$A$27000,'5.1'!$A8&'5.1'!F$3&1,AUX_2d_pais!$J$2:$J$27000)/1000 -> 0 | G8: =+SUMIF(AUX_2d_pais!$A$2:$A$27000,'5.1'!$A8&'5.1'!G$3&1,AUX_2d_pais!$J$2:$J$27000)/1000 -> 0 | H8: 0 | I8: 0 | J8: =+SUMIF(AUX_2d_pais!$A$2:$A$27000,'5.1'!$A8&'5.1'!J$3&2,AUX_2d_pais!$J$2:$J$27000)/1000 -> 0 | K8: =+SUMIF(AUX_2d_pais!$A$2:$A$27000,'5.1'!$A8&'5.1'!K$3&2,AUX_2d_pais!$J$2:$J$27000)/1000 -> 0 | L8: =+SUMIF(AUX_2d_pais!$A$2:$A$27000,'5.1'!$A8&'5.1'!L$3&2,AUX_2d_pais!$J$2:$J$27000)/1000 -> 0 | M8: =+SUMIF(AUX_2d_pais!$A$2:$A$27000,'5.1'!$A8&'5.1'!M$3&2,AUX_2d_pais!$J$2:$J$27000)/1000 -> 0 | N8: =+SUMIF(AUX_2d_pais!$A$2:$A$27000,'5.1'!$A8&'5.1'!N$3&2,AUX_2d_pais!$J$2:$J$27000)/1000 -> 0 | O8: 0 | P8: 0 | Q8: 0 | S8: =G8-INDEX($C8:$G8,1,aux!$AL$1) -> 0 | T8: 0 | U8: =+IF(INDEX($C8:$G8,1,aux!$AL$1)>0,(G8/INDEX($C8:$G8,1,aux!$AL$1))^(1/($G$3-INDEX($C$3:$G$3,1,aux!$AL$1)))-1,"n.d.") -> n.d. | V8: =IF(INDEX($C8:$G8,1,aux!$AL$1)>0,(G8-INDEX($C8:$G8,1,aux!$AL$1))/INDEX($C8:$G8,1,aux!$AL$1),"n.d.") -> n.d. | X8: =N8-INDEX($J8:$N8,1,aux!$AL$1) -> 0 | Y8: 0 | Z8: =+IF(INDEX($J8:$N8,1,aux!$AL$1)>0,(N8/INDEX($J8:$N8,1,aux!$AL$1))^(1/($N$3-INDEX($J$3:$N$3,1,aux!$AL$1)))-1,"n.d.") -> n.d. | AA8: =IF(INDEX($J8:$N8,1,aux!$AL$1)>0,(N8-INDEX($J8:$N8,1,aux!$AL$1))/INDEX($J8:$N8,1,aux!$AL$1),"n.d.") -> n.d. | AC8: 0 | BS8: =+MATCH('5.1'!A8,AUX_2d_pais!$G$2:$G$20001,0) -> 
A9: 0330 | B9: Angola | C9: =+SUMIF(AUX_2d_pais!$A$2:$A$27000,'5.1'!$A9&'5.1'!C$3&1,AUX_2d_pais!$J$2:$J$27000)/1000 -> 9247.67 | D9: =+SUMIF(AUX_2d_pais!$A$2:$A$27000,'5.1'!$A9&'5.1'!D$3&1,AUX_2d_pais!$J$2:$J$27000)/1000 -> 11023.57 | E9: =+SUMIF(AUX_2d_pais!$A$2:$A$27000,'5.1'!$A9&'5.1'!E$3&1,AUX_2d_pais!$J$2:$J$27000)/1000 -> 13854.575 | F9: =+SUMIF(AUX_2d_pais!$A$2:$A$27000,'5.1'!$A9&'5.1'!F$3&1,AUX_2d_pais!$J$2:$J$27000)/1000 -> 20961.996 | G9: =+SUMIF(AUX_2d_pais!$A$2:$A$27000,'5.1'!$A9&'5.1'!G$3&1,AUX_2d_pais!$J$2:$J$27000)/1000 -> 22032.613 | H9: 15424.0848 | I9: 0.03177330892 | J9: =+SUMIF(AUX_2d_pais!$A$2:$A$27000,'5.1'!$A9&'5.1'!J$3&2,AUX_2d_pais!$J$2:$J$27000)/1000 -> 456113.723 | K9: =+SUMIF(AUX_2d_pais!$A$2:$A$27000,'5.1'!$A9&'5.1'!K$3&2,AUX_2d_pais!$J$2:$J$27000)/1000 -> 355161.704 | L9: =+SUMIF(AUX_2d_pais!$A$2:$A$27000,'5.1'!$A9&'5.1'!L$3&2,AUX_2d_pais!$J$2:$J$27000)/1000 -> 239847.484 | M9: =+SUMIF(AUX_2d_pais!$A$2:$A$27000,'5.1'!$A9&'5.1'!M$3&2,AUX_2d_pais!$J$2:$J$27000)/1000 -> 240275.672 | N9: =+SUMIF(AUX_2d_pais!$A$2:$A$27000,'5.1'!$A9&'5.1'!N$3&2,AUX_2d_pais!$J$2:$J$27000)/1000 -> 364060.079 | O9: 331091.7324 | P9: 0.3387126263 | Q9: 315667.6476 | S9: =G9-INDEX($C9:$G9,1,aux!$AL$1) -> 12784.943 | T9: 0.1907615038 | U9: =+IF(INDEX($C9:$G9,1,aux!$AL$1)>0,(G9/INDEX($C9:$G9,1,aux!$AL$1))^(1/($G$3-INDEX($C$3:$G$3,1,aux!$AL$1)))-1,"n.d.") -> 0.2423913546 | V9: =IF(INDEX($C9:$G9,1,aux!$AL$1)>0,(G9-INDEX($C9:$G9,1,aux!$AL$1))/INDEX($C9:$G9,1,aux!$AL$1),"n.d.") -> 1.382504242 | X9: =N9-INDEX($J9:$N9,1,aux!$AL$1) -> -92053.644 | Y9: -0.4423739398 | Z9: =+IF(INDEX($J9:$N9,1,aux!$AL$1)>0,(N9/INDEX($J9:$N9,1,aux!$AL$1))^(1/($N$3-INDEX($J$3:$N$3,1,aux!$AL$1)))-1,"n.d.") -> -0.05479724239 | AA9: =IF(INDEX($J9:$N9,1,aux!$AL$1)>0,(N9-INDEX($J9:$N9,1,aux!$AL$1))/INDEX($J9:$N9,1,aux!$AL$1),"n.d.") -> -0.2018216935 | BS9: =+MATCH('5.1'!A9,AUX_2d_pais!$G$2:$G$20001,0) -> 41
A10: 0446 | B10: Anguila | C10: =+SUMIF(AUX_2d_pais!$A$2:$A$27000,'5.1'!$A10&'5.1'!C$3&1,AUX_2d_pais!$J$2:$J$27000)/1000 -> 0 | D10: =+SUMIF(AUX_2d_pais!$A$2:$A$27000,'5.1'!$A10&'5.1'!D$3&1,AUX_2d_pais!$J$2:$J$27000)/1000 -> 0 | E10: =+SUMIF(AUX_2d_pais!$A$2:$A$27000,'5.1'!$A10&'5.1'!E$3&1,AUX_2d_pais!$J$2:$J$27000)/1000 -> 0 | F10: =+SUMIF(AUX_2d_pais!$A$2:$A$27000,'5.1'!$A10&'5.1'!F$3&1,AUX_2d_pais!$J$2:$J$27000)/1000 -> 0 | G10: =+SUMIF(AUX_2d_pais!$A$2:$A$27000,'5.1'!$A10&'5.1'!G$3&1,AUX_2d_pais!$J$2:$J$27000)/1000 -> 0 | H10: 0 | I10: 0 | J10: =+SUMIF(AUX_2d_pais!$A$2:$A$27000,'5.1'!$A10&'5.1'!J$3&2,AUX_2d_pais!$J$2:$J$27000)/1000 -> 0 | K10: =+SUMIF(AUX_2d_pais!$A$2:$A$27000,'5.1'!$A10&'5.1'!K$3&2,AUX_2d_pais!$J$2:$J$27000)/1000 -> 0 | L10: =+SUMIF(AUX_2d_pais!$A$2:$A$27000,'5.1'!$A10&'5.1'!L$3&2,AUX_2d_pais!$J$2:$J$27000)/1000 -> 0 | M10: =+SUMIF(AUX_2d_pais!$A$2:$A$27000,'5.1'!$A10&'5.1'!M$3&2,AUX_2d_pais!$J$2:$J$27000)/1000 -> 0 | N10: =+SUMIF(AUX_2d_pais!$A$2:$A$27000,'5.1'!$A10&'5.1'!N$3&2,AUX_2d_pais!$J$2:$J$27000)/1000 -> 0 | O10: 0 | P10: 0 | Q10: 0 | S10: =G10-INDEX($C10:$G10,1,aux!$AL$1) -> 0 | T10: 0 | U10: =+IF(INDEX($C10:$G10,1,aux!$AL$1)>0,(G10/INDEX($C10:$G10,1,aux!$AL$1))^(1/($G$3-INDEX($C$3:$G$3,1,aux!$AL$1)))-1,"n.d.") -> n.d. | V10: =IF(INDEX($C10:$G10,1,aux!$AL$1)>0,(G10-INDEX($C10:$G10,1,aux!$AL$1))/INDEX($C10:$G10,1,aux!$AL$1),"n.d.") -> n.d. | X10: =N10-INDEX($J10:$N10,1,aux!$AL$1) -> 0 | Y10: 0 | Z10: =+IF(INDEX($J10:$N10,1,aux!$AL$1)>0,(N10/INDEX($J10:$N10,1,aux!$AL$1))^(1/($N$3-INDEX($J$3:$N$3,1,aux!$AL$1)))-1,"n.d.") -> n.d. | AA10: =IF(INDEX($J10:$N10,1,aux!$AL$1)>0,(N10-INDEX($J10:$N10,1,aux!$AL$1))/INDEX($J10:$N10,1,aux!$AL$1),"n.d.") -> n.d. | AC10: 0 | BS10: =+MATCH('5.1'!A10,AUX_2d_pais!$G$2:$G$20001,0) -> 
A11: 0891 | B11: Antárctica | C11: =+SUMIF(AUX_2d_pais!$A$2:$A$27000,'5.1'!$A11&'5.1'!C$3&1,AUX_2d_pais!$J$2:$J$27000)/1000 -> 0 | D11: =+SUMIF(AUX_2d_pais!$A$2:$A$27000,'5.1'!$A11&'5.1'!D$3&1,AUX_2d_pais!$J$2:$J$27000)/1000 -> 0 | E11: =+SUMIF(AUX_2d_pais!$A$2:$A$27000,'5.1'!$A11&'5.1'!E$3&1,AUX_2d_pais!$J$2:$J$27000)/1000 -> 0 | F11: =+SUMIF(AUX_2d_pais!$A$2:$A$27000,'5.1'!$A11&'5.1'!F$3&1,AUX_2d_pais!$J$2:$J$27000)/1000 -> 0 | G11: =+SUMIF(AUX_2d_pais!$A$2:$A$27000,'5.1'!$A11&'5.1'!G$3&1,AUX_2d_pais!$J$2:$J$27000)/1000 -> 0 | H11: 0 | I11: 0 | J11: =+SUMIF(AUX_2d_pais!$A$2:$A$27000,'5.1'!$A11&'5.1'!J$3&2,AUX_2d_pais!$J$2:$J$27000)/1000 -> 0 | K11: =+SUMIF(AUX_2d_pais!$A$2:$A$27000,'5.1'!$A11&'5.1'!K$3&2,AUX_2d_pais!$J$2:$J$27000)/1000 -> 0 | L11: =+SUMIF(AUX_2d_pais!$A$2:$A$27000,'5.1'!$A11&'5.1'!L$3&2,AUX_2d_pais!$J$2:$J$27000)/1000 -> 0 | M11: =+SUMIF(AUX_2d_pais!$A$2:$A$27000,'5.1'!$A11&'5.1'!M$3&2,AUX_2d_pais!$J$2:$J$27000)/1000 -> 0 | N11: =+SUMIF(AUX_2d_pais!$A$2:$A$27000,'5.1'!$A11&'5.1'!N$3&2,AUX_2d_pais!$J$2:$J$27000)/1000 -> 0 | O11: 0 | P11: 0 | Q11: 0 | S11: =G11-INDEX($C11:$G11,1,aux!$AL$1) -> 0 | T11: 0 | U11: =+IF(INDEX($C11:$G11,1,aux!$AL$1)>0,(G11/INDEX($C11:$G11,1,aux!$AL$1))^(1/($G$3-INDEX($C$3:$G$3,1,aux!$AL$1)))-1,"n.d.") -> n.d. | V11: =IF(INDEX($C11:$G11,1,aux!$AL$1)>0,(G11-INDEX($C11:$G11,1,aux!$AL$1))/INDEX($C11:$G11,1,aux!$AL$1),"n.d.") -> n.d. | X11: =N11-INDEX($J11:$N11,1,aux!$AL$1) -> 0 | Y11: 0 | Z11: =+IF(INDEX($J11:$N11,1,aux!$AL$1)>0,(N11/INDEX($J11:$N11,1,aux!$AL$1))^(1/($N$3-INDEX($J$3:$N$3,1,aux!$AL$1)))-1,"n.d.") -> n.d. | AA11: =IF(INDEX($J11:$N11,1,aux!$AL$1)>0,(N11-INDEX($J11:$N11,1,aux!$AL$1))/INDEX($J11:$N11,1,aux!$AL$1),"n.d.") -> n.d. | AC11: 0 | BS11: =+MATCH('5.1'!A11,AUX_2d_pais!$G$2:$G$20001,0) -> 
A12: 0459 | B12: Antígua e Barbuda | C12: =+SUMIF(AUX_2d_pais!$A$2:$A$27000,'5.1'!$A12&'5.1'!C$3&1,AUX_2d_pais!$J$2:$J$27000)/1000 -> 0 | D12: =+SUMIF(AUX_2d_pais!$A$2:$A$27000,'5.1'!$A12&'5.1'!D$3&1,AUX_2d_pais!$J$2:$J$27000)/1000 -> 0 | E12: =+SUMIF(AUX_2d_pais!$A$2:$A$27000,'5.1'!$A12&'5.1'!E$3&1,AUX_2d_pais!$J$2:$J$27000)/1000 -> 0 | F12: =+SUMIF(AUX_2d_pais!$A$2:$A$27000,'5.1'!$A12&'5.1'!F$3&1,AUX_2d_pais!$J$2:$J$27000)/1000 -> 0 | G12: =+SUMIF(AUX_2d_pais!$A$2:$A$27000,'5.1'!$A12&'5.1'!G$3&1,AUX_2d_pais!$J$2:$J$27000)/1000 -> 0 | H12: 0 | I12: 0 | J12: =+SUMIF(AUX_2d_pais!$A$2:$A$27000,'5.1'!$A12&'5.1'!J$3&2,AUX_2d_pais!$J$2:$J$27000)/1000 -> 0 | K12: =+SUMIF(AUX_2d_pais!$A$2:$A$27000,'5.1'!$A12&'5.1'!K$3&2,AUX_2d_pais!$J$2:$J$27000)/1000 -> 0 | L12: =+SUMIF(AUX_2d_pais!$A$2:$A$27000,'5.1'!$A12&'5.1'!L$3&2,AUX_2d_pais!$J$2:$J$27000)/1000 -> 0 | M12: =+SUMIF(AUX_2d_pais!$A$2:$A$27000,'5.1'!$A12&'5.1'!M$3&2,AUX_2d_pais!$J$2:$J$27000)/1000 -> 0 | N12: =+SUMIF(AUX_2d_pais!$A$2:$A$27000,'5.1'!$A12&'5.1'!N$3&2,AUX_2d_pais!$J$2:$J$27000)/1000 -> 0 | O12: 0 | P12: 0 | Q12: 0 | S12: =G12-INDEX($C12:$G12,1,aux!$AL$1) -> 0 | T12: 0 | U12: =+IF(INDEX($C12:$G12,1,aux!$AL$1)>0,(G12/INDEX($C12:$G12,1,aux!$AL$1))^(1/($G$3-INDEX($C$3:$G$3,1,aux!$AL$1)))-1,"n.d.") -> n.d. | V12: =IF(INDEX($C12:$G12,1,aux!$AL$1)>0,(G12-INDEX($C12:$G12,1,aux!$AL$1))/INDEX($C12:$G12,1,aux!$AL$1),"n.d.") -> n.d. | X12: =N12-INDEX($J12:$N12,1,aux!$AL$1) -> 0 | Y12: 0 | Z12: =+IF(INDEX($J12:$N12,1,aux!$AL$1)>0,(N12/INDEX($J12:$N12,1,aux!$AL$1))^(1/($N$3-INDEX($J$3:$N$3,1,aux!$AL$1)))-1,"n.d.") -> n.d. | AA12: =IF(INDEX($J12:$N12,1,aux!$AL$1)>0,(N12-INDEX($J12:$N12,1,aux!$AL$1))/INDEX($J12:$N12,1,aux!$AL$1),"n.d.") -> n.d. | AC12: 0 | BS12: =+MATCH('5.1'!A12,AUX_2d_pais!$G$2:$G$20001,0) -> 
A13: 0478 | B13: Antilhas Holandesas | C13: =+SUMIF(AUX_2d_pais!$A$2:$A$27000,'5.1'!$A13&'5.1'!C$3&1,AUX_2d_pais!$J$2:$J$27000)/1000 -> 0 | D13: =+SUMIF(AUX_2d_pais!$A$2:$A$27000,'5.1'!$A13&'5.1'!D$3&1,AUX_2d_pais!$J$2:$J$27000)/1000 -> 0 | E13: =+SUMIF(AUX_2d_pais!$A$2:$A$27000,'5.1'!$A13&'5.1'!E$3&1,AUX_2d_pais!$J$2:$J$27000)/1000 -> 0 | F13: =+SUMIF(AUX_2d_pais!$A$2:$A$27000,'5.1'!$A13&'5.1'!F$3&1,AUX_2d_pais!$J$2:$J$27000)/1000 -> 0 | G13: =+SUMIF(AUX_2d_pais!$A$2:$A$27000,'5.1'!$A13&'5.1'!G$3&1,AUX_2d_pais!$J$2:$J$27000)/1000 -> 0 | H13: 0 | I13: 0 | J13: =+SUMIF(AUX_2d_pais!$A$2:$A$27000,'5.1'!$A13&'5.1'!J$3&2,AUX_2d_pais!$J$2:$J$27000)/1000 -> 0 | K13: =+SUMIF(AUX_2d_pais!$A$2:$A$27000,'5.1'!$A13&'5.1'!K$3&2,AUX_2d_pais!$J$2:$J$27000)/1000 -> 0 | L13: =+SUMIF(AUX_2d_pais!$A$2:$A$27000,'5.1'!$A13&'5.1'!L$3&2,AUX_2d_pais!$J$2:$J$27000)/1000 -> 0 | M13: =+SUMIF(AUX_2d_pais!$A$2:$A$27000,'5.1'!$A13&'5.1'!M$3&2,AUX_2d_pais!$J$2:$J$27000)/1000 -> 0 | N13: =+SUMIF(AUX_2d_pais!$A$2:$A$27000,'5.1'!$A13&'5.1'!N$3&2,AUX_2d_pais!$J$2:$J$27000)/1000 -> 0 | O13: 0 | P13: 0 | Q13: 0 | S13: =G13-INDEX($C13:$G13,1,aux!$AL$1) -> 0 | T13: 0 | U13: =+IF(INDEX($C13:$G13,1,aux!$AL$1)>0,(G13/INDEX($C13:$G13,1,aux!$AL$1))^(1/($G$3-INDEX($C$3:$G$3,1,aux!$AL$1)))-1,"n.d.") -> n.d. | V13: =IF(INDEX($C13:$G13,1,aux!$AL$1)>0,(G13-INDEX($C13:$G13,1,aux!$AL$1))/INDEX($C13:$G13,1,aux!$AL$1),"n.d.") -> n.d. | X13: =N13-INDEX($J13:$N13,1,aux!$AL$1) -> 0 | Y13: 0 | Z13: =+IF(INDEX($J13:$N13,1,aux!$AL$1)>0,(N13/INDEX($J13:$N13,1,aux!$AL$1))^(1/($N$3-INDEX($J$3:$N$3,1,aux!$AL$1)))-1,"n.d.") -> n.d. | AA13: =IF(INDEX($J13:$N13,1,aux!$AL$1)>0,(N13-INDEX($J13:$N13,1,aux!$AL$1))/INDEX($J13:$N13,1,aux!$AL$1),"n.d.") -> n.d. | AC13: 0 | BS13: =+MATCH('5.1'!A13,AUX_2d_pais!$G$2:$G$20001,0) -> 
A14: 0632 | B14: Arábia Saudita | C14: =+SUMIF(AUX_2d_pais!$A$2:$A$27000,'5.1'!$A14&'5.1'!C$3&1,AUX_2d_pais!$J$2:$J$27000)/1000 -> 0 | D14: =+SUMIF(AUX_2d_pais!$A$2:$A$27000,'5.1'!$A14&'5.1'!D$3&1,AUX_2d_pais!$J$2:$J$27000)/1000 -> 0 | E14: =+SUMIF(AUX_2d_pais!$A$2:$A$27000,'5.1'!$A14&'5.1'!E$3&1,AUX_2d_pais!$J$2:$J$27000)/1000 -> 0 | F14: =+SUMIF(AUX_2d_pais!$A$2:$A$27000,'5.1'!$A14&'5.1'!F$3&1,AUX_2d_pais!$J$2:$J$27000)/1000 -> 0 | G14: =+SUMIF(AUX_2d_pais!$A$2:$A$27000,'5.1'!$A14&'5.1'!G$3&1,AUX_2d_pais!$J$2:$J$27000)/1000 -> 0 | H14: 0 | I14: 0 | J14: =+SUMIF(AUX_2d_pais!$A$2:$A$27000,'5.1'!$A14&'5.1'!J$3&2,AUX_2d_pais!$J$2:$J$27000)/1000 -> 0 | K14: =+SUMIF(AUX_2d_pais!$A$2:$A$27000,'5.1'!$A14&'5.1'!K$3&2,AUX_2d_pais!$J$2:$J$27000)/1000 -> 0 | L14: =+SUMIF(AUX_2d_pais!$A$2:$A$27000,'5.1'!$A14&'5.1'!L$3&2,AUX_2d_pais!$J$2:$J$27000)/1000 -> 0 | M14: =+SUMIF(AUX_2d_pais!$A$2:$A$27000,'5.1'!$A14&'5.1'!M$3&2,AUX_2d_pais!$J$2:$J$27000)/1000 -> 0 | N14: =+SUMIF(AUX_2d_pais!$A$2:$A$27000,'5.1'!$A14&'5.1'!N$3&2,AUX_2d_pais!$J$2:$J$27000)/1000 -> 0 | O14: 0 | P14: 0 | Q14: 0 | S14: =G14-INDEX($C14:$G14,1,aux!$AL$1) -> 0 | T14: 0 | U14: =+IF(INDEX($C14:$G14,1,aux!$AL$1)>0,(G14/INDEX($C14:$G14,1,aux!$AL$1))^(1/($G$3-INDEX($C$3:$G$3,1,aux!$AL$1)))-1,"n.d.") -> n.d. | V14: =IF(INDEX($C14:$G14,1,aux!$AL$1)>0,(G14-INDEX($C14:$G14,1,aux!$AL$1))/INDEX($C14:$G14,1,aux!$AL$1),"n.d.") -> n.d. | X14: =N14-INDEX($J14:$N14,1,aux!$AL$1) -> 0 | Y14: 0 | Z14: =+IF(INDEX($J14:$N14,1,aux!$AL$1)>0,(N14/INDEX($J14:$N14,1,aux!$AL$1))^(1/($N$3-INDEX($J$3:$N$3,1,aux!$AL$1)))-1,"n.d.") -> n.d. | AA14: =IF(INDEX($J14:$N14,1,aux!$AL$1)>0,(N14-INDEX($J14:$N14,1,aux!$AL$1))/INDEX($J14:$N14,1,aux!$AL$1),"n.d.") -> n.d. | AC14: 0 | BS14: =+MATCH('5.1'!A14,AUX_2d_pais!$G$2:$G$20001,0) -> 
A15: 0208 | B15: Argélia | C15: =+SUMIF(AUX_2d_pais!$A$2:$A$27000,'5.1'!$A15&'5.1'!C$3&1,AUX_2d_pais!$J$2:$J$27000)/1000 -> 3691.177 | D15: =+SUMIF(AUX_2d_pais!$A$2:$A$27000,'5.1'!$A15&'5.1'!D$3&1,AUX_2d_pais!$J$2:$J$27000)/1000 -> 4597.017 | E15: =+SUMIF(AUX_2d_pais!$A$2:$A$27000,'5.1'!$A15&'5.1'!E$3&1,AUX_2d_pais!$J$2:$J$27000)/1000 -> 3934.6 | F15: =+SUMIF(AUX_2d_pais!$A$2:$A$27000,'5.1'!$A15&'5.1'!F$3&1,AUX_2d_pais!$J$2:$J$27000)/1000 -> 4612.48 | G15: =+SUMIF(AUX_2d_pais!$A$2:$A$27000,'5.1'!$A15&'5.1'!G$3&1,AUX_2d_pais!$J$2:$J$27000)/1000 -> 7733.457 | H15: 4913.7462 | I15: 0.01012221976 | J15: =+SUMIF(AUX_2d_pais!$A$2:$A$27000,'5.1'!$A15&'5.1'!J$3&2,AUX_2d_pais!$J$2:$J$27000)/1000 -> 73206.08 | K15: =+SUMIF(AUX_2d_pais!$A$2:$A$27000,'5.1'!$A15&'5.1'!K$3&2,AUX_2d_pais!$J$2:$J$27000)/1000 -> 44378.987 | L15: =+SUMIF(AUX_2d_pais!$A$2:$A$27000,'5.1'!$A15&'5.1'!L$3&2,AUX_2d_pais!$J$2:$J$27000)/1000 -> 47189.673 | M15: =+SUMIF(AUX_2d_pais!$A$2:$A$27000,'5.1'!$A15&'5.1'!M$3&2,AUX_2d_pais!$J$2:$J$27000)/1000 -> 90541.362 | N15: =+SUMIF(AUX_2d_pais!$A$2:$A$27000,'5.1'!$A15&'5.1'!N$3&2,AUX_2d_pais!$J$2:$J$27000)/1000 -> 136588.357 | O15: 78380.8918 | P15: 0.08018502161 | Q15: 73467.1456 | S15: =G15-INDEX($C15:$G15,1,aux!$AL$1) -> 4042.28 | T15: 0.06031402811 | U15: =+IF(INDEX($C15:$G15,1,aux!$AL$1)>0,(G15/INDEX($C15:$G15,1,aux!$AL$1))^(1/($G$3-INDEX($C$3:$G$3,1,aux!$AL$1)))-1,"n.d.") -> 0.2031013137 | V15: =IF(INDEX($C15:$G15,1,aux!$AL$1)>0,(G15-INDEX($C15:$G15,1,aux!$AL$1))/INDEX($C15:$G15,1,aux!$AL$1),"n.d.") -> 1.095119524 | X15: =N15-INDEX($J15:$N15,1,aux!$AL$1) -> 63382.277 | Y15: 0.3045905232 | Z15: =+IF(INDEX($J15:$N15,1,aux!$AL$1)>0,(N15/INDEX($J15:$N15,1,aux!$AL$1))^(1/($N$3-INDEX($J$3:$N$3,1,aux!$AL$1)))-1,"n.d.") -> 0.1687365668 | AA15: =IF(INDEX($J15:$N15,1,aux!$AL$1)>0,(N15-INDEX($J15:$N15,1,aux!$AL$1))/INDEX($J15:$N15,1,aux!$AL$1),"n.d.") -> 0.8658061871 | BS15: =+MATCH('5.1'!A15,AUX_2d_pais!$G$2:$G$20001,0) -> 7
A16: 0528 | B16: Argentina | C16: =+SUMIF(AUX_2d_pais!$A$2:$A$27000,'5.1'!$A16&'5.1'!C$3&1,AUX_2d_pais!$J$2:$J$27000)/1000 -> 0 | D16: =+SUMIF(AUX_2d_pais!$A$2:$A$27000,'5.1'!$A16&'5.1'!D$3&1,AUX_2d_pais!$J$2:$J$27000)/1000 -> 0 | E16: =+SUMIF(AUX_2d_pais!$A$2:$A$27000,'5.1'!$A16&'5.1'!E$3&1,AUX_2d_pais!$J$2:$J$27000)/1000 -> 0 | F16: =+SUMIF(AUX_2d_pais!$A$2:$A$27000,'5.1'!$A16&'5.1'!F$3&1,AUX_2d_pais!$J$2:$J$27000)/1000 -> 0 | G16: =+SUMIF(AUX_2d_pais!$A$2:$A$27000,'5.1'!$A16&'5.1'!G$3&1,AUX_2d_pais!$J$2:$J$27000)/1000 -> 0 | H16: 0 | I16: 0 | J16: =+SUMIF(AUX_2d_pais!$A$2:$A$27000,'5.1'!$A16&'5.1'!J$3&2,AUX_2d_pais!$J$2:$J$27000)/1000 -> 0 | K16: =+SUMIF(AUX_2d_pais!$A$2:$A$27000,'5.1'!$A16&'5.1'!K$3&2,AUX_2d_pais!$J$2:$J$27000)/1000 -> 0 | L16: =+SUMIF(AUX_2d_pais!$A$2:$A$27000,'5.1'!$A16&'5.1'!L$3&2,AUX_2d_pais!$J$2:$J$27000)/1000 -> 0 | M16: =+SUMIF(AUX_2d_pais!$A$2:$A$27000,'5.1'!$A16&'5.1'!M$3&2,AUX_2d_pais!$J$2:$J$27000)/1000 -> 0 | N16: =+SUMIF(AUX_2d_pais!$A$2:$A$27000,'5.1'!$A16&'5.1'!N$3&2,AUX_2d_pais!$J$2:$J$27000)/1000 -> 0 | O16: 0 | P16: 0 | Q16: 0 | S16: =G16-INDEX($C16:$G16,1,aux!$AL$1) -> 0 | T16: 0 | U16: =+IF(INDEX($C16:$G16,1,aux!$AL$1)>0,(G16/INDEX($C16:$G16,1,aux!$AL$1))^(1/($G$3-INDEX($C$3:$G$3,1,aux!$AL$1)))-1,"n.d.") -> n.d. | V16: =IF(INDEX($C16:$G16,1,aux!$AL$1)>0,(G16-INDEX($C16:$G16,1,aux!$AL$1))/INDEX($C16:$G16,1,aux!$AL$1),"n.d.") -> n.d. | X16: =N16-INDEX($J16:$N16,1,aux!$AL$1) -> 0 | Y16: 0 | Z16: =+IF(INDEX($J16:$N16,1,aux!$AL$1)>0,(N16/INDEX($J16:$N16,1,aux!$AL$1))^(1/($N$3-INDEX($J$3:$N$3,1,aux!$AL$1)))-1,"n.d.") -> n.d. | AA16: =IF(INDEX($J16:$N16,1,aux!$AL$1)>0,(N16-INDEX($J16:$N16,1,aux!$AL$1))/INDEX($J16:$N16,1,aux!$AL$1),"n.d.") -> n.d. | AC16: 0 | BS16: =+MATCH('5.1'!A16,AUX_2d_pais!$G$2:$G$20001,0) -> 
A17: 0077 | B17: Arménia | C17: =+SUMIF(AUX_2d_pais!$A$2:$A$27000,'5.1'!$A17&'5.1'!C$3&1,AUX_2d_pais!$J$2:$J$27000)/1000 -> 0 | D17: =+SUMIF(AUX_2d_pais!$A$2:$A$27000,'5.1'!$A17&'5.1'!D$3&1,AUX_2d_pais!$J$2:$J$27000)/1000 -> 0 | E17: =+SUMIF(AUX_2d_pais!$A$2:$A$27000,'5.1'!$A17&'5.1'!E$3&1,AUX_2d_pais!$J$2:$J$27000)/1000 -> 0 | F17: =+SUMIF(AUX_2d_pais!$A$2:$A$27000,'5.1'!$A17&'5.1'!F$3&1,AUX_2d_pais!$J$2:$J$27000)/1000 -> 0 | G17: =+SUMIF(AUX_2d_pais!$A$2:$A$27000,'5.1'!$A17&'5.1'!G$3&1,AUX_2d_pais!$J$2:$J$27000)/1000 -> 0 | H17: 0 | I17: 0 | J17: =+SUMIF(AUX_2d_pais!$A$2:$A$27000,'5.1'!$A17&'5.1'!J$3&2,AUX_2d_pais!$J$2:$J$27000)/1000 -> 0 | K17: =+SUMIF(AUX_2d_pais!$A$2:$A$27000,'5.1'!$A17&'5.1'!K$3&2,AUX_2d_pais!$J$2:$J$27000)/1000 -> 0 | L17: =+SUMIF(AUX_2d_pais!$A$2:$A$27000,'5.1'!$A17&'5.1'!L$3&2,AUX_2d_pais!$J$2:$J$27000)/1000 -> 0 | M17: =+SUMIF(AUX_2d_pais!$A$2:$A$27000,'5.1'!$A17&'5.1'!M$3&2,AUX_2d_pais!$J$2:$J$27000)/1000 -> 0 | N17: =+SUMIF(AUX_2d_pais!$A$2:$A$27000,'5.1'!$A17&'5.1'!N$3&2,AUX_2d_pais!$J$2:$J$27000)/1000 -> 0 | O17: 0 | P17: 0 | Q17: 0 | S17: =G17-INDEX($C17:$G17,1,aux!$AL$1) -> 0 | T17: 0 | U17: =+IF(INDEX($C17:$G17,1,aux!$AL$1)>0,(G17/INDEX($C17:$G17,1,aux!$AL$1))^(1/($G$3-INDEX($C$3:$G$3,1,aux!$AL$1)))-1,"n.d.") -> n.d. | V17: =IF(INDEX($C17:$G17,1,aux!$AL$1)>0,(G17-INDEX($C17:$G17,1,aux!$AL$1))/INDEX($C17:$G17,1,aux!$AL$1),"n.d.") -> n.d. | X17: =N17-INDEX($J17:$N17,1,aux!$AL$1) -> 0 | Y17: 0 | Z17: =+IF(INDEX($J17:$N17,1,aux!$AL$1)>0,(N17/INDEX($J17:$N17,1,aux!$AL$1))^(1/($N$3-INDEX($J$3:$N$3,1,aux!$AL$1)))-1,"n.d.") -> n.d. | AA17: =IF(INDEX($J17:$N17,1,aux!$AL$1)>0,(N17-INDEX($J17:$N17,1,aux!$AL$1))/INDEX($J17:$N17,1,aux!$AL$1),"n.d.") -> n.d. | AC17: 0 | BS17: =+MATCH('5.1'!A17,AUX_2d_pais!$G$2:$G$20001,0) -> 
A18: 0474 | B18: Aruba | C18: =+SUMIF(AUX_2d_pais!$A$2:$A$27000,'5.1'!$A18&'5.1'!C$3&1,AUX_2d_pais!$J$2:$J$27000)/1000 -> 0 | D18: =+SUMIF(AUX_2d_pais!$A$2:$A$27000,'5.1'!$A18&'5.1'!D$3&1,AUX_2d_pais!$J$2:$J$27000)/1000 -> 0 | E18: =+SUMIF(AUX_2d_pais!$A$2:$A$27000,'5.1'!$A18&'5.1'!E$3&1,AUX_2d_pais!$J$2:$J$27000)/1000 -> 0 | F18: =+SUMIF(AUX_2d_pais!$A$2:$A$27000,'5.1'!$A18&'5.1'!F$3&1,AUX_2d_pais!$J$2:$J$27000)/1000 -> 0 | G18: =+SUMIF(AUX_2d_pais!$A$2:$A$27000,'5.1'!$A18&'5.1'!G$3&1,AUX_2d_pais!$J$2:$J$27000)/1000 -> 0 | H18: 0 | I18: 0 | J18: =+SUMIF(AUX_2d_pais!$A$2:$A$27000,'5.1'!$A18&'5.1'!J$3&2,AUX_2d_pais!$J$2:$J$27000)/1000 -> 0 | K18: =+SUMIF(AUX_2d_pais!$A$2:$A$27000,'5.1'!$A18&'5.1'!K$3&2,AUX_2d_pais!$J$2:$J$27000)/1000 -> 0 | L18: =+SUMIF(AUX_2d_pais!$A$2:$A$27000,'5.1'!$A18&'5.1'!L$3&2,AUX_2d_pais!$J$2:$J$27000)/1000 -> 0 | M18: =+SUMIF(AUX_2d_pais!$A$2:$A$27000,'5.1'!$A18&'5.1'!M$3&2,AUX_2d_pais!$J$2:$J$27000)/1000 -> 0 | N18: =+SUMIF(AUX_2d_pais!$A$2:$A$27000,'5.1'!$A18&'5.1'!N$3&2,AUX_2d_pais!$J$2:$J$27000)/1000 -> 0 | O18: 0 | P18: 0 | Q18: 0 | S18: =G18-INDEX($C18:$G18,1,aux!$AL$1) -> 0 | T18: 0 | U18: =+IF(INDEX($C18:$G18,1,aux!$AL$1)>0,(G18/INDEX($C18:$G18,1,aux!$AL$1))^(1/($G$3-INDEX($C$3:$G$3,1,aux!$AL$1)))-1,"n.d.") -> n.d. | V18: =IF(INDEX($C18:$G18,1,aux!$AL$1)>0,(G18-INDEX($C18:$G18,1,aux!$AL$1))/INDEX($C18:$G18,1,aux!$AL$1),"n.d.") -> n.d. | X18: =N18-INDEX($J18:$N18,1,aux!$AL$1) -> 0 | Y18: 0 | Z18: =+IF(INDEX($J18:$N18,1,aux!$AL$1)>0,(N18/INDEX($J18:$N18,1,aux!$AL$1))^(1/($N$3-INDEX($J$3:$N$3,1,aux!$AL$1)))-1,"n.d.") -> n.d. | AA18: =IF(INDEX($J18:$N18,1,aux!$AL$1)>0,(N18-INDEX($J18:$N18,1,aux!$AL$1))/INDEX($J18:$N18,1,aux!$AL$1),"n.d.") -> n.d. | AC18: 0 | BS18: =+MATCH('5.1'!A18,AUX_2d_pais!$G$2:$G$20001,0) -> 
A19: 0800 | B19: Austrália | C19: =+SUMIF(AUX_2d_pais!$A$2:$A$27000,'5.1'!$A19&'5.1'!C$3&1,AUX_2d_pais!$J$2:$J$27000)/1000 -> 0 | D19: =+SUMIF(AUX_2d_pais!$A$2:$A$27000,'5.1'!$A19&'5.1'!D$3&1,AUX_2d_pais!$J$2:$J$27000)/1000 -> 0 | E19: =+SUMIF(AUX_2d_pais!$A$2:$A$27000,'5.1'!$A19&'5.1'!E$3&1,AUX_2d_pais!$J$2:$J$27000)/1000 -> 0 | F19: =+SUMIF(AUX_2d_pais!$A$2:$A$27000,'5.1'!$A19&'5.1'!F$3&1,AUX_2d_pais!$J$2:$J$27000)/1000 -> 0 | G19: =+SUMIF(AUX_2d_pais!$A$2:$A$27000,'5.1'!$A19&'5.1'!G$3&1,AUX_2d_pais!$J$2:$J$27000)/1000 -> 0 | H19: 0 | I19: 0 | J19: =+SUMIF(AUX_2d_pais!$A$2:$A$27000,'5.1'!$A19&'5.1'!J$3&2,AUX_2d_pais!$J$2:$J$27000)/1000 -> 0 | K19: =+SUMIF(AUX_2d_pais!$A$2:$A$27000,'5.1'!$A19&'5.1'!K$3&2,AUX_2d_pais!$J$2:$J$27000)/1000 -> 0 | L19: =+SUMIF(AUX_2d_pais!$A$2:$A$27000,'5.1'!$A19&'5.1'!L$3&2,AUX_2d_pais!$J$2:$J$27000)/1000 -> 0 | M19: =+SUMIF(AUX_2d_pais!$A$2:$A$27000,'5.1'!$A19&'5.1'!M$3&2,AUX_2d_pais!$J$2:$J$27000)/1000 -> 0 | N19: =+SUMIF(AUX_2d_pais!$A$2:$A$27000,'5.1'!$A19&'5.1'!N$3&2,AUX_2d_pais!$J$2:$J$27000)/1000 -> 0 | O19: 0 | P19: 0 | Q19: 0 | S19: =G19-INDEX($C19:$G19,1,aux!$AL$1) -> 0 | T19: 0 | U19: =+IF(INDEX($C19:$G19,1,aux!$AL$1)>0,(G19/INDEX($C19:$G19,1,aux!$AL$1))^(1/($G$3-INDEX($C$3:$G$3,1,aux!$AL$1)))-1,"n.d.") -> n.d. | V19: =IF(INDEX($C19:$G19,1,aux!$AL$1)>0,(G19-INDEX($C19:$G19,1,aux!$AL$1))/INDEX($C19:$G19,1,aux!$AL$1),"n.d.") -> n.d. | X19: =N19-INDEX($J19:$N19,1,aux!$AL$1) -> 0 | Y19: 0 | Z19: =+IF(INDEX($J19:$N19,1,aux!$AL$1)>0,(N19/INDEX($J19:$N19,1,aux!$AL$1))^(1/($N$3-INDEX($J$3:$N$3,1,aux!$AL$1)))-1,"n.d.") -> n.d. | AA19: =IF(INDEX($J19:$N19,1,aux!$AL$1)>0,(N19-INDEX($J19:$N19,1,aux!$AL$1))/INDEX($J19:$N19,1,aux!$AL$1),"n.d.") -> n.d. | AC19: 0 | BS19: =+MATCH('5.1'!A19,AUX_2d_pais!$G$2:$G$20001,0) -> 
A20: 0038 | B20: Áustria | C20: =+SUMIF(AUX_2d_pais!$A$2:$A$27000,'5.1'!$A20&'5.1'!C$3&1,AUX_2d_pais!$J$2:$J$27000)/1000 -> 0 | D20: =+SUMIF(AUX_2d_pais!$A$2:$A$27000,'5.1'!$A20&'5.1'!D$3&1,AUX_2d_pais!$J$2:$J$27000)/1000 -> 0 | E20: =+SUMIF(AUX_2d_pais!$A$2:$A$27000,'5.1'!$A20&'5.1'!E$3&1,AUX_2d_pais!$J$2:$J$27000)/1000 -> 0 | F20: =+SUMIF(AUX_2d_pais!$A$2:$A$27000,'5.1'!$A20&'5.1'!F$3&1,AUX_2d_pais!$J$2:$J$27000)/1000 -> 0 | G20: =+SUMIF(AUX_2d_pais!$A$2:$A$27000,'5.1'!$A20&'5.1'!G$3&1,AUX_2d_pais!$J$2:$J$27000)/1000 -> 0 | H20: 0 | I20: 0 | J20: =+SUMIF(AUX_2d_pais!$A$2:$A$27000,'5.1'!$A20&'5.1'!J$3&2,AUX_2d_pais!$J$2:$J$27000)/1000 -> 0 | K20: =+SUMIF(AUX_2d_pais!$A$2:$A$27000,'5.1'!$A20&'5.1'!K$3&2,AUX_2d_pais!$J$2:$J$27000)/1000 -> 0 | L20: =+SUMIF(AUX_2d_pais!$A$2:$A$27000,'5.1'!$A20&'5.1'!L$3&2,AUX_2d_pais!$J$2:$J$27000)/1000 -> 0 | M20: =+SUMIF(AUX_2d_pais!$A$2:$A$27000,'5.1'!$A20&'5.1'!M$3&2,AUX_2d_pais!$J$2:$J$27000)/1000 -> 0 | N20: =+SUMIF(AUX_2d_pais!$A$2:$A$27000,'5.1'!$A20&'5.1'!N$3&2,AUX_2d_pais!$J$2:$J$27000)/1000 -> 0 | O20: 0 | P20: 0 | Q20: 0 | S20: =G20-INDEX($C20:$G20,1,aux!$AL$1) -> 0 | T20: 0 | U20: =+IF(INDEX($C20:$G20,1,aux!$AL$1)>0,(G20/INDEX($C20:$G20,1,aux!$AL$1))^(1/($G$3-INDEX($C$3:$G$3,1,aux!$AL$1)))-1,"n.d.") -> n.d. | V20: =IF(INDEX($C20:$G20,1,aux!$AL$1)>0,(G20-INDEX($C20:$G20,1,aux!$AL$1))/INDEX($C20:$G20,1,aux!$AL$1),"n.d.") -> n.d. | X20: =N20-INDEX($J20:$N20,1,aux!$AL$1) -> 0 | Y20: 0 | Z20: =+IF(INDEX($J20:$N20,1,aux!$AL$1)>0,(N20/INDEX($J20:$N20,1,aux!$AL$1))^(1/($N$3-INDEX($J$3:$N$3,1,aux!$AL$1)))-1,"n.d.") -> n.d. | AA20: =IF(INDEX($J20:$N20,1,aux!$AL$1)>0,(N20-INDEX($J20:$N20,1,aux!$AL$1))/INDEX($J20:$N20,1,aux!$AL$1),"n.d.") -> n.d. | AC20: 0 | BS20: =+MATCH('5.1'!A20,AUX_2d_pais!$G$2:$G$20001,0) -> 
A21: 0078 | B21: Azerbaijão | C21: =+SUMIF(AUX_2d_pais!$A$2:$A$27000,'5.1'!$A21&'5.1'!C$3&1,AUX_2d_pais!$J$2:$J$27000)/1000 -> 0 | D21: =+SUMIF(AUX_2d_pais!$A$2:$A$27000,'5.1'!$A21&'5.1'!D$3&1,AUX_2d_pais!$J$2:$J$27000)/1000 -> 0 | E21: =+SUMIF(AUX_2d_pais!$A$2:$A$27000,'5.1'!$A21&'5.1'!E$3&1,AUX_2d_pais!$J$2:$J$27000)/1000 -> 0 | F21: =+SUMIF(AUX_2d_pais!$A$2:$A$27000,'5.1'!$A21&'5.1'!F$3&1,AUX_2d_pais!$J$2:$J$27000)/1000 -> 0 | G21: =+SUMIF(AUX_2d_pais!$A$2:$A$27000,'5.1'!$A21&'5.1'!G$3&1,AUX_2d_pais!$J$2:$J$27000)/1000 -> 0 | H21: 0 | I21: 0 | J21: =+SUMIF(AUX_2d_pais!$A$2:$A$27000,'5.1'!$A21&'5.1'!J$3&2,AUX_2d_pais!$J$2:$J$27000)/1000 -> 0 | K21: =+SUMIF(AUX_2d_pais!$A$2:$A$27000,'5.1'!$A21&'5.1'!K$3&2,AUX_2d_pais!$J$2:$J$27000)/1000 -> 0 | L21: =+SUMIF(AUX_2d_pais!$A$2:$A$27000,'5.1'!$A21&'5.1'!L$3&2,AUX_2d_pais!$J$2:$J$27000)/1000 -> 0 | M21: =+SUMIF(AUX_2d_pais!$A$2:$A$27000,'5.1'!$A21&'5.1'!M$3&2,AUX_2d_pais!$J$2:$J$27000)/1000 -> 0 | N21: =+SUMIF(AUX_2d_pais!$A$2:$A$27000,'5.1'!$A21&'5.1'!N$3&2,AUX_2d_pais!$J$2:$J$27000)/1000 -> 0 | O21: 0 | P21: 0 | Q21: 0 | S21: =G21-INDEX($C21:$G21,1,aux!$AL$1) -> 0 | T21: 0 | U21: =+IF(INDEX($C21:$G21,1,aux!$AL$1)>0,(G21/INDEX($C21:$G21,1,aux!$AL$1))^(1/($G$3-INDEX($C$3:$G$3,1,aux!$AL$1)))-1,"n.d.") -> n.d. | V21: =IF(INDEX($C21:$G21,1,aux!$AL$1)>0,(G21-INDEX($C21:$G21,1,aux!$AL$1))/INDEX($C21:$G21,1,aux!$AL$1),"n.d.") -> n.d. | X21: =N21-INDEX($J21:$N21,1,aux!$AL$1) -> 0 | Y21: 0 | Z21: =+IF(INDEX($J21:$N21,1,aux!$AL$1)>0,(N21/INDEX($J21:$N21,1,aux!$AL$1))^(1/($N$3-INDEX($J$3:$N$3,1,aux!$AL$1)))-1,"n.d.") -> n.d. | AA21: =IF(INDEX($J21:$N21,1,aux!$AL$1)>0,(N21-INDEX($J21:$N21,1,aux!$AL$1))/INDEX($J21:$N21,1,aux!$AL$1),"n.d.") -> n.d. | AC21: 0 | BS21: =+MATCH('5.1'!A21,AUX_2d_pais!$G$2:$G$20001,0) -> 
A22: 0453 | B22: Bahamas | C22: =+SUMIF(AUX_2d_pais!$A$2:$A$27000,'5.1'!$A22&'5.1'!C$3&1,AUX_2d_pais!$J$2:$J$27000)/1000 -> 0 | D22: =+SUMIF(AUX_2d_pais!$A$2:$A$27000,'5.1'!$A22&'5.1'!D$3&1,AUX_2d_pais!$J$2:$J$27000)/1000 -> 0 | E22: =+SUMIF(AUX_2d_pais!$A$2:$A$27000,'5.1'!$A22&'5.1'!E$3&1,AUX_2d_pais!$J$2:$J$27000)/1000 -> 0 | F22: =+SUMIF(AUX_2d_pais!$A$2:$A$27000,'5.1'!$A22&'5.1'!F$3&1,AUX_2d_pais!$J$2:$J$27000)/1000 -> 0 | G22: =+SUMIF(AUX_2d_pais!$A$2:$A$27000,'5.1'!$A22&'5.1'!G$3&1,AUX_2d_pais!$J$2:$J$27000)/1000 -> 0 | H22: 0 | I22: 0 | J22: =+SUMIF(AUX_2d_pais!$A$2:$A$27000,'5.1'!$A22&'5.1'!J$3&2,AUX_2d_pais!$J$2:$J$27000)/1000 -> 0 | K22: =+SUMIF(AUX_2d_pais!$A$2:$A$27000,'5.1'!$A22&'5.1'!K$3&2,AUX_2d_pais!$J$2:$J$27000)/1000 -> 0 | L22: =+SUMIF(AUX_2d_pais!$A$2:$A$27000,'5.1'!$A22&'5.1'!L$3&2,AUX_2d_pais!$J$2:$J$27000)/1000 -> 0 | M22: =+SUMIF(AUX_2d_pais!$A$2:$A$27000,'5.1'!$A22&'5.1'!M$3&2,AUX_2d_pais!$J$2:$J$27000)/1000 -> 0 | N22: =+SUMIF(AUX_2d_pais!$A$2:$A$27000,'5.1'!$A22&'5.1'!N$3&2,AUX_2d_pais!$J$2:$J$27000)/1000 -> 0 | O22: 0 | P22: 0 | Q22: 0 | S22: =G22-INDEX($C22:$G22,1,aux!$AL$1) -> 0 | T22: 0 | U22: =+IF(INDEX($C22:$G22,1,aux!$AL$1)>0,(G22/INDEX($C22:$G22,1,aux!$AL$1))^(1/($G$3-INDEX($C$3:$G$3,1,aux!$AL$1)))-1,"n.d.") -> n.d. | V22: =IF(INDEX($C22:$G22,1,aux!$AL$1)>0,(G22-INDEX($C22:$G22,1,aux!$AL$1))/INDEX($C22:$G22,1,aux!$AL$1),"n.d.") -> n.d. | X22: =N22-INDEX($J22:$N22,1,aux!$AL$1) -> 0 | Y22: 0 | Z22: =+IF(INDEX($J22:$N22,1,aux!$AL$1)>0,(N22/INDEX($J22:$N22,1,aux!$AL$1))^(1/($N$3-INDEX($J$3:$N$3,1,aux!$AL$1)))-1,"n.d.") -> n.d. | AA22: =IF(INDEX($J22:$N22,1,aux!$AL$1)>0,(N22-INDEX($J22:$N22,1,aux!$AL$1))/INDEX($J22:$N22,1,aux!$AL$1),"n.d.") -> n.d. | AC22: 0 | BS22: =+MATCH('5.1'!A22,AUX_2d_pais!$G$2:$G$20001,0) -> 
A23: 0666 | B23: Bangladesh | C23: =+SUMIF(AUX_2d_pais!$A$2:$A$27000,'5.1'!$A23&'5.1'!C$3&1,AUX_2d_pais!$J$2:$J$27000)/1000 -> 0 | D23: =+SUMIF(AUX_2d_pais!$A$2:$A$27000,'5.1'!$A23&'5.1'!D$3&1,AUX_2d_pais!$J$2:$J$27000)/1000 -> 0 | E23: =+SUMIF(AUX_2d_pais!$A$2:$A$27000,'5.1'!$A23&'5.1'!E$3&1,AUX_2d_pais!$J$2:$J$27000)/1000 -> 0 | F23: =+SUMIF(AUX_2d_pais!$A$2:$A$27000,'5.1'!$A23&'5.1'!F$3&1,AUX_2d_pais!$J$2:$J$27000)/1000 -> 0 | G23: =+SUMIF(AUX_2d_pais!$A$2:$A$27000,'5.1'!$A23&'5.1'!G$3&1,AUX_2d_pais!$J$2:$J$27000)/1000 -> 0 | H23: 0 | I23: 0 | J23: =+SUMIF(AUX_2d_pais!$A$2:$A$27000,'5.1'!$A23&'5.1'!J$3&2,AUX_2d_pais!$J$2:$J$27000)/1000 -> 0 | K23: =+SUMIF(AUX_2d_pais!$A$2:$A$27000,'5.1'!$A23&'5.1'!K$3&2,AUX_2d_pais!$J$2:$J$27000)/1000 -> 0 | L23: =+SUMIF(AUX_2d_pais!$A$2:$A$27000,'5.1'!$A23&'5.1'!L$3&2,AUX_2d_pais!$J$2:$J$27000)/1000 -> 0 | M23: =+SUMIF(AUX_2d_pais!$A$2:$A$27000,'5.1'!$A23&'5.1'!M$3&2,AUX_2d_pais!$J$2:$J$27000)/1000 -> 0 | N23: =+SUMIF(AUX_2d_pais!$A$2:$A$27000,'5.1'!$A23&'5.1'!N$3&2,AUX_2d_pais!$J$2:$J$27000)/1000 -> 0 | O23: 0 | P23: 0 | Q23: 0 | S23: =G23-INDEX($C23:$G23,1,aux!$AL$1) -> 0 | T23: 0 | U23: =+IF(INDEX($C23:$G23,1,aux!$AL$1)>0,(G23/INDEX($C23:$G23,1,aux!$AL$1))^(1/($G$3-INDEX($C$3:$G$3,1,aux!$AL$1)))-1,"n.d.") -> n.d. | V23: =IF(INDEX($C23:$G23,1,aux!$AL$1)>0,(G23-INDEX($C23:$G23,1,aux!$AL$1))/INDEX($C23:$G23,1,aux!$AL$1),"n.d.") -> n.d. | X23: =N23-INDEX($J23:$N23,1,aux!$AL$1) -> 0 | Y23: 0 | Z23: =+IF(INDEX($J23:$N23,1,aux!$AL$1)>0,(N23/INDEX($J23:$N23,1,aux!$AL$1))^(1/($N$3-INDEX($J$3:$N$3,1,aux!$AL$1)))-1,"n.d.") -> n.d. | AA23: =IF(INDEX($J23:$N23,1,aux!$AL$1)>0,(N23-INDEX($J23:$N23,1,aux!$AL$1))/INDEX($J23:$N23,1,aux!$AL$1),"n.d.") -> n.d. | AC23: 0 | BS23: =+MATCH('5.1'!A23,AUX_2d_pais!$G$2:$G$20001,0) -> 
A24: 0469 | B24: Barbados | C24: =+SUMIF(AUX_2d_pais!$A$2:$A$27000,'5.1'!$A24&'5.1'!C$3&1,AUX_2d_pais!$J$2:$J$27000)/1000 -> 0 | D24: =+SUMIF(AUX_2d_pais!$A$2:$A$27000,'5.1'!$A24&'5.1'!D$3&1,AUX_2d_pais!$J$2:$J$27000)/1000 -> 0 | E24: =+SUMIF(AUX_2d_pais!$A$2:$A$27000,'5.1'!$A24&'5.1'!E$3&1,AUX_2d_pais!$J$2:$J$27000)/1000 -> 0 | F24: =+SUMIF(AUX_2d_pais!$A$2:$A$27000,'5.1'!$A24&'5.1'!F$3&1,AUX_2d_pais!$J$2:$J$27000)/1000 -> 0 | G24: =+SUMIF(AUX_2d_pais!$A$2:$A$27000,'5.1'!$A24&'5.1'!G$3&1,AUX_2d_pais!$J$2:$J$27000)/1000 -> 0 | H24: 0 | I24: 0 | J24: =+SUMIF(AUX_2d_pais!$A$2:$A$27000,'5.1'!$A24&'5.1'!J$3&2,AUX_2d_pais!$J$2:$J$27000)/1000 -> 0 | K24: =+SUMIF(AUX_2d_pais!$A$2:$A$27000,'5.1'!$A24&'5.1'!K$3&2,AUX_2d_pais!$J$2:$J$27000)/1000 -> 0 | L24: =+SUMIF(AUX_2d_pais!$A$2:$A$27000,'5.1'!$A24&'5.1'!L$3&2,AUX_2d_pais!$J$2:$J$27000)/1000 -> 0 | M24: =+SUMIF(AUX_2d_pais!$A$2:$A$27000,'5.1'!$A24&'5.1'!M$3&2,AUX_2d_pais!$J$2:$J$27000)/1000 -> 0 | N24: =+SUMIF(AUX_2d_pais!$A$2:$A$27000,'5.1'!$A24&'5.1'!N$3&2,AUX_2d_pais!$J$2:$J$27000)/1000 -> 0 | O24: 0 | P24: 0 | Q24: 0 | S24: =G24-INDEX($C24:$G24,1,aux!$AL$1) -> 0 | T24: 0 | U24: =+IF(INDEX($C24:$G24,1,aux!$AL$1)>0,(G24/INDEX($C24:$G24,1,aux!$AL$1))^(1/($G$3-INDEX($C$3:$G$3,1,aux!$AL$1)))-1,"n.d.") -> n.d. | V24: =IF(INDEX($C24:$G24,1,aux!$AL$1)>0,(G24-INDEX($C24:$G24,1,aux!$AL$1))/INDEX($C24:$G24,1,aux!$AL$1),"n.d.") -> n.d. | X24: =N24-INDEX($J24:$N24,1,aux!$AL$1) -> 0 | Y24: 0 | Z24: =+IF(INDEX($J24:$N24,1,aux!$AL$1)>0,(N24/INDEX($J24:$N24,1,aux!$AL$1))^(1/($N$3-INDEX($J$3:$N$3,1,aux!$AL$1)))-1,"n.d.") -> n.d. | AA24: =IF(INDEX($J24:$N24,1,aux!$AL$1)>0,(N24-INDEX($J24:$N24,1,aux!$AL$1))/INDEX($J24:$N24,1,aux!$AL$1),"n.d.") -> n.d. | AC24: 0 | BS24: =+MATCH('5.1'!A24,AUX_2d_pais!$G$2:$G$20001,0) -> 
A25: 0640 | B25: Barém | C25: =+SUMIF(AUX_2d_pais!$A$2:$A$27000,'5.1'!$A25&'5.1'!C$3&1,AUX_2d_pais!$J$2:$J$27000)/1000 -> 0 | D25: =+SUMIF(AUX_2d_pais!$A$2:$A$27000,'5.1'!$A25&'5.1'!D$3&1,AUX_2d_pais!$J$2:$J$27000)/1000 -> 0 | E25: =+SUMIF(AUX_2d_pais!$A$2:$A$27000,'5.1'!$A25&'5.1'!E$3&1,AUX_2d_pais!$J$2:$J$27000)/1000 -> 0 | F25: =+SUMIF(AUX_2d_pais!$A$2:$A$27000,'5.1'!$A25&'5.1'!F$3&1,AUX_2d_pais!$J$2:$J$27000)/1000 -> 0 | G25: =+SUMIF(AUX_2d_pais!$A$2:$A$27000,'5.1'!$A25&'5.1'!G$3&1,AUX_2d_pais!$J$2:$J$27000)/1000 -> 0 | H25: 0 | I25: 0 | J25: =+SUMIF(AUX_2d_pais!$A$2:$A$27000,'5.1'!$A25&'5.1'!J$3&2,AUX_2d_pais!$J$2:$J$27000)/1000 -> 0 | K25: =+SUMIF(AUX_2d_pais!$A$2:$A$27000,'5.1'!$A25&'5.1'!K$3&2,AUX_2d_pais!$J$2:$J$27000)/1000 -> 0 | L25: =+SUMIF(AUX_2d_pais!$A$2:$A$27000,'5.1'!$A25&'5.1'!L$3&2,AUX_2d_pais!$J$2:$J$27000)/1000 -> 0 | M25: =+SUMIF(AUX_2d_pais!$A$2:$A$27000,'5.1'!$A25&'5.1'!M$3&2,AUX_2d_pais!$J$2:$J$27000)/1000 -> 0 | N25: =+SUMIF(AUX_2d_pais!$A$2:$A$27000,'5.1'!$A25&'5.1'!N$3&2,AUX_2d_pais!$J$2:$J$27000)/1000 -> 0 | O25: 0 | P25: 0 | Q25: 0 | S25: =G25-INDEX($C25:$G25,1,aux!$AL$1) -> 0 | T25: 0 | U25: =+IF(INDEX($C25:$G25,1,aux!$AL$1)>0,(G25/INDEX($C25:$G25,1,aux!$AL$1))^(1/($G$3-INDEX($C$3:$G$3,1,aux!$AL$1)))-1,"n.d.") -> n.d. | V25: =IF(INDEX($C25:$G25,1,aux!$AL$1)>0,(G25-INDEX($C25:$G25,1,aux!$AL$1))/INDEX($C25:$G25,1,aux!$AL$1),"n.d.") -> n.d. | X25: =N25-INDEX($J25:$N25,1,aux!$AL$1) -> 0 | Y25: 0 | Z25: =+IF(INDEX($J25:$N25,1,aux!$AL$1)>0,(N25/INDEX($J25:$N25,1,aux!$AL$1))^(1/($N$3-INDEX($J$3:$N$3,1,aux!$AL$1)))-1,"n.d.") -> n.d. | AA25: =IF(INDEX($J25:$N25,1,aux!$AL$1)>0,(N25-INDEX($J25:$N25,1,aux!$AL$1))/INDEX($J25:$N25,1,aux!$AL$1),"n.d.") -> n.d. | AC25: 0 | BS25: =+MATCH('5.1'!A25,AUX_2d_pais!$G$2:$G$20001,0) -> 
A26: 0073 | B26: Belarus | C26: =+SUMIF(AUX_2d_pais!$A$2:$A$27000,'5.1'!$A26&'5.1'!C$3&1,AUX_2d_pais!$J$2:$J$27000)/1000 -> 0 | D26: =+SUMIF(AUX_2d_pais!$A$2:$A$27000,'5.1'!$A26&'5.1'!D$3&1,AUX_2d_pais!$J$2:$J$27000)/1000 -> 0 | E26: =+SUMIF(AUX_2d_pais!$A$2:$A$27000,'5.1'!$A26&'5.1'!E$3&1,AUX_2d_pais!$J$2:$J$27000)/1000 -> 0 | F26: =+SUMIF(AUX_2d_pais!$A$2:$A$27000,'5.1'!$A26&'5.1'!F$3&1,AUX_2d_pais!$J$2:$J$27000)/1000 -> 0 | G26: =+SUMIF(AUX_2d_pais!$A$2:$A$27000,'5.1'!$A26&'5.1'!G$3&1,AUX_2d_pais!$J$2:$J$27000)/1000 -> 0 | H26: 0 | I26: 0 | J26: =+SUMIF(AUX_2d_pais!$A$2:$A$27000,'5.1'!$A26&'5.1'!J$3&2,AUX_2d_pais!$J$2:$J$27000)/1000 -> 0 | K26: =+SUMIF(AUX_2d_pais!$A$2:$A$27000,'5.1'!$A26&'5.1'!K$3&2,AUX_2d_pais!$J$2:$J$27000)/1000 -> 0 | L26: =+SUMIF(AUX_2d_pais!$A$2:$A$27000,'5.1'!$A26&'5.1'!L$3&2,AUX_2d_pais!$J$2:$J$27000)/1000 -> 0 | M26: =+SUMIF(AUX_2d_pais!$A$2:$A$27000,'5.1'!$A26&'5.1'!M$3&2,AUX_2d_pais!$J$2:$J$27000)/1000 -> 0 | N26: =+SUMIF(AUX_2d_pais!$A$2:$A$27000,'5.1'!$A26&'5.1'!N$3&2,AUX_2d_pais!$J$2:$J$27000)/1000 -> 0 | O26: 0 | P26: 0 | Q26: 0 | S26: =G26-INDEX($C26:$G26,1,aux!$AL$1) -> 0 | T26: 0 | U26: =+IF(INDEX($C26:$G26,1,aux!$AL$1)>0,(G26/INDEX($C26:$G26,1,aux!$AL$1))^(1/($G$3-INDEX($C$3:$G$3,1,aux!$AL$1)))-1,"n.d.") -> n.d. | V26: =IF(INDEX($C26:$G26,1,aux!$AL$1)>0,(G26-INDEX($C26:$G26,1,aux!$AL$1))/INDEX($C26:$G26,1,aux!$AL$1),"n.d.") -> n.d. | X26: =N26-INDEX($J26:$N26,1,aux!$AL$1) -> 0 | Y26: 0 | Z26: =+IF(INDEX($J26:$N26,1,aux!$AL$1)>0,(N26/INDEX($J26:$N26,1,aux!$AL$1))^(1/($N$3-INDEX($J$3:$N$3,1,aux!$AL$1)))-1,"n.d.") -> n.d. | AA26: =IF(INDEX($J26:$N26,1,aux!$AL$1)>0,(N26-INDEX($J26:$N26,1,aux!$AL$1))/INDEX($J26:$N26,1,aux!$AL$1),"n.d.") -> n.d. | AC26: 0 | BS26: =+MATCH('5.1'!A26,AUX_2d_pais!$G$2:$G$20001,0) -> 
A27: 0017 | B27: Bélgica | C27: =+SUMIF(AUX_2d_pais!$A$2:$A$27000,'5.1'!$A27&'5.1'!C$3&1,AUX_2d_pais!$J$2:$J$27000)/1000 -> 0 | D27: =+SUMIF(AUX_2d_pais!$A$2:$A$27000,'5.1'!$A27&'5.1'!D$3&1,AUX_2d_pais!$J$2:$J$27000)/1000 -> 0 | E27: =+SUMIF(AUX_2d_pais!$A$2:$A$27000,'5.1'!$A27&'5.1'!E$3&1,AUX_2d_pais!$J$2:$J$27000)/1000 -> 0 | F27: =+SUMIF(AUX_2d_pais!$A$2:$A$27000,'5.1'!$A27&'5.1'!F$3&1,AUX_2d_pais!$J$2:$J$27000)/1000 -> 0 | G27: =+SUMIF(AUX_2d_pais!$A$2:$A$27000,'5.1'!$A27&'5.1'!G$3&1,AUX_2d_pais!$J$2:$J$27000)/1000 -> 0 | H27: 0 | I27: 0 | J27: =+SUMIF(AUX_2d_pais!$A$2:$A$27000,'5.1'!$A27&'5.1'!J$3&2,AUX_2d_pais!$J$2:$J$27000)/1000 -> 0 | K27: =+SUMIF(AUX_2d_pais!$A$2:$A$27000,'5.1'!$A27&'5.1'!K$3&2,AUX_2d_pais!$J$2:$J$27000)/1000 -> 0 | L27: =+SUMIF(AUX_2d_pais!$A$2:$A$27000,'5.1'!$A27&'5.1'!L$3&2,AUX_2d_pais!$J$2:$J$27000)/1000 -> 0 | M27: =+SUMIF(AUX_2d_pais!$A$2:$A$27000,'5.1'!$A27&'5.1'!M$3&2,AUX_2d_pais!$J$2:$J$27000)/1000 -> 0 | N27: =+SUMIF(AUX_2d_pais!$A$2:$A$27000,'5.1'!$A27&'5.1'!N$3&2,AUX_2d_pais!$J$2:$J$27000)/1000 -> 0 | O27: 0 | P27: 0 | Q27: 0 | S27: =G27-INDEX($C27:$G27,1,aux!$AL$1) -> 0 | T27: 0 | U27: =+IF(INDEX($C27:$G27,1,aux!$AL$1)>0,(G27/INDEX($C27:$G27,1,aux!$AL$1))^(1/($G$3-INDEX($C$3:$G$3,1,aux!$AL$1)))-1,"n.d.") -> n.d. | V27: =IF(INDEX($C27:$G27,1,aux!$AL$1)>0,(G27-INDEX($C27:$G27,1,aux!$AL$1))/INDEX($C27:$G27,1,aux!$AL$1),"n.d.") -> n.d. | X27: =N27-INDEX($J27:$N27,1,aux!$AL$1) -> 0 | Y27: 0 | Z27: =+IF(INDEX($J27:$N27,1,aux!$AL$1)>0,(N27/INDEX($J27:$N27,1,aux!$AL$1))^(1/($N$3-INDEX($J$3:$N$3,1,aux!$AL$1)))-1,"n.d.") -> n.d. | AA27: =IF(INDEX($J27:$N27,1,aux!$AL$1)>0,(N27-INDEX($J27:$N27,1,aux!$AL$1))/INDEX($J27:$N27,1,aux!$AL$1),"n.d.") -> n.d. | AC27: 0 | BS27: =+MATCH('5.1'!A27,AUX_2d_pais!$G$2:$G$20001,0) -> 
A28: 0421 | B28: Belize | C28: =+SUMIF(AUX_2d_pais!$A$2:$A$27000,'5.1'!$A28&'5.1'!C$3&1,AUX_2d_pais!$J$2:$J$27000)/1000 -> 0 | D28: =+SUMIF(AUX_2d_pais!$A$2:$A$27000,'5.1'!$A28&'5.1'!D$3&1,AUX_2d_pais!$J$2:$J$27000)/1000 -> 0 | E28: =+SUMIF(AUX_2d_pais!$A$2:$A$27000,'5.1'!$A28&'5.1'!E$3&1,AUX_2d_pais!$J$2:$J$27000)/1000 -> 0 | F28: =+SUMIF(AUX_2d_pais!$A$2:$A$27000,'5.1'!$A28&'5.1'!F$3&1,AUX_2d_pais!$J$2:$J$27000)/1000 -> 0 | G28: =+SUMIF(AUX_2d_pais!$A$2:$A$27000,'5.1'!$A28&'5.1'!G$3&1,AUX_2d_pais!$J$2:$J$27000)/1000 -> 0 | H28: 0 | I28: 0 | J28: =+SUMIF(AUX_2d_pais!$A$2:$A$27000,'5.1'!$A28&'5.1'!J$3&2,AUX_2d_pais!$J$2:$J$27000)/1000 -> 0 | K28: =+SUMIF(AUX_2d_pais!$A$2:$A$27000,'5.1'!$A28&'5.1'!K$3&2,AUX_2d_pais!$J$2:$J$27000)/1000 -> 0 | L28: =+SUMIF(AUX_2d_pais!$A$2:$A$27000,'5.1'!$A28&'5.1'!L$3&2,AUX_2d_pais!$J$2:$J$27000)/1000 -> 0 | M28: =+SUMIF(AUX_2d_pais!$A$2:$A$27000,'5.1'!$A28&'5.1'!M$3&2,AUX_2d_pais!$J$2:$J$27000)/1000 -> 0 | N28: =+SUMIF(AUX_2d_pais!$A$2:$A$27000,'5.1'!$A28&'5.1'!N$3&2,AUX_2d_pais!$J$2:$J$27000)/1000 -> 0 | O28: 0 | P28: 0 | Q28: 0 | S28: =G28-INDEX($C28:$G28,1,aux!$AL$1) -> 0 | T28: 0 | U28: =+IF(INDEX($C28:$G28,1,aux!$AL$1)>0,(G28/INDEX($C28:$G28,1,aux!$AL$1))^(1/($G$3-INDEX($C$3:$G$3,1,aux!$AL$1)))-1,"n.d.") -> n.d. | V28: =IF(INDEX($C28:$G28,1,aux!$AL$1)>0,(G28-INDEX($C28:$G28,1,aux!$AL$1))/INDEX($C28:$G28,1,aux!$AL$1),"n.d.") -> n.d. | X28: =N28-INDEX($J28:$N28,1,aux!$AL$1) -> 0 | Y28: 0 | Z28: =+IF(INDEX($J28:$N28,1,aux!$AL$1)>0,(N28/INDEX($J28:$N28,1,aux!$AL$1))^(1/($N$3-INDEX($J$3:$N$3,1,aux!$AL$1)))-1,"n.d.") -> n.d. | AA28: =IF(INDEX($J28:$N28,1,aux!$AL$1)>0,(N28-INDEX($J28:$N28,1,aux!$AL$1))/INDEX($J28:$N28,1,aux!$AL$1),"n.d.") -> n.d. | AC28: 0 | BS28: =+MATCH('5.1'!A28,AUX_2d_pais!$G$2:$G$20001,0) -> 
A29: 0284 | B29: Benim | C29: =+SUMIF(AUX_2d_pais!$A$2:$A$27000,'5.1'!$A29&'5.1'!C$3&1,AUX_2d_pais!$J$2:$J$27000)/1000 -> 883.122 | D29: =+SUMIF(AUX_2d_pais!$A$2:$A$27000,'5.1'!$A29&'5.1'!D$3&1,AUX_2d_pais!$J$2:$J$27000)/1000 -> 1324.95 | E29: =+SUMIF(AUX_2d_pais!$A$2:$A$27000,'5.1'!$A29&'5.1'!E$3&1,AUX_2d_pais!$J$2:$J$27000)/1000 -> 692.545 | F29: =+SUMIF(AUX_2d_pais!$A$2:$A$27000,'5.1'!$A29&'5.1'!F$3&1,AUX_2d_pais!$J$2:$J$27000)/1000 -> 3601.79 | G29: =+SUMIF(AUX_2d_pais!$A$2:$A$27000,'5.1'!$A29&'5.1'!G$3&1,AUX_2d_pais!$J$2:$J$27000)/1000 -> 2658.34 | H29: 1832.1494 | I29: 0.003774191443 | J29: =+SUMIF(AUX_2d_pais!$A$2:$A$27000,'5.1'!$A29&'5.1'!J$3&2,AUX_2d_pais!$J$2:$J$27000)/1000 -> 575.281 | K29: =+SUMIF(AUX_2d_pais!$A$2:$A$27000,'5.1'!$A29&'5.1'!K$3&2,AUX_2d_pais!$J$2:$J$27000)/1000 -> 989.631 | L29: =+SUMIF(AUX_2d_pais!$A$2:$A$27000,'5.1'!$A29&'5.1'!L$3&2,AUX_2d_pais!$J$2:$J$27000)/1000 -> 1315.064 | M29: =+SUMIF(AUX_2d_pais!$A$2:$A$27000,'5.1'!$A29&'5.1'!M$3&2,AUX_2d_pais!$J$2:$J$27000)/1000 -> 2566.662 | N29: =+SUMIF(AUX_2d_pais!$A$2:$A$27000,'5.1'!$A29&'5.1'!N$3&2,AUX_2d_pais!$J$2:$J$27000)/1000 -> 3412.445 | O29: 1771.8166 | P29: 0.001812599335 | Q29: -60.3328 | S29: =G29-INDEX($C29:$G29,1,aux!$AL$1) -> 1775.218 | T29: 0.0264876625 | U29: =+IF(INDEX($C29:$G29,1,aux!$AL$1)>0,(G29/INDEX($C29:$G29,1,aux!$AL$1))^(1/($G$3-INDEX($C$3:$G$3,1,aux!$AL$1)))-1,"n.d.") -> 0.31718706 | V29: =IF(INDEX($C29:$G29,1,aux!$AL$1)>0,(G29-INDEX($C29:$G29,1,aux!$AL$1))/INDEX($C29:$G29,1,aux!$AL$1),"n.d.") -> 2.010161676 | X29: =N29-INDEX($J29:$N29,1,aux!$AL$1) -> 2837.164 | Y29: 0.01363430454 | Z29: =+IF(INDEX($J29:$N29,1,aux!$AL$1)>0,(N29/INDEX($J29:$N29,1,aux!$AL$1))^(1/($N$3-INDEX($J$3:$N$3,1,aux!$AL$1)))-1,"n.d.") -> 0.5606172659 | AA29: =IF(INDEX($J29:$N29,1,aux!$AL$1)>0,(N29-INDEX($J29:$N29,1,aux!$AL$1))/INDEX($J29:$N29,1,aux!$AL$1),"n.d.") -> 4.931788117 | BS29: =+MATCH('5.1'!A29,AUX_2d_pais!$G$2:$G$20001,0) -> 132
A30: 0413 | B30: Bermudas | C30: =+SUMIF(AUX_2d_pais!$A$2:$A$27000,'5.1'!$A30&'5.1'!C$3&1,AUX_2d_pais!$J$2:$J$27000)/1000 -> 0 | D30: =+SUMIF(AUX_2d_pais!$A$2:$A$27000,'5.1'!$A30&'5.1'!D$3&1,AUX_2d_pais!$J$2:$J$27000)/1000 -> 0 | E30: =+SUMIF(AUX_2d_pais!$A$2:$A$27000,'5.1'!$A30&'5.1'!E$3&1,AUX_2d_pais!$J$2:$J$27000)/1000 -> 0 | F30: =+SUMIF(AUX_2d_pais!$A$2:$A$27000,'5.1'!$A30&'5.1'!F$3&1,AUX_2d_pais!$J$2:$J$27000)/1000 -> 0 | G30: =+SUMIF(AUX_2d_pais!$A$2:$A$27000,'5.1'!$A30&'5.1'!G$3&1,AUX_2d_pais!$J$2:$J$27000)/1000 -> 0 | H30: 0 | I30: 0 | J30: =+SUMIF(AUX_2d_pais!$A$2:$A$27000,'5.1'!$A30&'5.1'!J$3&2,AUX_2d_pais!$J$2:$J$27000)/1000 -> 0 | K30: =+SUMIF(AUX_2d_pais!$A$2:$A$27000,'5.1'!$A30&'5.1'!K$3&2,AUX_2d_pais!$J$2:$J$27000)/1000 -> 0 | L30: =+SUMIF(AUX_2d_pais!$A$2:$A$27000,'5.1'!$A30&'5.1'!L$3&2,AUX_2d_pais!$J$2:$J$27000)/1000 -> 0 | M30: =+SUMIF(AUX_2d_pais!$A$2:$A$27000,'5.1'!$A30&'5.1'!M$3&2,AUX_2d_pais!$J$2:$J$27000)/1000 -> 0 | N30: =+SUMIF(AUX_2d_pais!$A$2:$A$27000,'5.1'!$A30&'5.1'!N$3&2,AUX_2d_pais!$J$2:$J$27000)/1000 -> 0 | O30: 0 | P30: 0 | Q30: 0 | S30: =G30-INDEX($C30:$G30,1,aux!$AL$1) -> 0 | T30: 0 | U30: =+IF(INDEX($C30:$G30,1,aux!$AL$1)>0,(G30/INDEX($C30:$G30,1,aux!$AL$1))^(1/($G$3-INDEX($C$3:$G$3,1,aux!$AL$1)))-1,"n.d.") -> n.d. | V30: =IF(INDEX($C30:$G30,1,aux!$AL$1)>0,(G30-INDEX($C30:$G30,1,aux!$AL$1))/INDEX($C30:$G30,1,aux!$AL$1),"n.d.") -> n.d. | X30: =N30-INDEX($J30:$N30,1,aux!$AL$1) -> 0 | Y30: 0 | Z30: =+IF(INDEX($J30:$N30,1,aux!$AL$1)>0,(N30/INDEX($J30:$N30,1,aux!$AL$1))^(1/($N$3-INDEX($J$3:$N$3,1,aux!$AL$1)))-1,"n.d.") -> n.d. | AA30: =IF(INDEX($J30:$N30,1,aux!$AL$1)>0,(N30-INDEX($J30:$N30,1,aux!$AL$1))/INDEX($J30:$N30,1,aux!$AL$1),"n.d.") -> n.d. | AC30: 0 | BS30: =+MATCH('5.1'!A30,AUX_2d_pais!$G$2:$G$20001,0) -> 
A31: 0516 | B31: Bolívia | C31: =+SUMIF(AUX_2d_pais!$A$2:$A$27000,'5.1'!$A31&'5.1'!C$3&1,AUX_2d_pais!$J$2:$J$27000)/1000 -> 0 | D31: =+SUMIF(AUX_2d_pais!$A$2:$A$27000,'5.1'!$A31&'5.1'!D$3&1,AUX_2d_pais!$J$2:$J$27000)/1000 -> 0 | E31: =+SUMIF(AUX_2d_pais!$A$2:$A$27000,'5.1'!$A31&'5.1'!E$3&1,AUX_2d_pais!$J$2:$J$27000)/1000 -> 0 | F31: =+SUMIF(AUX_2d_pais!$A$2:$A$27000,'5.1'!$A31&'5.1'!F$3&1,AUX_2d_pais!$J$2:$J$27000)/1000 -> 0 | G31: =+SUMIF(AUX_2d_pais!$A$2:$A$27000,'5.1'!$A31&'5.1'!G$3&1,AUX_2d_pais!$J$2:$J$27000)/1000 -> 0 | H31: =SUM(C31:G31)/5 -> 0 | I31: 0 | J31: =+SUMIF(AUX_2d_pais!$A$2:$A$27000,'5.1'!$A31&'5.1'!J$3&2,AUX_2d_pais!$J$2:$J$27000)/1000 -> 0 | K31: =+SUMIF(AUX_2d_pais!$A$2:$A$27000,'5.1'!$A31&'5.1'!K$3&2,AUX_2d_pais!$J$2:$J$27000)/1000 -> 0 | L31: =+SUMIF(AUX_2d_pais!$A$2:$A$27000,'5.1'!$A31&'5.1'!L$3&2,AUX_2d_pais!$J$2:$J$27000)/1000 -> 0 | M31: =+SUMIF(AUX_2d_pais!$A$2:$A$27000,'5.1'!$A31&'5.1'!M$3&2,AUX_2d_pais!$J$2:$J$27000)/1000 -> 0 | N31: =+SUMIF(AUX_2d_pais!$A$2:$A$27000,'5.1'!$A31&'5.1'!N$3&2,AUX_2d_pais!$J$2:$J$27000)/1000 -> 0 | O31: =SUM(J31:N31)/5 -> 0 | P31: 0 | Q31: =O31-H31 -> 0 | S31: =G31-INDEX($C31:$G31,1,aux!$AL$1) -> 0 | T31: 0 | U31: =+IF(INDEX($C31:$G31,1,aux!$AL$1)>0,(G31/INDEX($C31:$G31,1,aux!$AL$1))^(1/($G$3-INDEX($C$3:$G$3,1,aux!$AL$1)))-1,"n.d.") -> n.d. | V31: =IF(INDEX($C31:$G31,1,aux!$AL$1)>0,(G31-INDEX($C31:$G31,1,aux!$AL$1))/INDEX($C31:$G31,1,aux!$AL$1),"n.d.") -> n.d. | X31: =N31-INDEX($J31:$N31,1,aux!$AL$1) -> 0 | Y31: 0 | Z31: =+IF(INDEX($J31:$N31,1,aux!$AL$1)>0,(N31/INDEX($J31:$N31,1,aux!$AL$1))^(1/($N$3-INDEX($J$3:$N$3,1,aux!$AL$1)))-1,"n.d.") -> n.d. | AA31: =IF(INDEX($J31:$N31,1,aux!$AL$1)>0,(N31-INDEX($J31:$N31,1,aux!$AL$1))/INDEX($J31:$N31,1,aux!$AL$1),"n.d.") -> n.d. | AC31: 0 | BS31: =+MATCH('5.1'!A31,AUX_2d_pais!$G$2:$G$20001,0) -> 
A32: 0477 | B32: Bonaire, Santo Eustáquio e Saba | C32: =+SUMIF(AUX_2d_pais!$A$2:$A$27000,'5.1'!$A32&'5.1'!C$3&1,AUX_2d_pais!$J$2:$J$27000)/1000 -> 0 | D32: =+SUMIF(AUX_2d_pais!$A$2:$A$27000,'5.1'!$A32&'5.1'!D$3&1,AUX_2d_pais!$J$2:$J$27000)/1000 -> 0 | E32: =+SUMIF(AUX_2d_pais!$A$2:$A$27000,'5.1'!$A32&'5.1'!E$3&1,AUX_2d_pais!$J$2:$J$27000)/1000 -> 0 | F32: =+SUMIF(AUX_2d_pais!$A$2:$A$27000,'5.1'!$A32&'5.1'!F$3&1,AUX_2d_pais!$J$2:$J$27000)/1000 -> 0 | G32: =+SUMIF(AUX_2d_pais!$A$2:$A$27000,'5.1'!$A32&'5.1'!G$3&1,AUX_2d_pais!$J$2:$J$27000)/1000 -> 0 | H32: =SUM(C32:G32)/5 -> 0 | I32: 0 | J32: =+SUMIF(AUX_2d_pais!$A$2:$A$27000,'5.1'!$A32&'5.1'!J$3&2,AUX_2d_pais!$J$2:$J$27000)/1000 -> 0 | K32: =+SUMIF(AUX_2d_pais!$A$2:$A$27000,'5.1'!$A32&'5.1'!K$3&2,AUX_2d_pais!$J$2:$J$27000)/1000 -> 0 | L32: =+SUMIF(AUX_2d_pais!$A$2:$A$27000,'5.1'!$A32&'5.1'!L$3&2,AUX_2d_pais!$J$2:$J$27000)/1000 -> 0 | M32: =+SUMIF(AUX_2d_pais!$A$2:$A$27000,'5.1'!$A32&'5.1'!M$3&2,AUX_2d_pais!$J$2:$J$27000)/1000 -> 0 | N32: =+SUMIF(AUX_2d_pais!$A$2:$A$27000,'5.1'!$A32&'5.1'!N$3&2,AUX_2d_pais!$J$2:$J$27000)/1000 -> 0 | O32: =SUM(J32:N32)/5 -> 0 | P32: 0 | Q32: =O32-H32 -> 0 | S32: =G32-INDEX($C32:$G32,1,aux!$AL$1) -> 0 | T32: 0 | U32: =+IF(INDEX($C32:$G32,1,aux!$AL$1)>0,(G32/INDEX($C32:$G32,1,aux!$AL$1))^(1/($G$3-INDEX($C$3:$G$3,1,aux!$AL$1)))-1,"n.d.") -> n.d. | V32: =IF(INDEX($C32:$G32,1,aux!$AL$1)>0,(G32-INDEX($C32:$G32,1,aux!$AL$1))/INDEX($C32:$G32,1,aux!$AL$1),"n.d.") -> n.d. | X32: =N32-INDEX($J32:$N32,1,aux!$AL$1) -> 0 | Y32: 0 | Z32: =+IF(INDEX($J32:$N32,1,aux!$AL$1)>0,(N32/INDEX($J32:$N32,1,aux!$AL$1))^(1/($N$3-INDEX($J$3:$N$3,1,aux!$AL$1)))-1,"n.d.") -> n.d. | AA32: =IF(INDEX($J32:$N32,1,aux!$AL$1)>0,(N32-INDEX($J32:$N32,1,aux!$AL$1))/INDEX($J32:$N32,1,aux!$AL$1),"n.d.") -> n.d. | AC32: 0 | BS32: =+MATCH('5.1'!A32,AUX_2d_pais!$G$2:$G$20001,0) -> 
A33: 0093 | B33: Bósnia-Herzegovina | C33: =+SUMIF(AUX_2d_pais!$A$2:$A$27000,'5.1'!$A33&'5.1'!C$3&1,AUX_2d_pais!$J$2:$J$27000)/1000 -> 0 | D33: =+SUMIF(AUX_2d_pais!$A$2:$A$27000,'5.1'!$A33&'5.1'!D$3&1,AUX_2d_pais!$J$2:$J$27000)/1000 -> 0 | E33: =+SUMIF(AUX_2d_pais!$A$2:$A$27000,'5.1'!$A33&'5.1'!E$3&1,AUX_2d_pais!$J$2:$J$27000)/1000 -> 0 | F33: =+SUMIF(AUX_2d_pais!$A$2:$A$27000,'5.1'!$A33&'5.1'!F$3&1,AUX_2d_pais!$J$2:$J$27000)/1000 -> 0 | G33: =+SUMIF(AUX_2d_pais!$A$2:$A$27000,'5.1'!$A33&'5.1'!G$3&1,AUX_2d_pais!$J$2:$J$27000)/1000 -> 0 | H33: =SUM(C33:G33)/5 -> 0 | I33: 0 | J33: =+SUMIF(AUX_2d_pais!$A$2:$A$27000,'5.1'!$A33&'5.1'!J$3&2,AUX_2d_pais!$J$2:$J$27000)/1000 -> 0 | K33: =+SUMIF(AUX_2d_pais!$A$2:$A$27000,'5.1'!$A33&'5.1'!K$3&2,AUX_2d_pais!$J$2:$J$27000)/1000 -> 0 | L33: =+SUMIF(AUX_2d_pais!$A$2:$A$27000,'5.1'!$A33&'5.1'!L$3&2,AUX_2d_pais!$J$2:$J$27000)/1000 -> 0 | M33: =+SUMIF(AUX_2d_pais!$A$2:$A$27000,'5.1'!$A33&'5.1'!M$3&2,AUX_2d_pais!$J$2:$J$27000)/1000 -> 0 | N33: =+SUMIF(AUX_2d_pais!$A$2:$A$27000,'5.1'!$A33&'5.1'!N$3&2,AUX_2d_pais!$J$2:$J$27000)/1000 -> 0 | O33: =SUM(J33:N33)/5 -> 0 | P33: 0 | Q33: =O33-H33 -> 0 | S33: =G33-INDEX($C33:$G33,1,aux!$AL$1) -> 0 | T33: 0 | U33: =+IF(INDEX($C33:$G33,1,aux!$AL$1)>0,(G33/INDEX($C33:$G33,1,aux!$AL$1))^(1/($G$3-INDEX($C$3:$G$3,1,aux!$AL$1)))-1,"n.d.") -> n.d. | V33: =IF(INDEX($C33:$G33,1,aux!$AL$1)>0,(G33-INDEX($C33:$G33,1,aux!$AL$1))/INDEX($C33:$G33,1,aux!$AL$1),"n.d.") -> n.d. | X33: =N33-INDEX($J33:$N33,1,aux!$AL$1) -> 0 | Y33: 0 | Z33: =+IF(INDEX($J33:$N33,1,aux!$AL$1)>0,(N33/INDEX($J33:$N33,1,aux!$AL$1))^(1/($N$3-INDEX($J$3:$N$3,1,aux!$AL$1)))-1,"n.d.") -> n.d. | AA33: =IF(INDEX($J33:$N33,1,aux!$AL$1)>0,(N33-INDEX($J33:$N33,1,aux!$AL$1))/INDEX($J33:$N33,1,aux!$AL$1),"n.d.") -> n.d. | AC33: 0 | BS33: =+MATCH('5.1'!A33,AUX_2d_pais!$G$2:$G$20001,0) -> 
A34: 0391 | B34: Botswana | C34: =+SUMIF(AUX_2d_pais!$A$2:$A$27000,'5.1'!$A34&'5.1'!C$3&1,AUX_2d_pais!$J$2:$J$27000)/1000 -> 0 | D34: =+SUMIF(AUX_2d_pais!$A$2:$A$27000,'5.1'!$A34&'5.1'!D$3&1,AUX_2d_pais!$J$2:$J$27000)/1000 -> 0 | E34: =+SUMIF(AUX_2d_pais!$A$2:$A$27000,'5.1'!$A34&'5.1'!E$3&1,AUX_2d_pais!$J$2:$J$27000)/1000 -> 0 | F34: =+SUMIF(AUX_2d_pais!$A$2:$A$27000,'5.1'!$A34&'5.1'!F$3&1,AUX_2d_pais!$J$2:$J$27000)/1000 -> 0 | G34: =+SUMIF(AUX_2d_pais!$A$2:$A$27000,'5.1'!$A34&'5.1'!G$3&1,AUX_2d_pais!$J$2:$J$27000)/1000 -> 150.142 | H34: =SUM(C34:G34)/5 -> 30.0284 | I34: 6.185790871e-05 | J34: =+SUMIF(AUX_2d_pais!$A$2:$A$27000,'5.1'!$A34&'5.1'!J$3&2,AUX_2d_pais!$J$2:$J$27000)/1000 -> 22.405 | K34: =+SUMIF(AUX_2d_pais!$A$2:$A$27000,'5.1'!$A34&'5.1'!K$3&2,AUX_2d_pais!$J$2:$J$27000)/1000 -> 223.284 | L34: =+SUMIF(AUX_2d_pais!$A$2:$A$27000,'5.1'!$A34&'5.1'!L$3&2,AUX_2d_pais!$J$2:$J$27000)/1000 -> 76.727 | M34: =+SUMIF(AUX_2d_pais!$A$2:$A$27000,'5.1'!$A34&'5.1'!M$3&2,AUX_2d_pais!$J$2:$J$27000)/1000 -> 76.603 | N34: =+SUMIF(AUX_2d_pais!$A$2:$A$27000,'5.1'!$A34&'5.1'!N$3&2,AUX_2d_pais!$J$2:$J$27000)/1000 -> 91.897 | O34: =SUM(J34:N34)/5 -> 98.1832 | P34: 0.0001004431288 | Q34: =O34-H34 -> 68.1548 | S34: =G34-INDEX($C34:$G34,1,aux!$AL$1) -> 150.142 | T34: 0.002240237888 | U34: =+IF(INDEX($C34:$G34,1,aux!$AL$1)>0,(G34/INDEX($C34:$G34,1,aux!$AL$1))^(1/($G$3-INDEX($C$3:$G$3,1,aux!$AL$1)))-1,"n.d.") -> n.d. | V34: =IF(INDEX($C34:$G34,1,aux!$AL$1)>0,(G34-INDEX($C34:$G34,1,aux!$AL$1))/INDEX($C34:$G34,1,aux!$AL$1),"n.d.") -> n.d. | X34: =N34-INDEX($J34:$N34,1,aux!$AL$1) -> 69.492 | Y34: 0.000333951471 | Z34: =+IF(INDEX($J34:$N34,1,aux!$AL$1)>0,(N34/INDEX($J34:$N34,1,aux!$AL$1))^(1/($N$3-INDEX($J$3:$N$3,1,aux!$AL$1)))-1,"n.d.") -> 0.4231120514 | AA34: =IF(INDEX($J34:$N34,1,aux!$AL$1)>0,(N34-INDEX($J34:$N34,1,aux!$AL$1))/INDEX($J34:$N34,1,aux!$AL$1),"n.d.") -> 3.101629101 | BS34: =+MATCH('5.1'!A34,AUX_2d_pais!$G$2:$G$20001,0) -> 206
A35: 0892 | B35: Bouvet, Ilha | C35: =+SUMIF(AUX_2d_pais!$A$2:$A$27000,'5.1'!$A35&'5.1'!C$3&1,AUX_2d_pais!$J$2:$J$27000)/1000 -> 0 | D35: =+SUMIF(AUX_2d_pais!$A$2:$A$27000,'5.1'!$A35&'5.1'!D$3&1,AUX_2d_pais!$J$2:$J$27000)/1000 -> 0 | E35: =+SUMIF(AUX_2d_pais!$A$2:$A$27000,'5.1'!$A35&'5.1'!E$3&1,AUX_2d_pais!$J$2:$J$27000)/1000 -> 0 | F35: =+SUMIF(AUX_2d_pais!$A$2:$A$27000,'5.1'!$A35&'5.1'!F$3&1,AUX_2d_pais!$J$2:$J$27000)/1000 -> 0 | G35: =+SUMIF(AUX_2d_pais!$A$2:$A$27000,'5.1'!$A35&'5.1'!G$3&1,AUX_2d_pais!$J$2:$J$27000)/1000 -> 0 | H35: =SUM(C35:G35)/5 -> 0 | I35: 0 | J35: =+SUMIF(AUX_2d_pais!$A$2:$A$27000,'5.1'!$A35&'5.1'!J$3&2,AUX_2d_pais!$J$2:$J$27000)/1000 -> 0 | K35: =+SUMIF(AUX_2d_pais!$A$2:$A$27000,'5.1'!$A35&'5.1'!K$3&2,AUX_2d_pais!$J$2:$J$27000)/1000 -> 0 | L35: =+SUMIF(AUX_2d_pais!$A$2:$A$27000,'5.1'!$A35&'5.1'!L$3&2,AUX_2d_pais!$J$2:$J$27000)/1000 -> 0 | M35: =+SUMIF(AUX_2d_pais!$A$2:$A$27000,'5.1'!$A35&'5.1'!M$3&2,AUX_2d_pais!$J$2:$J$27000)/1000 -> 0 | N35: =+SUMIF(AUX_2d_pais!$A$2:$A$27000,'5.1'!$A35&'5.1'!N$3&2,AUX_2d_pais!$J$2:$J$27000)/1000 -> 0 | O35: =SUM(J35:N35)/5 -> 0 | P35: 0 | Q35: 0 | S35: =G35-INDEX($C35:$G35,1,aux!$AL$1) -> 0 | T35: 0 | U35: =+IF(INDEX($C35:$G35,1,aux!$AL$1)>0,(G35/INDEX($C35:$G35,1,aux!$AL$1))^(1/($G$3-INDEX($C$3:$G$3,1,aux!$AL$1)))-1,"n.d.") -> n.d. | V35: =IF(INDEX($C35:$G35,1,aux!$AL$1)>0,(G35-INDEX($C35:$G35,1,aux!$AL$1))/INDEX($C35:$G35,1,aux!$AL$1),"n.d.") -> n.d. | X35: =N35-INDEX($J35:$N35,1,aux!$AL$1) -> 0 | Y35: 0 | Z35: =+IF(INDEX($J35:$N35,1,aux!$AL$1)>0,(N35/INDEX($J35:$N35,1,aux!$AL$1))^(1/($N$3-INDEX($J$3:$N$3,1,aux!$AL$1)))-1,"n.d.") -> n.d. | AA35: =IF(INDEX($J35:$N35,1,aux!$AL$1)>0,(N35-INDEX($J35:$N35,1,aux!$AL$1))/INDEX($J35:$N35,1,aux!$AL$1),"n.d.") -> n.d. | AC35: 0 | BS35: =+MATCH('5.1'!A35,AUX_2d_pais!$G$2:$G$20001,0) -> 
A36: 0508 | B36: Brasil | C36: =+SUMIF(AUX_2d_pais!$A$2:$A$27000,'5.1'!$A36&'5.1'!C$3&1,AUX_2d_pais!$J$2:$J$27000)/1000 -> 0 | D36: =+SUMIF(AUX_2d_pais!$A$2:$A$27000,'5.1'!$A36&'5.1'!D$3&1,AUX_2d_pais!$J$2:$J$27000)/1000 -> 0 | E36: =+SUMIF(AUX_2d_pais!$A$2:$A$27000,'5.1'!$A36&'5.1'!E$3&1,AUX_2d_pais!$J$2:$J$27000)/1000 -> 0 | F36: =+SUMIF(AUX_2d_pais!$A$2:$A$27000,'5.1'!$A36&'5.1'!F$3&1,AUX_2d_pais!$J$2:$J$27000)/1000 -> 0 | G36: =+SUMIF(AUX_2d_pais!$A$2:$A$27000,'5.1'!$A36&'5.1'!G$3&1,AUX_2d_pais!$J$2:$J$27000)/1000 -> 0 | H36: 0 | I36: =H36/$H$254 -> 0 | J36: =+SUMIF(AUX_2d_pais!$A$2:$A$27000,'5.1'!$A36&'5.1'!J$3&2,AUX_2d_pais!$J$2:$J$27000)/1000 -> 0 | K36: =+SUMIF(AUX_2d_pais!$A$2:$A$27000,'5.1'!$A36&'5.1'!K$3&2,AUX_2d_pais!$J$2:$J$27000)/1000 -> 0 | L36: =+SUMIF(AUX_2d_pais!$A$2:$A$27000,'5.1'!$A36&'5.1'!L$3&2,AUX_2d_pais!$J$2:$J$27000)/1000 -> 0 | M36: =+SUMIF(AUX_2d_pais!$A$2:$A$27000,'5.1'!$A36&'5.1'!M$3&2,AUX_2d_pais!$J$2:$J$27000)/1000 -> 0 | N36: =+SUMIF(AUX_2d_pais!$A$2:$A$27000,'5.1'!$A36&'5.1'!N$3&2,AUX_2d_pais!$J$2:$J$27000)/1000 -> 0 | O36: 0 | P36: =O36/$O$254 -> 0 | Q36: 0 | S36: =G36-INDEX($C36:$G36,1,aux!$AL$1) -> 0 | T36: =S36/$S$254 -> 0 | U36: =+IF(INDEX($C36:$G36,1,aux!$AL$1)>0,(G36/INDEX($C36:$G36,1,aux!$AL$1))^(1/($G$3-INDEX($C$3:$G$3,1,aux!$AL$1)))-1,"n.d.") -> n.d. | V36: =IF(INDEX($C36:$G36,1,aux!$AL$1)>0,(G36-INDEX($C36:$G36,1,aux!$AL$1))/INDEX($C36:$G36,1,aux!$AL$1),"n.d.") -> n.d. | X36: =N36-INDEX($J36:$N36,1,aux!$AL$1) -> 0 | Y36: =X36/$X$254 -> 0 | Z36: =+IF(INDEX($J36:$N36,1,aux!$AL$1)>0,(N36/INDEX($J36:$N36,1,aux!$AL$1))^(1/($N$3-INDEX($J$3:$N$3,1,aux!$AL$1)))-1,"n.d.") -> n.d. | AA36: =IF(INDEX($J36:$N36,1,aux!$AL$1)>0,(N36-INDEX($J36:$N36,1,aux!$AL$1))/INDEX($J36:$N36,1,aux!$AL$1),"n.d.") -> n.d. | AC36: 0 | BS36: =+MATCH('5.1'!A36,AUX_2d_pais!$G$2:$G$20001,0) -> 
A37: 0703 | B37: Brunei Darussalam | C37: =+SUMIF(AUX_2d_pais!$A$2:$A$27000,'5.1'!$A37&'5.1'!C$3&1,AUX_2d_pais!$J$2:$J$27000)/1000 -> 0 | D37: =+SUMIF(AUX_2d_pais!$A$2:$A$27000,'5.1'!$A37&'5.1'!D$3&1,AUX_2d_pais!$J$2:$J$27000)/1000 -> 0 | E37: =+SUMIF(AUX_2d_pais!$A$2:$A$27000,'5.1'!$A37&'5.1'!E$3&1,AUX_2d_pais!$J$2:$J$27000)/1000 -> 0 | F37: =+SUMIF(AUX_2d_pais!$A$2:$A$27000,'5.1'!$A37&'5.1'!F$3&1,AUX_2d_pais!$J$2:$J$27000)/1000 -> 0 | G37: =+SUMIF(AUX_2d_pais!$A$2:$A$27000,'5.1'!$A37&'5.1'!G$3&1,AUX_2d_pais!$J$2:$J$27000)/1000 -> 0 | H37: 0 | I37: 0 | J37: =+SUMIF(AUX_2d_pais!$A$2:$A$27000,'5.1'!$A37&'5.1'!J$3&2,AUX_2d_pais!$J$2:$J$27000)/1000 -> 0 | K37: =+SUMIF(AUX_2d_pais!$A$2:$A$27000,'5.1'!$A37&'5.1'!K$3&2,AUX_2d_pais!$J$2:$J$27000)/1000 -> 0 | L37: =+SUMIF(AUX_2d_pais!$A$2:$A$27000,'5.1'!$A37&'5.1'!L$3&2,AUX_2d_pais!$J$2:$J$27000)/1000 -> 0 | M37: =+SUMIF(AUX_2d_pais!$A$2:$A$27000,'5.1'!$A37&'5.1'!M$3&2,AUX_2d_pais!$J$2:$J$27000)/1000 -> 0 | N37: =+SUMIF(AUX_2d_pais!$A$2:$A$27000,'5.1'!$A37&'5.1'!N$3&2,AUX_2d_pais!$J$2:$J$27000)/1000 -> 0 | O37: 0 | P37: 0 | Q37: 0 | S37: =G37-INDEX($C37:$G37,1,aux!$AL$1) -> 0 | T37: 0 | U37: =+IF(INDEX($C37:$G37,1,aux!$AL$1)>0,(G37/INDEX($C37:$G37,1,aux!$AL$1))^(1/($G$3-INDEX($C$3:$G$3,1,aux!$AL$1)))-1,"n.d.") -> n.d. | V37: =IF(INDEX($C37:$G37,1,aux!$AL$1)>0,(G37-INDEX($C37:$G37,1,aux!$AL$1))/INDEX($C37:$G37,1,aux!$AL$1),"n.d.") -> n.d. | X37: =N37-INDEX($J37:$N37,1,aux!$AL$1) -> 0 | Y37: 0 | Z37: =+IF(INDEX($J37:$N37,1,aux!$AL$1)>0,(N37/INDEX($J37:$N37,1,aux!$AL$1))^(1/($N$3-INDEX($J$3:$N$3,1,aux!$AL$1)))-1,"n.d.") -> n.d. | AA37: =IF(INDEX($J37:$N37,1,aux!$AL$1)>0,(N37-INDEX($J37:$N37,1,aux!$AL$1))/INDEX($J37:$N37,1,aux!$AL$1),"n.d.") -> n.d. | AC37: 0 | BS37: =+MATCH('5.1'!A37,AUX_2d_pais!$G$2:$G$20001,0) -> 
A38: 0068 | B38: Bulgária | C38: =+SUMIF(AUX_2d_pais!$A$2:$A$27000,'5.1'!$A38&'5.1'!C$3&1,AUX_2d_pais!$J$2:$J$27000)/1000 -> 0 | D38: =+SUMIF(AUX_2d_pais!$A$2:$A$27000,'5.1'!$A38&'5.1'!D$3&1,AUX_2d_pais!$J$2:$J$27000)/1000 -> 0 | E38: =+SUMIF(AUX_2d_pais!$A$2:$A$27000,'5.1'!$A38&'5.1'!E$3&1,AUX_2d_pais!$J$2:$J$27000)/1000 -> 0 | F38: =+SUMIF(AUX_2d_pais!$A$2:$A$27000,'5.1'!$A38&'5.1'!F$3&1,AUX_2d_pais!$J$2:$J$27000)/1000 -> 0 | G38: =+SUMIF(AUX_2d_pais!$A$2:$A$27000,'5.1'!$A38&'5.1'!G$3&1,AUX_2d_pais!$J$2:$J$27000)/1000 -> 0 | H38: 0 | I38: 0 | J38: =+SUMIF(AUX_2d_pais!$A$2:$A$27000,'5.1'!$A38&'5.1'!J$3&2,AUX_2d_pais!$J$2:$J$27000)/1000 -> 0 | K38: =+SUMIF(AUX_2d_pais!$A$2:$A$27000,'5.1'!$A38&'5.1'!K$3&2,AUX_2d_pais!$J$2:$J$27000)/1000 -> 0 | L38: =+SUMIF(AUX_2d_pais!$A$2:$A$27000,'5.1'!$A38&'5.1'!L$3&2,AUX_2d_pais!$J$2:$J$27000)/1000 -> 0 | M38: =+SUMIF(AUX_2d_pais!$A$2:$A$27000,'5.1'!$A38&'5.1'!M$3&2,AUX_2d_pais!$J$2:$J$27000)/1000 -> 0 | N38: =+SUMIF(AUX_2d_pais!$A$2:$A$27000,'5.1'!$A38&'5.1'!N$3&2,AUX_2d_pais!$J$2:$J$27000)/1000 -> 0 | O38: 0 | P38: 0 | Q38: 0 | S38: =G38-INDEX($C38:$G38,1,aux!$AL$1) -> 0 | T38: 0 | U38: =+IF(INDEX($C38:$G38,1,aux!$AL$1)>0,(G38/INDEX($C38:$G38,1,aux!$AL$1))^(1/($G$3-INDEX($C$3:$G$3,1,aux!$AL$1)))-1,"n.d.") -> n.d. | V38: =IF(INDEX($C38:$G38,1,aux!$AL$1)>0,(G38-INDEX($C38:$G38,1,aux!$AL$1))/INDEX($C38:$G38,1,aux!$AL$1),"n.d.") -> n.d. | X38: =N38-INDEX($J38:$N38,1,aux!$AL$1) -> 0 | Y38: 0 | Z38: =+IF(INDEX($J38:$N38,1,aux!$AL$1)>0,(N38/INDEX($J38:$N38,1,aux!$AL$1))^(1/($N$3-INDEX($J$3:$N$3,1,aux!$AL$1)))-1,"n.d.") -> n.d. | AA38: =IF(INDEX($J38:$N38,1,aux!$AL$1)>0,(N38-INDEX($J38:$N38,1,aux!$AL$1))/INDEX($J38:$N38,1,aux!$AL$1),"n.d.") -> n.d. | AC38: 0 | BS38: =+MATCH('5.1'!A38,AUX_2d_pais!$G$2:$G$20001,0) -> 
A39: 0236 | B39: Burquina Faso | C39: =+SUMIF(AUX_2d_pais!$A$2:$A$27000,'5.1'!$A39&'5.1'!C$3&1,AUX_2d_pais!$J$2:$J$27000)/1000 -> 1562.598 | D39: =+SUMIF(AUX_2d_pais!$A$2:$A$27000,'5.1'!$A39&'5.1'!D$3&1,AUX_2d_pais!$J$2:$J$27000)/1000 -> 830.209 | E39: =+SUMIF(AUX_2d_pais!$A$2:$A$27000,'5.1'!$A39&'5.1'!E$3&1,AUX_2d_pais!$J$2:$J$27000)/1000 -> 121.927 | F39: =+SUMIF(AUX_2d_pais!$A$2:$A$27000,'5.1'!$A39&'5.1'!F$3&1,AUX_2d_pais!$J$2:$J$27000)/1000 -> 1057.476 | G39: =+SUMIF(AUX_2d_pais!$A$2:$A$27000,'5.1'!$A39&'5.1'!G$3&1,AUX_2d_pais!$J$2:$J$27000)/1000 -> 5056.578 | H39: =SUM(C39:G39)/5 -> 1725.7576 | I39: 0.003555026444 | J39: =+SUMIF(AUX_2d_pais!$A$2:$A$27000,'5.1'!$A39&'5.1'!J$3&2,AUX_2d_pais!$J$2:$J$27000)/1000 -> 2325.006 | K39: =+SUMIF(AUX_2d_pais!$A$2:$A$27000,'5.1'!$A39&'5.1'!K$3&2,AUX_2d_pais!$J$2:$J$27000)/1000 -> 2680.447 | L39: =+SUMIF(AUX_2d_pais!$A$2:$A$27000,'5.1'!$A39&'5.1'!L$3&2,AUX_2d_pais!$J$2:$J$27000)/1000 -> 3213.411 | M39: =+SUMIF(AUX_2d_pais!$A$2:$A$27000,'5.1'!$A39&'5.1'!M$3&2,AUX_2d_pais!$J$2:$J$27000)/1000 -> 4474.266 | N39: =+SUMIF(AUX_2d_pais!$A$2:$A$27000,'5.1'!$A39&'5.1'!N$3&2,AUX_2d_pais!$J$2:$J$27000)/1000 -> 5541.344 | O39: =SUM(J39:N39)/5 -> 3646.8948 | P39: 0.003730837091 | Q39: =O39-H39 -> 1921.1372 | S39: =G39-INDEX($C39:$G39,1,aux!$AL$1) -> 3493.98 | T39: 0.05213295663 | U39: =+IF(INDEX($C39:$G39,1,aux!$AL$1)>0,(G39/INDEX($C39:$G39,1,aux!$AL$1))^(1/($G$3-INDEX($C$3:$G$3,1,aux!$AL$1)))-1,"n.d.") -> 0.3412272289 | V39: =IF(INDEX($C39:$G39,1,aux!$AL$1)>0,(G39-INDEX($C39:$G39,1,aux!$AL$1))/INDEX($C39:$G39,1,aux!$AL$1),"n.d.") -> 2.236006958 | X39: =N39-INDEX($J39:$N39,1,aux!$AL$1) -> 3216.338 | Y39: 0.01545646702 | Z39: =+IF(INDEX($J39:$N39,1,aux!$AL$1)>0,(N39/INDEX($J39:$N39,1,aux!$AL$1))^(1/($N$3-INDEX($J$3:$N$3,1,aux!$AL$1)))-1,"n.d.") -> 0.2425038937 | AA39: =IF(INDEX($J39:$N39,1,aux!$AL$1)>0,(N39-INDEX($J39:$N39,1,aux!$AL$1))/INDEX($J39:$N39,1,aux!$AL$1),"n.d.") -> 1.383367613 | BS39: =+MATCH('5.1'!A39,AUX_2d_pais!$G$2:$G$20001,0) -> 90
A40: 0328 | B40: Burundi | C40: =+SUMIF(AUX_2d_pais!$A$2:$A$27000,'5.1'!$A40&'5.1'!C$3&1,AUX_2d_pais!$J$2:$J$27000)/1000 -> 0 | D40: =+SUMIF(AUX_2d_pais!$A$2:$A$27000,'5.1'!$A40&'5.1'!D$3&1,AUX_2d_pais!$J$2:$J$27000)/1000 -> 0 | E40: =+SUMIF(AUX_2d_pais!$A$2:$A$27000,'5.1'!$A40&'5.1'!E$3&1,AUX_2d_pais!$J$2:$J$27000)/1000 -> 0 | F40: =+SUMIF(AUX_2d_pais!$A$2:$A$27000,'5.1'!$A40&'5.1'!F$3&1,AUX_2d_pais!$J$2:$J$27000)/1000 -> 0.57 | G40: =+SUMIF(AUX_2d_pais!$A$2:$A$27000,'5.1'!$A40&'5.1'!G$3&1,AUX_2d_pais!$J$2:$J$27000)/1000 -> 0 | H40: 0.114 | I40: 2.3483774e-07 | J40: =+SUMIF(AUX_2d_pais!$A$2:$A$27000,'5.1'!$A40&'5.1'!J$3&2,AUX_2d_pais!$J$2:$J$27000)/1000 -> 1029.705 | K40: =+SUMIF(AUX_2d_pais!$A$2:$A$27000,'5.1'!$A40&'5.1'!K$3&2,AUX_2d_pais!$J$2:$J$27000)/1000 -> 844.031 | L40: =+SUMIF(AUX_2d_pais!$A$2:$A$27000,'5.1'!$A40&'5.1'!L$3&2,AUX_2d_pais!$J$2:$J$27000)/1000 -> 426.638 | M40: =+SUMIF(AUX_2d_pais!$A$2:$A$27000,'5.1'!$A40&'5.1'!M$3&2,AUX_2d_pais!$J$2:$J$27000)/1000 -> 1037.884 | N40: =+SUMIF(AUX_2d_pais!$A$2:$A$27000,'5.1'!$A40&'5.1'!N$3&2,AUX_2d_pais!$J$2:$J$27000)/1000 -> 47.248 | O40: 677.1012 | P40: 0.0006926863564 | Q40: 676.9872 | S40: =G40-INDEX($C40:$G40,1,aux!$AL$1) -> 0 | T40: 0 | U40: =+IF(INDEX($C40:$G40,1,aux!$AL$1)>0,(G40/INDEX($C40:$G40,1,aux!$AL$1))^(1/($G$3-INDEX($C$3:$G$3,1,aux!$AL$1)))-1,"n.d.") -> n.d. | V40: =IF(INDEX($C40:$G40,1,aux!$AL$1)>0,(G40-INDEX($C40:$G40,1,aux!$AL$1))/INDEX($C40:$G40,1,aux!$AL$1),"n.d.") -> n.d. | X40: =N40-INDEX($J40:$N40,1,aux!$AL$1) -> -982.457 | Y40: -0.004721305479 | Z40: =+IF(INDEX($J40:$N40,1,aux!$AL$1)>0,(N40/INDEX($J40:$N40,1,aux!$AL$1))^(1/($N$3-INDEX($J$3:$N$3,1,aux!$AL$1)))-1,"n.d.") -> -0.5371741025 | AA40: =IF(INDEX($J40:$N40,1,aux!$AL$1)>0,(N40-INDEX($J40:$N40,1,aux!$AL$1))/INDEX($J40:$N40,1,aux!$AL$1),"n.d.") -> -0.9541150135 | BS40: =+MATCH('5.1'!A40,AUX_2d_pais!$G$2:$G$20001,0) -> 1502
A41: 0675 | B41: Butão | C41: =+SUMIF(AUX_2d_pais!$A$2:$A$27000,'5.1'!$A41&'5.1'!C$3&1,AUX_2d_pais!$J$2:$J$27000)/1000 -> 0 | D41: =+SUMIF(AUX_2d_pais!$A$2:$A$27000,'5.1'!$A41&'5.1'!D$3&1,AUX_2d_pais!$J$2:$J$27000)/1000 -> 0 | E41: =+SUMIF(AUX_2d_pais!$A$2:$A$27000,'5.1'!$A41&'5.1'!E$3&1,AUX_2d_pais!$J$2:$J$27000)/1000 -> 0 | F41: =+SUMIF(AUX_2d_pais!$A$2:$A$27000,'5.1'!$A41&'5.1'!F$3&1,AUX_2d_pais!$J$2:$J$27000)/1000 -> 0 | G41: =+SUMIF(AUX_2d_pais!$A$2:$A$27000,'5.1'!$A41&'5.1'!G$3&1,AUX_2d_pais!$J$2:$J$27000)/1000 -> 0 | H41: 0 | I41: 0 | J41: =+SUMIF(AUX_2d_pais!$A$2:$A$27000,'5.1'!$A41&'5.1'!J$3&2,AUX_2d_pais!$J$2:$J$27000)/1000 -> 0 | K41: =+SUMIF(AUX_2d_pais!$A$2:$A$27000,'5.1'!$A41&'5.1'!K$3&2,AUX_2d_pais!$J$2:$J$27000)/1000 -> 0 | L41: =+SUMIF(AUX_2d_pais!$A$2:$A$27000,'5.1'!$A41&'5.1'!L$3&2,AUX_2d_pais!$J$2:$J$27000)/1000 -> 0 | M41: =+SUMIF(AUX_2d_pais!$A$2:$A$27000,'5.1'!$A41&'5.1'!M$3&2,AUX_2d_pais!$J$2:$J$27000)/1000 -> 0 | N41: =+SUMIF(AUX_2d_pais!$A$2:$A$27000,'5.1'!$A41&'5.1'!N$3&2,AUX_2d_pais!$J$2:$J$27000)/1000 -> 0 | O41: 0 | P41: 0 | Q41: 0 | S41: =G41-INDEX($C41:$G41,1,aux!$AL$1) -> 0 | T41: 0 | U41: =+IF(INDEX($C41:$G41,1,aux!$AL$1)>0,(G41/INDEX($C41:$G41,1,aux!$AL$1))^(1/($G$3-INDEX($C$3:$G$3,1,aux!$AL$1)))-1,"n.d.") -> n.d. | V41: =IF(INDEX($C41:$G41,1,aux!$AL$1)>0,(G41-INDEX($C41:$G41,1,aux!$AL$1))/INDEX($C41:$G41,1,aux!$AL$1),"n.d.") -> n.d. | X41: =N41-INDEX($J41:$N41,1,aux!$AL$1) -> 0 | Y41: 0 | Z41: =+IF(INDEX($J41:$N41,1,aux!$AL$1)>0,(N41/INDEX($J41:$N41,1,aux!$AL$1))^(1/($N$3-INDEX($J$3:$N$3,1,aux!$AL$1)))-1,"n.d.") -> n.d. | AA41: =IF(INDEX($J41:$N41,1,aux!$AL$1)>0,(N41-INDEX($J41:$N41,1,aux!$AL$1))/INDEX($J41:$N41,1,aux!$AL$1),"n.d.") -> n.d. | AC41: 0 | BS41: =+MATCH('5.1'!A41,AUX_2d_pais!$G$2:$G$20001,0) -> 
A42: 0247 | B42: Cabo Verde | C42: =+SUMIF(AUX_2d_pais!$A$2:$A$27000,'5.1'!$A42&'5.1'!C$3&1,AUX_2d_pais!$J$2:$J$27000)/1000 -> 2432.119 | D42: =+SUMIF(AUX_2d_pais!$A$2:$A$27000,'5.1'!$A42&'5.1'!D$3&1,AUX_2d_pais!$J$2:$J$27000)/1000 -> 966.521 | E42: =+SUMIF(AUX_2d_pais!$A$2:$A$27000,'5.1'!$A42&'5.1'!E$3&1,AUX_2d_pais!$J$2:$J$27000)/1000 -> 136.471 | F42: =+SUMIF(AUX_2d_pais!$A$2:$A$27000,'5.1'!$A42&'5.1'!F$3&1,AUX_2d_pais!$J$2:$J$27000)/1000 -> 202.53 | G42: =+SUMIF(AUX_2d_pais!$A$2:$A$27000,'5.1'!$A42&'5.1'!G$3&1,AUX_2d_pais!$J$2:$J$27000)/1000 -> 451.242 | H42: 837.7766 | I42: 0.001725803188 | J42: =+SUMIF(AUX_2d_pais!$A$2:$A$27000,'5.1'!$A42&'5.1'!J$3&2,AUX_2d_pais!$J$2:$J$27000)/1000 -> 87033.133 | K42: =+SUMIF(AUX_2d_pais!$A$2:$A$27000,'5.1'!$A42&'5.1'!K$3&2,AUX_2d_pais!$J$2:$J$27000)/1000 -> 94949.115 | L42: =+SUMIF(AUX_2d_pais!$A$2:$A$27000,'5.1'!$A42&'5.1'!L$3&2,AUX_2d_pais!$J$2:$J$27000)/1000 -> 91426.216 | M42: =+SUMIF(AUX_2d_pais!$A$2:$A$27000,'5.1'!$A42&'5.1'!M$3&2,AUX_2d_pais!$J$2:$J$27000)/1000 -> 103626.034 | N42: =+SUMIF(AUX_2d_pais!$A$2:$A$27000,'5.1'!$A42&'5.1'!N$3&2,AUX_2d_pais!$J$2:$J$27000)/1000 -> 127281.035 | O42: 100863.1066 | P42: 0.1031847201 | Q42: 100025.33 | S42: =G42-INDEX($C42:$G42,1,aux!$AL$1) -> -1980.877 | T42: -0.02955625812 | U42: =+IF(INDEX($C42:$G42,1,aux!$AL$1)>0,(G42/INDEX($C42:$G42,1,aux!$AL$1))^(1/($G$3-INDEX($C$3:$G$3,1,aux!$AL$1)))-1,"n.d.") -> -0.3436943036 | V42: =IF(INDEX($C42:$G42,1,aux!$AL$1)>0,(G42-INDEX($C42:$G42,1,aux!$AL$1))/INDEX($C42:$G42,1,aux!$AL$1),"n.d.") -> -0.8144654928 | X42: =N42-INDEX($J42:$N42,1,aux!$AL$1) -> 40247.902 | Y42: 0.1934157324 | Z42: =+IF(INDEX($J42:$N42,1,aux!$AL$1)>0,(N42/INDEX($J42:$N42,1,aux!$AL$1))^(1/($N$3-INDEX($J$3:$N$3,1,aux!$AL$1)))-1,"n.d.") -> 0.09968871964 | AA42: =IF(INDEX($J42:$N42,1,aux!$AL$1)>0,(N42-INDEX($J42:$N42,1,aux!$AL$1))/INDEX($J42:$N42,1,aux!$AL$1),"n.d.") -> 0.4624434467 | BS42: =+MATCH('5.1'!A42,AUX_2d_pais!$G$2:$G$20001,0) -> 14
A43: 0463 | B43: Caimão, Ilhas | C43: =+SUMIF(AUX_2d_pais!$A$2:$A$27000,'5.1'!$A43&'5.1'!C$3&1,AUX_2d_pais!$J$2:$J$27000)/1000 -> 0 | D43: =+SUMIF(AUX_2d_pais!$A$2:$A$27000,'5.1'!$A43&'5.1'!D$3&1,AUX_2d_pais!$J$2:$J$27000)/1000 -> 0 | E43: =+SUMIF(AUX_2d_pais!$A$2:$A$27000,'5.1'!$A43&'5.1'!E$3&1,AUX_2d_pais!$J$2:$J$27000)/1000 -> 0 | F43: =+SUMIF(AUX_2d_pais!$A$2:$A$27000,'5.1'!$A43&'5.1'!F$3&1,AUX_2d_pais!$J$2:$J$27000)/1000 -> 0 | G43: =+SUMIF(AUX_2d_pais!$A$2:$A$27000,'5.1'!$A43&'5.1'!G$3&1,AUX_2d_pais!$J$2:$J$27000)/1000 -> 0 | H43: 0 | I43: 0 | J43: =+SUMIF(AUX_2d_pais!$A$2:$A$27000,'5.1'!$A43&'5.1'!J$3&2,AUX_2d_pais!$J$2:$J$27000)/1000 -> 0 | K43: =+SUMIF(AUX_2d_pais!$A$2:$A$27000,'5.1'!$A43&'5.1'!K$3&2,AUX_2d_pais!$J$2:$J$27000)/1000 -> 0 | L43: =+SUMIF(AUX_2d_pais!$A$2:$A$27000,'5.1'!$A43&'5.1'!L$3&2,AUX_2d_pais!$J$2:$J$27000)/1000 -> 0 | M43: =+SUMIF(AUX_2d_pais!$A$2:$A$27000,'5.1'!$A43&'5.1'!M$3&2,AUX_2d_pais!$J$2:$J$27000)/1000 -> 0 | N43: =+SUMIF(AUX_2d_pais!$A$2:$A$27000,'5.1'!$A43&'5.1'!N$3&2,AUX_2d_pais!$J$2:$J$27000)/1000 -> 0 | O43: 0 | P43: 0 | Q43: 0 | S43: =G43-INDEX($C43:$G43,1,aux!$AL$1) -> 0 | T43: 0 | U43: =+IF(INDEX($C43:$G43,1,aux!$AL$1)>0,(G43/INDEX($C43:$G43,1,aux!$AL$1))^(1/($G$3-INDEX($C$3:$G$3,1,aux!$AL$1)))-1,"n.d.") -> n.d. | V43: =IF(INDEX($C43:$G43,1,aux!$AL$1)>0,(G43-INDEX($C43:$G43,1,aux!$AL$1))/INDEX($C43:$G43,1,aux!$AL$1),"n.d.") -> n.d. | X43: =N43-INDEX($J43:$N43,1,aux!$AL$1) -> 0 | Y43: 0 | Z43: =+IF(INDEX($J43:$N43,1,aux!$AL$1)>0,(N43/INDEX($J43:$N43,1,aux!$AL$1))^(1/($N$3-INDEX($J$3:$N$3,1,aux!$AL$1)))-1,"n.d.") -> n.d. | AA43: =IF(INDEX($J43:$N43,1,aux!$AL$1)>0,(N43-INDEX($J43:$N43,1,aux!$AL$1))/INDEX($J43:$N43,1,aux!$AL$1),"n.d.") -> n.d. | AC43: 0 | BS43: =+MATCH('5.1'!A43,AUX_2d_pais!$G$2:$G$20001,0) -> 
A44: 0302 | B44: Camarões | C44: =+SUMIF(AUX_2d_pais!$A$2:$A$27000,'5.1'!$A44&'5.1'!C$3&1,AUX_2d_pais!$J$2:$J$27000)/1000 -> 11688.863 | D44: =+SUMIF(AUX_2d_pais!$A$2:$A$27000,'5.1'!$A44&'5.1'!D$3&1,AUX_2d_pais!$J$2:$J$27000)/1000 -> 14900.082 | E44: =+SUMIF(AUX_2d_pais!$A$2:$A$27000,'5.1'!$A44&'5.1'!E$3&1,AUX_2d_pais!$J$2:$J$27000)/1000 -> 11473.186 | F44: =+SUMIF(AUX_2d_pais!$A$2:$A$27000,'5.1'!$A44&'5.1'!F$3&1,AUX_2d_pais!$J$2:$J$27000)/1000 -> 10531.212 | G44: =+SUMIF(AUX_2d_pais!$A$2:$A$27000,'5.1'!$A44&'5.1'!G$3&1,AUX_2d_pais!$J$2:$J$27000)/1000 -> 13508.671 | H44: 12420.4028 | I44: 0.02558578354 | J44: =+SUMIF(AUX_2d_pais!$A$2:$A$27000,'5.1'!$A44&'5.1'!J$3&2,AUX_2d_pais!$J$2:$J$27000)/1000 -> 7464.89 | K44: =+SUMIF(AUX_2d_pais!$A$2:$A$27000,'5.1'!$A44&'5.1'!K$3&2,AUX_2d_pais!$J$2:$J$27000)/1000 -> 7898.424 | L44: =+SUMIF(AUX_2d_pais!$A$2:$A$27000,'5.1'!$A44&'5.1'!L$3&2,AUX_2d_pais!$J$2:$J$27000)/1000 -> 7451.131 | M44: =+SUMIF(AUX_2d_pais!$A$2:$A$27000,'5.1'!$A44&'5.1'!M$3&2,AUX_2d_pais!$J$2:$J$27000)/1000 -> 9930.219 | N44: =+SUMIF(AUX_2d_pais!$A$2:$A$27000,'5.1'!$A44&'5.1'!N$3&2,AUX_2d_pais!$J$2:$J$27000)/1000 -> 12715.114 | O44: 9091.9556 | P44: 0.009301229413 | Q44: -3328.4472 | S44: =G44-INDEX($C44:$G44,1,aux!$AL$1) -> 1819.808 | T44: 0.02715298071 | U44: =+IF(INDEX($C44:$G44,1,aux!$AL$1)>0,(G44/INDEX($C44:$G44,1,aux!$AL$1))^(1/($G$3-INDEX($C$3:$G$3,1,aux!$AL$1)))-1,"n.d.") -> 0.03683605041 | V44: =IF(INDEX($C44:$G44,1,aux!$AL$1)>0,(G44-INDEX($C44:$G44,1,aux!$AL$1))/INDEX($C44:$G44,1,aux!$AL$1),"n.d.") -> 0.155687341 | X44: =N44-INDEX($J44:$N44,1,aux!$AL$1) -> 5250.224 | Y44: 0.02523053053 | Z44: =+IF(INDEX($J44:$N44,1,aux!$AL$1)>0,(N44/INDEX($J44:$N44,1,aux!$AL$1))^(1/($N$3-INDEX($J$3:$N$3,1,aux!$AL$1)))-1,"n.d.") -> 0.1424158277 | AA44: =IF(INDEX($J44:$N44,1,aux!$AL$1)>0,(N44-INDEX($J44:$N44,1,aux!$AL$1))/INDEX($J44:$N44,1,aux!$AL$1),"n.d.") -> 0.703322353 | BS44: =+MATCH('5.1'!A44,AUX_2d_pais!$G$2:$G$20001,0) -> 33
A45: 0696 | B45: Camboja | C45: =+SUMIF(AUX_2d_pais!$A$2:$A$27000,'5.1'!$A45&'5.1'!C$3&1,AUX_2d_pais!$J$2:$J$27000)/1000 -> 0 | D45: =+SUMIF(AUX_2d_pais!$A$2:$A$27000,'5.1'!$A45&'5.1'!D$3&1,AUX_2d_pais!$J$2:$J$27000)/1000 -> 0 | E45: =+SUMIF(AUX_2d_pais!$A$2:$A$27000,'5.1'!$A45&'5.1'!E$3&1,AUX_2d_pais!$J$2:$J$27000)/1000 -> 0 | F45: =+SUMIF(AUX_2d_pais!$A$2:$A$27000,'5.1'!$A45&'5.1'!F$3&1,AUX_2d_pais!$J$2:$J$27000)/1000 -> 0 | G45: =+SUMIF(AUX_2d_pais!$A$2:$A$27000,'5.1'!$A45&'5.1'!G$3&1,AUX_2d_pais!$J$2:$J$27000)/1000 -> 0 | H45: 0 | I45: 0 | J45: =+SUMIF(AUX_2d_pais!$A$2:$A$27000,'5.1'!$A45&'5.1'!J$3&2,AUX_2d_pais!$J$2:$J$27000)/1000 -> 0 | K45: =+SUMIF(AUX_2d_pais!$A$2:$A$27000,'5.1'!$A45&'5.1'!K$3&2,AUX_2d_pais!$J$2:$J$27000)/1000 -> 0 | L45: =+SUMIF(AUX_2d_pais!$A$2:$A$27000,'5.1'!$A45&'5.1'!L$3&2,AUX_2d_pais!$J$2:$J$27000)/1000 -> 0 | M45: =+SUMIF(AUX_2d_pais!$A$2:$A$27000,'5.1'!$A45&'5.1'!M$3&2,AUX_2d_pais!$J$2:$J$27000)/1000 -> 0 | N45: =+SUMIF(AUX_2d_pais!$A$2:$A$27000,'5.1'!$A45&'5.1'!N$3&2,AUX_2d_pais!$J$2:$J$27000)/1000 -> 0 | O45: 0 | P45: 0 | Q45: 0 | S45: =G45-INDEX($C45:$G45,1,aux!$AL$1) -> 0 | T45: 0 | U45: =+IF(INDEX($C45:$G45,1,aux!$AL$1)>0,(G45/INDEX($C45:$G45,1,aux!$AL$1))^(1/($G$3-INDEX($C$3:$G$3,1,aux!$AL$1)))-1,"n.d.") -> n.d. | V45: =IF(INDEX($C45:$G45,1,aux!$AL$1)>0,(G45-INDEX($C45:$G45,1,aux!$AL$1))/INDEX($C45:$G45,1,aux!$AL$1),"n.d.") -> n.d. | X45: =N45-INDEX($J45:$N45,1,aux!$AL$1) -> 0 | Y45: 0 | Z45: =+IF(INDEX($J45:$N45,1,aux!$AL$1)>0,(N45/INDEX($J45:$N45,1,aux!$AL$1))^(1/($N$3-INDEX($J$3:$N$3,1,aux!$AL$1)))-1,"n.d.") -> n.d. | AA45: =IF(INDEX($J45:$N45,1,aux!$AL$1)>0,(N45-INDEX($J45:$N45,1,aux!$AL$1))/INDEX($J45:$N45,1,aux!$AL$1),"n.d.") -> n.d. | AC45: 0 | BS45: =+MATCH('5.1'!A45,AUX_2d_pais!$G$2:$G$20001,0) -> 
A46: 0404 | B46: Canadá | C46: =+SUMIF(AUX_2d_pais!$A$2:$A$27000,'5.1'!$A46&'5.1'!C$3&1,AUX_2d_pais!$J$2:$J$27000)/1000 -> 0 | D46: =+SUMIF(AUX_2d_pais!$A$2:$A$27000,'5.1'!$A46&'5.1'!D$3&1,AUX_2d_pais!$J$2:$J$27000)/1000 -> 0 | E46: =+SUMIF(AUX_2d_pais!$A$2:$A$27000,'5.1'!$A46&'5.1'!E$3&1,AUX_2d_pais!$J$2:$J$27000)/1000 -> 0 | F46: =+SUMIF(AUX_2d_pais!$A$2:$A$27000,'5.1'!$A46&'5.1'!F$3&1,AUX_2d_pais!$J$2:$J$27000)/1000 -> 0 | G46: =+SUMIF(AUX_2d_pais!$A$2:$A$27000,'5.1'!$A46&'5.1'!G$3&1,AUX_2d_pais!$J$2:$J$27000)/1000 -> 0 | H46: 0 | I46: 0 | J46: =+SUMIF(AUX_2d_pais!$A$2:$A$27000,'5.1'!$A46&'5.1'!J$3&2,AUX_2d_pais!$J$2:$J$27000)/1000 -> 0 | K46: =+SUMIF(AUX_2d_pais!$A$2:$A$27000,'5.1'!$A46&'5.1'!K$3&2,AUX_2d_pais!$J$2:$J$27000)/1000 -> 0 | L46: =+SUMIF(AUX_2d_pais!$A$2:$A$27000,'5.1'!$A46&'5.1'!L$3&2,AUX_2d_pais!$J$2:$J$27000)/1000 -> 0 | M46: =+SUMIF(AUX_2d_pais!$A$2:$A$27000,'5.1'!$A46&'5.1'!M$3&2,AUX_2d_pais!$J$2:$J$27000)/1000 -> 0 | N46: =+SUMIF(AUX_2d_pais!$A$2:$A$27000,'5.1'!$A46&'5.1'!N$3&2,AUX_2d_pais!$J$2:$J$27000)/1000 -> 0 | O46: 0 | P46: 0 | Q46: 0 | S46: =G46-INDEX($C46:$G46,1,aux!$AL$1) -> 0 | T46: 0 | U46: =+IF(INDEX($C46:$G46,1,aux!$AL$1)>0,(G46/INDEX($C46:$G46,1,aux!$AL$1))^(1/($G$3-INDEX($C$3:$G$3,1,aux!$AL$1)))-1,"n.d.") -> n.d. | V46: =IF(INDEX($C46:$G46,1,aux!$AL$1)>0,(G46-INDEX($C46:$G46,1,aux!$AL$1))/INDEX($C46:$G46,1,aux!$AL$1),"n.d.") -> n.d. | X46: =N46-INDEX($J46:$N46,1,aux!$AL$1) -> 0 | Y46: 0 | Z46: =+IF(INDEX($J46:$N46,1,aux!$AL$1)>0,(N46/INDEX($J46:$N46,1,aux!$AL$1))^(1/($N$3-INDEX($J$3:$N$3,1,aux!$AL$1)))-1,"n.d.") -> n.d. | AA46: =IF(INDEX($J46:$N46,1,aux!$AL$1)>0,(N46-INDEX($J46:$N46,1,aux!$AL$1))/INDEX($J46:$N46,1,aux!$AL$1),"n.d.") -> n.d. | AC46: 0 | BS46: =+MATCH('5.1'!A46,AUX_2d_pais!$G$2:$G$20001,0) -> 
A47: 0644 | B47: Catar | C47: =+SUMIF(AUX_2d_pais!$A$2:$A$27000,'5.1'!$A47&'5.1'!C$3&1,AUX_2d_pais!$J$2:$J$27000)/1000 -> 0 | D47: =+SUMIF(AUX_2d_pais!$A$2:$A$27000,'5.1'!$A47&'5.1'!D$3&1,AUX_2d_pais!$J$2:$J$27000)/1000 -> 0 | E47: =+SUMIF(AUX_2d_pais!$A$2:$A$27000,'5.1'!$A47&'5.1'!E$3&1,AUX_2d_pais!$J$2:$J$27000)/1000 -> 0 | F47: =+SUMIF(AUX_2d_pais!$A$2:$A$27000,'5.1'!$A47&'5.1'!F$3&1,AUX_2d_pais!$J$2:$J$27000)/1000 -> 0 | G47: =+SUMIF(AUX_2d_pais!$A$2:$A$27000,'5.1'!$A47&'5.1'!G$3&1,AUX_2d_pais!$J$2:$J$27000)/1000 -> 0 | H47: 0 | I47: 0 | J47: =+SUMIF(AUX_2d_pais!$A$2:$A$27000,'5.1'!$A47&'5.1'!J$3&2,AUX_2d_pais!$J$2:$J$27000)/1000 -> 0 | K47: =+SUMIF(AUX_2d_pais!$A$2:$A$27000,'5.1'!$A47&'5.1'!K$3&2,AUX_2d_pais!$J$2:$J$27000)/1000 -> 0 | L47: =+SUMIF(AUX_2d_pais!$A$2:$A$27000,'5.1'!$A47&'5.1'!L$3&2,AUX_2d_pais!$J$2:$J$27000)/1000 -> 0 | M47: =+SUMIF(AUX_2d_pais!$A$2:$A$27000,'5.1'!$A47&'5.1'!M$3&2,AUX_2d_pais!$J$2:$J$27000)/1000 -> 0 | N47: =+SUMIF(AUX_2d_pais!$A$2:$A$27000,'5.1'!$A47&'5.1'!N$3&2,AUX_2d_pais!$J$2:$J$27000)/1000 -> 0 | O47: 0 | P47: 0 | Q47: 0 | S47: =G47-INDEX($C47:$G47,1,aux!$AL$1) -> 0 | T47: 0 | U47: =+IF(INDEX($C47:$G47,1,aux!$AL$1)>0,(G47/INDEX($C47:$G47,1,aux!$AL$1))^(1/($G$3-INDEX($C$3:$G$3,1,aux!$AL$1)))-1,"n.d.") -> n.d. | V47: =IF(INDEX($C47:$G47,1,aux!$AL$1)>0,(G47-INDEX($C47:$G47,1,aux!$AL$1))/INDEX($C47:$G47,1,aux!$AL$1),"n.d.") -> n.d. | X47: =N47-INDEX($J47:$N47,1,aux!$AL$1) -> 0 | Y47: 0 | Z47: =+IF(INDEX($J47:$N47,1,aux!$AL$1)>0,(N47/INDEX($J47:$N47,1,aux!$AL$1))^(1/($N$3-INDEX($J$3:$N$3,1,aux!$AL$1)))-1,"n.d.") -> n.d. | AA47: =IF(INDEX($J47:$N47,1,aux!$AL$1)>0,(N47-INDEX($J47:$N47,1,aux!$AL$1))/INDEX($J47:$N47,1,aux!$AL$1),"n.d.") -> n.d. | AC47: 0 | BS47: =+MATCH('5.1'!A47,AUX_2d_pais!$G$2:$G$20001,0) -> 
A48: 0079 | B48: Cazaquistão | C48: =+SUMIF(AUX_2d_pais!$A$2:$A$27000,'5.1'!$A48&'5.1'!C$3&1,AUX_2d_pais!$J$2:$J$27000)/1000 -> 0 | D48: =+SUMIF(AUX_2d_pais!$A$2:$A$27000,'5.1'!$A48&'5.1'!D$3&1,AUX_2d_pais!$J$2:$J$27000)/1000 -> 0 | E48: =+SUMIF(AUX_2d_pais!$A$2:$A$27000,'5.1'!$A48&'5.1'!E$3&1,AUX_2d_pais!$J$2:$J$27000)/1000 -> 0 | F48: =+SUMIF(AUX_2d_pais!$A$2:$A$27000,'5.1'!$A48&'5.1'!F$3&1,AUX_2d_pais!$J$2:$J$27000)/1000 -> 0 | G48: =+SUMIF(AUX_2d_pais!$A$2:$A$27000,'5.1'!$A48&'5.1'!G$3&1,AUX_2d_pais!$J$2:$J$27000)/1000 -> 0 | H48: 0 | I48: 0 | J48: =+SUMIF(AUX_2d_pais!$A$2:$A$27000,'5.1'!$A48&'5.1'!J$3&2,AUX_2d_pais!$J$2:$J$27000)/1000 -> 0 | K48: =+SUMIF(AUX_2d_pais!$A$2:$A$27000,'5.1'!$A48&'5.1'!K$3&2,AUX_2d_pais!$J$2:$J$27000)/1000 -> 0 | L48: =+SUMIF(AUX_2d_pais!$A$2:$A$27000,'5.1'!$A48&'5.1'!L$3&2,AUX_2d_pais!$J$2:$J$27000)/1000 -> 0 | M48: =+SUMIF(AUX_2d_pais!$A$2:$A$27000,'5.1'!$A48&'5.1'!M$3&2,AUX_2d_pais!$J$2:$J$27000)/1000 -> 0 | N48: =+SUMIF(AUX_2d_pais!$A$2:$A$27000,'5.1'!$A48&'5.1'!N$3&2,AUX_2d_pais!$J$2:$J$27000)/1000 -> 0 | O48: 0 | P48: 0 | Q48: 0 | S48: =G48-INDEX($C48:$G48,1,aux!$AL$1) -> 0 | T48: 0 | U48: =+IF(INDEX($C48:$G48,1,aux!$AL$1)>0,(G48/INDEX($C48:$G48,1,aux!$AL$1))^(1/($G$3-INDEX($C$3:$G$3,1,aux!$AL$1)))-1,"n.d.") -> n.d. | V48: =IF(INDEX($C48:$G48,1,aux!$AL$1)>0,(G48-INDEX($C48:$G48,1,aux!$AL$1))/INDEX($C48:$G48,1,aux!$AL$1),"n.d.") -> n.d. | X48: =N48-INDEX($J48:$N48,1,aux!$AL$1) -> 0 | Y48: 0 | Z48: =+IF(INDEX($J48:$N48,1,aux!$AL$1)>0,(N48/INDEX($J48:$N48,1,aux!$AL$1))^(1/($N$3-INDEX($J$3:$N$3,1,aux!$AL$1)))-1,"n.d.") -> n.d. | AA48: =IF(INDEX($J48:$N48,1,aux!$AL$1)>0,(N48-INDEX($J48:$N48,1,aux!$AL$1))/INDEX($J48:$N48,1,aux!$AL$1),"n.d.") -> n.d. | AC48: 0 | BS48: =+MATCH('5.1'!A48,AUX_2d_pais!$G$2:$G$20001,0) -> 
A49: 0306 | B49: Centro-Africana, República | C49: =+SUMIF(AUX_2d_pais!$A$2:$A$27000,'5.1'!$A49&'5.1'!C$3&1,AUX_2d_pais!$J$2:$J$27000)/1000 -> 3045.54 | D49: =+SUMIF(AUX_2d_pais!$A$2:$A$27000,'5.1'!$A49&'5.1'!D$3&1,AUX_2d_pais!$J$2:$J$27000)/1000 -> 1754.808 | E49: =+SUMIF(AUX_2d_pais!$A$2:$A$27000,'5.1'!$A49&'5.1'!E$3&1,AUX_2d_pais!$J$2:$J$27000)/1000 -> 1327.433 | F49: =+SUMIF(AUX_2d_pais!$A$2:$A$27000,'5.1'!$A49&'5.1'!F$3&1,AUX_2d_pais!$J$2:$J$27000)/1000 -> 2767.585 | G49: =+SUMIF(AUX_2d_pais!$A$2:$A$27000,'5.1'!$A49&'5.1'!G$3&1,AUX_2d_pais!$J$2:$J$27000)/1000 -> 4000.976 | H49: 2579.2684 | I49: 0.005313241772 | J49: =+SUMIF(AUX_2d_pais!$A$2:$A$27000,'5.1'!$A49&'5.1'!J$3&2,AUX_2d_pais!$J$2:$J$27000)/1000 -> 34.392 | K49: =+SUMIF(AUX_2d_pais!$A$2:$A$27000,'5.1'!$A49&'5.1'!K$3&2,AUX_2d_pais!$J$2:$J$27000)/1000 -> 143.364 | L49: =+SUMIF(AUX_2d_pais!$A$2:$A$27000,'5.1'!$A49&'5.1'!L$3&2,AUX_2d_pais!$J$2:$J$27000)/1000 -> 88.084 | M49: =+SUMIF(AUX_2d_pais!$A$2:$A$27000,'5.1'!$A49&'5.1'!M$3&2,AUX_2d_pais!$J$2:$J$27000)/1000 -> 120.107 | N49: =+SUMIF(AUX_2d_pais!$A$2:$A$27000,'5.1'!$A49&'5.1'!N$3&2,AUX_2d_pais!$J$2:$J$27000)/1000 -> 95.865 | O49: 96.3624 | P49: 9.858041863e-05 | Q49: -2482.906 | S49: =G49-INDEX($C49:$G49,1,aux!$AL$1) -> 955.436 | T49: 0.01425586396 | U49: =+IF(INDEX($C49:$G49,1,aux!$AL$1)>0,(G49/INDEX($C49:$G49,1,aux!$AL$1))^(1/($G$3-INDEX($C$3:$G$3,1,aux!$AL$1)))-1,"n.d.") -> 0.07059549014 | V49: =IF(INDEX($C49:$G49,1,aux!$AL$1)>0,(G49-INDEX($C49:$G49,1,aux!$AL$1))/INDEX($C49:$G49,1,aux!$AL$1),"n.d.") -> 0.3137164509 | X49: =N49-INDEX($J49:$N49,1,aux!$AL$1) -> 61.473 | Y49: 0.000295415282 | Z49: =+IF(INDEX($J49:$N49,1,aux!$AL$1)>0,(N49/INDEX($J49:$N49,1,aux!$AL$1))^(1/($N$3-INDEX($J$3:$N$3,1,aux!$AL$1)))-1,"n.d.") -> 0.2921134914 | AA49: =IF(INDEX($J49:$N49,1,aux!$AL$1)>0,(N49-INDEX($J49:$N49,1,aux!$AL$1))/INDEX($J49:$N49,1,aux!$AL$1),"n.d.") -> 1.787421493 | BS49: =+MATCH('5.1'!A49,AUX_2d_pais!$G$2:$G$20001,0) -> 142
A50: 0021 | B50: Ceuta | C50: =+SUMIF(AUX_2d_pais!$A$2:$A$27000,'5.1'!$A50&'5.1'!C$3&1,AUX_2d_pais!$J$2:$J$27000)/1000 -> 0 | D50: =+SUMIF(AUX_2d_pais!$A$2:$A$27000,'5.1'!$A50&'5.1'!D$3&1,AUX_2d_pais!$J$2:$J$27000)/1000 -> 0 | E50: =+SUMIF(AUX_2d_pais!$A$2:$A$27000,'5.1'!$A50&'5.1'!E$3&1,AUX_2d_pais!$J$2:$J$27000)/1000 -> 0 | F50: =+SUMIF(AUX_2d_pais!$A$2:$A$27000,'5.1'!$A50&'5.1'!F$3&1,AUX_2d_pais!$J$2:$J$27000)/1000 -> 0 | G50: =+SUMIF(AUX_2d_pais!$A$2:$A$27000,'5.1'!$A50&'5.1'!G$3&1,AUX_2d_pais!$J$2:$J$27000)/1000 -> 0 | H50: 0 | I50: 0 | J50: =+SUMIF(AUX_2d_pais!$A$2:$A$27000,'5.1'!$A50&'5.1'!J$3&2,AUX_2d_pais!$J$2:$J$27000)/1000 -> 0 | K50: =+SUMIF(AUX_2d_pais!$A$2:$A$27000,'5.1'!$A50&'5.1'!K$3&2,AUX_2d_pais!$J$2:$J$27000)/1000 -> 0 | L50: =+SUMIF(AUX_2d_pais!$A$2:$A$27000,'5.1'!$A50&'5.1'!L$3&2,AUX_2d_pais!$J$2:$J$27000)/1000 -> 0 | M50: =+SUMIF(AUX_2d_pais!$A$2:$A$27000,'5.1'!$A50&'5.1'!M$3&2,AUX_2d_pais!$J$2:$J$27000)/1000 -> 0 | N50: =+SUMIF(AUX_2d_pais!$A$2:$A$27000,'5.1'!$A50&'5.1'!N$3&2,AUX_2d_pais!$J$2:$J$27000)/1000 -> 0 | O50: 0 | P50: 0 | Q50: 0 | S50: =G50-INDEX($C50:$G50,1,aux!$AL$1) -> 0 | T50: 0 | U50: =+IF(INDEX($C50:$G50,1,aux!$AL$1)>0,(G50/INDEX($C50:$G50,1,aux!$AL$1))^(1/($G$3-INDEX($C$3:$G$3,1,aux!$AL$1)))-1,"n.d.") -> n.d. | V50: =IF(INDEX($C50:$G50,1,aux!$AL$1)>0,(G50-INDEX($C50:$G50,1,aux!$AL$1))/INDEX($C50:$G50,1,aux!$AL$1),"n.d.") -> n.d. | X50: =N50-INDEX($J50:$N50,1,aux!$AL$1) -> 0 | Y50: 0 | Z50: =+IF(INDEX($J50:$N50,1,aux!$AL$1)>0,(N50/INDEX($J50:$N50,1,aux!$AL$1))^(1/($N$3-INDEX($J$3:$N$3,1,aux!$AL$1)))-1,"n.d.") -> n.d. | AA50: =IF(INDEX($J50:$N50,1,aux!$AL$1)>0,(N50-INDEX($J50:$N50,1,aux!$AL$1))/INDEX($J50:$N50,1,aux!$AL$1),"n.d.") -> n.d. | AC50: 0 | BS50: =+MATCH('5.1'!A50,AUX_2d_pais!$G$2:$G$20001,0) -> 
A51: 0022 | B51: Ceuta e Melilha | C51: =+SUMIF(AUX_2d_pais!$A$2:$A$27000,'5.1'!$A51&'5.1'!C$3&1,AUX_2d_pais!$J$2:$J$27000)/1000 -> 0 | D51: =+SUMIF(AUX_2d_pais!$A$2:$A$27000,'5.1'!$A51&'5.1'!D$3&1,AUX_2d_pais!$J$2:$J$27000)/1000 -> 0 | E51: =+SUMIF(AUX_2d_pais!$A$2:$A$27000,'5.1'!$A51&'5.1'!E$3&1,AUX_2d_pais!$J$2:$J$27000)/1000 -> 0 | F51: =+SUMIF(AUX_2d_pais!$A$2:$A$27000,'5.1'!$A51&'5.1'!F$3&1,AUX_2d_pais!$J$2:$J$27000)/1000 -> 0 | G51: =+SUMIF(AUX_2d_pais!$A$2:$A$27000,'5.1'!$A51&'5.1'!G$3&1,AUX_2d_pais!$J$2:$J$27000)/1000 -> 0 | H51: 0 | I51: 0 | J51: =+SUMIF(AUX_2d_pais!$A$2:$A$27000,'5.1'!$A51&'5.1'!J$3&2,AUX_2d_pais!$J$2:$J$27000)/1000 -> 0 | K51: =+SUMIF(AUX_2d_pais!$A$2:$A$27000,'5.1'!$A51&'5.1'!K$3&2,AUX_2d_pais!$J$2:$J$27000)/1000 -> 0 | L51: =+SUMIF(AUX_2d_pais!$A$2:$A$27000,'5.1'!$A51&'5.1'!L$3&2,AUX_2d_pais!$J$2:$J$27000)/1000 -> 0 | M51: =+SUMIF(AUX_2d_pais!$A$2:$A$27000,'5.1'!$A51&'5.1'!M$3&2,AUX_2d_pais!$J$2:$J$27000)/1000 -> 0 | N51: =+SUMIF(AUX_2d_pais!$A$2:$A$27000,'5.1'!$A51&'5.1'!N$3&2,AUX_2d_pais!$J$2:$J$27000)/1000 -> 0 | O51: 0 | P51: 0 | Q51: 0 | S51: =G51-INDEX($C51:$G51,1,aux!$AL$1) -> 0 | T51: 0 | U51: =+IF(INDEX($C51:$G51,1,aux!$AL$1)>0,(G51/INDEX($C51:$G51,1,aux!$AL$1))^(1/($G$3-INDEX($C$3:$G$3,1,aux!$AL$1)))-1,"n.d.") -> n.d. | V51: =IF(INDEX($C51:$G51,1,aux!$AL$1)>0,(G51-INDEX($C51:$G51,1,aux!$AL$1))/INDEX($C51:$G51,1,aux!$AL$1),"n.d.") -> n.d. | X51: =N51-INDEX($J51:$N51,1,aux!$AL$1) -> 0 | Y51: 0 | Z51: =+IF(INDEX($J51:$N51,1,aux!$AL$1)>0,(N51/INDEX($J51:$N51,1,aux!$AL$1))^(1/($N$3-INDEX($J$3:$N$3,1,aux!$AL$1)))-1,"n.d.") -> n.d. | AA51: =IF(INDEX($J51:$N51,1,aux!$AL$1)>0,(N51-INDEX($J51:$N51,1,aux!$AL$1))/INDEX($J51:$N51,1,aux!$AL$1),"n.d.") -> n.d. | AC51: 0 | BS51: =+MATCH('5.1'!A51,AUX_2d_pais!$G$2:$G$20001,0) -> 
A52: 0244 | B52: Chade | C52: =+SUMIF(AUX_2d_pais!$A$2:$A$27000,'5.1'!$A52&'5.1'!C$3&1,AUX_2d_pais!$J$2:$J$27000)/1000 -> 1864.112 | D52: =+SUMIF(AUX_2d_pais!$A$2:$A$27000,'5.1'!$A52&'5.1'!D$3&1,AUX_2d_pais!$J$2:$J$27000)/1000 -> 377.488 | E52: =+SUMIF(AUX_2d_pais!$A$2:$A$27000,'5.1'!$A52&'5.1'!E$3&1,AUX_2d_pais!$J$2:$J$27000)/1000 -> 0 | F52: =+SUMIF(AUX_2d_pais!$A$2:$A$27000,'5.1'!$A52&'5.1'!F$3&1,AUX_2d_pais!$J$2:$J$27000)/1000 -> 1137.902 | G52: =+SUMIF(AUX_2d_pais!$A$2:$A$27000,'5.1'!$A52&'5.1'!G$3&1,AUX_2d_pais!$J$2:$J$27000)/1000 -> 0 | H52: 675.9004 | I52: 0.001392341425 | J52: =+SUMIF(AUX_2d_pais!$A$2:$A$27000,'5.1'!$A52&'5.1'!J$3&2,AUX_2d_pais!$J$2:$J$27000)/1000 -> 0.334 | K52: =+SUMIF(AUX_2d_pais!$A$2:$A$27000,'5.1'!$A52&'5.1'!K$3&2,AUX_2d_pais!$J$2:$J$27000)/1000 -> 0.002 | L52: =+SUMIF(AUX_2d_pais!$A$2:$A$27000,'5.1'!$A52&'5.1'!L$3&2,AUX_2d_pais!$J$2:$J$27000)/1000 -> 0.221 | M52: =+SUMIF(AUX_2d_pais!$A$2:$A$27000,'5.1'!$A52&'5.1'!M$3&2,AUX_2d_pais!$J$2:$J$27000)/1000 -> 0.011 | N52: =+SUMIF(AUX_2d_pais!$A$2:$A$27000,'5.1'!$A52&'5.1'!N$3&2,AUX_2d_pais!$J$2:$J$27000)/1000 -> 0 | O52: 0.1136 | P52: 1.162147846e-07 | Q52: -675.7868 | S52: =G52-INDEX($C52:$G52,1,aux!$AL$1) -> -1864.112 | T52: -0.02781403158 | U52: =+IF(INDEX($C52:$G52,1,aux!$AL$1)>0,(G52/INDEX($C52:$G52,1,aux!$AL$1))^(1/($G$3-INDEX($C$3:$G$3,1,aux!$AL$1)))-1,"n.d.") -> -1 | V52: =IF(INDEX($C52:$G52,1,aux!$AL$1)>0,(G52-INDEX($C52:$G52,1,aux!$AL$1))/INDEX($C52:$G52,1,aux!$AL$1),"n.d.") -> -1 | X52: =N52-INDEX($J52:$N52,1,aux!$AL$1) -> -0.334 | Y52: -1.60507384e-06 | Z52: =+IF(INDEX($J52:$N52,1,aux!$AL$1)>0,(N52/INDEX($J52:$N52,1,aux!$AL$1))^(1/($N$3-INDEX($J$3:$N$3,1,aux!$AL$1)))-1,"n.d.") -> -1 | AA52: =IF(INDEX($J52:$N52,1,aux!$AL$1)>0,(N52-INDEX($J52:$N52,1,aux!$AL$1))/INDEX($J52:$N52,1,aux!$AL$1),"n.d.") -> -1 | BS52: =+MATCH('5.1'!A52,AUX_2d_pais!$G$2:$G$20001,0) -> 3258
A53: 0061 | B53: Checa, República | C53: =+SUMIF(AUX_2d_pais!$A$2:$A$27000,'5.1'!$A53&'5.1'!C$3&1,AUX_2d_pais!$J$2:$J$27000)/1000 -> 0 | D53: =+SUMIF(AUX_2d_pais!$A$2:$A$27000,'5.1'!$A53&'5.1'!D$3&1,AUX_2d_pais!$J$2:$J$27000)/1000 -> 0 | E53: =+SUMIF(AUX_2d_pais!$A$2:$A$27000,'5.1'!$A53&'5.1'!E$3&1,AUX_2d_pais!$J$2:$J$27000)/1000 -> 0 | F53: =+SUMIF(AUX_2d_pais!$A$2:$A$27000,'5.1'!$A53&'5.1'!F$3&1,AUX_2d_pais!$J$2:$J$27000)/1000 -> 0 | G53: =+SUMIF(AUX_2d_pais!$A$2:$A$27000,'5.1'!$A53&'5.1'!G$3&1,AUX_2d_pais!$J$2:$J$27000)/1000 -> 0 | H53: 0 | I53: 0 | J53: =+SUMIF(AUX_2d_pais!$A$2:$A$27000,'5.1'!$A53&'5.1'!J$3&2,AUX_2d_pais!$J$2:$J$27000)/1000 -> 0 | K53: =+SUMIF(AUX_2d_pais!$A$2:$A$27000,'5.1'!$A53&'5.1'!K$3&2,AUX_2d_pais!$J$2:$J$27000)/1000 -> 0 | L53: =+SUMIF(AUX_2d_pais!$A$2:$A$27000,'5.1'!$A53&'5.1'!L$3&2,AUX_2d_pais!$J$2:$J$27000)/1000 -> 0 | M53: =+SUMIF(AUX_2d_pais!$A$2:$A$27000,'5.1'!$A53&'5.1'!M$3&2,AUX_2d_pais!$J$2:$J$27000)/1000 -> 0 | N53: =+SUMIF(AUX_2d_pais!$A$2:$A$27000,'5.1'!$A53&'5.1'!N$3&2,AUX_2d_pais!$J$2:$J$27000)/1000 -> 0 | O53: 0 | P53: 0 | Q53: 0 | S53: =G53-INDEX($C53:$G53,1,aux!$AL$1) -> 0 | T53: 0 | U53: =+IF(INDEX($C53:$G53,1,aux!$AL$1)>0,(G53/INDEX($C53:$G53,1,aux!$AL$1))^(1/($G$3-INDEX($C$3:$G$3,1,aux!$AL$1)))-1,"n.d.") -> n.d. | V53: =IF(INDEX($C53:$G53,1,aux!$AL$1)>0,(G53-INDEX($C53:$G53,1,aux!$AL$1))/INDEX($C53:$G53,1,aux!$AL$1),"n.d.") -> n.d. | X53: =N53-INDEX($J53:$N53,1,aux!$AL$1) -> 0 | Y53: 0 | Z53: =+IF(INDEX($J53:$N53,1,aux!$AL$1)>0,(N53/INDEX($J53:$N53,1,aux!$AL$1))^(1/($N$3-INDEX($J$3:$N$3,1,aux!$AL$1)))-1,"n.d.") -> n.d. | AA53: =IF(INDEX($J53:$N53,1,aux!$AL$1)>0,(N53-INDEX($J53:$N53,1,aux!$AL$1))/INDEX($J53:$N53,1,aux!$AL$1),"n.d.") -> n.d. | AC53: 0 | BS53: =+MATCH('5.1'!A53,AUX_2d_pais!$G$2:$G$20001,0) -> 
A54: 0512 | B54: Chile | C54: =+SUMIF(AUX_2d_pais!$A$2:$A$27000,'5.1'!$A54&'5.1'!C$3&1,AUX_2d_pais!$J$2:$J$27000)/1000 -> 0 | D54: =+SUMIF(AUX_2d_pais!$A$2:$A$27000,'5.1'!$A54&'5.1'!D$3&1,AUX_2d_pais!$J$2:$J$27000)/1000 -> 0 | E54: =+SUMIF(AUX_2d_pais!$A$2:$A$27000,'5.1'!$A54&'5.1'!E$3&1,AUX_2d_pais!$J$2:$J$27000)/1000 -> 0 | F54: =+SUMIF(AUX_2d_pais!$A$2:$A$27000,'5.1'!$A54&'5.1'!F$3&1,AUX_2d_pais!$J$2:$J$27000)/1000 -> 0 | G54: =+SUMIF(AUX_2d_pais!$A$2:$A$27000,'5.1'!$A54&'5.1'!G$3&1,AUX_2d_pais!$J$2:$J$27000)/1000 -> 0 | H54: 0 | I54: 0 | J54: =+SUMIF(AUX_2d_pais!$A$2:$A$27000,'5.1'!$A54&'5.1'!J$3&2,AUX_2d_pais!$J$2:$J$27000)/1000 -> 0 | K54: =+SUMIF(AUX_2d_pais!$A$2:$A$27000,'5.1'!$A54&'5.1'!K$3&2,AUX_2d_pais!$J$2:$J$27000)/1000 -> 0 | L54: =+SUMIF(AUX_2d_pais!$A$2:$A$27000,'5.1'!$A54&'5.1'!L$3&2,AUX_2d_pais!$J$2:$J$27000)/1000 -> 0 | M54: =+SUMIF(AUX_2d_pais!$A$2:$A$27000,'5.1'!$A54&'5.1'!M$3&2,AUX_2d_pais!$J$2:$J$27000)/1000 -> 0 | N54: =+SUMIF(AUX_2d_pais!$A$2:$A$27000,'5.1'!$A54&'5.1'!N$3&2,AUX_2d_pais!$J$2:$J$27000)/1000 -> 0 | O54: 0 | P54: 0 | Q54: 0 | S54: =G54-INDEX($C54:$G54,1,aux!$AL$1) -> 0 | T54: 0 | U54: =+IF(INDEX($C54:$G54,1,aux!$AL$1)>0,(G54/INDEX($C54:$G54,1,aux!$AL$1))^(1/($G$3-INDEX($C$3:$G$3,1,aux!$AL$1)))-1,"n.d.") -> n.d. | V54: =IF(INDEX($C54:$G54,1,aux!$AL$1)>0,(G54-INDEX($C54:$G54,1,aux!$AL$1))/INDEX($C54:$G54,1,aux!$AL$1),"n.d.") -> n.d. | X54: =N54-INDEX($J54:$N54,1,aux!$AL$1) -> 0 | Y54: 0 | Z54: =+IF(INDEX($J54:$N54,1,aux!$AL$1)>0,(N54/INDEX($J54:$N54,1,aux!$AL$1))^(1/($N$3-INDEX($J$3:$N$3,1,aux!$AL$1)))-1,"n.d.") -> n.d. | AA54: =IF(INDEX($J54:$N54,1,aux!$AL$1)>0,(N54-INDEX($J54:$N54,1,aux!$AL$1))/INDEX($J54:$N54,1,aux!$AL$1),"n.d.") -> n.d. | AC54: 0 | BS54: =+MATCH('5.1'!A54,AUX_2d_pais!$G$2:$G$20001,0) -> 
A55: 0720 | B55: China, República Popular da | C55: =+SUMIF(AUX_2d_pais!$A$2:$A$27000,'5.1'!$A55&'5.1'!C$3&1,AUX_2d_pais!$J$2:$J$27000)/1000 -> 0 | D55: =+SUMIF(AUX_2d_pais!$A$2:$A$27000,'5.1'!$A55&'5.1'!D$3&1,AUX_2d_pais!$J$2:$J$27000)/1000 -> 0 | E55: =+SUMIF(AUX_2d_pais!$A$2:$A$27000,'5.1'!$A55&'5.1'!E$3&1,AUX_2d_pais!$J$2:$J$27000)/1000 -> 0 | F55: =+SUMIF(AUX_2d_pais!$A$2:$A$27000,'5.1'!$A55&'5.1'!F$3&1,AUX_2d_pais!$J$2:$J$27000)/1000 -> 0 | G55: =+SUMIF(AUX_2d_pais!$A$2:$A$27000,'5.1'!$A55&'5.1'!G$3&1,AUX_2d_pais!$J$2:$J$27000)/1000 -> 0 | H55: 0 | I55: 0 | J55: =+SUMIF(AUX_2d_pais!$A$2:$A$27000,'5.1'!$A55&'5.1'!J$3&2,AUX_2d_pais!$J$2:$J$27000)/1000 -> 0 | K55: =+SUMIF(AUX_2d_pais!$A$2:$A$27000,'5.1'!$A55&'5.1'!K$3&2,AUX_2d_pais!$J$2:$J$27000)/1000 -> 0 | L55: =+SUMIF(AUX_2d_pais!$A$2:$A$27000,'5.1'!$A55&'5.1'!L$3&2,AUX_2d_pais!$J$2:$J$27000)/1000 -> 0 | M55: =+SUMIF(AUX_2d_pais!$A$2:$A$27000,'5.1'!$A55&'5.1'!M$3&2,AUX_2d_pais!$J$2:$J$27000)/1000 -> 0 | N55: =+SUMIF(AUX_2d_pais!$A$2:$A$27000,'5.1'!$A55&'5.1'!N$3&2,AUX_2d_pais!$J$2:$J$27000)/1000 -> 0 | O55: 0 | P55: 0 | Q55: 0 | S55: =G55-INDEX($C55:$G55,1,aux!$AL$1) -> 0 | T55: 0 | U55: =+IF(INDEX($C55:$G55,1,aux!$AL$1)>0,(G55/INDEX($C55:$G55,1,aux!$AL$1))^(1/($G$3-INDEX($C$3:$G$3,1,aux!$AL$1)))-1,"n.d.") -> n.d. | V55: =IF(INDEX($C55:$G55,1,aux!$AL$1)>0,(G55-INDEX($C55:$G55,1,aux!$AL$1))/INDEX($C55:$G55,1,aux!$AL$1),"n.d.") -> n.d. | X55: =N55-INDEX($J55:$N55,1,aux!$AL$1) -> 0 | Y55: 0 | Z55: =+IF(INDEX($J55:$N55,1,aux!$AL$1)>0,(N55/INDEX($J55:$N55,1,aux!$AL$1))^(1/($N$3-INDEX($J$3:$N$3,1,aux!$AL$1)))-1,"n.d.") -> n.d. | AA55: =IF(INDEX($J55:$N55,1,aux!$AL$1)>0,(N55-INDEX($J55:$N55,1,aux!$AL$1))/INDEX($J55:$N55,1,aux!$AL$1),"n.d.") -> n.d. | AC55: 0 | BS55: =+MATCH('5.1'!A55,AUX_2d_pais!$G$2:$G$20001,0) -> 
A56: 0600 | B56: Chipre | C56: =+SUMIF(AUX_2d_pais!$A$2:$A$27000,'5.1'!$A56&'5.1'!C$3&1,AUX_2d_pais!$J$2:$J$27000)/1000 -> 0 | D56: =+SUMIF(AUX_2d_pais!$A$2:$A$27000,'5.1'!$A56&'5.1'!D$3&1,AUX_2d_pais!$J$2:$J$27000)/1000 -> 0 | E56: =+SUMIF(AUX_2d_pais!$A$2:$A$27000,'5.1'!$A56&'5.1'!E$3&1,AUX_2d_pais!$J$2:$J$27000)/1000 -> 0 | F56: =+SUMIF(AUX_2d_pais!$A$2:$A$27000,'5.1'!$A56&'5.1'!F$3&1,AUX_2d_pais!$J$2:$J$27000)/1000 -> 0 | G56: =+SUMIF(AUX_2d_pais!$A$2:$A$27000,'5.1'!$A56&'5.1'!G$3&1,AUX_2d_pais!$J$2:$J$27000)/1000 -> 0 | H56: 0 | I56: 0 | J56: =+SUMIF(AUX_2d_pais!$A$2:$A$27000,'5.1'!$A56&'5.1'!J$3&2,AUX_2d_pais!$J$2:$J$27000)/1000 -> 0 | K56: =+SUMIF(AUX_2d_pais!$A$2:$A$27000,'5.1'!$A56&'5.1'!K$3&2,AUX_2d_pais!$J$2:$J$27000)/1000 -> 0 | L56: =+SUMIF(AUX_2d_pais!$A$2:$A$27000,'5.1'!$A56&'5.1'!L$3&2,AUX_2d_pais!$J$2:$J$27000)/1000 -> 0 | M56: =+SUMIF(AUX_2d_pais!$A$2:$A$27000,'5.1'!$A56&'5.1'!M$3&2,AUX_2d_pais!$J$2:$J$27000)/1000 -> 0 | N56: =+SUMIF(AUX_2d_pais!$A$2:$A$27000,'5.1'!$A56&'5.1'!N$3&2,AUX_2d_pais!$J$2:$J$27000)/1000 -> 0 | O56: 0 | P56: 0 | Q56: 0 | S56: =G56-INDEX($C56:$G56,1,aux!$AL$1) -> 0 | T56: 0 | U56: =+IF(INDEX($C56:$G56,1,aux!$AL$1)>0,(G56/INDEX($C56:$G56,1,aux!$AL$1))^(1/($G$3-INDEX($C$3:$G$3,1,aux!$AL$1)))-1,"n.d.") -> n.d. | V56: =IF(INDEX($C56:$G56,1,aux!$AL$1)>0,(G56-INDEX($C56:$G56,1,aux!$AL$1))/INDEX($C56:$G56,1,aux!$AL$1),"n.d.") -> n.d. | X56: =N56-INDEX($J56:$N56,1,aux!$AL$1) -> 0 | Y56: 0 | Z56: =+IF(INDEX($J56:$N56,1,aux!$AL$1)>0,(N56/INDEX($J56:$N56,1,aux!$AL$1))^(1/($N$3-INDEX($J$3:$N$3,1,aux!$AL$1)))-1,"n.d.") -> n.d. | AA56: =IF(INDEX($J56:$N56,1,aux!$AL$1)>0,(N56-INDEX($J56:$N56,1,aux!$AL$1))/INDEX($J56:$N56,1,aux!$AL$1),"n.d.") -> n.d. | AC56: 0 | BS56: =+MATCH('5.1'!A56,AUX_2d_pais!$G$2:$G$20001,0) -> 
A57: 0834 | B57: Christmas, Ilha | C57: =+SUMIF(AUX_2d_pais!$A$2:$A$27000,'5.1'!$A57&'5.1'!C$3&1,AUX_2d_pais!$J$2:$J$27000)/1000 -> 0 | D57: =+SUMIF(AUX_2d_pais!$A$2:$A$27000,'5.1'!$A57&'5.1'!D$3&1,AUX_2d_pais!$J$2:$J$27000)/1000 -> 0 | E57: =+SUMIF(AUX_2d_pais!$A$2:$A$27000,'5.1'!$A57&'5.1'!E$3&1,AUX_2d_pais!$J$2:$J$27000)/1000 -> 0 | F57: =+SUMIF(AUX_2d_pais!$A$2:$A$27000,'5.1'!$A57&'5.1'!F$3&1,AUX_2d_pais!$J$2:$J$27000)/1000 -> 0 | G57: =+SUMIF(AUX_2d_pais!$A$2:$A$27000,'5.1'!$A57&'5.1'!G$3&1,AUX_2d_pais!$J$2:$J$27000)/1000 -> 0 | H57: 0 | I57: 0 | J57: =+SUMIF(AUX_2d_pais!$A$2:$A$27000,'5.1'!$A57&'5.1'!J$3&2,AUX_2d_pais!$J$2:$J$27000)/1000 -> 0 | K57: =+SUMIF(AUX_2d_pais!$A$2:$A$27000,'5.1'!$A57&'5.1'!K$3&2,AUX_2d_pais!$J$2:$J$27000)/1000 -> 0 | L57: =+SUMIF(AUX_2d_pais!$A$2:$A$27000,'5.1'!$A57&'5.1'!L$3&2,AUX_2d_pais!$J$2:$J$27000)/1000 -> 0 | M57: =+SUMIF(AUX_2d_pais!$A$2:$A$27000,'5.1'!$A57&'5.1'!M$3&2,AUX_2d_pais!$J$2:$J$27000)/1000 -> 0 | N57: =+SUMIF(AUX_2d_pais!$A$2:$A$27000,'5.1'!$A57&'5.1'!N$3&2,AUX_2d_pais!$J$2:$J$27000)/1000 -> 0 | O57: 0 | P57: 0 | Q57: 0 | S57: =G57-INDEX($C57:$G57,1,aux!$AL$1) -> 0 | T57: 0 | U57: =+IF(INDEX($C57:$G57,1,aux!$AL$1)>0,(G57/INDEX($C57:$G57,1,aux!$AL$1))^(1/($G$3-INDEX($C$3:$G$3,1,aux!$AL$1)))-1,"n.d.") -> n.d. | V57: =IF(INDEX($C57:$G57,1,aux!$AL$1)>0,(G57-INDEX($C57:$G57,1,aux!$AL$1))/INDEX($C57:$G57,1,aux!$AL$1),"n.d.") -> n.d. | X57: =N57-INDEX($J57:$N57,1,aux!$AL$1) -> 0 | Y57: 0 | Z57: =+IF(INDEX($J57:$N57,1,aux!$AL$1)>0,(N57/INDEX($J57:$N57,1,aux!$AL$1))^(1/($N$3-INDEX($J$3:$N$3,1,aux!$AL$1)))-1,"n.d.") -> n.d. | AA57: =IF(INDEX($J57:$N57,1,aux!$AL$1)>0,(N57-INDEX($J57:$N57,1,aux!$AL$1))/INDEX($J57:$N57,1,aux!$AL$1),"n.d.") -> n.d. | AC57: 0 | BS57: =+MATCH('5.1'!A57,AUX_2d_pais!$G$2:$G$20001,0) -> 
A58: 0833 | B58: Cocos (Keeling), Ilhas | C58: =+SUMIF(AUX_2d_pais!$A$2:$A$27000,'5.1'!$A58&'5.1'!C$3&1,AUX_2d_pais!$J$2:$J$27000)/1000 -> 0 | D58: =+SUMIF(AUX_2d_pais!$A$2:$A$27000,'5.1'!$A58&'5.1'!D$3&1,AUX_2d_pais!$J$2:$J$27000)/1000 -> 0 | E58: =+SUMIF(AUX_2d_pais!$A$2:$A$27000,'5.1'!$A58&'5.1'!E$3&1,AUX_2d_pais!$J$2:$J$27000)/1000 -> 0 | F58: =+SUMIF(AUX_2d_pais!$A$2:$A$27000,'5.1'!$A58&'5.1'!F$3&1,AUX_2d_pais!$J$2:$J$27000)/1000 -> 0 | G58: =+SUMIF(AUX_2d_pais!$A$2:$A$27000,'5.1'!$A58&'5.1'!G$3&1,AUX_2d_pais!$J$2:$J$27000)/1000 -> 0 | H58: 0 | I58: 0 | J58: =+SUMIF(AUX_2d_pais!$A$2:$A$27000,'5.1'!$A58&'5.1'!J$3&2,AUX_2d_pais!$J$2:$J$27000)/1000 -> 0 | K58: =+SUMIF(AUX_2d_pais!$A$2:$A$27000,'5.1'!$A58&'5.1'!K$3&2,AUX_2d_pais!$J$2:$J$27000)/1000 -> 0 | L58: =+SUMIF(AUX_2d_pais!$A$2:$A$27000,'5.1'!$A58&'5.1'!L$3&2,AUX_2d_pais!$J$2:$J$27000)/1000 -> 0 | M58: =+SUMIF(AUX_2d_pais!$A$2:$A$27000,'5.1'!$A58&'5.1'!M$3&2,AUX_2d_pais!$J$2:$J$27000)/1000 -> 0 | N58: =+SUMIF(AUX_2d_pais!$A$2:$A$27000,'5.1'!$A58&'5.1'!N$3&2,AUX_2d_pais!$J$2:$J$27000)/1000 -> 0 | O58: 0 | P58: 0 | Q58: 0 | S58: =G58-INDEX($C58:$G58,1,aux!$AL$1) -> 0 | T58: 0 | U58: =+IF(INDEX($C58:$G58,1,aux!$AL$1)>0,(G58/INDEX($C58:$G58,1,aux!$AL$1))^(1/($G$3-INDEX($C$3:$G$3,1,aux!$AL$1)))-1,"n.d.") -> n.d. | V58: =IF(INDEX($C58:$G58,1,aux!$AL$1)>0,(G58-INDEX($C58:$G58,1,aux!$AL$1))/INDEX($C58:$G58,1,aux!$AL$1),"n.d.") -> n.d. | X58: =N58-INDEX($J58:$N58,1,aux!$AL$1) -> 0 | Y58: 0 | Z58: =+IF(INDEX($J58:$N58,1,aux!$AL$1)>0,(N58/INDEX($J58:$N58,1,aux!$AL$1))^(1/($N$3-INDEX($J$3:$N$3,1,aux!$AL$1)))-1,"n.d.") -> n.d. | AA58: =IF(INDEX($J58:$N58,1,aux!$AL$1)>0,(N58-INDEX($J58:$N58,1,aux!$AL$1))/INDEX($J58:$N58,1,aux!$AL$1),"n.d.") -> n.d. | AC58: 0 | BS58: =+MATCH('5.1'!A58,AUX_2d_pais!$G$2:$G$20001,0) -> 
A59: 0480 | B59: Colômbia | C59: =+SUMIF(AUX_2d_pais!$A$2:$A$27000,'5.1'!$A59&'5.1'!C$3&1,AUX_2d_pais!$J$2:$J$27000)/1000 -> 0 | D59: =+SUMIF(AUX_2d_pais!$A$2:$A$27000,'5.1'!$A59&'5.1'!D$3&1,AUX_2d_pais!$J$2:$J$27000)/1000 -> 0 | E59: =+SUMIF(AUX_2d_pais!$A$2:$A$27000,'5.1'!$A59&'5.1'!E$3&1,AUX_2d_pais!$J$2:$J$27000)/1000 -> 0 | F59: =+SUMIF(AUX_2d_pais!$A$2:$A$27000,'5.1'!$A59&'5.1'!F$3&1,AUX_2d_pais!$J$2:$J$27000)/1000 -> 0 | G59: =+SUMIF(AUX_2d_pais!$A$2:$A$27000,'5.1'!$A59&'5.1'!G$3&1,AUX_2d_pais!$J$2:$J$27000)/1000 -> 0 | H59: 0 | I59: 0 | J59: =+SUMIF(AUX_2d_pais!$A$2:$A$27000,'5.1'!$A59&'5.1'!J$3&2,AUX_2d_pais!$J$2:$J$27000)/1000 -> 0 | K59: =+SUMIF(AUX_2d_pais!$A$2:$A$27000,'5.1'!$A59&'5.1'!K$3&2,AUX_2d_pais!$J$2:$J$27000)/1000 -> 0 | L59: =+SUMIF(AUX_2d_pais!$A$2:$A$27000,'5.1'!$A59&'5.1'!L$3&2,AUX_2d_pais!$J$2:$J$27000)/1000 -> 0 | M59: =+SUMIF(AUX_2d_pais!$A$2:$A$27000,'5.1'!$A59&'5.1'!M$3&2,AUX_2d_pais!$J$2:$J$27000)/1000 -> 0 | N59: =+SUMIF(AUX_2d_pais!$A$2:$A$27000,'5.1'!$A59&'5.1'!N$3&2,AUX_2d_pais!$J$2:$J$27000)/1000 -> 0 | O59: 0 | P59: 0 | Q59: 0 | S59: =G59-INDEX($C59:$G59,1,aux!$AL$1) -> 0 | T59: 0 | U59: =+IF(INDEX($C59:$G59,1,aux!$AL$1)>0,(G59/INDEX($C59:$G59,1,aux!$AL$1))^(1/($G$3-INDEX($C$3:$G$3,1,aux!$AL$1)))-1,"n.d.") -> n.d. | V59: =IF(INDEX($C59:$G59,1,aux!$AL$1)>0,(G59-INDEX($C59:$G59,1,aux!$AL$1))/INDEX($C59:$G59,1,aux!$AL$1),"n.d.") -> n.d. | X59: =N59-INDEX($J59:$N59,1,aux!$AL$1) -> 0 | Y59: 0 | Z59: =+IF(INDEX($J59:$N59,1,aux!$AL$1)>0,(N59/INDEX($J59:$N59,1,aux!$AL$1))^(1/($N$3-INDEX($J$3:$N$3,1,aux!$AL$1)))-1,"n.d.") -> n.d. | AA59: =IF(INDEX($J59:$N59,1,aux!$AL$1)>0,(N59-INDEX($J59:$N59,1,aux!$AL$1))/INDEX($J59:$N59,1,aux!$AL$1),"n.d.") -> n.d. | AC59: 0 | BS59: =+MATCH('5.1'!A59,AUX_2d_pais!$G$2:$G$20001,0) -> 
A60: 0375 | B60: Comores | C60: =+SUMIF(AUX_2d_pais!$A$2:$A$27000,'5.1'!$A60&'5.1'!C$3&1,AUX_2d_pais!$J$2:$J$27000)/1000 -> 0 | D60: =+SUMIF(AUX_2d_pais!$A$2:$A$27000,'5.1'!$A60&'5.1'!D$3&1,AUX_2d_pais!$J$2:$J$27000)/1000 -> 0 | E60: =+SUMIF(AUX_2d_pais!$A$2:$A$27000,'5.1'!$A60&'5.1'!E$3&1,AUX_2d_pais!$J$2:$J$27000)/1000 -> 0 | F60: =+SUMIF(AUX_2d_pais!$A$2:$A$27000,'5.1'!$A60&'5.1'!F$3&1,AUX_2d_pais!$J$2:$J$27000)/1000 -> 0 | G60: =+SUMIF(AUX_2d_pais!$A$2:$A$27000,'5.1'!$A60&'5.1'!G$3&1,AUX_2d_pais!$J$2:$J$27000)/1000 -> 0 | H60: 0 | I60: 0 | J60: =+SUMIF(AUX_2d_pais!$A$2:$A$27000,'5.1'!$A60&'5.1'!J$3&2,AUX_2d_pais!$J$2:$J$27000)/1000 -> 70.26 | K60: =+SUMIF(AUX_2d_pais!$A$2:$A$27000,'5.1'!$A60&'5.1'!K$3&2,AUX_2d_pais!$J$2:$J$27000)/1000 -> 364.275 | L60: =+SUMIF(AUX_2d_pais!$A$2:$A$27000,'5.1'!$A60&'5.1'!L$3&2,AUX_2d_pais!$J$2:$J$27000)/1000 -> 527.27 | M60: =+SUMIF(AUX_2d_pais!$A$2:$A$27000,'5.1'!$A60&'5.1'!M$3&2,AUX_2d_pais!$J$2:$J$27000)/1000 -> 333.293 | N60: =+SUMIF(AUX_2d_pais!$A$2:$A$27000,'5.1'!$A60&'5.1'!N$3&2,AUX_2d_pais!$J$2:$J$27000)/1000 -> 262.937 | O60: 311.607 | P60: 0.0003187794047 | Q60: 311.607 | S60: =G60-INDEX($C60:$G60,1,aux!$AL$1) -> 0 | T60: 0 | U60: =+IF(INDEX($C60:$G60,1,aux!$AL$1)>0,(G60/INDEX($C60:$G60,1,aux!$AL$1))^(1/($G$3-INDEX($C$3:$G$3,1,aux!$AL$1)))-1,"n.d.") -> n.d. | V60: =IF(INDEX($C60:$G60,1,aux!$AL$1)>0,(G60-INDEX($C60:$G60,1,aux!$AL$1))/INDEX($C60:$G60,1,aux!$AL$1),"n.d.") -> n.d. | X60: =N60-INDEX($J60:$N60,1,aux!$AL$1) -> 192.677 | Y60: 0.0009259305758 | Z60: =+IF(INDEX($J60:$N60,1,aux!$AL$1)>0,(N60/INDEX($J60:$N60,1,aux!$AL$1))^(1/($N$3-INDEX($J$3:$N$3,1,aux!$AL$1)))-1,"n.d.") -> 0.3908679173 | AA60: =IF(INDEX($J60:$N60,1,aux!$AL$1)>0,(N60-INDEX($J60:$N60,1,aux!$AL$1))/INDEX($J60:$N60,1,aux!$AL$1),"n.d.") -> 2.742342727 | BS60: =+MATCH('5.1'!A60,AUX_2d_pais!$G$2:$G$20001,0) -> 187
A61: 0318 | B61: Congo | C61: =+SUMIF(AUX_2d_pais!$A$2:$A$27000,'5.1'!$A61&'5.1'!C$3&1,AUX_2d_pais!$J$2:$J$27000)/1000 -> 6002.885 | D61: =+SUMIF(AUX_2d_pais!$A$2:$A$27000,'5.1'!$A61&'5.1'!D$3&1,AUX_2d_pais!$J$2:$J$27000)/1000 -> 6411.177 | E61: =+SUMIF(AUX_2d_pais!$A$2:$A$27000,'5.1'!$A61&'5.1'!E$3&1,AUX_2d_pais!$J$2:$J$27000)/1000 -> 3373.821 | F61: =+SUMIF(AUX_2d_pais!$A$2:$A$27000,'5.1'!$A61&'5.1'!F$3&1,AUX_2d_pais!$J$2:$J$27000)/1000 -> 4473.133 | G61: =+SUMIF(AUX_2d_pais!$A$2:$A$27000,'5.1'!$A61&'5.1'!G$3&1,AUX_2d_pais!$J$2:$J$27000)/1000 -> 5775.379 | H61: 5207.279 | I61: 0.01072689151 | J61: =+SUMIF(AUX_2d_pais!$A$2:$A$27000,'5.1'!$A61&'5.1'!J$3&2,AUX_2d_pais!$J$2:$J$27000)/1000 -> 1446.626 | K61: =+SUMIF(AUX_2d_pais!$A$2:$A$27000,'5.1'!$A61&'5.1'!K$3&2,AUX_2d_pais!$J$2:$J$27000)/1000 -> 1784.636 | L61: =+SUMIF(AUX_2d_pais!$A$2:$A$27000,'5.1'!$A61&'5.1'!L$3&2,AUX_2d_pais!$J$2:$J$27000)/1000 -> 2421.345 | M61: =+SUMIF(AUX_2d_pais!$A$2:$A$27000,'5.1'!$A61&'5.1'!M$3&2,AUX_2d_pais!$J$2:$J$27000)/1000 -> 2599.811 | N61: =+SUMIF(AUX_2d_pais!$A$2:$A$27000,'5.1'!$A61&'5.1'!N$3&2,AUX_2d_pais!$J$2:$J$27000)/1000 -> 3894.234 | O61: 2429.3304 | P61: 0.002485247439 | Q61: -2777.9486 | S61: =G61-INDEX($C61:$G61,1,aux!$AL$1) -> -227.506 | T61: -0.003394570213 | U61: =+IF(INDEX($C61:$G61,1,aux!$AL$1)>0,(G61/INDEX($C61:$G61,1,aux!$AL$1))^(1/($G$3-INDEX($C$3:$G$3,1,aux!$AL$1)))-1,"n.d.") -> -0.009612577215 | V61: =IF(INDEX($C61:$G61,1,aux!$AL$1)>0,(G61-INDEX($C61:$G61,1,aux!$AL$1))/INDEX($C61:$G61,1,aux!$AL$1),"n.d.") -> -0.03789944335 | X61: =N61-INDEX($J61:$N61,1,aux!$AL$1) -> 2447.608 | Y61: 0.01176225022 | Z61: =+IF(INDEX($J61:$N61,1,aux!$AL$1)>0,(N61/INDEX($J61:$N61,1,aux!$AL$1))^(1/($N$3-INDEX($J$3:$N$3,1,aux!$AL$1)))-1,"n.d.") -> 0.2809035948 | AA61: =IF(INDEX($J61:$N61,1,aux!$AL$1)>0,(N61-INDEX($J61:$N61,1,aux!$AL$1))/INDEX($J61:$N61,1,aux!$AL$1),"n.d.") -> 1.691942492 | BS61: =+MATCH('5.1'!A61,AUX_2d_pais!$G$2:$G$20001,0) -> 163
A62: 0322 | B62: Congo, República Democrática do | C62: =+SUMIF(AUX_2d_pais!$A$2:$A$27000,'5.1'!$A62&'5.1'!C$3&1,AUX_2d_pais!$J$2:$J$27000)/1000 -> 5292.611 | D62: =+SUMIF(AUX_2d_pais!$A$2:$A$27000,'5.1'!$A62&'5.1'!D$3&1,AUX_2d_pais!$J$2:$J$27000)/1000 -> 3913.615 | E62: =+SUMIF(AUX_2d_pais!$A$2:$A$27000,'5.1'!$A62&'5.1'!E$3&1,AUX_2d_pais!$J$2:$J$27000)/1000 -> 1808.569 | F62: =+SUMIF(AUX_2d_pais!$A$2:$A$27000,'5.1'!$A62&'5.1'!F$3&1,AUX_2d_pais!$J$2:$J$27000)/1000 -> 2609.226 | G62: =+SUMIF(AUX_2d_pais!$A$2:$A$27000,'5.1'!$A62&'5.1'!G$3&1,AUX_2d_pais!$J$2:$J$27000)/1000 -> 2813.942 | H62: =SUM(C62:G62)/5 -> 3287.5926 | I62: 0.006772375582 | J62: =+SUMIF(AUX_2d_pais!$A$2:$A$27000,'5.1'!$A62&'5.1'!J$3&2,AUX_2d_pais!$J$2:$J$27000)/1000 -> 1291.424 | K62: =+SUMIF(AUX_2d_pais!$A$2:$A$27000,'5.1'!$A62&'5.1'!K$3&2,AUX_2d_pais!$J$2:$J$27000)/1000 -> 1190.045 | L62: =+SUMIF(AUX_2d_pais!$A$2:$A$27000,'5.1'!$A62&'5.1'!L$3&2,AUX_2d_pais!$J$2:$J$27000)/1000 -> 1259.197 | M62: =+SUMIF(AUX_2d_pais!$A$2:$A$27000,'5.1'!$A62&'5.1'!M$3&2,AUX_2d_pais!$J$2:$J$27000)/1000 -> 1411.355 | N62: =+SUMIF(AUX_2d_pais!$A$2:$A$27000,'5.1'!$A62&'5.1'!N$3&2,AUX_2d_pais!$J$2:$J$27000)/1000 -> 3483.884 | O62: =SUM(J62:N62)/5 -> 1727.181 | P62: 0.001766936336 | Q62: =O62-H62 -> -1560.4116 | S62: =G62-INDEX($C62:$G62,1,aux!$AL$1) -> -2478.669 | T62: -0.03698371012 | U62: =+IF(INDEX($C62:$G62,1,aux!$AL$1)>0,(G62/INDEX($C62:$G62,1,aux!$AL$1))^(1/($G$3-INDEX($C$3:$G$3,1,aux!$AL$1)))-1,"n.d.") -> -0.1460915885 | V62: =IF(INDEX($C62:$G62,1,aux!$AL$1)>0,(G62-INDEX($C62:$G62,1,aux!$AL$1))/INDEX($C62:$G62,1,aux!$AL$1),"n.d.") -> -0.4683263138 | X62: =N62-INDEX($J62:$N62,1,aux!$AL$1) -> 2192.46 | Y62: 0.01053610836 | Z62: =+IF(INDEX($J62:$N62,1,aux!$AL$1)>0,(N62/INDEX($J62:$N62,1,aux!$AL$1))^(1/($N$3-INDEX($J$3:$N$3,1,aux!$AL$1)))-1,"n.d.") -> 0.2815888144 | AA62: =IF(INDEX($J62:$N62,1,aux!$AL$1)>0,(N62-INDEX($J62:$N62,1,aux!$AL$1))/INDEX($J62:$N62,1,aux!$AL$1),"n.d.") -> 1.697707337 | BS62: =+MATCH('5.1'!A62,AUX_2d_pais!$G$2:$G$20001,0) -> 40
A63: 0837 | B63: Cook, Ilhas | C63: =+SUMIF(AUX_2d_pais!$A$2:$A$27000,'5.1'!$A63&'5.1'!C$3&1,AUX_2d_pais!$J$2:$J$27000)/1000 -> 0 | D63: =+SUMIF(AUX_2d_pais!$A$2:$A$27000,'5.1'!$A63&'5.1'!D$3&1,AUX_2d_pais!$J$2:$J$27000)/1000 -> 0 | E63: =+SUMIF(AUX_2d_pais!$A$2:$A$27000,'5.1'!$A63&'5.1'!E$3&1,AUX_2d_pais!$J$2:$J$27000)/1000 -> 0 | F63: =+SUMIF(AUX_2d_pais!$A$2:$A$27000,'5.1'!$A63&'5.1'!F$3&1,AUX_2d_pais!$J$2:$J$27000)/1000 -> 0 | G63: =+SUMIF(AUX_2d_pais!$A$2:$A$27000,'5.1'!$A63&'5.1'!G$3&1,AUX_2d_pais!$J$2:$J$27000)/1000 -> 0 | H63: 0 | I63: 0 | J63: =+SUMIF(AUX_2d_pais!$A$2:$A$27000,'5.1'!$A63&'5.1'!J$3&2,AUX_2d_pais!$J$2:$J$27000)/1000 -> 0 | K63: =+SUMIF(AUX_2d_pais!$A$2:$A$27000,'5.1'!$A63&'5.1'!K$3&2,AUX_2d_pais!$J$2:$J$27000)/1000 -> 0 | L63: =+SUMIF(AUX_2d_pais!$A$2:$A$27000,'5.1'!$A63&'5.1'!L$3&2,AUX_2d_pais!$J$2:$J$27000)/1000 -> 0 | M63: =+SUMIF(AUX_2d_pais!$A$2:$A$27000,'5.1'!$A63&'5.1'!M$3&2,AUX_2d_pais!$J$2:$J$27000)/1000 -> 0 | N63: =+SUMIF(AUX_2d_pais!$A$2:$A$27000,'5.1'!$A63&'5.1'!N$3&2,AUX_2d_pais!$J$2:$J$27000)/1000 -> 0 | O63: 0 | P63: 0 | Q63: 0 | S63: =G63-INDEX($C63:$G63,1,aux!$AL$1) -> 0 | T63: 0 | U63: =+IF(INDEX($C63:$G63,1,aux!$AL$1)>0,(G63/INDEX($C63:$G63,1,aux!$AL$1))^(1/($G$3-INDEX($C$3:$G$3,1,aux!$AL$1)))-1,"n.d.") -> n.d. | V63: =IF(INDEX($C63:$G63,1,aux!$AL$1)>0,(G63-INDEX($C63:$G63,1,aux!$AL$1))/INDEX($C63:$G63,1,aux!$AL$1),"n.d.") -> n.d. | X63: =N63-INDEX($J63:$N63,1,aux!$AL$1) -> 0 | Y63: 0 | Z63: =+IF(INDEX($J63:$N63,1,aux!$AL$1)>0,(N63/INDEX($J63:$N63,1,aux!$AL$1))^(1/($N$3-INDEX($J$3:$N$3,1,aux!$AL$1)))-1,"n.d.") -> n.d. | AA63: =IF(INDEX($J63:$N63,1,aux!$AL$1)>0,(N63-INDEX($J63:$N63,1,aux!$AL$1))/INDEX($J63:$N63,1,aux!$AL$1),"n.d.") -> n.d. | AC63: 0 | BS63: =+MATCH('5.1'!A63,AUX_2d_pais!$G$2:$G$20001,0) -> 
A64: 0728 | B64: Coreia, República da | C64: =+SUMIF(AUX_2d_pais!$A$2:$A$27000,'5.1'!$A64&'5.1'!C$3&1,AUX_2d_pais!$J$2:$J$27000)/1000 -> 0 | D64: =+SUMIF(AUX_2d_pais!$A$2:$A$27000,'5.1'!$A64&'5.1'!D$3&1,AUX_2d_pais!$J$2:$J$27000)/1000 -> 0 | E64: =+SUMIF(AUX_2d_pais!$A$2:$A$27000,'5.1'!$A64&'5.1'!E$3&1,AUX_2d_pais!$J$2:$J$27000)/1000 -> 0 | F64: =+SUMIF(AUX_2d_pais!$A$2:$A$27000,'5.1'!$A64&'5.1'!F$3&1,AUX_2d_pais!$J$2:$J$27000)/1000 -> 0 | G64: =+SUMIF(AUX_2d_pais!$A$2:$A$27000,'5.1'!$A64&'5.1'!G$3&1,AUX_2d_pais!$J$2:$J$27000)/1000 -> 0 | H64: 0 | I64: 0 | J64: =+SUMIF(AUX_2d_pais!$A$2:$A$27000,'5.1'!$A64&'5.1'!J$3&2,AUX_2d_pais!$J$2:$J$27000)/1000 -> 0 | K64: =+SUMIF(AUX_2d_pais!$A$2:$A$27000,'5.1'!$A64&'5.1'!K$3&2,AUX_2d_pais!$J$2:$J$27000)/1000 -> 0 | L64: =+SUMIF(AUX_2d_pais!$A$2:$A$27000,'5.1'!$A64&'5.1'!L$3&2,AUX_2d_pais!$J$2:$J$27000)/1000 -> 0 | M64: =+SUMIF(AUX_2d_pais!$A$2:$A$27000,'5.1'!$A64&'5.1'!M$3&2,AUX_2d_pais!$J$2:$J$27000)/1000 -> 0 | N64: =+SUMIF(AUX_2d_pais!$A$2:$A$27000,'5.1'!$A64&'5.1'!N$3&2,AUX_2d_pais!$J$2:$J$27000)/1000 -> 0 | O64: 0 | P64: 0 | Q64: 0 | S64: =G64-INDEX($C64:$G64,1,aux!$AL$1) -> 0 | T64: 0 | U64: =+IF(INDEX($C64:$G64,1,aux!$AL$1)>0,(G64/INDEX($C64:$G64,1,aux!$AL$1))^(1/($G$3-INDEX($C$3:$G$3,1,aux!$AL$1)))-1,"n.d.") -> n.d. | V64: =IF(INDEX($C64:$G64,1,aux!$AL$1)>0,(G64-INDEX($C64:$G64,1,aux!$AL$1))/INDEX($C64:$G64,1,aux!$AL$1),"n.d.") -> n.d. | X64: =N64-INDEX($J64:$N64,1,aux!$AL$1) -> 0 | Y64: 0 | Z64: =+IF(INDEX($J64:$N64,1,aux!$AL$1)>0,(N64/INDEX($J64:$N64,1,aux!$AL$1))^(1/($N$3-INDEX($J$3:$N$3,1,aux!$AL$1)))-1,"n.d.") -> n.d. | AA64: =IF(INDEX($J64:$N64,1,aux!$AL$1)>0,(N64-INDEX($J64:$N64,1,aux!$AL$1))/INDEX($J64:$N64,1,aux!$AL$1),"n.d.") -> n.d. | AC64: 0 | BS64: =+MATCH('5.1'!A64,AUX_2d_pais!$G$2:$G$20001,0) -> 
A65: 0724 | B65: Coreia, República Popular Democrática da | C65: =+SUMIF(AUX_2d_pais!$A$2:$A$27000,'5.1'!$A65&'5.1'!C$3&1,AUX_2d_pais!$J$2:$J$27000)/1000 -> 0 | D65: =+SUMIF(AUX_2d_pais!$A$2:$A$27000,'5.1'!$A65&'5.1'!D$3&1,AUX_2d_pais!$J$2:$J$27000)/1000 -> 0 | E65: =+SUMIF(AUX_2d_pais!$A$2:$A$27000,'5.1'!$A65&'5.1'!E$3&1,AUX_2d_pais!$J$2:$J$27000)/1000 -> 0 | F65: =+SUMIF(AUX_2d_pais!$A$2:$A$27000,'5.1'!$A65&'5.1'!F$3&1,AUX_2d_pais!$J$2:$J$27000)/1000 -> 0 | G65: =+SUMIF(AUX_2d_pais!$A$2:$A$27000,'5.1'!$A65&'5.1'!G$3&1,AUX_2d_pais!$J$2:$J$27000)/1000 -> 0 | H65: 0 | I65: 0 | J65: =+SUMIF(AUX_2d_pais!$A$2:$A$27000,'5.1'!$A65&'5.1'!J$3&2,AUX_2d_pais!$J$2:$J$27000)/1000 -> 0 | K65: =+SUMIF(AUX_2d_pais!$A$2:$A$27000,'5.1'!$A65&'5.1'!K$3&2,AUX_2d_pais!$J$2:$J$27000)/1000 -> 0 | L65: =+SUMIF(AUX_2d_pais!$A$2:$A$27000,'5.1'!$A65&'5.1'!L$3&2,AUX_2d_pais!$J$2:$J$27000)/1000 -> 0 | M65: =+SUMIF(AUX_2d_pais!$A$2:$A$27000,'5.1'!$A65&'5.1'!M$3&2,AUX_2d_pais!$J$2:$J$27000)/1000 -> 0 | N65: =+SUMIF(AUX_2d_pais!$A$2:$A$27000,'5.1'!$A65&'5.1'!N$3&2,AUX_2d_pais!$J$2:$J$27000)/1000 -> 0 | O65: 0 | P65: 0 | Q65: 0 | S65: =G65-INDEX($C65:$G65,1,aux!$AL$1) -> 0 | T65: 0 | U65: =+IF(INDEX($C65:$G65,1,aux!$AL$1)>0,(G65/INDEX($C65:$G65,1,aux!$AL$1))^(1/($G$3-INDEX($C$3:$G$3,1,aux!$AL$1)))-1,"n.d.") -> n.d. | V65: =IF(INDEX($C65:$G65,1,aux!$AL$1)>0,(G65-INDEX($C65:$G65,1,aux!$AL$1))/INDEX($C65:$G65,1,aux!$AL$1),"n.d.") -> n.d. | X65: =N65-INDEX($J65:$N65,1,aux!$AL$1) -> 0 | Y65: 0 | Z65: =+IF(INDEX($J65:$N65,1,aux!$AL$1)>0,(N65/INDEX($J65:$N65,1,aux!$AL$1))^(1/($N$3-INDEX($J$3:$N$3,1,aux!$AL$1)))-1,"n.d.") -> n.d. | AA65: =IF(INDEX($J65:$N65,1,aux!$AL$1)>0,(N65-INDEX($J65:$N65,1,aux!$AL$1))/INDEX($J65:$N65,1,aux!$AL$1),"n.d.") -> n.d. | AC65: 0 | BS65: =+MATCH('5.1'!A65,AUX_2d_pais!$G$2:$G$20001,0) -> 
A66: 0272 | B66: Costa do Marfim | C66: =+SUMIF(AUX_2d_pais!$A$2:$A$27000,'5.1'!$A66&'5.1'!C$3&1,AUX_2d_pais!$J$2:$J$27000)/1000 -> 19861.723 | D66: =+SUMIF(AUX_2d_pais!$A$2:$A$27000,'5.1'!$A66&'5.1'!D$3&1,AUX_2d_pais!$J$2:$J$27000)/1000 -> 22562.345 | E66: =+SUMIF(AUX_2d_pais!$A$2:$A$27000,'5.1'!$A66&'5.1'!E$3&1,AUX_2d_pais!$J$2:$J$27000)/1000 -> 16797.469 | F66: =+SUMIF(AUX_2d_pais!$A$2:$A$27000,'5.1'!$A66&'5.1'!F$3&1,AUX_2d_pais!$J$2:$J$27000)/1000 -> 20987.523 | G66: =+SUMIF(AUX_2d_pais!$A$2:$A$27000,'5.1'!$A66&'5.1'!G$3&1,AUX_2d_pais!$J$2:$J$27000)/1000 -> 33771.985 | H66: 22796.209 | I66: 0.04695973862 | J66: =+SUMIF(AUX_2d_pais!$A$2:$A$27000,'5.1'!$A66&'5.1'!J$3&2,AUX_2d_pais!$J$2:$J$27000)/1000 -> 8113.314 | K66: =+SUMIF(AUX_2d_pais!$A$2:$A$27000,'5.1'!$A66&'5.1'!K$3&2,AUX_2d_pais!$J$2:$J$27000)/1000 -> 11567.496 | L66: =+SUMIF(AUX_2d_pais!$A$2:$A$27000,'5.1'!$A66&'5.1'!L$3&2,AUX_2d_pais!$J$2:$J$27000)/1000 -> 7171.378 | M66: =+SUMIF(AUX_2d_pais!$A$2:$A$27000,'5.1'!$A66&'5.1'!M$3&2,AUX_2d_pais!$J$2:$J$27000)/1000 -> 11450.913 | N66: =+SUMIF(AUX_2d_pais!$A$2:$A$27000,'5.1'!$A66&'5.1'!N$3&2,AUX_2d_pais!$J$2:$J$27000)/1000 -> 12584.877 | O66: 10177.5956 | P66: 0.0104118581 | Q66: -12618.6134 | S66: =G66-INDEX($C66:$G66,1,aux!$AL$1) -> 13910.262 | T66: 0.207552157 | U66: =+IF(INDEX($C66:$G66,1,aux!$AL$1)>0,(G66/INDEX($C66:$G66,1,aux!$AL$1))^(1/($G$3-INDEX($C$3:$G$3,1,aux!$AL$1)))-1,"n.d.") -> 0.1419179947 | V66: =IF(INDEX($C66:$G66,1,aux!$AL$1)>0,(G66-INDEX($C66:$G66,1,aux!$AL$1))/INDEX($C66:$G66,1,aux!$AL$1),"n.d.") -> 0.7003552512 | X66: =N66-INDEX($J66:$N66,1,aux!$AL$1) -> 4471.563 | Y66: 0.02148858921 | Z66: =+IF(INDEX($J66:$N66,1,aux!$AL$1)>0,(N66/INDEX($J66:$N66,1,aux!$AL$1))^(1/($N$3-INDEX($J$3:$N$3,1,aux!$AL$1)))-1,"n.d.") -> 0.1159960893 | AA66: =IF(INDEX($J66:$N66,1,aux!$AL$1)>0,(N66-INDEX($J66:$N66,1,aux!$AL$1))/INDEX($J66:$N66,1,aux!$AL$1),"n.d.") -> 0.5511389058 | BS66: =+MATCH('5.1'!A66,AUX_2d_pais!$G$2:$G$20001,0) -> 26
A67: 0436 | B67: Costa Rica | C67: =+SUMIF(AUX_2d_pais!$A$2:$A$27000,'5.1'!$A67&'5.1'!C$3&1,AUX_2d_pais!$J$2:$J$27000)/1000 -> 0 | D67: =+SUMIF(AUX_2d_pais!$A$2:$A$27000,'5.1'!$A67&'5.1'!D$3&1,AUX_2d_pais!$J$2:$J$27000)/1000 -> 0 | E67: =+SUMIF(AUX_2d_pais!$A$2:$A$27000,'5.1'!$A67&'5.1'!E$3&1,AUX_2d_pais!$J$2:$J$27000)/1000 -> 0 | F67: =+SUMIF(AUX_2d_pais!$A$2:$A$27000,'5.1'!$A67&'5.1'!F$3&1,AUX_2d_pais!$J$2:$J$27000)/1000 -> 0 | G67: =+SUMIF(AUX_2d_pais!$A$2:$A$27000,'5.1'!$A67&'5.1'!G$3&1,AUX_2d_pais!$J$2:$J$27000)/1000 -> 0 | H67: =SUM(C67:G67)/5 -> 0 | I67: 0 | J67: =+SUMIF(AUX_2d_pais!$A$2:$A$27000,'5.1'!$A67&'5.1'!J$3&2,AUX_2d_pais!$J$2:$J$27000)/1000 -> 0 | K67: =+SUMIF(AUX_2d_pais!$A$2:$A$27000,'5.1'!$A67&'5.1'!K$3&2,AUX_2d_pais!$J$2:$J$27000)/1000 -> 0 | L67: =+SUMIF(AUX_2d_pais!$A$2:$A$27000,'5.1'!$A67&'5.1'!L$3&2,AUX_2d_pais!$J$2:$J$27000)/1000 -> 0 | M67: =+SUMIF(AUX_2d_pais!$A$2:$A$27000,'5.1'!$A67&'5.1'!M$3&2,AUX_2d_pais!$J$2:$J$27000)/1000 -> 0 | N67: =+SUMIF(AUX_2d_pais!$A$2:$A$27000,'5.1'!$A67&'5.1'!N$3&2,AUX_2d_pais!$J$2:$J$27000)/1000 -> 0 | O67: =SUM(J67:N67)/5 -> 0 | P67: 0 | Q67: =O67-H67 -> 0 | S67: =G67-INDEX($C67:$G67,1,aux!$AL$1) -> 0 | T67: 0 | U67: =+IF(INDEX($C67:$G67,1,aux!$AL$1)>0,(G67/INDEX($C67:$G67,1,aux!$AL$1))^(1/($G$3-INDEX($C$3:$G$3,1,aux!$AL$1)))-1,"n.d.") -> n.d. | V67: =IF(INDEX($C67:$G67,1,aux!$AL$1)>0,(G67-INDEX($C67:$G67,1,aux!$AL$1))/INDEX($C67:$G67,1,aux!$AL$1),"n.d.") -> n.d. | X67: =N67-INDEX($J67:$N67,1,aux!$AL$1) -> 0 | Y67: 0 | Z67: =+IF(INDEX($J67:$N67,1,aux!$AL$1)>0,(N67/INDEX($J67:$N67,1,aux!$AL$1))^(1/($N$3-INDEX($J$3:$N$3,1,aux!$AL$1)))-1,"n.d.") -> n.d. | AA67: =IF(INDEX($J67:$N67,1,aux!$AL$1)>0,(N67-INDEX($J67:$N67,1,aux!$AL$1))/INDEX($J67:$N67,1,aux!$AL$1),"n.d.") -> n.d. | AC67: 0 | BS67: =+MATCH('5.1'!A67,AUX_2d_pais!$G$2:$G$20001,0) -> 
A68: 0092 | B68: Croácia | C68: =+SUMIF(AUX_2d_pais!$A$2:$A$27000,'5.1'!$A68&'5.1'!C$3&1,AUX_2d_pais!$J$2:$J$27000)/1000 -> 0 | D68: =+SUMIF(AUX_2d_pais!$A$2:$A$27000,'5.1'!$A68&'5.1'!D$3&1,AUX_2d_pais!$J$2:$J$27000)/1000 -> 0 | E68: =+SUMIF(AUX_2d_pais!$A$2:$A$27000,'5.1'!$A68&'5.1'!E$3&1,AUX_2d_pais!$J$2:$J$27000)/1000 -> 0 | F68: =+SUMIF(AUX_2d_pais!$A$2:$A$27000,'5.1'!$A68&'5.1'!F$3&1,AUX_2d_pais!$J$2:$J$27000)/1000 -> 0 | G68: =+SUMIF(AUX_2d_pais!$A$2:$A$27000,'5.1'!$A68&'5.1'!G$3&1,AUX_2d_pais!$J$2:$J$27000)/1000 -> 0 | H68: 0 | I68: =H68/$H$254 -> 0 | J68: =+SUMIF(AUX_2d_pais!$A$2:$A$27000,'5.1'!$A68&'5.1'!J$3&2,AUX_2d_pais!$J$2:$J$27000)/1000 -> 0 | K68: =+SUMIF(AUX_2d_pais!$A$2:$A$27000,'5.1'!$A68&'5.1'!K$3&2,AUX_2d_pais!$J$2:$J$27000)/1000 -> 0 | L68: =+SUMIF(AUX_2d_pais!$A$2:$A$27000,'5.1'!$A68&'5.1'!L$3&2,AUX_2d_pais!$J$2:$J$27000)/1000 -> 0 | M68: =+SUMIF(AUX_2d_pais!$A$2:$A$27000,'5.1'!$A68&'5.1'!M$3&2,AUX_2d_pais!$J$2:$J$27000)/1000 -> 0 | N68: =+SUMIF(AUX_2d_pais!$A$2:$A$27000,'5.1'!$A68&'5.1'!N$3&2,AUX_2d_pais!$J$2:$J$27000)/1000 -> 0 | O68: 0 | P68: =O68/$O$254 -> 0 | Q68: 0 | S68: =G68-INDEX($C68:$G68,1,aux!$AL$1) -> 0 | T68: =S68/$S$254 -> 0 | U68: =+IF(INDEX($C68:$G68,1,aux!$AL$1)>0,(G68/INDEX($C68:$G68,1,aux!$AL$1))^(1/($G$3-INDEX($C$3:$G$3,1,aux!$AL$1)))-1,"n.d.") -> n.d. | V68: =IF(INDEX($C68:$G68,1,aux!$AL$1)>0,(G68-INDEX($C68:$G68,1,aux!$AL$1))/INDEX($C68:$G68,1,aux!$AL$1),"n.d.") -> n.d. | X68: =N68-INDEX($J68:$N68,1,aux!$AL$1) -> 0 | Y68: =X68/$X$254 -> 0 | Z68: =+IF(INDEX($J68:$N68,1,aux!$AL$1)>0,(N68/INDEX($J68:$N68,1,aux!$AL$1))^(1/($N$3-INDEX($J$3:$N$3,1,aux!$AL$1)))-1,"n.d.") -> n.d. | AA68: =IF(INDEX($J68:$N68,1,aux!$AL$1)>0,(N68-INDEX($J68:$N68,1,aux!$AL$1))/INDEX($J68:$N68,1,aux!$AL$1),"n.d.") -> n.d. | AC68: =SUM(A68:Q68) -> 0 | BS68: =+MATCH('5.1'!A68,AUX_2d_pais!$G$2:$G$20001,0) -> 
A69: 0448 | B69: Cuba | C69: =+SUMIF(AUX_2d_pais!$A$2:$A$27000,'5.1'!$A69&'5.1'!C$3&1,AUX_2d_pais!$J$2:$J$27000)/1000 -> 0 | D69: =+SUMIF(AUX_2d_pais!$A$2:$A$27000,'5.1'!$A69&'5.1'!D$3&1,AUX_2d_pais!$J$2:$J$27000)/1000 -> 0 | E69: =+SUMIF(AUX_2d_pais!$A$2:$A$27000,'5.1'!$A69&'5.1'!E$3&1,AUX_2d_pais!$J$2:$J$27000)/1000 -> 0 | F69: =+SUMIF(AUX_2d_pais!$A$2:$A$27000,'5.1'!$A69&'5.1'!F$3&1,AUX_2d_pais!$J$2:$J$27000)/1000 -> 0 | G69: =+SUMIF(AUX_2d_pais!$A$2:$A$27000,'5.1'!$A69&'5.1'!G$3&1,AUX_2d_pais!$J$2:$J$27000)/1000 -> 0 | H69: 0 | I69: 0 | J69: =+SUMIF(AUX_2d_pais!$A$2:$A$27000,'5.1'!$A69&'5.1'!J$3&2,AUX_2d_pais!$J$2:$J$27000)/1000 -> 0 | K69: =+SUMIF(AUX_2d_pais!$A$2:$A$27000,'5.1'!$A69&'5.1'!K$3&2,AUX_2d_pais!$J$2:$J$27000)/1000 -> 0 | L69: =+SUMIF(AUX_2d_pais!$A$2:$A$27000,'5.1'!$A69&'5.1'!L$3&2,AUX_2d_pais!$J$2:$J$27000)/1000 -> 0 | M69: =+SUMIF(AUX_2d_pais!$A$2:$A$27000,'5.1'!$A69&'5.1'!M$3&2,AUX_2d_pais!$J$2:$J$27000)/1000 -> 0 | N69: =+SUMIF(AUX_2d_pais!$A$2:$A$27000,'5.1'!$A69&'5.1'!N$3&2,AUX_2d_pais!$J$2:$J$27000)/1000 -> 0 | O69: 0 | P69: 0 | Q69: 0 | S69: =G69-INDEX($C69:$G69,1,aux!$AL$1) -> 0 | T69: 0 | U69: =+IF(INDEX($C69:$G69,1,aux!$AL$1)>0,(G69/INDEX($C69:$G69,1,aux!$AL$1))^(1/($G$3-INDEX($C$3:$G$3,1,aux!$AL$1)))-1,"n.d.") -> n.d. | V69: =IF(INDEX($C69:$G69,1,aux!$AL$1)>0,(G69-INDEX($C69:$G69,1,aux!$AL$1))/INDEX($C69:$G69,1,aux!$AL$1),"n.d.") -> n.d. | X69: =N69-INDEX($J69:$N69,1,aux!$AL$1) -> 0 | Y69: 0 | Z69: =+IF(INDEX($J69:$N69,1,aux!$AL$1)>0,(N69/INDEX($J69:$N69,1,aux!$AL$1))^(1/($N$3-INDEX($J$3:$N$3,1,aux!$AL$1)))-1,"n.d.") -> n.d. | AA69: =IF(INDEX($J69:$N69,1,aux!$AL$1)>0,(N69-INDEX($J69:$N69,1,aux!$AL$1))/INDEX($J69:$N69,1,aux!$AL$1),"n.d.") -> n.d. | AC69: 0 | BS69: =+MATCH('5.1'!A69,AUX_2d_pais!$G$2:$G$20001,0) -> 
A70: 0475 | B70: Curaçau | C70: =+SUMIF(AUX_2d_pais!$A$2:$A$27000,'5.1'!$A70&'5.1'!C$3&1,AUX_2d_pais!$J$2:$J$27000)/1000 -> 0 | D70: =+SUMIF(AUX_2d_pais!$A$2:$A$27000,'5.1'!$A70&'5.1'!D$3&1,AUX_2d_pais!$J$2:$J$27000)/1000 -> 0 | E70: =+SUMIF(AUX_2d_pais!$A$2:$A$27000,'5.1'!$A70&'5.1'!E$3&1,AUX_2d_pais!$J$2:$J$27000)/1000 -> 0 | F70: =+SUMIF(AUX_2d_pais!$A$2:$A$27000,'5.1'!$A70&'5.1'!F$3&1,AUX_2d_pais!$J$2:$J$27000)/1000 -> 0 | G70: =+SUMIF(AUX_2d_pais!$A$2:$A$27000,'5.1'!$A70&'5.1'!G$3&1,AUX_2d_pais!$J$2:$J$27000)/1000 -> 0 | H70: 0 | I70: 0 | J70: =+SUMIF(AUX_2d_pais!$A$2:$A$27000,'5.1'!$A70&'5.1'!J$3&2,AUX_2d_pais!$J$2:$J$27000)/1000 -> 0 | K70: =+SUMIF(AUX_2d_pais!$A$2:$A$27000,'5.1'!$A70&'5.1'!K$3&2,AUX_2d_pais!$J$2:$J$27000)/1000 -> 0 | L70: =+SUMIF(AUX_2d_pais!$A$2:$A$27000,'5.1'!$A70&'5.1'!L$3&2,AUX_2d_pais!$J$2:$J$27000)/1000 -> 0 | M70: =+SUMIF(AUX_2d_pais!$A$2:$A$27000,'5.1'!$A70&'5.1'!M$3&2,AUX_2d_pais!$J$2:$J$27000)/1000 -> 0 | N70: =+SUMIF(AUX_2d_pais!$A$2:$A$27000,'5.1'!$A70&'5.1'!N$3&2,AUX_2d_pais!$J$2:$J$27000)/1000 -> 0 | O70: 0 | P70: 0 | Q70: 0 | S70: =G70-INDEX($C70:$G70,1,aux!$AL$1) -> 0 | T70: 0 | U70: =+IF(INDEX($C70:$G70,1,aux!$AL$1)>0,(G70/INDEX($C70:$G70,1,aux!$AL$1))^(1/($G$3-INDEX($C$3:$G$3,1,aux!$AL$1)))-1,"n.d.") -> n.d. | V70: =IF(INDEX($C70:$G70,1,aux!$AL$1)>0,(G70-INDEX($C70:$G70,1,aux!$AL$1))/INDEX($C70:$G70,1,aux!$AL$1),"n.d.") -> n.d. | X70: =N70-INDEX($J70:$N70,1,aux!$AL$1) -> 0 | Y70: 0 | Z70: =+IF(INDEX($J70:$N70,1,aux!$AL$1)>0,(N70/INDEX($J70:$N70,1,aux!$AL$1))^(1/($N$3-INDEX($J$3:$N$3,1,aux!$AL$1)))-1,"n.d.") -> n.d. | AA70: =IF(INDEX($J70:$N70,1,aux!$AL$1)>0,(N70-INDEX($J70:$N70,1,aux!$AL$1))/INDEX($J70:$N70,1,aux!$AL$1),"n.d.") -> n.d. | AC70: 0 | BS70: =+MATCH('5.1'!A70,AUX_2d_pais!$G$2:$G$20001,0) -> 
A71: 0008 | B71: Dinamarca | C71: =+SUMIF(AUX_2d_pais!$A$2:$A$27000,'5.1'!$A71&'5.1'!C$3&1,AUX_2d_pais!$J$2:$J$27000)/1000 -> 0 | D71: =+SUMIF(AUX_2d_pais!$A$2:$A$27000,'5.1'!$A71&'5.1'!D$3&1,AUX_2d_pais!$J$2:$J$27000)/1000 -> 0 | E71: =+SUMIF(AUX_2d_pais!$A$2:$A$27000,'5.1'!$A71&'5.1'!E$3&1,AUX_2d_pais!$J$2:$J$27000)/1000 -> 0 | F71: =+SUMIF(AUX_2d_pais!$A$2:$A$27000,'5.1'!$A71&'5.1'!F$3&1,AUX_2d_pais!$J$2:$J$27000)/1000 -> 0 | G71: =+SUMIF(AUX_2d_pais!$A$2:$A$27000,'5.1'!$A71&'5.1'!G$3&1,AUX_2d_pais!$J$2:$J$27000)/1000 -> 0 | H71: 0 | I71: 0 | J71: =+SUMIF(AUX_2d_pais!$A$2:$A$27000,'5.1'!$A71&'5.1'!J$3&2,AUX_2d_pais!$J$2:$J$27000)/1000 -> 0 | K71: =+SUMIF(AUX_2d_pais!$A$2:$A$27000,'5.1'!$A71&'5.1'!K$3&2,AUX_2d_pais!$J$2:$J$27000)/1000 -> 0 | L71: =+SUMIF(AUX_2d_pais!$A$2:$A$27000,'5.1'!$A71&'5.1'!L$3&2,AUX_2d_pais!$J$2:$J$27000)/1000 -> 0 | M71: =+SUMIF(AUX_2d_pais!$A$2:$A$27000,'5.1'!$A71&'5.1'!M$3&2,AUX_2d_pais!$J$2:$J$27000)/1000 -> 0 | N71: =+SUMIF(AUX_2d_pais!$A$2:$A$27000,'5.1'!$A71&'5.1'!N$3&2,AUX_2d_pais!$J$2:$J$27000)/1000 -> 0 | O71: 0 | P71: 0 | Q71: 0 | S71: =G71-INDEX($C71:$G71,1,aux!$AL$1) -> 0 | T71: 0 | U71: =+IF(INDEX($C71:$G71,1,aux!$AL$1)>0,(G71/INDEX($C71:$G71,1,aux!$AL$1))^(1/($G$3-INDEX($C$3:$G$3,1,aux!$AL$1)))-1,"n.d.") -> n.d. | V71: =IF(INDEX($C71:$G71,1,aux!$AL$1)>0,(G71-INDEX($C71:$G71,1,aux!$AL$1))/INDEX($C71:$G71,1,aux!$AL$1),"n.d.") -> n.d. | X71: =N71-INDEX($J71:$N71,1,aux!$AL$1) -> 0 | Y71: 0 | Z71: =+IF(INDEX($J71:$N71,1,aux!$AL$1)>0,(N71/INDEX($J71:$N71,1,aux!$AL$1))^(1/($N$3-INDEX($J$3:$N$3,1,aux!$AL$1)))-1,"n.d.") -> n.d. | AA71: =IF(INDEX($J71:$N71,1,aux!$AL$1)>0,(N71-INDEX($J71:$N71,1,aux!$AL$1))/INDEX($J71:$N71,1,aux!$AL$1),"n.d.") -> n.d. | AC71: 0 | BS71: =+MATCH('5.1'!A71,AUX_2d_pais!$G$2:$G$20001,0) -> 
A72: 0460 | B72: Domínica | C72: =+SUMIF(AUX_2d_pais!$A$2:$A$27000,'5.1'!$A72&'5.1'!C$3&1,AUX_2d_pais!$J$2:$J$27000)/1000 -> 0 | D72: =+SUMIF(AUX_2d_pais!$A$2:$A$27000,'5.1'!$A72&'5.1'!D$3&1,AUX_2d_pais!$J$2:$J$27000)/1000 -> 0 | E72: =+SUMIF(AUX_2d_pais!$A$2:$A$27000,'5.1'!$A72&'5.1'!E$3&1,AUX_2d_pais!$J$2:$J$27000)/1000 -> 0 | F72: =+SUMIF(AUX_2d_pais!$A$2:$A$27000,'5.1'!$A72&'5.1'!F$3&1,AUX_2d_pais!$J$2:$J$27000)/1000 -> 0 | G72: =+SUMIF(AUX_2d_pais!$A$2:$A$27000,'5.1'!$A72&'5.1'!G$3&1,AUX_2d_pais!$J$2:$J$27000)/1000 -> 0 | H72: 0 | I72: 0 | J72: =+SUMIF(AUX_2d_pais!$A$2:$A$27000,'5.1'!$A72&'5.1'!J$3&2,AUX_2d_pais!$J$2:$J$27000)/1000 -> 0 | K72: =+SUMIF(AUX_2d_pais!$A$2:$A$27000,'5.1'!$A72&'5.1'!K$3&2,AUX_2d_pais!$J$2:$J$27000)/1000 -> 0 | L72: =+SUMIF(AUX_2d_pais!$A$2:$A$27000,'5.1'!$A72&'5.1'!L$3&2,AUX_2d_pais!$J$2:$J$27000)/1000 -> 0 | M72: =+SUMIF(AUX_2d_pais!$A$2:$A$27000,'5.1'!$A72&'5.1'!M$3&2,AUX_2d_pais!$J$2:$J$27000)/1000 -> 0 | N72: =+SUMIF(AUX_2d_pais!$A$2:$A$27000,'5.1'!$A72&'5.1'!N$3&2,AUX_2d_pais!$J$2:$J$27000)/1000 -> 0 | O72: 0 | P72: 0 | Q72: 0 | S72: =G72-INDEX($C72:$G72,1,aux!$AL$1) -> 0 | T72: 0 | U72: =+IF(INDEX($C72:$G72,1,aux!$AL$1)>0,(G72/INDEX($C72:$G72,1,aux!$AL$1))^(1/($G$3-INDEX($C$3:$G$3,1,aux!$AL$1)))-1,"n.d.") -> n.d. | V72: =IF(INDEX($C72:$G72,1,aux!$AL$1)>0,(G72-INDEX($C72:$G72,1,aux!$AL$1))/INDEX($C72:$G72,1,aux!$AL$1),"n.d.") -> n.d. | X72: =N72-INDEX($J72:$N72,1,aux!$AL$1) -> 0 | Y72: 0 | Z72: =+IF(INDEX($J72:$N72,1,aux!$AL$1)>0,(N72/INDEX($J72:$N72,1,aux!$AL$1))^(1/($N$3-INDEX($J$3:$N$3,1,aux!$AL$1)))-1,"n.d.") -> n.d. | AA72: =IF(INDEX($J72:$N72,1,aux!$AL$1)>0,(N72-INDEX($J72:$N72,1,aux!$AL$1))/INDEX($J72:$N72,1,aux!$AL$1),"n.d.") -> n.d. | AC72: 0 | BS72: =+MATCH('5.1'!A72,AUX_2d_pais!$G$2:$G$20001,0) -> 
A73: 0456 | B73: Dominicana, República | C73: =+SUMIF(AUX_2d_pais!$A$2:$A$27000,'5.1'!$A73&'5.1'!C$3&1,AUX_2d_pais!$J$2:$J$27000)/1000 -> 0 | D73: =+SUMIF(AUX_2d_pais!$A$2:$A$27000,'5.1'!$A73&'5.1'!D$3&1,AUX_2d_pais!$J$2:$J$27000)/1000 -> 0 | E73: =+SUMIF(AUX_2d_pais!$A$2:$A$27000,'5.1'!$A73&'5.1'!E$3&1,AUX_2d_pais!$J$2:$J$27000)/1000 -> 0 | F73: =+SUMIF(AUX_2d_pais!$A$2:$A$27000,'5.1'!$A73&'5.1'!F$3&1,AUX_2d_pais!$J$2:$J$27000)/1000 -> 0 | G73: =+SUMIF(AUX_2d_pais!$A$2:$A$27000,'5.1'!$A73&'5.1'!G$3&1,AUX_2d_pais!$J$2:$J$27000)/1000 -> 0 | H73: 0 | I73: 0 | J73: =+SUMIF(AUX_2d_pais!$A$2:$A$27000,'5.1'!$A73&'5.1'!J$3&2,AUX_2d_pais!$J$2:$J$27000)/1000 -> 0 | K73: =+SUMIF(AUX_2d_pais!$A$2:$A$27000,'5.1'!$A73&'5.1'!K$3&2,AUX_2d_pais!$J$2:$J$27000)/1000 -> 0 | L73: =+SUMIF(AUX_2d_pais!$A$2:$A$27000,'5.1'!$A73&'5.1'!L$3&2,AUX_2d_pais!$J$2:$J$27000)/1000 -> 0 | M73: =+SUMIF(AUX_2d_pais!$A$2:$A$27000,'5.1'!$A73&'5.1'!M$3&2,AUX_2d_pais!$J$2:$J$27000)/1000 -> 0 | N73: =+SUMIF(AUX_2d_pais!$A$2:$A$27000,'5.1'!$A73&'5.1'!N$3&2,AUX_2d_pais!$J$2:$J$27000)/1000 -> 0 | O73: 0 | P73: 0 | Q73: 0 | S73: =G73-INDEX($C73:$G73,1,aux!$AL$1) -> 0 | T73: 0 | U73: =+IF(INDEX($C73:$G73,1,aux!$AL$1)>0,(G73/INDEX($C73:$G73,1,aux!$AL$1))^(1/($G$3-INDEX($C$3:$G$3,1,aux!$AL$1)))-1,"n.d.") -> n.d. | V73: =IF(INDEX($C73:$G73,1,aux!$AL$1)>0,(G73-INDEX($C73:$G73,1,aux!$AL$1))/INDEX($C73:$G73,1,aux!$AL$1),"n.d.") -> n.d. | X73: =N73-INDEX($J73:$N73,1,aux!$AL$1) -> 0 | Y73: 0 | Z73: =+IF(INDEX($J73:$N73,1,aux!$AL$1)>0,(N73/INDEX($J73:$N73,1,aux!$AL$1))^(1/($N$3-INDEX($J$3:$N$3,1,aux!$AL$1)))-1,"n.d.") -> n.d. | AA73: =IF(INDEX($J73:$N73,1,aux!$AL$1)>0,(N73-INDEX($J73:$N73,1,aux!$AL$1))/INDEX($J73:$N73,1,aux!$AL$1),"n.d.") -> n.d. | AC73: 0 | BS73: =+MATCH('5.1'!A73,AUX_2d_pais!$G$2:$G$20001,0) -> 
A74: 0220 | B74: Egito | C74: =+SUMIF(AUX_2d_pais!$A$2:$A$27000,'5.1'!$A74&'5.1'!C$3&1,AUX_2d_pais!$J$2:$J$27000)/1000 -> 6524.289 | D74: =+SUMIF(AUX_2d_pais!$A$2:$A$27000,'5.1'!$A74&'5.1'!D$3&1,AUX_2d_pais!$J$2:$J$27000)/1000 -> 10830.998 | E74: =+SUMIF(AUX_2d_pais!$A$2:$A$27000,'5.1'!$A74&'5.1'!E$3&1,AUX_2d_pais!$J$2:$J$27000)/1000 -> 3848.008 | F74: =+SUMIF(AUX_2d_pais!$A$2:$A$27000,'5.1'!$A74&'5.1'!F$3&1,AUX_2d_pais!$J$2:$J$27000)/1000 -> 12786.239 | G74: =+SUMIF(AUX_2d_pais!$A$2:$A$27000,'5.1'!$A74&'5.1'!G$3&1,AUX_2d_pais!$J$2:$J$27000)/1000 -> 17840.936 | H74: 10366.094 | I74: 0.02135394814 | J74: =+SUMIF(AUX_2d_pais!$A$2:$A$27000,'5.1'!$A74&'5.1'!J$3&2,AUX_2d_pais!$J$2:$J$27000)/1000 -> 76853.563 | K74: =+SUMIF(AUX_2d_pais!$A$2:$A$27000,'5.1'!$A74&'5.1'!K$3&2,AUX_2d_pais!$J$2:$J$27000)/1000 -> 86388.804 | L74: =+SUMIF(AUX_2d_pais!$A$2:$A$27000,'5.1'!$A74&'5.1'!L$3&2,AUX_2d_pais!$J$2:$J$27000)/1000 -> 70914.233 | M74: =+SUMIF(AUX_2d_pais!$A$2:$A$27000,'5.1'!$A74&'5.1'!M$3&2,AUX_2d_pais!$J$2:$J$27000)/1000 -> 93855.855 | N74: =+SUMIF(AUX_2d_pais!$A$2:$A$27000,'5.1'!$A74&'5.1'!N$3&2,AUX_2d_pais!$J$2:$J$27000)/1000 -> 88849.972 | O74: 83372.4854 | P74: 0.08529150906 | Q74: 73006.3914 | S74: =G74-INDEX($C74:$G74,1,aux!$AL$1) -> 11316.647 | T74: 0.1688533613 | U74: =+IF(INDEX($C74:$G74,1,aux!$AL$1)>0,(G74/INDEX($C74:$G74,1,aux!$AL$1))^(1/($G$3-INDEX($C$3:$G$3,1,aux!$AL$1)))-1,"n.d.") -> 0.2859412013 | V74: =IF(INDEX($C74:$G74,1,aux!$AL$1)>0,(G74-INDEX($C74:$G74,1,aux!$AL$1))/INDEX($C74:$G74,1,aux!$AL$1),"n.d.") -> 1.734541036 | X74: =N74-INDEX($J74:$N74,1,aux!$AL$1) -> 11996.409 | Y74: 0.05765006666 | Z74: =+IF(INDEX($J74:$N74,1,aux!$AL$1)>0,(N74/INDEX($J74:$N74,1,aux!$AL$1))^(1/($N$3-INDEX($J$3:$N$3,1,aux!$AL$1)))-1,"n.d.") -> 0.03692733231 | AA74: =IF(INDEX($J74:$N74,1,aux!$AL$1)>0,(N74-INDEX($J74:$N74,1,aux!$AL$1))/INDEX($J74:$N74,1,aux!$AL$1),"n.d.") -> 0.1560943765 | BS74: =+MATCH('5.1'!A74,AUX_2d_pais!$G$2:$G$20001,0) -> 10
A75: 0428 | B75: El Salvador | C75: =+SUMIF(AUX_2d_pais!$A$2:$A$27000,'5.1'!$A75&'5.1'!C$3&1,AUX_2d_pais!$J$2:$J$27000)/1000 -> 0 | D75: =+SUMIF(AUX_2d_pais!$A$2:$A$27000,'5.1'!$A75&'5.1'!D$3&1,AUX_2d_pais!$J$2:$J$27000)/1000 -> 0 | E75: =+SUMIF(AUX_2d_pais!$A$2:$A$27000,'5.1'!$A75&'5.1'!E$3&1,AUX_2d_pais!$J$2:$J$27000)/1000 -> 0 | F75: =+SUMIF(AUX_2d_pais!$A$2:$A$27000,'5.1'!$A75&'5.1'!F$3&1,AUX_2d_pais!$J$2:$J$27000)/1000 -> 0 | G75: =+SUMIF(AUX_2d_pais!$A$2:$A$27000,'5.1'!$A75&'5.1'!G$3&1,AUX_2d_pais!$J$2:$J$27000)/1000 -> 0 | H75: 0 | I75: 0 | J75: =+SUMIF(AUX_2d_pais!$A$2:$A$27000,'5.1'!$A75&'5.1'!J$3&2,AUX_2d_pais!$J$2:$J$27000)/1000 -> 0 | K75: =+SUMIF(AUX_2d_pais!$A$2:$A$27000,'5.1'!$A75&'5.1'!K$3&2,AUX_2d_pais!$J$2:$J$27000)/1000 -> 0 | L75: =+SUMIF(AUX_2d_pais!$A$2:$A$27000,'5.1'!$A75&'5.1'!L$3&2,AUX_2d_pais!$J$2:$J$27000)/1000 -> 0 | M75: =+SUMIF(AUX_2d_pais!$A$2:$A$27000,'5.1'!$A75&'5.1'!M$3&2,AUX_2d_pais!$J$2:$J$27000)/1000 -> 0 | N75: =+SUMIF(AUX_2d_pais!$A$2:$A$27000,'5.1'!$A75&'5.1'!N$3&2,AUX_2d_pais!$J$2:$J$27000)/1000 -> 0 | O75: 0 | P75: 0 | Q75: 0 | S75: =G75-INDEX($C75:$G75,1,aux!$AL$1) -> 0 | T75: 0 | U75: =+IF(INDEX($C75:$G75,1,aux!$AL$1)>0,(G75/INDEX($C75:$G75,1,aux!$AL$1))^(1/($G$3-INDEX($C$3:$G$3,1,aux!$AL$1)))-1,"n.d.") -> n.d. | V75: =IF(INDEX($C75:$G75,1,aux!$AL$1)>0,(G75-INDEX($C75:$G75,1,aux!$AL$1))/INDEX($C75:$G75,1,aux!$AL$1),"n.d.") -> n.d. | X75: =N75-INDEX($J75:$N75,1,aux!$AL$1) -> 0 | Y75: 0 | Z75: =+IF(INDEX($J75:$N75,1,aux!$AL$1)>0,(N75/INDEX($J75:$N75,1,aux!$AL$1))^(1/($N$3-INDEX($J$3:$N$3,1,aux!$AL$1)))-1,"n.d.") -> n.d. | AA75: =IF(INDEX($J75:$N75,1,aux!$AL$1)>0,(N75-INDEX($J75:$N75,1,aux!$AL$1))/INDEX($J75:$N75,1,aux!$AL$1),"n.d.") -> n.d. | AC75: 0 | BS75: =+MATCH('5.1'!A75,AUX_2d_pais!$G$2:$G$20001,0) -> 
A76: 0647 | B76: Emirados Árabes Unidos | C76: =+SUMIF(AUX_2d_pais!$A$2:$A$27000,'5.1'!$A76&'5.1'!C$3&1,AUX_2d_pais!$J$2:$J$27000)/1000 -> 0 | D76: =+SUMIF(AUX_2d_pais!$A$2:$A$27000,'5.1'!$A76&'5.1'!D$3&1,AUX_2d_pais!$J$2:$J$27000)/1000 -> 0 | E76: =+SUMIF(AUX_2d_pais!$A$2:$A$27000,'5.1'!$A76&'5.1'!E$3&1,AUX_2d_pais!$J$2:$J$27000)/1000 -> 0 | F76: =+SUMIF(AUX_2d_pais!$A$2:$A$27000,'5.1'!$A76&'5.1'!F$3&1,AUX_2d_pais!$J$2:$J$27000)/1000 -> 0 | G76: =+SUMIF(AUX_2d_pais!$A$2:$A$27000,'5.1'!$A76&'5.1'!G$3&1,AUX_2d_pais!$J$2:$J$27000)/1000 -> 0 | H76: 0 | I76: 0 | J76: =+SUMIF(AUX_2d_pais!$A$2:$A$27000,'5.1'!$A76&'5.1'!J$3&2,AUX_2d_pais!$J$2:$J$27000)/1000 -> 0 | K76: =+SUMIF(AUX_2d_pais!$A$2:$A$27000,'5.1'!$A76&'5.1'!K$3&2,AUX_2d_pais!$J$2:$J$27000)/1000 -> 0 | L76: =+SUMIF(AUX_2d_pais!$A$2:$A$27000,'5.1'!$A76&'5.1'!L$3&2,AUX_2d_pais!$J$2:$J$27000)/1000 -> 0 | M76: =+SUMIF(AUX_2d_pais!$A$2:$A$27000,'5.1'!$A76&'5.1'!M$3&2,AUX_2d_pais!$J$2:$J$27000)/1000 -> 0 | N76: =+SUMIF(AUX_2d_pais!$A$2:$A$27000,'5.1'!$A76&'5.1'!N$3&2,AUX_2d_pais!$J$2:$J$27000)/1000 -> 0 | O76: 0 | P76: 0 | Q76: 0 | S76: =G76-INDEX($C76:$G76,1,aux!$AL$1) -> 0 | T76: 0 | U76: =+IF(INDEX($C76:$G76,1,aux!$AL$1)>0,(G76/INDEX($C76:$G76,1,aux!$AL$1))^(1/($G$3-INDEX($C$3:$G$3,1,aux!$AL$1)))-1,"n.d.") -> n.d. | V76: =IF(INDEX($C76:$G76,1,aux!$AL$1)>0,(G76-INDEX($C76:$G76,1,aux!$AL$1))/INDEX($C76:$G76,1,aux!$AL$1),"n.d.") -> n.d. | X76: =N76-INDEX($J76:$N76,1,aux!$AL$1) -> 0 | Y76: 0 | Z76: =+IF(INDEX($J76:$N76,1,aux!$AL$1)>0,(N76/INDEX($J76:$N76,1,aux!$AL$1))^(1/($N$3-INDEX($J$3:$N$3,1,aux!$AL$1)))-1,"n.d.") -> n.d. | AA76: =IF(INDEX($J76:$N76,1,aux!$AL$1)>0,(N76-INDEX($J76:$N76,1,aux!$AL$1))/INDEX($J76:$N76,1,aux!$AL$1),"n.d.") -> n.d. | AC76: 0 | BS76: =+MATCH('5.1'!A76,AUX_2d_pais!$G$2:$G$20001,0) -> 
A77: 0500 | B77: Equador | C77: =+SUMIF(AUX_2d_pais!$A$2:$A$27000,'5.1'!$A77&'5.1'!C$3&1,AUX_2d_pais!$J$2:$J$27000)/1000 -> 0 | D77: =+SUMIF(AUX_2d_pais!$A$2:$A$27000,'5.1'!$A77&'5.1'!D$3&1,AUX_2d_pais!$J$2:$J$27000)/1000 -> 0 | E77: =+SUMIF(AUX_2d_pais!$A$2:$A$27000,'5.1'!$A77&'5.1'!E$3&1,AUX_2d_pais!$J$2:$J$27000)/1000 -> 0 | F77: =+SUMIF(AUX_2d_pais!$A$2:$A$27000,'5.1'!$A77&'5.1'!F$3&1,AUX_2d_pais!$J$2:$J$27000)/1000 -> 0 | G77: =+SUMIF(AUX_2d_pais!$A$2:$A$27000,'5.1'!$A77&'5.1'!G$3&1,AUX_2d_pais!$J$2:$J$27000)/1000 -> 0 | H77: 0 | I77: 0 | J77: =+SUMIF(AUX_2d_pais!$A$2:$A$27000,'5.1'!$A77&'5.1'!J$3&2,AUX_2d_pais!$J$2:$J$27000)/1000 -> 0 | K77: =+SUMIF(AUX_2d_pais!$A$2:$A$27000,'5.1'!$A77&'5.1'!K$3&2,AUX_2d_pais!$J$2:$J$27000)/1000 -> 0 | L77: =+SUMIF(AUX_2d_pais!$A$2:$A$27000,'5.1'!$A77&'5.1'!L$3&2,AUX_2d_pais!$J$2:$J$27000)/1000 -> 0 | M77: =+SUMIF(AUX_2d_pais!$A$2:$A$27000,'5.1'!$A77&'5.1'!M$3&2,AUX_2d_pais!$J$2:$J$27000)/1000 -> 0 | N77: =+SUMIF(AUX_2d_pais!$A$2:$A$27000,'5.1'!$A77&'5.1'!N$3&2,AUX_2d_pais!$J$2:$J$27000)/1000 -> 0 | O77: 0 | P77: 0 | Q77: 0 | S77: =G77-INDEX($C77:$G77,1,aux!$AL$1) -> 0 | T77: 0 | U77: =+IF(INDEX($C77:$G77,1,aux!$AL$1)>0,(G77/INDEX($C77:$G77,1,aux!$AL$1))^(1/($G$3-INDEX($C$3:$G$3,1,aux!$AL$1)))-1,"n.d.") -> n.d. | V77: =IF(INDEX($C77:$G77,1,aux!$AL$1)>0,(G77-INDEX($C77:$G77,1,aux!$AL$1))/INDEX($C77:$G77,1,aux!$AL$1),"n.d.") -> n.d. | X77: =N77-INDEX($J77:$N77,1,aux!$AL$1) -> 0 | Y77: 0 | Z77: =+IF(INDEX($J77:$N77,1,aux!$AL$1)>0,(N77/INDEX($J77:$N77,1,aux!$AL$1))^(1/($N$3-INDEX($J$3:$N$3,1,aux!$AL$1)))-1,"n.d.") -> n.d. | AA77: =IF(INDEX($J77:$N77,1,aux!$AL$1)>0,(N77-INDEX($J77:$N77,1,aux!$AL$1))/INDEX($J77:$N77,1,aux!$AL$1),"n.d.") -> n.d. | AC77: 0 | BS77: =+MATCH('5.1'!A77,AUX_2d_pais!$G$2:$G$20001,0) -> 
A78: 0336 | B78: Eritreia | C78: =+SUMIF(AUX_2d_pais!$A$2:$A$27000,'5.1'!$A78&'5.1'!C$3&1,AUX_2d_pais!$J$2:$J$27000)/1000 -> 0 | D78: =+SUMIF(AUX_2d_pais!$A$2:$A$27000,'5.1'!$A78&'5.1'!D$3&1,AUX_2d_pais!$J$2:$J$27000)/1000 -> 0 | E78: =+SUMIF(AUX_2d_pais!$A$2:$A$27000,'5.1'!$A78&'5.1'!E$3&1,AUX_2d_pais!$J$2:$J$27000)/1000 -> 0 | F78: =+SUMIF(AUX_2d_pais!$A$2:$A$27000,'5.1'!$A78&'5.1'!F$3&1,AUX_2d_pais!$J$2:$J$27000)/1000 -> 0 | G78: =+SUMIF(AUX_2d_pais!$A$2:$A$27000,'5.1'!$A78&'5.1'!G$3&1,AUX_2d_pais!$J$2:$J$27000)/1000 -> 0 | H78: 0 | I78: 0 | J78: =+SUMIF(AUX_2d_pais!$A$2:$A$27000,'5.1'!$A78&'5.1'!J$3&2,AUX_2d_pais!$J$2:$J$27000)/1000 -> 0 | K78: =+SUMIF(AUX_2d_pais!$A$2:$A$27000,'5.1'!$A78&'5.1'!K$3&2,AUX_2d_pais!$J$2:$J$27000)/1000 -> 0 | L78: =+SUMIF(AUX_2d_pais!$A$2:$A$27000,'5.1'!$A78&'5.1'!L$3&2,AUX_2d_pais!$J$2:$J$27000)/1000 -> 0 | M78: =+SUMIF(AUX_2d_pais!$A$2:$A$27000,'5.1'!$A78&'5.1'!M$3&2,AUX_2d_pais!$J$2:$J$27000)/1000 -> 0 | N78: =+SUMIF(AUX_2d_pais!$A$2:$A$27000,'5.1'!$A78&'5.1'!N$3&2,AUX_2d_pais!$J$2:$J$27000)/1000 -> 0 | O78: 0 | P78: 0 | Q78: 0 | S78: =G78-INDEX($C78:$G78,1,aux!$AL$1) -> 0 | T78: 0 | U78: =+IF(INDEX($C78:$G78,1,aux!$AL$1)>0,(G78/INDEX($C78:$G78,1,aux!$AL$1))^(1/($G$3-INDEX($C$3:$G$3,1,aux!$AL$1)))-1,"n.d.") -> n.d. | V78: =IF(INDEX($C78:$G78,1,aux!$AL$1)>0,(G78-INDEX($C78:$G78,1,aux!$AL$1))/INDEX($C78:$G78,1,aux!$AL$1),"n.d.") -> n.d. | X78: =N78-INDEX($J78:$N78,1,aux!$AL$1) -> 0 | Y78: 0 | Z78: =+IF(INDEX($J78:$N78,1,aux!$AL$1)>0,(N78/INDEX($J78:$N78,1,aux!$AL$1))^(1/($N$3-INDEX($J$3:$N$3,1,aux!$AL$1)))-1,"n.d.") -> n.d. | AA78: =IF(INDEX($J78:$N78,1,aux!$AL$1)>0,(N78-INDEX($J78:$N78,1,aux!$AL$1))/INDEX($J78:$N78,1,aux!$AL$1),"n.d.") -> n.d. | AC78: 0 | BS78: =+MATCH('5.1'!A78,AUX_2d_pais!$G$2:$G$20001,0) -> 
A79: 0063 | B79: Eslováquia | C79: =+SUMIF(AUX_2d_pais!$A$2:$A$27000,'5.1'!$A79&'5.1'!C$3&1,AUX_2d_pais!$J$2:$J$27000)/1000 -> 0 | D79: =+SUMIF(AUX_2d_pais!$A$2:$A$27000,'5.1'!$A79&'5.1'!D$3&1,AUX_2d_pais!$J$2:$J$27000)/1000 -> 0 | E79: =+SUMIF(AUX_2d_pais!$A$2:$A$27000,'5.1'!$A79&'5.1'!E$3&1,AUX_2d_pais!$J$2:$J$27000)/1000 -> 0 | F79: =+SUMIF(AUX_2d_pais!$A$2:$A$27000,'5.1'!$A79&'5.1'!F$3&1,AUX_2d_pais!$J$2:$J$27000)/1000 -> 0 | G79: =+SUMIF(AUX_2d_pais!$A$2:$A$27000,'5.1'!$A79&'5.1'!G$3&1,AUX_2d_pais!$J$2:$J$27000)/1000 -> 0 | H79: 0 | I79: 0 | J79: =+SUMIF(AUX_2d_pais!$A$2:$A$27000,'5.1'!$A79&'5.1'!J$3&2,AUX_2d_pais!$J$2:$J$27000)/1000 -> 0 | K79: =+SUMIF(AUX_2d_pais!$A$2:$A$27000,'5.1'!$A79&'5.1'!K$3&2,AUX_2d_pais!$J$2:$J$27000)/1000 -> 0 | L79: =+SUMIF(AUX_2d_pais!$A$2:$A$27000,'5.1'!$A79&'5.1'!L$3&2,AUX_2d_pais!$J$2:$J$27000)/1000 -> 0 | M79: =+SUMIF(AUX_2d_pais!$A$2:$A$27000,'5.1'!$A79&'5.1'!M$3&2,AUX_2d_pais!$J$2:$J$27000)/1000 -> 0 | N79: =+SUMIF(AUX_2d_pais!$A$2:$A$27000,'5.1'!$A79&'5.1'!N$3&2,AUX_2d_pais!$J$2:$J$27000)/1000 -> 0 | O79: 0 | P79: 0 | Q79: 0 | S79: =G79-INDEX($C79:$G79,1,aux!$AL$1) -> 0 | T79: 0 | U79: =+IF(INDEX($C79:$G79,1,aux!$AL$1)>0,(G79/INDEX($C79:$G79,1,aux!$AL$1))^(1/($G$3-INDEX($C$3:$G$3,1,aux!$AL$1)))-1,"n.d.") -> n.d. | V79: =IF(INDEX($C79:$G79,1,aux!$AL$1)>0,(G79-INDEX($C79:$G79,1,aux!$AL$1))/INDEX($C79:$G79,1,aux!$AL$1),"n.d.") -> n.d. | X79: =N79-INDEX($J79:$N79,1,aux!$AL$1) -> 0 | Y79: 0 | Z79: =+IF(INDEX($J79:$N79,1,aux!$AL$1)>0,(N79/INDEX($J79:$N79,1,aux!$AL$1))^(1/($N$3-INDEX($J$3:$N$3,1,aux!$AL$1)))-1,"n.d.") -> n.d. | AA79: =IF(INDEX($J79:$N79,1,aux!$AL$1)>0,(N79-INDEX($J79:$N79,1,aux!$AL$1))/INDEX($J79:$N79,1,aux!$AL$1),"n.d.") -> n.d. | AC79: 0 | BS79: =+MATCH('5.1'!A79,AUX_2d_pais!$G$2:$G$20001,0) -> 
A80: 0091 | B80: Eslovénia | C80: =+SUMIF(AUX_2d_pais!$A$2:$A$27000,'5.1'!$A80&'5.1'!C$3&1,AUX_2d_pais!$J$2:$J$27000)/1000 -> 0 | D80: =+SUMIF(AUX_2d_pais!$A$2:$A$27000,'5.1'!$A80&'5.1'!D$3&1,AUX_2d_pais!$J$2:$J$27000)/1000 -> 0 | E80: =+SUMIF(AUX_2d_pais!$A$2:$A$27000,'5.1'!$A80&'5.1'!E$3&1,AUX_2d_pais!$J$2:$J$27000)/1000 -> 0 | F80: =+SUMIF(AUX_2d_pais!$A$2:$A$27000,'5.1'!$A80&'5.1'!F$3&1,AUX_2d_pais!$J$2:$J$27000)/1000 -> 0 | G80: =+SUMIF(AUX_2d_pais!$A$2:$A$27000,'5.1'!$A80&'5.1'!G$3&1,AUX_2d_pais!$J$2:$J$27000)/1000 -> 0 | H80: 0 | I80: 0 | J80: =+SUMIF(AUX_2d_pais!$A$2:$A$27000,'5.1'!$A80&'5.1'!J$3&2,AUX_2d_pais!$J$2:$J$27000)/1000 -> 0 | K80: =+SUMIF(AUX_2d_pais!$A$2:$A$27000,'5.1'!$A80&'5.1'!K$3&2,AUX_2d_pais!$J$2:$J$27000)/1000 -> 0 | L80: =+SUMIF(AUX_2d_pais!$A$2:$A$27000,'5.1'!$A80&'5.1'!L$3&2,AUX_2d_pais!$J$2:$J$27000)/1000 -> 0 | M80: =+SUMIF(AUX_2d_pais!$A$2:$A$27000,'5.1'!$A80&'5.1'!M$3&2,AUX_2d_pais!$J$2:$J$27000)/1000 -> 0 | N80: =+SUMIF(AUX_2d_pais!$A$2:$A$27000,'5.1'!$A80&'5.1'!N$3&2,AUX_2d_pais!$J$2:$J$27000)/1000 -> 0 | O80: 0 | P80: 0 | Q80: 0 | S80: =G80-INDEX($C80:$G80,1,aux!$AL$1) -> 0 | T80: 0 | U80: =+IF(INDEX($C80:$G80,1,aux!$AL$1)>0,(G80/INDEX($C80:$G80,1,aux!$AL$1))^(1/($G$3-INDEX($C$3:$G$3,1,aux!$AL$1)))-1,"n.d.") -> n.d. | V80: =IF(INDEX($C80:$G80,1,aux!$AL$1)>0,(G80-INDEX($C80:$G80,1,aux!$AL$1))/INDEX($C80:$G80,1,aux!$AL$1),"n.d.") -> n.d. | X80: =N80-INDEX($J80:$N80,1,aux!$AL$1) -> 0 | Y80: 0 | Z80: =+IF(INDEX($J80:$N80,1,aux!$AL$1)>0,(N80/INDEX($J80:$N80,1,aux!$AL$1))^(1/($N$3-INDEX($J$3:$N$3,1,aux!$AL$1)))-1,"n.d.") -> n.d. | AA80: =IF(INDEX($J80:$N80,1,aux!$AL$1)>0,(N80-INDEX($J80:$N80,1,aux!$AL$1))/INDEX($J80:$N80,1,aux!$AL$1),"n.d.") -> n.d. | AC80: 0 | BS80: =+MATCH('5.1'!A80,AUX_2d_pais!$G$2:$G$20001,0) -> 
A81: 0011 | B81: Espanha | C81: =+SUMIF(AUX_2d_pais!$A$2:$A$27000,'5.1'!$A81&'5.1'!C$3&1,AUX_2d_pais!$J$2:$J$27000)/1000 -> 0 | D81: =+SUMIF(AUX_2d_pais!$A$2:$A$27000,'5.1'!$A81&'5.1'!D$3&1,AUX_2d_pais!$J$2:$J$27000)/1000 -> 0 | E81: =+SUMIF(AUX_2d_pais!$A$2:$A$27000,'5.1'!$A81&'5.1'!E$3&1,AUX_2d_pais!$J$2:$J$27000)/1000 -> 0 | F81: =+SUMIF(AUX_2d_pais!$A$2:$A$27000,'5.1'!$A81&'5.1'!F$3&1,AUX_2d_pais!$J$2:$J$27000)/1000 -> 0 | G81: =+SUMIF(AUX_2d_pais!$A$2:$A$27000,'5.1'!$A81&'5.1'!G$3&1,AUX_2d_pais!$J$2:$J$27000)/1000 -> 0 | H81: 0 | I81: 0 | J81: =+SUMIF(AUX_2d_pais!$A$2:$A$27000,'5.1'!$A81&'5.1'!J$3&2,AUX_2d_pais!$J$2:$J$27000)/1000 -> 0 | K81: =+SUMIF(AUX_2d_pais!$A$2:$A$27000,'5.1'!$A81&'5.1'!K$3&2,AUX_2d_pais!$J$2:$J$27000)/1000 -> 0 | L81: =+SUMIF(AUX_2d_pais!$A$2:$A$27000,'5.1'!$A81&'5.1'!L$3&2,AUX_2d_pais!$J$2:$J$27000)/1000 -> 0 | M81: =+SUMIF(AUX_2d_pais!$A$2:$A$27000,'5.1'!$A81&'5.1'!M$3&2,AUX_2d_pais!$J$2:$J$27000)/1000 -> 0 | N81: =+SUMIF(AUX_2d_pais!$A$2:$A$27000,'5.1'!$A81&'5.1'!N$3&2,AUX_2d_pais!$J$2:$J$27000)/1000 -> 0 | O81: 0 | P81: 0 | Q81: 0 | S81: =G81-INDEX($C81:$G81,1,aux!$AL$1) -> 0 | T81: 0 | U81: =+IF(INDEX($C81:$G81,1,aux!$AL$1)>0,(G81/INDEX($C81:$G81,1,aux!$AL$1))^(1/($G$3-INDEX($C$3:$G$3,1,aux!$AL$1)))-1,"n.d.") -> n.d. | V81: =IF(INDEX($C81:$G81,1,aux!$AL$1)>0,(G81-INDEX($C81:$G81,1,aux!$AL$1))/INDEX($C81:$G81,1,aux!$AL$1),"n.d.") -> n.d. | X81: =N81-INDEX($J81:$N81,1,aux!$AL$1) -> 0 | Y81: 0 | Z81: =+IF(INDEX($J81:$N81,1,aux!$AL$1)>0,(N81/INDEX($J81:$N81,1,aux!$AL$1))^(1/($N$3-INDEX($J$3:$N$3,1,aux!$AL$1)))-1,"n.d.") -> n.d. | AA81: =IF(INDEX($J81:$N81,1,aux!$AL$1)>0,(N81-INDEX($J81:$N81,1,aux!$AL$1))/INDEX($J81:$N81,1,aux!$AL$1),"n.d.") -> n.d. | AC81: 0 | BS81: =+MATCH('5.1'!A81,AUX_2d_pais!$G$2:$G$20001,0) -> 
A82: 0400 | B82: Estados Unidos | C82: =+SUMIF(AUX_2d_pais!$A$2:$A$27000,'5.1'!$A82&'5.1'!C$3&1,AUX_2d_pais!$J$2:$J$27000)/1000 -> 0 | D82: =+SUMIF(AUX_2d_pais!$A$2:$A$27000,'5.1'!$A82&'5.1'!D$3&1,AUX_2d_pais!$J$2:$J$27000)/1000 -> 0 | E82: =+SUMIF(AUX_2d_pais!$A$2:$A$27000,'5.1'!$A82&'5.1'!E$3&1,AUX_2d_pais!$J$2:$J$27000)/1000 -> 0 | F82: =+SUMIF(AUX_2d_pais!$A$2:$A$27000,'5.1'!$A82&'5.1'!F$3&1,AUX_2d_pais!$J$2:$J$27000)/1000 -> 0 | G82: =+SUMIF(AUX_2d_pais!$A$2:$A$27000,'5.1'!$A82&'5.1'!G$3&1,AUX_2d_pais!$J$2:$J$27000)/1000 -> 0 | H82: 0 | I82: 0 | J82: =+SUMIF(AUX_2d_pais!$A$2:$A$27000,'5.1'!$A82&'5.1'!J$3&2,AUX_2d_pais!$J$2:$J$27000)/1000 -> 0 | K82: =+SUMIF(AUX_2d_pais!$A$2:$A$27000,'5.1'!$A82&'5.1'!K$3&2,AUX_2d_pais!$J$2:$J$27000)/1000 -> 0 | L82: =+SUMIF(AUX_2d_pais!$A$2:$A$27000,'5.1'!$A82&'5.1'!L$3&2,AUX_2d_pais!$J$2:$J$27000)/1000 -> 0 | M82: =+SUMIF(AUX_2d_pais!$A$2:$A$27000,'5.1'!$A82&'5.1'!M$3&2,AUX_2d_pais!$J$2:$J$27000)/1000 -> 0 | N82: =+SUMIF(AUX_2d_pais!$A$2:$A$27000,'5.1'!$A82&'5.1'!N$3&2,AUX_2d_pais!$J$2:$J$27000)/1000 -> 0 | O82: 0 | P82: 0 | Q82: 0 | S82: =G82-INDEX($C82:$G82,1,aux!$AL$1) -> 0 | T82: 0 | U82: =+IF(INDEX($C82:$G82,1,aux!$AL$1)>0,(G82/INDEX($C82:$G82,1,aux!$AL$1))^(1/($G$3-INDEX($C$3:$G$3,1,aux!$AL$1)))-1,"n.d.") -> n.d. | V82: =IF(INDEX($C82:$G82,1,aux!$AL$1)>0,(G82-INDEX($C82:$G82,1,aux!$AL$1))/INDEX($C82:$G82,1,aux!$AL$1),"n.d.") -> n.d. | X82: =N82-INDEX($J82:$N82,1,aux!$AL$1) -> 0 | Y82: 0 | Z82: =+IF(INDEX($J82:$N82,1,aux!$AL$1)>0,(N82/INDEX($J82:$N82,1,aux!$AL$1))^(1/($N$3-INDEX($J$3:$N$3,1,aux!$AL$1)))-1,"n.d.") -> n.d. | AA82: =IF(INDEX($J82:$N82,1,aux!$AL$1)>0,(N82-INDEX($J82:$N82,1,aux!$AL$1))/INDEX($J82:$N82,1,aux!$AL$1),"n.d.") -> n.d. | AC82: 0 | BS82: =+MATCH('5.1'!A82,AUX_2d_pais!$G$2:$G$20001,0) -> 
A83: 0053 | B83: Estónia | C83: =+SUMIF(AUX_2d_pais!$A$2:$A$27000,'5.1'!$A83&'5.1'!C$3&1,AUX_2d_pais!$J$2:$J$27000)/1000 -> 0 | D83: =+SUMIF(AUX_2d_pais!$A$2:$A$27000,'5.1'!$A83&'5.1'!D$3&1,AUX_2d_pais!$J$2:$J$27000)/1000 -> 0 | E83: =+SUMIF(AUX_2d_pais!$A$2:$A$27000,'5.1'!$A83&'5.1'!E$3&1,AUX_2d_pais!$J$2:$J$27000)/1000 -> 0 | F83: =+SUMIF(AUX_2d_pais!$A$2:$A$27000,'5.1'!$A83&'5.1'!F$3&1,AUX_2d_pais!$J$2:$J$27000)/1000 -> 0 | G83: =+SUMIF(AUX_2d_pais!$A$2:$A$27000,'5.1'!$A83&'5.1'!G$3&1,AUX_2d_pais!$J$2:$J$27000)/1000 -> 0 | H83: 0 | I83: 0 | J83: =+SUMIF(AUX_2d_pais!$A$2:$A$27000,'5.1'!$A83&'5.1'!J$3&2,AUX_2d_pais!$J$2:$J$27000)/1000 -> 0 | K83: =+SUMIF(AUX_2d_pais!$A$2:$A$27000,'5.1'!$A83&'5.1'!K$3&2,AUX_2d_pais!$J$2:$J$27000)/1000 -> 0 | L83: =+SUMIF(AUX_2d_pais!$A$2:$A$27000,'5.1'!$A83&'5.1'!L$3&2,AUX_2d_pais!$J$2:$J$27000)/1000 -> 0 | M83: =+SUMIF(AUX_2d_pais!$A$2:$A$27000,'5.1'!$A83&'5.1'!M$3&2,AUX_2d_pais!$J$2:$J$27000)/1000 -> 0 | N83: =+SUMIF(AUX_2d_pais!$A$2:$A$27000,'5.1'!$A83&'5.1'!N$3&2,AUX_2d_pais!$J$2:$J$27000)/1000 -> 0 | O83: 0 | P83: 0 | Q83: 0 | S83: =G83-INDEX($C83:$G83,1,aux!$AL$1) -> 0 | T83: 0 | U83: =+IF(INDEX($C83:$G83,1,aux!$AL$1)>0,(G83/INDEX($C83:$G83,1,aux!$AL$1))^(1/($G$3-INDEX($C$3:$G$3,1,aux!$AL$1)))-1,"n.d.") -> n.d. | V83: =IF(INDEX($C83:$G83,1,aux!$AL$1)>0,(G83-INDEX($C83:$G83,1,aux!$AL$1))/INDEX($C83:$G83,1,aux!$AL$1),"n.d.") -> n.d. | X83: =N83-INDEX($J83:$N83,1,aux!$AL$1) -> 0 | Y83: 0 | Z83: =+IF(INDEX($J83:$N83,1,aux!$AL$1)>0,(N83/INDEX($J83:$N83,1,aux!$AL$1))^(1/($N$3-INDEX($J$3:$N$3,1,aux!$AL$1)))-1,"n.d.") -> n.d. | AA83: =IF(INDEX($J83:$N83,1,aux!$AL$1)>0,(N83-INDEX($J83:$N83,1,aux!$AL$1))/INDEX($J83:$N83,1,aux!$AL$1),"n.d.") -> n.d. | AC83: 0 | BS83: =+MATCH('5.1'!A83,AUX_2d_pais!$G$2:$G$20001,0) -> 
A84: 0334 | B84: Etiópia | C84: =+SUMIF(AUX_2d_pais!$A$2:$A$27000,'5.1'!$A84&'5.1'!C$3&1,AUX_2d_pais!$J$2:$J$27000)/1000 -> 6282.593 | D84: =+SUMIF(AUX_2d_pais!$A$2:$A$27000,'5.1'!$A84&'5.1'!D$3&1,AUX_2d_pais!$J$2:$J$27000)/1000 -> 6624.351 | E84: =+SUMIF(AUX_2d_pais!$A$2:$A$27000,'5.1'!$A84&'5.1'!E$3&1,AUX_2d_pais!$J$2:$J$27000)/1000 -> 5986.474 | F84: =+SUMIF(AUX_2d_pais!$A$2:$A$27000,'5.1'!$A84&'5.1'!F$3&1,AUX_2d_pais!$J$2:$J$27000)/1000 -> 3382.122 | G84: =+SUMIF(AUX_2d_pais!$A$2:$A$27000,'5.1'!$A84&'5.1'!G$3&1,AUX_2d_pais!$J$2:$J$27000)/1000 -> 4389.321 | H84: 5332.9722 | I84: 0.01098581701 | J84: =+SUMIF(AUX_2d_pais!$A$2:$A$27000,'5.1'!$A84&'5.1'!J$3&2,AUX_2d_pais!$J$2:$J$27000)/1000 -> 3285.219 | K84: =+SUMIF(AUX_2d_pais!$A$2:$A$27000,'5.1'!$A84&'5.1'!K$3&2,AUX_2d_pais!$J$2:$J$27000)/1000 -> 4131.389 | L84: =+SUMIF(AUX_2d_pais!$A$2:$A$27000,'5.1'!$A84&'5.1'!L$3&2,AUX_2d_pais!$J$2:$J$27000)/1000 -> 828.413 | M84: =+SUMIF(AUX_2d_pais!$A$2:$A$27000,'5.1'!$A84&'5.1'!M$3&2,AUX_2d_pais!$J$2:$J$27000)/1000 -> 1501.545 | N84: =+SUMIF(AUX_2d_pais!$A$2:$A$27000,'5.1'!$A84&'5.1'!N$3&2,AUX_2d_pais!$J$2:$J$27000)/1000 -> 414.004 | O84: 2032.114 | P84: 0.002078888123 | Q84: -3300.8582 | S84: =G84-INDEX($C84:$G84,1,aux!$AL$1) -> -1893.272 | T84: -0.02824912194 | U84: =+IF(INDEX($C84:$G84,1,aux!$AL$1)>0,(G84/INDEX($C84:$G84,1,aux!$AL$1))^(1/($G$3-INDEX($C$3:$G$3,1,aux!$AL$1)))-1,"n.d.") -> -0.085750768 | V84: =IF(INDEX($C84:$G84,1,aux!$AL$1)>0,(G84-INDEX($C84:$G84,1,aux!$AL$1))/INDEX($C84:$G84,1,aux!$AL$1),"n.d.") -> -0.3013520055 | X84: =N84-INDEX($J84:$N84,1,aux!$AL$1) -> -2871.215 | Y84: -0.01379794038 | Z84: =+IF(INDEX($J84:$N84,1,aux!$AL$1)>0,(N84/INDEX($J84:$N84,1,aux!$AL$1))^(1/($N$3-INDEX($J$3:$N$3,1,aux!$AL$1)))-1,"n.d.") -> -0.404186893 | AA84: =IF(INDEX($J84:$N84,1,aux!$AL$1)>0,(N84-INDEX($J84:$N84,1,aux!$AL$1))/INDEX($J84:$N84,1,aux!$AL$1),"n.d.") -> -0.8739797864 | BS84: =+MATCH('5.1'!A84,AUX_2d_pais!$G$2:$G$20001,0) -> 179
A85: 0529 | B85: Falkland Ilhas (Malvinas) | C85: =+SUMIF(AUX_2d_pais!$A$2:$A$27000,'5.1'!$A85&'5.1'!C$3&1,AUX_2d_pais!$J$2:$J$27000)/1000 -> 0 | D85: =+SUMIF(AUX_2d_pais!$A$2:$A$27000,'5.1'!$A85&'5.1'!D$3&1,AUX_2d_pais!$J$2:$J$27000)/1000 -> 0 | E85: =+SUMIF(AUX_2d_pais!$A$2:$A$27000,'5.1'!$A85&'5.1'!E$3&1,AUX_2d_pais!$J$2:$J$27000)/1000 -> 0 | F85: =+SUMIF(AUX_2d_pais!$A$2:$A$27000,'5.1'!$A85&'5.1'!F$3&1,AUX_2d_pais!$J$2:$J$27000)/1000 -> 0 | G85: =+SUMIF(AUX_2d_pais!$A$2:$A$27000,'5.1'!$A85&'5.1'!G$3&1,AUX_2d_pais!$J$2:$J$27000)/1000 -> 0 | H85: 0 | I85: 0 | J85: =+SUMIF(AUX_2d_pais!$A$2:$A$27000,'5.1'!$A85&'5.1'!J$3&2,AUX_2d_pais!$J$2:$J$27000)/1000 -> 0 | K85: =+SUMIF(AUX_2d_pais!$A$2:$A$27000,'5.1'!$A85&'5.1'!K$3&2,AUX_2d_pais!$J$2:$J$27000)/1000 -> 0 | L85: =+SUMIF(AUX_2d_pais!$A$2:$A$27000,'5.1'!$A85&'5.1'!L$3&2,AUX_2d_pais!$J$2:$J$27000)/1000 -> 0 | M85: =+SUMIF(AUX_2d_pais!$A$2:$A$27000,'5.1'!$A85&'5.1'!M$3&2,AUX_2d_pais!$J$2:$J$27000)/1000 -> 0 | N85: =+SUMIF(AUX_2d_pais!$A$2:$A$27000,'5.1'!$A85&'5.1'!N$3&2,AUX_2d_pais!$J$2:$J$27000)/1000 -> 0 | O85: 0 | P85: 0 | Q85: 0 | S85: =G85-INDEX($C85:$G85,1,aux!$AL$1) -> 0 | T85: 0 | U85: =+IF(INDEX($C85:$G85,1,aux!$AL$1)>0,(G85/INDEX($C85:$G85,1,aux!$AL$1))^(1/($G$3-INDEX($C$3:$G$3,1,aux!$AL$1)))-1,"n.d.") -> n.d. | V85: =IF(INDEX($C85:$G85,1,aux!$AL$1)>0,(G85-INDEX($C85:$G85,1,aux!$AL$1))/INDEX($C85:$G85,1,aux!$AL$1),"n.d.") -> n.d. | X85: =N85-INDEX($J85:$N85,1,aux!$AL$1) -> 0 | Y85: 0 | Z85: =+IF(INDEX($J85:$N85,1,aux!$AL$1)>0,(N85/INDEX($J85:$N85,1,aux!$AL$1))^(1/($N$3-INDEX($J$3:$N$3,1,aux!$AL$1)))-1,"n.d.") -> n.d. | AA85: =IF(INDEX($J85:$N85,1,aux!$AL$1)>0,(N85-INDEX($J85:$N85,1,aux!$AL$1))/INDEX($J85:$N85,1,aux!$AL$1),"n.d.") -> n.d. | AC85: 0 | BS85: =+MATCH('5.1'!A85,AUX_2d_pais!$G$2:$G$20001,0) -> 
A86: 0041 | B86: Faroé, Ilhas | C86: =+SUMIF(AUX_2d_pais!$A$2:$A$27000,'5.1'!$A86&'5.1'!C$3&1,AUX_2d_pais!$J$2:$J$27000)/1000 -> 0 | D86: =+SUMIF(AUX_2d_pais!$A$2:$A$27000,'5.1'!$A86&'5.1'!D$3&1,AUX_2d_pais!$J$2:$J$27000)/1000 -> 0 | E86: =+SUMIF(AUX_2d_pais!$A$2:$A$27000,'5.1'!$A86&'5.1'!E$3&1,AUX_2d_pais!$J$2:$J$27000)/1000 -> 0 | F86: =+SUMIF(AUX_2d_pais!$A$2:$A$27000,'5.1'!$A86&'5.1'!F$3&1,AUX_2d_pais!$J$2:$J$27000)/1000 -> 0 | G86: =+SUMIF(AUX_2d_pais!$A$2:$A$27000,'5.1'!$A86&'5.1'!G$3&1,AUX_2d_pais!$J$2:$J$27000)/1000 -> 0 | H86: 0 | I86: 0 | J86: =+SUMIF(AUX_2d_pais!$A$2:$A$27000,'5.1'!$A86&'5.1'!J$3&2,AUX_2d_pais!$J$2:$J$27000)/1000 -> 0 | K86: =+SUMIF(AUX_2d_pais!$A$2:$A$27000,'5.1'!$A86&'5.1'!K$3&2,AUX_2d_pais!$J$2:$J$27000)/1000 -> 0 | L86: =+SUMIF(AUX_2d_pais!$A$2:$A$27000,'5.1'!$A86&'5.1'!L$3&2,AUX_2d_pais!$J$2:$J$27000)/1000 -> 0 | M86: =+SUMIF(AUX_2d_pais!$A$2:$A$27000,'5.1'!$A86&'5.1'!M$3&2,AUX_2d_pais!$J$2:$J$27000)/1000 -> 0 | N86: =+SUMIF(AUX_2d_pais!$A$2:$A$27000,'5.1'!$A86&'5.1'!N$3&2,AUX_2d_pais!$J$2:$J$27000)/1000 -> 0 | O86: 0 | P86: 0 | Q86: 0 | S86: =G86-INDEX($C86:$G86,1,aux!$AL$1) -> 0 | T86: 0 | U86: =+IF(INDEX($C86:$G86,1,aux!$AL$1)>0,(G86/INDEX($C86:$G86,1,aux!$AL$1))^(1/($G$3-INDEX($C$3:$G$3,1,aux!$AL$1)))-1,"n.d.") -> n.d. | V86: =IF(INDEX($C86:$G86,1,aux!$AL$1)>0,(G86-INDEX($C86:$G86,1,aux!$AL$1))/INDEX($C86:$G86,1,aux!$AL$1),"n.d.") -> n.d. | X86: =N86-INDEX($J86:$N86,1,aux!$AL$1) -> 0 | Y86: 0 | Z86: =+IF(INDEX($J86:$N86,1,aux!$AL$1)>0,(N86/INDEX($J86:$N86,1,aux!$AL$1))^(1/($N$3-INDEX($J$3:$N$3,1,aux!$AL$1)))-1,"n.d.") -> n.d. | AA86: =IF(INDEX($J86:$N86,1,aux!$AL$1)>0,(N86-INDEX($J86:$N86,1,aux!$AL$1))/INDEX($J86:$N86,1,aux!$AL$1),"n.d.") -> n.d. | AC86: 0 | BS86: =+MATCH('5.1'!A86,AUX_2d_pais!$G$2:$G$20001,0) -> 
A87: 0815 | B87: Fiji, Ilhas | C87: =+SUMIF(AUX_2d_pais!$A$2:$A$27000,'5.1'!$A87&'5.1'!C$3&1,AUX_2d_pais!$J$2:$J$27000)/1000 -> 0 | D87: =+SUMIF(AUX_2d_pais!$A$2:$A$27000,'5.1'!$A87&'5.1'!D$3&1,AUX_2d_pais!$J$2:$J$27000)/1000 -> 0 | E87: =+SUMIF(AUX_2d_pais!$A$2:$A$27000,'5.1'!$A87&'5.1'!E$3&1,AUX_2d_pais!$J$2:$J$27000)/1000 -> 0 | F87: =+SUMIF(AUX_2d_pais!$A$2:$A$27000,'5.1'!$A87&'5.1'!F$3&1,AUX_2d_pais!$J$2:$J$27000)/1000 -> 0 | G87: =+SUMIF(AUX_2d_pais!$A$2:$A$27000,'5.1'!$A87&'5.1'!G$3&1,AUX_2d_pais!$J$2:$J$27000)/1000 -> 0 | H87: 0 | I87: 0 | J87: =+SUMIF(AUX_2d_pais!$A$2:$A$27000,'5.1'!$A87&'5.1'!J$3&2,AUX_2d_pais!$J$2:$J$27000)/1000 -> 0 | K87: =+SUMIF(AUX_2d_pais!$A$2:$A$27000,'5.1'!$A87&'5.1'!K$3&2,AUX_2d_pais!$J$2:$J$27000)/1000 -> 0 | L87: =+SUMIF(AUX_2d_pais!$A$2:$A$27000,'5.1'!$A87&'5.1'!L$3&2,AUX_2d_pais!$J$2:$J$27000)/1000 -> 0 | M87: =+SUMIF(AUX_2d_pais!$A$2:$A$27000,'5.1'!$A87&'5.1'!M$3&2,AUX_2d_pais!$J$2:$J$27000)/1000 -> 0 | N87: =+SUMIF(AUX_2d_pais!$A$2:$A$27000,'5.1'!$A87&'5.1'!N$3&2,AUX_2d_pais!$J$2:$J$27000)/1000 -> 0 | O87: 0 | P87: 0 | Q87: 0 | S87: =G87-INDEX($C87:$G87,1,aux!$AL$1) -> 0 | T87: 0 | U87: =+IF(INDEX($C87:$G87,1,aux!$AL$1)>0,(G87/INDEX($C87:$G87,1,aux!$AL$1))^(1/($G$3-INDEX($C$3:$G$3,1,aux!$AL$1)))-1,"n.d.") -> n.d. | V87: =IF(INDEX($C87:$G87,1,aux!$AL$1)>0,(G87-INDEX($C87:$G87,1,aux!$AL$1))/INDEX($C87:$G87,1,aux!$AL$1),"n.d.") -> n.d. | X87: =N87-INDEX($J87:$N87,1,aux!$AL$1) -> 0 | Y87: 0 | Z87: =+IF(INDEX($J87:$N87,1,aux!$AL$1)>0,(N87/INDEX($J87:$N87,1,aux!$AL$1))^(1/($N$3-INDEX($J$3:$N$3,1,aux!$AL$1)))-1,"n.d.") -> n.d. | AA87: =IF(INDEX($J87:$N87,1,aux!$AL$1)>0,(N87-INDEX($J87:$N87,1,aux!$AL$1))/INDEX($J87:$N87,1,aux!$AL$1),"n.d.") -> n.d. | AC87: 0 | BS87: =+MATCH('5.1'!A87,AUX_2d_pais!$G$2:$G$20001,0) -> 
A88: 0708 | B88: Filipinas | C88: =+SUMIF(AUX_2d_pais!$A$2:$A$27000,'5.1'!$A88&'5.1'!C$3&1,AUX_2d_pais!$J$2:$J$27000)/1000 -> 0 | D88: =+SUMIF(AUX_2d_pais!$A$2:$A$27000,'5.1'!$A88&'5.1'!D$3&1,AUX_2d_pais!$J$2:$J$27000)/1000 -> 0 | E88: =+SUMIF(AUX_2d_pais!$A$2:$A$27000,'5.1'!$A88&'5.1'!E$3&1,AUX_2d_pais!$J$2:$J$27000)/1000 -> 0 | F88: =+SUMIF(AUX_2d_pais!$A$2:$A$27000,'5.1'!$A88&'5.1'!F$3&1,AUX_2d_pais!$J$2:$J$27000)/1000 -> 0 | G88: =+SUMIF(AUX_2d_pais!$A$2:$A$27000,'5.1'!$A88&'5.1'!G$3&1,AUX_2d_pais!$J$2:$J$27000)/1000 -> 0 | H88: 0 | I88: 0 | J88: =+SUMIF(AUX_2d_pais!$A$2:$A$27000,'5.1'!$A88&'5.1'!J$3&2,AUX_2d_pais!$J$2:$J$27000)/1000 -> 0 | K88: =+SUMIF(AUX_2d_pais!$A$2:$A$27000,'5.1'!$A88&'5.1'!K$3&2,AUX_2d_pais!$J$2:$J$27000)/1000 -> 0 | L88: =+SUMIF(AUX_2d_pais!$A$2:$A$27000,'5.1'!$A88&'5.1'!L$3&2,AUX_2d_pais!$J$2:$J$27000)/1000 -> 0 | M88: =+SUMIF(AUX_2d_pais!$A$2:$A$27000,'5.1'!$A88&'5.1'!M$3&2,AUX_2d_pais!$J$2:$J$27000)/1000 -> 0 | N88: =+SUMIF(AUX_2d_pais!$A$2:$A$27000,'5.1'!$A88&'5.1'!N$3&2,AUX_2d_pais!$J$2:$J$27000)/1000 -> 0 | O88: 0 | P88: 0 | Q88: 0 | S88: =G88-INDEX($C88:$G88,1,aux!$AL$1) -> 0 | T88: 0 | U88: =+IF(INDEX($C88:$G88,1,aux!$AL$1)>0,(G88/INDEX($C88:$G88,1,aux!$AL$1))^(1/($G$3-INDEX($C$3:$G$3,1,aux!$AL$1)))-1,"n.d.") -> n.d. | V88: =IF(INDEX($C88:$G88,1,aux!$AL$1)>0,(G88-INDEX($C88:$G88,1,aux!$AL$1))/INDEX($C88:$G88,1,aux!$AL$1),"n.d.") -> n.d. | X88: =N88-INDEX($J88:$N88,1,aux!$AL$1) -> 0 | Y88: 0 | Z88: =+IF(INDEX($J88:$N88,1,aux!$AL$1)>0,(N88/INDEX($J88:$N88,1,aux!$AL$1))^(1/($N$3-INDEX($J$3:$N$3,1,aux!$AL$1)))-1,"n.d.") -> n.d. | AA88: =IF(INDEX($J88:$N88,1,aux!$AL$1)>0,(N88-INDEX($J88:$N88,1,aux!$AL$1))/INDEX($J88:$N88,1,aux!$AL$1),"n.d.") -> n.d. | AC88: 0 | BS88: =+MATCH('5.1'!A88,AUX_2d_pais!$G$2:$G$20001,0) -> 
A89: 0032 | B89: Finlândia | C89: =+SUMIF(AUX_2d_pais!$A$2:$A$27000,'5.1'!$A89&'5.1'!C$3&1,AUX_2d_pais!$J$2:$J$27000)/1000 -> 0 | D89: =+SUMIF(AUX_2d_pais!$A$2:$A$27000,'5.1'!$A89&'5.1'!D$3&1,AUX_2d_pais!$J$2:$J$27000)/1000 -> 0 | E89: =+SUMIF(AUX_2d_pais!$A$2:$A$27000,'5.1'!$A89&'5.1'!E$3&1,AUX_2d_pais!$J$2:$J$27000)/1000 -> 0 | F89: =+SUMIF(AUX_2d_pais!$A$2:$A$27000,'5.1'!$A89&'5.1'!F$3&1,AUX_2d_pais!$J$2:$J$27000)/1000 -> 0 | G89: =+SUMIF(AUX_2d_pais!$A$2:$A$27000,'5.1'!$A89&'5.1'!G$3&1,AUX_2d_pais!$J$2:$J$27000)/1000 -> 0 | H89: 0 | I89: 0 | J89: =+SUMIF(AUX_2d_pais!$A$2:$A$27000,'5.1'!$A89&'5.1'!J$3&2,AUX_2d_pais!$J$2:$J$27000)/1000 -> 0 | K89: =+SUMIF(AUX_2d_pais!$A$2:$A$27000,'5.1'!$A89&'5.1'!K$3&2,AUX_2d_pais!$J$2:$J$27000)/1000 -> 0 | L89: =+SUMIF(AUX_2d_pais!$A$2:$A$27000,'5.1'!$A89&'5.1'!L$3&2,AUX_2d_pais!$J$2:$J$27000)/1000 -> 0 | M89: =+SUMIF(AUX_2d_pais!$A$2:$A$27000,'5.1'!$A89&'5.1'!M$3&2,AUX_2d_pais!$J$2:$J$27000)/1000 -> 0 | N89: =+SUMIF(AUX_2d_pais!$A$2:$A$27000,'5.1'!$A89&'5.1'!N$3&2,AUX_2d_pais!$J$2:$J$27000)/1000 -> 0 | O89: 0 | P89: 0 | Q89: 0 | S89: =G89-INDEX($C89:$G89,1,aux!$AL$1) -> 0 | T89: 0 | U89: =+IF(INDEX($C89:$G89,1,aux!$AL$1)>0,(G89/INDEX($C89:$G89,1,aux!$AL$1))^(1/($G$3-INDEX($C$3:$G$3,1,aux!$AL$1)))-1,"n.d.") -> n.d. | V89: =IF(INDEX($C89:$G89,1,aux!$AL$1)>0,(G89-INDEX($C89:$G89,1,aux!$AL$1))/INDEX($C89:$G89,1,aux!$AL$1),"n.d.") -> n.d. | X89: =N89-INDEX($J89:$N89,1,aux!$AL$1) -> 0 | Y89: 0 | Z89: =+IF(INDEX($J89:$N89,1,aux!$AL$1)>0,(N89/INDEX($J89:$N89,1,aux!$AL$1))^(1/($N$3-INDEX($J$3:$N$3,1,aux!$AL$1)))-1,"n.d.") -> n.d. | AA89: =IF(INDEX($J89:$N89,1,aux!$AL$1)>0,(N89-INDEX($J89:$N89,1,aux!$AL$1))/INDEX($J89:$N89,1,aux!$AL$1),"n.d.") -> n.d. | AC89: 0 | BS89: =+MATCH('5.1'!A89,AUX_2d_pais!$G$2:$G$20001,0) -> 
A90: 0001 | B90: França | C90: =+SUMIF(AUX_2d_pais!$A$2:$A$27000,'5.1'!$A90&'5.1'!C$3&1,AUX_2d_pais!$J$2:$J$27000)/1000 -> 0 | D90: =+SUMIF(AUX_2d_pais!$A$2:$A$27000,'5.1'!$A90&'5.1'!D$3&1,AUX_2d_pais!$J$2:$J$27000)/1000 -> 0 | E90: =+SUMIF(AUX_2d_pais!$A$2:$A$27000,'5.1'!$A90&'5.1'!E$3&1,AUX_2d_pais!$J$2:$J$27000)/1000 -> 0 | F90: =+SUMIF(AUX_2d_pais!$A$2:$A$27000,'5.1'!$A90&'5.1'!F$3&1,AUX_2d_pais!$J$2:$J$27000)/1000 -> 0 | G90: =+SUMIF(AUX_2d_pais!$A$2:$A$27000,'5.1'!$A90&'5.1'!G$3&1,AUX_2d_pais!$J$2:$J$27000)/1000 -> 0 | H90: 0 | I90: 0 | J90: =+SUMIF(AUX_2d_pais!$A$2:$A$27000,'5.1'!$A90&'5.1'!J$3&2,AUX_2d_pais!$J$2:$J$27000)/1000 -> 0 | K90: =+SUMIF(AUX_2d_pais!$A$2:$A$27000,'5.1'!$A90&'5.1'!K$3&2,AUX_2d_pais!$J$2:$J$27000)/1000 -> 0 | L90: =+SUMIF(AUX_2d_pais!$A$2:$A$27000,'5.1'!$A90&'5.1'!L$3&2,AUX_2d_pais!$J$2:$J$27000)/1000 -> 0 | M90: =+SUMIF(AUX_2d_pais!$A$2:$A$27000,'5.1'!$A90&'5.1'!M$3&2,AUX_2d_pais!$J$2:$J$27000)/1000 -> 0 | N90: =+SUMIF(AUX_2d_pais!$A$2:$A$27000,'5.1'!$A90&'5.1'!N$3&2,AUX_2d_pais!$J$2:$J$27000)/1000 -> 0 | O90: 0 | P90: 0 | Q90: 0 | S90: =G90-INDEX($C90:$G90,1,aux!$AL$1) -> 0 | T90: 0 | U90: =+IF(INDEX($C90:$G90,1,aux!$AL$1)>0,(G90/INDEX($C90:$G90,1,aux!$AL$1))^(1/($G$3-INDEX($C$3:$G$3,1,aux!$AL$1)))-1,"n.d.") -> n.d. | V90: =IF(INDEX($C90:$G90,1,aux!$AL$1)>0,(G90-INDEX($C90:$G90,1,aux!$AL$1))/INDEX($C90:$G90,1,aux!$AL$1),"n.d.") -> n.d. | X90: =N90-INDEX($J90:$N90,1,aux!$AL$1) -> 0 | Y90: 0 | Z90: =+IF(INDEX($J90:$N90,1,aux!$AL$1)>0,(N90/INDEX($J90:$N90,1,aux!$AL$1))^(1/($N$3-INDEX($J$3:$N$3,1,aux!$AL$1)))-1,"n.d.") -> n.d. | AA90: =IF(INDEX($J90:$N90,1,aux!$AL$1)>0,(N90-INDEX($J90:$N90,1,aux!$AL$1))/INDEX($J90:$N90,1,aux!$AL$1),"n.d.") -> n.d. | AC90: 0 | BS90: =+MATCH('5.1'!A90,AUX_2d_pais!$G$2:$G$20001,0) -> 
